Workbook

Sheet An Príomh-Roghchlár
C3: An Príomh-Roghchlár
B7: Cliceáil ar na naisc thíos le haghaidh Mear-nascleanúna
B8: Treoracha
B9: COA
B10: Tuairiscí Miosúla Ioncam & Cait
B11: Iarmhír v Buiséad
B12: Leathnach Achoimre Bainc
C14: Ioncam | D14: Payments | E14: Bank Rec
B15: Meán Fomhair | C15: Cliceáil | D15: Cliceáil | E15: Cliceáil
B16: Deireadh Fómhair | C16: Cliceáil | D16: Cliceáil | E16: Cliceáil
B17: Samhain | C17: Cliceáil | D17: Cliceáil | E17: Cliceáil
B18: Nollaig | C18: Cliceáil | D18: Cliceáil | E18: Cliceáil
B19: Eanair | C19: Cliceáil | D19: Cliceáil | E19: Cliceáil
B20: Feabhra | C20: Cliceáil | D20: Cliceáil | E20: Cliceáil
B21: Márta | C21: Cliceáil | D21: Cliceáil | E21: Cliceáil
B22: Aibreán | C22: Cliceáil | D22: Cliceáil | E22: Cliceáil
B23: Bealtaine | C23: Cliceáil | D23: Cliceáil | E23: Cliceáil
B24: Meitheamh | C24: Cliceáil | D24: Cliceáil | E24: Cliceáil
B25: Iúil | C25: Cliceáil | D25: Cliceáil | E25: Cliceáil
B26: Lúnasa | C26: Cliceáil | D26: Cliceáil | E26: Cliceáil
B28: Sreabhadh Airgid
B29: Tuairisc ar Fháltais
B30: Idirbhearta Fáltais
B31: Tuairisc ar íocaíochtaí
B32: Idirbhearta Iocaíochtaí
B34: Lists | C34: Hidden in final version
B35: Payments | C35: Hidden in final version
B36: Receipts | C36: Hidden in final version

Sheet Treoracha
A1: An Príomh-Roghchlár
B2: TREORACHA:
B4: CÉIM 1: | C4: Cuir Isteach Ainm do Scoile: | G4: Cuir Isteach Anseo É
B6: CÉIM 2: | C6: Cuir Isteach Uimh. Rolla do Scoile: | G6: Cuir Isteach Anseo É
B8: CÉIM 3: | C8: Iontráil Ainmneacha na gCuntas Bainc | G8: Banc 1
G9: Banc 2
G10: Banc 3
G11: Banc 4
B12: CÉIM 4: | C12: Bileog - COA
C13: Scrúdaigh an liosta le cinneadh cé acu de na ‘Cur síos ar Chód Ainmniúil’ a bhaineann le do scoil
C14: Ba cheart cóid nach mbaineann le do scoil a athrú go “N” i gcolún E
C15: Caith súil siar ar do chuid athruithe chun a chinntiú go bhfuil na míreanna a athraíodh go “N” cruinn
C16: Cliceáil ar "Nuashonraigh Colúin Fholaithe" lena dtaispeánfar/bhfolófar na míreanna sin ó bhileoga riachtanacha
M17: Téir go dtí: | N17: Céim 4
B19: Céim 5 | C19: Bileog - Iarbhír v Buiséad
C20: Tuarascáil Buiséad 1: Bliain Iarbhír go Dáta v Buiséad - allmhairiú/onnmhairiú figúirí buiséad | M20: Téir go dtí: | N20: Céim 5
B22: Céim 6 | C22: Bileog - Iarbhír v Buiséad
C23: Tuarascáil Buiséad 2: Bliain Iarbhír go Dáta v Bliain Roimhe - Cuir isteach figúirí Iarbhír bliain roimhe | M23: Téir go dtí: | N23: Céim 6
B25: Céim 7 | C25: Bileog - Leathnach Achoimre Bainc
C26: Déantar iarmhéideanna deiridh deontais ón mbliain roimhe a iontráil
C27: sa Rannán Anailíse ar Dheontais | M27: Téir go dtí: | N27: Céim 7
B29: Céim 8 | C29: Bileoga - Íocaíochtaí Mhí Mheán Fómhair go dtí Íocaíochtaí Mhí Lúnasa
C30: Imréiteach Bainc Mhí Mheán Fómhair - Iontráil suim an iarmhéid bhainc thosaigh a bhaintear den ráiteas bainc amhail an 1 Meán Fómhair (Níl an t-iarmhéid bainc tosaigh ag teastáil ach do mhí Mheán Fómhair amháin, tá an t-iarmhéid bainc deiridh ag teastáil do na míonna go léir.)
C32: Baintear na hiarmhéideanna bainc tosaigh den ráiteas bainc amhail ag deireadh na míosa | M32: Téir go dtí: | N32: Céim 8
B34: Cuir isteach | C34: Bileoga - Ioncam/Íocaíochtaí Mhí Mheán Fómhair go dtí Ioncam/Íocaíochtaí Mhí Lúnasa
B35: an t-Eolas | C35: Déantar sonraí a bhaineann le hidirbhearta gach míosa a thaifeadadh sna bileoga míosúla agus cuirfear
C36: faisnéis sna bileoga a leanas go huathoibríoch mar thoradh: COA, Ioncam agus Caiteachas Míosúil, Tuairiscí Buiséid, Achoimre Bainc agus Sreabhadh Airgid
C37: Baintear iarmhéideanna deiridh bainc ón ráiteas bainc ag deireadh na míosa
C38: Seiceálacha taifid a dreéachtaíodh sa mhí ach nár tiolacadh sa bhanc sa chuid seiceála gan íoc
C39: Cinntigh go ndéantar réiteach iomlán ar gach mí sula dtéann tú ar aghaidh go dtí an mhí seo chugainn
B41: Tuairisc don: | C41: Úsáid an cnaipe 'PRIONTÁIL' ar gach leathanach chun na tuairiscí seo a leanas a phriontáil amach le haghaidh chruinniú an Bhoird Bainistíochta. Is féidir na tuairiscí seo a leanas a phriontáil:
B42: Bórd Bainistíochta
C43: Bliantiúil/Míosúil - Tuairisc Ioncam & Caiteachas na Scoile
C44: Bliantiúil/Míosúil - Tuairisc Caipital agus Cúlchistí
C45: Tuairisc Buiséad 1: Iarmhír Bliain go Dáta v Buiséad
C46: Tuairisc Buiséad 2: Iarbhír Bliain to Dáta v Bliain Roimhe
C47: Tuairiscí Míosúla Imréiteach Bainc
B49: Reports: | C49: Is féidir aon tuairiscí breise a phriontáil de réir mar is gá:
C50: Anailís ar Dheontas
C51: Anailís ar Ioncam Deontais
C52: Anailís ar Chaiteachas Deontais
C53: Tuairisc ar shreabhadh Airgid
C54: Miontuairiscí sainiúla in aghaidh an Bhainc, na Tréimhse, an Cur Síos agus na Catagóire
B56: Tabhair faoi deara: | C56: Tá foirmlí sna cealla liatha agus tá siad faoi chosaint chun a chinntiú nach ndéantar for-chlóscríobh orthu
B58: MÁ THEASTAÍONN TUILLEADH CÚNAIMH UAIT, TÉIGH CHUIG WWW.FSSU.IE/TEMPLATES
B59: CHUN TREORACHA MIONSONRAITHE A FHÁIL NÓ CUIR GLAO ORAINN AR 01-9104020
B61: NÁ DÉAN DEARMAD CÓIP CHÚLTACA A DHÉANAMH DE DO CHUID OIBRE GACH UAIR A ÚSÁIDEANN TÚ AN SCARBHILEOG SEO!
B62: IS FÉIDIR CÓIP CHÚLTACA A CHUR CHUIG GLÉAS SEACHTRACH NÓ CHUIG FREASTALAÍ

Sheet COA
A1: Cód Ainmniúil | B1: Cur Síos | C1: Cineál | D1: Catagóir | E1: Cuir san áireamh | F1: Iomlán | K1: =B4 -> Cur Síos
A2: =IFERROR(DGET($A$4:$F$199,A1,$K$1:$K$2),"") -> 
A3: An Príomh-Roghchlár | B3: FSSU - Cairt Cuntas ar Leibhéal na Bunscoile
A4: Cód Ainmniúil | B4: Cur Síos | C4: Cineál | D4: Catagóir | E4: Cuir san áireamh | F4: Iomlán | G4: Iarmhéid Oscailte | H4: Coigeartuithe Iarmhéid Oscailte | I4: Coigeartuithe na bliana reatha | J4: Cuntais Deiridh | K4: Notaí | AA4: =COUNTIF(AB5:AAB333,"?*") -> 195
A5: 3010 | B5: Buiséad Caipitíochta/Neamhphá | C5: Ioncam | D5: An Roinn Oideachais | E5: Y | F5: ='Tuairiscí Miosúla Ioncam & Cait'!O8 -> 0 | J5: =-SUM(F5)-(G5+H5+I5) -> 0 | L5: H | Y5: =IF(ISNUMBER(SEARCH($K$2,B5)),MAX($Y$4:Y4)+1,0) -> 1 | Z5: Buiséad Caipitíochta/Neamhphá | AA5: =OFFSET($AB$5,,,COUNTIF($AB$5:$AB$278,"?*")) -> Buiséad Caipitíochta/Neamhphá | AB5: =IFERROR(VLOOKUP(ROWS($AB$5:AB5),$Y$5:$Z$199,2,0),"") -> Buiséad Caipitíochta/Neamhphá
A6: 3020 | B6: Deontas DEIS | C6: Ioncam | D6: An Roinn Oideachais | E6: Y | F6: ='Tuairiscí Miosúla Ioncam & Cait'!O9 -> 0 | J6: =-SUM(F6)-(G6+H6+I6) -> 0 | L6: I | Y6: =IF(ISNUMBER(SEARCH($K$2,B6)),MAX($Y$4:Y5)+1,0) -> 2 | Z6: Deontas DEIS | AB6: =IFERROR(VLOOKUP(ROWS($AB$5:AB6),$Y$5:$Z$199,2,0),"") -> Deontas DEIS
A7: 3021 | B7: Deontas Scéim luath-thosaithe le haghaidh Ábh/Tre/For Tuis | C7: Ioncam | D7: An Roinn Oideachais | E7: Y | F7: ='Tuairiscí Miosúla Ioncam & Cait'!O10 -> 0 | J7: 0 | L7: J | Y7: =IF(ISNUMBER(SEARCH($K$2,B7)),MAX($Y$4:Y6)+1,0) -> 3 | Z7: Deontas Scéim luath-thosaithe le haghaidh Ábh/Tre/For Tuis | AB7: =IFERROR(VLOOKUP(ROWS($AB$5:AB7),$Y$5:$Z$199,2,0),"") -> Deontas Scéim luath-thosaithe le haghaidh Ábh/Tre/For Tuis
A8: 3022 | B8: Scéim luath-thosaithe Caipitíocht | C8: Ioncam | D8: An Roinn Oideachais | E8: Y | F8: ='Tuairiscí Miosúla Ioncam & Cait'!O11 -> 0 | J8: 0 | L8: K | Y8: =IF(ISNUMBER(SEARCH($K$2,B8)),MAX($Y$4:Y7)+1,0) -> 4 | Z8: Scéim luath-thosaithe Caipitíocht | AB8: =IFERROR(VLOOKUP(ROWS($AB$5:AB8),$Y$5:$Z$199,2,0),"") -> Scéim luath-thosaithe Caipitíocht
A9: 3050 | B9: Buiséad Pá Neamhtheagaisc | C9: Ioncam | D9: An Roinn Oideachais | E9: Y | F9: ='Tuairiscí Miosúla Ioncam & Cait'!O12 -> 0 | J9: 0 | L9: L | Y9: =IF(ISNUMBER(SEARCH($K$2,B9)),MAX($Y$4:Y8)+1,0) -> 5 | Z9: Buiséad Pá Neamhtheagaisc | AB9: =IFERROR(VLOOKUP(ROWS($AB$5:AB9),$Y$5:$Z$199,2,0),"") -> Buiséad Pá Neamhtheagaisc
A10: 3140 | B10: Deontas do Threalamh Oideachais Speisialta | C10: Ioncam | D10: An Roinn Oideachais | E10: Y | F10: ='Tuairiscí Miosúla Ioncam & Cait'!O13 -> 0 | J10: 0 | L10: M | Y10: =IF(ISNUMBER(SEARCH($K$2,B10)),MAX($Y$4:Y9)+1,0) -> 6 | Z10: Deontas do Threalamh Oideachais Speisialta | AB10: =IFERROR(VLOOKUP(ROWS($AB$5:AB10),$Y$5:$Z$199,2,0),"") -> Deontas do Threalamh Oideachais Speisialta
A11: 3150 | B11: Ioncam ó Dheontas na Leabhar | C11: Ioncam | D11: An Roinn Oideachais | E11: Y | F11: ='Tuairiscí Miosúla Ioncam & Cait'!O14 -> 0 | J11: 0 | L11: N | Y11: =IF(ISNUMBER(SEARCH($K$2,B11)),MAX($Y$4:Y10)+1,0) -> 7 | Z11: Ioncam ó Dheontas na Leabhar | AB11: =IFERROR(VLOOKUP(ROWS($AB$5:AB11),$Y$5:$Z$199,2,0),"") -> Ioncam ó Dheontas na Leabhar
A12: 3155 | B12: Deontas Caipitil do Leabhair Leabharlainne Scoile | C12: Ioncam | D12: An Roinn Oideachais | E12: Y | F12: ='Tuairiscí Miosúla Ioncam & Cait'!O15 -> 0 | J12: 0 | L12: O | Y12: =IF(ISNUMBER(SEARCH($K$2,B12)),MAX($Y$4:Y11)+1,0) -> 8 | Z12: Deontas Caipitil do Leabhair Leabharlainne Scoile | AB12: =IFERROR(VLOOKUP(ROWS($AB$5:AB12),$Y$5:$Z$199,2,0),"") -> Deontas Caipitil do Leabhair Leabharlainne Scoile
A13: 3160 | B13: Deontas na Scéime Leabhar ar Cíos | C13: Ioncam | D13: An Roinn Oideachais | E13: Y | F13: ='Tuairiscí Miosúla Ioncam & Cait'!O16 -> 0 | J13: 0 | L13: P | Y13: =IF(ISNUMBER(SEARCH($K$2,B13)),MAX($Y$4:Y12)+1,0) -> 9 | Z13: Deontas na Scéime Leabhar ar Cíos | AB13: =IFERROR(VLOOKUP(ROWS($AB$5:AB13),$Y$5:$Z$199,2,0),"") -> Deontas na Scéime Leabhar ar Cíos
A14: 3170 | B14: Deontas na nÁbhar Speisialta | C14: Ioncam | D14: An Roinn Oideachais | E14: Y | F14: ='Tuairiscí Miosúla Ioncam & Cait'!O17 -> 0 | J14: 0 | L14: Q | Y14: =IF(ISNUMBER(SEARCH($K$2,B14)),MAX($Y$4:Y13)+1,0) -> 10 | Z14: Deontas na nÁbhar Speisialta | AB14: =IFERROR(VLOOKUP(ROWS($AB$5:AB14),$Y$5:$Z$199,2,0),"") -> Deontas na nÁbhar Speisialta
A15: 3171 | B15: Deontas scoile Gaeilge agus Dátheangach | C15: Ioncam | D15: An Roinn Oideachais | E15: Y | F15: ='Tuairiscí Miosúla Ioncam & Cait'!O18 -> 0 | J15: 0 | L15: R | Y15: =IF(ISNUMBER(SEARCH($K$2,B15)),MAX($Y$4:Y14)+1,0) -> 11 | Z15: Deontas scoile Gaeilge agus Dátheangach | AB15: =IFERROR(VLOOKUP(ROWS($AB$5:AB15),$Y$5:$Z$199,2,0),"") -> Deontas scoile Gaeilge agus Dátheangach
A16: 3190 | B16: Deontas Chlár Scoile an Teastais Shóisearaigh | C16: Ioncam | D16: An Roinn Oideachais | E16: Y | F16: ='Tuairiscí Miosúla Ioncam & Cait'!O19 -> 0 | J16: 0 | L16: S | Y16: =IF(ISNUMBER(SEARCH($K$2,B16)),MAX($Y$4:Y15)+1,0) -> 12 | Z16: Deontas Chlár Scoile an Teastais Shóisearaigh | AB16: =IFERROR(VLOOKUP(ROWS($AB$5:AB16),$Y$5:$Z$199,2,0),"") -> Deontas Chlár Scoile an Teastais Shóisearaigh
A17: 3200 | B17: Deontas Idirbhliana | C17: Ioncam | D17: An Roinn Oideachais | E17: Y | F17: ='Tuairiscí Miosúla Ioncam & Cait'!O20 -> 0 | J17: 0 | L17: T | Y17: =IF(ISNUMBER(SEARCH($K$2,B17)),MAX($Y$4:Y16)+1,0) -> 13 | Z17: Deontas Idirbhliana | AB17: =IFERROR(VLOOKUP(ROWS($AB$5:AB17),$Y$5:$Z$199,2,0),"") -> Deontas Idirbhliana
A18: 3210 | B18: Deontas na hArdteistiméireachta Feidhmí | C18: Ioncam | D18: An Roinn Oideachais | E18: Y | F18: ='Tuairiscí Miosúla Ioncam & Cait'!O21 -> 0 | J18: 0 | L18: U | Y18: =IF(ISNUMBER(SEARCH($K$2,B18)),MAX($Y$4:Y17)+1,0) -> 14 | Z18: Deontas na hArdteistiméireachta Feidhmí | AB18: =IFERROR(VLOOKUP(ROWS($AB$5:AB18),$Y$5:$Z$199,2,0),"") -> Deontas na hArdteistiméireachta Feidhmí
A19: 3225 | B19: Amúchadh Deontas Trealamh RO | C19: Ioncam | D19: An Roinn Oideachais | E19: Y | F19: ='Tuairiscí Miosúla Ioncam & Cait'!O22 -> 0 | J19: 0 | L19: V | Y19: =IF(ISNUMBER(SEARCH($K$2,B19)),MAX($Y$4:Y18)+1,0) -> 15 | Z19: Amúchadh Deontas Trealamh RO | AB19: =IFERROR(VLOOKUP(ROWS($AB$5:AB19),$Y$5:$Z$199,2,0),"") -> Amúchadh Deontas Trealamh RO
A20: 3226 | B20: Amúchadh Deontas TFC RO | C20: Ioncam | D20: An Roinn Oideachais | E20: Y | F20: ='Tuairiscí Miosúla Ioncam & Cait'!O23 -> 0 | J20: 0 | L20: W | Y20: =IF(ISNUMBER(SEARCH($K$2,B20)),MAX($Y$4:Y19)+1,0) -> 16 | Z20: Amúchadh Deontas TFC RO | AB20: =IFERROR(VLOOKUP(ROWS($AB$5:AB20),$Y$5:$Z$199,2,0),"") -> Amúchadh Deontas TFC RO
A21: 3227 | B21: Amúchadh Deontas Eile RO | C21: Ioncam | D21: An Roinn Oideachais | E21: Y | F21: ='Tuairiscí Miosúla Ioncam & Cait'!O24 -> 0 | J21: =-SUM(F21)-(G21+H21+I21) -> 0 | L21: X | Y21: =IF(ISNUMBER(SEARCH($K$2,B21)),MAX($Y$4:Y20)+1,0) -> 17 | Z21: Amúchadh Deontas Eile RO | AB21: =IFERROR(VLOOKUP(ROWS($AB$5:AB21),$Y$5:$Z$199,2,0),"") -> Amúchadh Deontas Eile RO
A22: 3230 | B22: Deontas TFC Neamhchaipitiúil | C22: Ioncam | D22: An Roinn Oideachais | E22: Y | F22: ='Tuairiscí Miosúla Ioncam & Cait'!O25 -> 0 | J22: 0 | L22: Y | Y22: =IF(ISNUMBER(SEARCH($K$2,B22)),MAX($Y$4:Y21)+1,0) -> 18 | Z22: Deontas TFC Neamhchaipitiúil | AB22: =IFERROR(VLOOKUP(ROWS($AB$5:AB22),$Y$5:$Z$199,2,0),"") -> Deontas TFC Neamhchaipitiúil
A23: 3260 | B23: Ioncam ón gCiste Barr Feabhais Scoileanna | C23: Ioncam | D23: An Roinn Oideachais | E23: Y | F23: ='Tuairiscí Miosúla Ioncam & Cait'!O26 -> 0 | J23: 0 | L23: Z | Y23: =IF(ISNUMBER(SEARCH($K$2,B23)),MAX($Y$4:Y22)+1,0) -> 19 | Z23: Ioncam ón gCiste Barr Feabhais Scoileanna | AB23: =IFERROR(VLOOKUP(ROWS($AB$5:AB23),$Y$5:$Z$199,2,0),"") -> Ioncam ón gCiste Barr Feabhais Scoileanna
A24: 3275 | B24: Deontas Mionoibreacha Neamhchaipitiúla | C24: Ioncam | D24: An Roinn Oideachais | E24: Y | F24: ='Tuairiscí Miosúla Ioncam & Cait'!O27 -> 0 | J24: 0 | L24: AA | Y24: =IF(ISNUMBER(SEARCH($K$2,B24)),MAX($Y$4:Y23)+1,0) -> 20 | Z24: Deontas Mionoibreacha Neamhchaipitiúla | AB24: =IFERROR(VLOOKUP(ROWS($AB$5:AB24),$Y$5:$Z$199,2,0),"") -> Deontas Mionoibreacha Neamhchaipitiúla
A25: 3276 | B25: Ioncam ón Deontas Cóiríochta Sealadaí | C25: Ioncam | D25: An Roinn Oideachais | E25: Y | F25: ='Tuairiscí Miosúla Ioncam & Cait'!O28 -> 0 | J25: 0 | L25: AB | Y25: =IF(ISNUMBER(SEARCH($K$2,B25)),MAX($Y$4:Y24)+1,0) -> 21 | Z25: Ioncam ón Deontas Cóiríochta Sealadaí | AB25: =IFERROR(VLOOKUP(ROWS($AB$5:AB25),$Y$5:$Z$199,2,0),"") -> Ioncam ón Deontas Cóiríochta Sealadaí
A26: 3277 | B26: Deontas i leith Mionoibreacha COVID | C26: Ioncam | D26: An Roinn Oideachais | E26: Y | F26: ='Tuairiscí Miosúla Ioncam & Cait'!O29 -> 0 | J26: 0 | L26: AC | Y26: =IF(ISNUMBER(SEARCH($K$2,B26)),MAX($Y$4:Y25)+1,0) -> 22 | Z26: Deontas i leith Mionoibreacha COVID | AB26: =IFERROR(VLOOKUP(ROWS($AB$5:AB26),$Y$5:$Z$199,2,0),"") -> Deontas i leith Mionoibreacha COVID
A27: 3280 | B27: Deontas Chúntóir COVID | C27: Ioncam | D27: An Roinn Oideachais | E27: Y | F27: ='Tuairiscí Miosúla Ioncam & Cait'!O30 -> 0 | J27: 0 | L27: AD | Y27: =IF(ISNUMBER(SEARCH($K$2,B27)),MAX($Y$4:Y26)+1,0) -> 23 | Z27: Deontas Chúntóir COVID | AB27: =IFERROR(VLOOKUP(ROWS($AB$5:AB27),$Y$5:$Z$199,2,0),"") -> Deontas Chúntóir COVID
A28: 3282 | B28: Deontas feabhsaithe maoirseachta Covid | C28: Ioncam | D28: An Roinn Oideachais | E28: Y | F28: ='Tuairiscí Miosúla Ioncam & Cait'!O31 -> 0 | J28: 0 | L28: AE | Y28: =IF(ISNUMBER(SEARCH($K$2,B28)),MAX($Y$4:Y27)+1,0) -> 24 | Z28: Deontas feabhsaithe maoirseachta Covid | AB28: =IFERROR(VLOOKUP(ROWS($AB$5:AB28),$Y$5:$Z$199,2,0),"") -> Deontas feabhsaithe maoirseachta Covid
A29: 3284 | B29: Maoiniú COVID le haghaidh Uaireanta Feighlí Ionaid | C29: Ioncam | D29: An Roinn Oideachais | E29: Y | F29: ='Tuairiscí Miosúla Ioncam & Cait'!O32 -> 0 | J29: 0 | L29: AF | Y29: =IF(ISNUMBER(SEARCH($K$2,B29)),MAX($Y$4:Y28)+1,0) -> 25 | Z29: Maoiniú COVID le haghaidh Uaireanta Feighlí Ionaid | AB29: =IFERROR(VLOOKUP(ROWS($AB$5:AB29),$Y$5:$Z$199,2,0),"") -> Maoiniú COVID le haghaidh Uaireanta Feighlí Ionaid
A30: 3285 | B30: Maoiniú COVID le haghaidh Uaireanta Rúnaí Ionaid | C30: Ioncam | D30: An Roinn Oideachais | E30: Y | F30: ='Tuairiscí Miosúla Ioncam & Cait'!O33 -> 0 | J30: 0 | L30: AG | Y30: =IF(ISNUMBER(SEARCH($K$2,B30)),MAX($Y$4:Y29)+1,0) -> 26 | Z30: Maoiniú COVID le haghaidh Uaireanta Rúnaí Ionaid | AB30: =IFERROR(VLOOKUP(ROWS($AB$5:AB30),$Y$5:$Z$199,2,0),"") -> Maoiniú COVID le haghaidh Uaireanta Rúnaí Ionaid
A31: 3286 | B31: Maoiniú COVID le haghaidh Uaireanta Glantóra Ionaid | C31: Ioncam | D31: An Roinn Oideachais | E31: Y | F31: ='Tuairiscí Miosúla Ioncam & Cait'!O34 -> 0 | J31: 0 | L31: AH | Y31: =IF(ISNUMBER(SEARCH($K$2,B31)),MAX($Y$4:Y30)+1,0) -> 27 | Z31: Maoiniú COVID le haghaidh Uaireanta Glantóra Ionaid | AB31: =IFERROR(VLOOKUP(ROWS($AB$5:AB31),$Y$5:$Z$199,2,0),"") -> Maoiniú COVID le haghaidh Uaireanta Glantóra Ionaid
A32: 3287 | B32: Maoiniú COVID le haghaidh Uaireanta Tionlacaí Ionaid Bus | C32: Ioncam | D32: An Roinn Oideachais | E32: Y | F32: ='Tuairiscí Miosúla Ioncam & Cait'!O35 -> 0 | J32: 0 | L32: AI | Y32: =IF(ISNUMBER(SEARCH($K$2,B32)),MAX($Y$4:Y31)+1,0) -> 28 | Z32: Maoiniú COVID le haghaidh Uaireanta Tionlacaí Ionaid Bus | AB32: =IFERROR(VLOOKUP(ROWS($AB$5:AB32),$Y$5:$Z$199,2,0),"") -> Maoiniú COVID le haghaidh Uaireanta Tionlacaí Ionaid Bus
A33: 3288 | B33: Caipitíocht COVID do Ghlantachán agus Deontas TCP | C33: Ioncam | D33: An Roinn Oideachais | E33: Y | F33: ='Tuairiscí Miosúla Ioncam & Cait'!O36 -> 0 | J33: 0 | L33: AJ | Y33: =IF(ISNUMBER(SEARCH($K$2,B33)),MAX($Y$4:Y32)+1,0) -> 29 | Z33: Caipitíocht COVID do Ghlantachán agus Deontas TCP | AB33: =IFERROR(VLOOKUP(ROWS($AB$5:AB33),$Y$5:$Z$199,2,0),"") -> Caipitíocht COVID do Ghlantachán agus Deontas TCP
A34: 3290 | B34: Ioncam Deontais Neamhchaipitil Eile RO | C34: Ioncam | D34: An Roinn Oideachais | E34: Y | F34: ='Tuairiscí Miosúla Ioncam & Cait'!O37 -> 0 | J34: 0 | L34: AK | Y34: =IF(ISNUMBER(SEARCH($K$2,B34)),MAX($Y$4:Y33)+1,0) -> 30 | Z34: Ioncam Deontais Neamhchaipitil Eile RO | AB34: =IFERROR(VLOOKUP(ROWS($AB$5:AB34),$Y$5:$Z$199,2,0),"") -> Ioncam Deontais Neamhchaipitil Eile RO
A35: 3292 | B35: Deontas Trialacha Caighdeánaithe | C35: Ioncam | D35: An Roinn Oideachais | E35: Y | F35: ='Tuairiscí Miosúla Ioncam & Cait'!O38 -> 0 | J35: 0 | L35: AL | Y35: =IF(ISNUMBER(SEARCH($K$2,B35)),MAX($Y$4:Y34)+1,0) -> 31 | Z35: Deontas Trialacha Caighdeánaithe | AB35: =IFERROR(VLOOKUP(ROWS($AB$5:AB35),$Y$5:$Z$199,2,0),"") -> Deontas Trialacha Caighdeánaithe
A36: 3293 | B36: Deontas Soláthair Samhraidh | C36: Ioncam | D36: An Roinn Oideachais | E36: Y | F36: ='Tuairiscí Miosúla Ioncam & Cait'!O39 -> 0 | J36: 0 | L36: AM | Y36: =IF(ISNUMBER(SEARCH($K$2,B36)),MAX($Y$4:Y35)+1,0) -> 32 | Z36: Deontas Soláthair Samhraidh | AB36: =IFERROR(VLOOKUP(ROWS($AB$5:AB36),$Y$5:$Z$199,2,0),"") -> Deontas Soláthair Samhraidh
A37: 3294 | B37: Deontas le haghaidh Tionlacaithe Bus | C37: Ioncam | D37: An Roinn Oideachais | E37: Y | F37: ='Tuairiscí Miosúla Ioncam & Cait'!O40 -> 0 | J37: 0 | L37: AN | Y37: =IF(ISNUMBER(SEARCH($K$2,B37)),MAX($Y$4:Y36)+1,0) -> 33 | Z37: Deontas le haghaidh Tionlacaithe Bus | AB37: =IFERROR(VLOOKUP(ROWS($AB$5:AB37),$Y$5:$Z$199,2,0),"") -> Deontas le haghaidh Tionlacaithe Bus
A38: 3295 | B38: Ioncam ón Roinn Leanaí agus Gnóthaí Óige | C38: Ioncam | D38: Ioncam Eile ón Stát | E38: Y | F38: ='Tuairiscí Miosúla Ioncam & Cait'!O41 -> 0 | J38: 0 | L38: AO | Y38: =IF(ISNUMBER(SEARCH($K$2,B38)),MAX($Y$4:Y37)+1,0) -> 34 | Z38: Ioncam ón Roinn Leanaí agus Gnóthaí Óige | AB38: =IFERROR(VLOOKUP(ROWS($AB$5:AB38),$Y$5:$Z$199,2,0),"") -> Ioncam ón Roinn Leanaí agus Gnóthaí Óige
A39: 3296 | B39: Deontas le haghaidh Béilí Scoile ó RGFCS | C39: Ioncam | D39: Ioncam Eile ón Stát | E39: Y | F39: ='Tuairiscí Miosúla Ioncam & Cait'!O42 -> 0 | J39: 0 | L39: AP | Y39: =IF(ISNUMBER(SEARCH($K$2,B39)),MAX($Y$4:Y38)+1,0) -> 35 | Z39: Deontas le haghaidh Béilí Scoile ó RGFCS | AB39: =IFERROR(VLOOKUP(ROWS($AB$5:AB39),$Y$5:$Z$199,2,0),"") -> Deontas le haghaidh Béilí Scoile ó RGFCS
A40: 3297 | B40: Ioncam Erasmus | C40: Ioncam | D40: Ioncam Eile ón Stát | E40: Y | F40: ='Tuairiscí Miosúla Ioncam & Cait'!O43 -> 0 | J40: 0 | L40: AQ | Y40: =IF(ISNUMBER(SEARCH($K$2,B40)),MAX($Y$4:Y39)+1,0) -> 36 | Z40: Ioncam Erasmus | AB40: =IFERROR(VLOOKUP(ROWS($AB$5:AB40),$Y$5:$Z$199,2,0),"") -> Ioncam Erasmus
A41: 3298 | B41: Maoiniú ó FSS | C41: Ioncam | D41: Ioncam Eile ón Stát | E41: Y | F41: ='Tuairiscí Miosúla Ioncam & Cait'!O44 -> 0 | J41: 0 | L41: AR | Y41: =IF(ISNUMBER(SEARCH($K$2,B41)),MAX($Y$4:Y40)+1,0) -> 37 | Z41: Maoiniú ó FSS | AB41: =IFERROR(VLOOKUP(ROWS($AB$5:AB41),$Y$5:$Z$199,2,0),"") -> Maoiniú ó FSS
A42: 3299 | B42: Maoiniú Stáit Eile | C42: Ioncam | D42: Ioncam Eile ón Stát | E42: Y | F42: ='Tuairiscí Miosúla Ioncam & Cait'!O45 -> 0 | J42: 0 | L42: AS | Y42: =IF(ISNUMBER(SEARCH($K$2,B42)),MAX($Y$4:Y41)+1,0) -> 38 | Z42: Maoiniú Stáit Eile | AB42: =IFERROR(VLOOKUP(ROWS($AB$5:AB42),$Y$5:$Z$199,2,0),"") -> Maoiniú Stáit Eile
A43: 3300 | B43: Táillí Oideachais (Scoileanna Táille) | C43: Ioncam | D43: Ioncam arna Ghiniúint ag an Scoil | E43: Y | F43: ='Tuairiscí Miosúla Ioncam & Cait'!O46 -> 0 | J43: 0 | L43: AT | Y43: =IF(ISNUMBER(SEARCH($K$2,B43)),MAX($Y$4:Y42)+1,0) -> 39 | Z43: Táillí Oideachais (Scoileanna Táille) | AB43: =IFERROR(VLOOKUP(ROWS($AB$5:AB43),$Y$5:$Z$199,2,0),"") -> Táillí Oideachais (Scoileanna Táille)
A44: 3310 | B44: Ioncam Idirbhliana | C44: Ioncam | D44: Ioncam arna Ghiniúint ag an Scoil | E44: Y | F44: ='Tuairiscí Miosúla Ioncam & Cait'!O47 -> 0 | J44: 0 | L44: AU | Y44: =IF(ISNUMBER(SEARCH($K$2,B44)),MAX($Y$4:Y43)+1,0) -> 40 | Z44: Ioncam Idirbhliana | AB44: =IFERROR(VLOOKUP(ROWS($AB$5:AB44),$Y$5:$Z$199,2,0),"") -> Ioncam Idirbhliana
A45: 3330 | B45: Ioncam ó Scéim na Leabhar ar Cíos | C45: Ioncam | D45: Ioncam arna Ghiniúint ag an Scoil | E45: Y | F45: ='Tuairiscí Miosúla Ioncam & Cait'!O48 -> 0 | J45: 0 | L45: AV | Y45: =IF(ISNUMBER(SEARCH($K$2,B45)),MAX($Y$4:Y44)+1,0) -> 41 | Z45: Ioncam ó Scéim na Leabhar ar Cíos | AB45: =IFERROR(VLOOKUP(ROWS($AB$5:AB45),$Y$5:$Z$199,2,0),"") -> Ioncam ó Scéim na Leabhar ar Cíos
A46: 3335 | B46: Ioncam ó Leabhair Seomra Ranga | C46: Ioncam | D46: Ioncam arna Ghiniúint ag an Scoil | E46: Y | F46: ='Tuairiscí Miosúla Ioncam & Cait'!O49 -> 0 | J46: 0 | L46: AW | Y46: =IF(ISNUMBER(SEARCH($K$2,B46)),MAX($Y$4:Y45)+1,0) -> 42 | Z46: Ioncam ó Leabhair Seomra Ranga | AB46: =IFERROR(VLOOKUP(ROWS($AB$5:AB46),$Y$5:$Z$199,2,0),"") -> Ioncam ó Leabhair Seomra Ranga
A47: 3350 | B47: Ioncam Cíosa ó Áiseanna a Ligean ar Fhruiliú | C47: Ioncam | D47: Ioncam arna Ghiniúint ag an Scoil | E47: Y | F47: ='Tuairiscí Miosúla Ioncam & Cait'!O50 -> 0 | J47: 0 | L47: AX | Y47: =IF(ISNUMBER(SEARCH($K$2,B47)),MAX($Y$4:Y46)+1,0) -> 43 | Z47: Ioncam Cíosa ó Áiseanna a Ligean ar Fhruiliú | AB47: =IFERROR(VLOOKUP(ROWS($AB$5:AB47),$Y$5:$Z$199,2,0),"") -> Ioncam Cíosa ó Áiseanna a Ligean ar Fhruiliú
A48: 3370 | B48: Ioncam ó Thaisceadáin | C48: Ioncam | D48: Ioncam arna Ghiniúint ag an Scoil | E48: Y | F48: ='Tuairiscí Miosúla Ioncam & Cait'!O51 -> 0 | J48: 0 | L48: AY | Y48: =IF(ISNUMBER(SEARCH($K$2,B48)),MAX($Y$4:Y47)+1,0) -> 44 | Z48: Ioncam ó Thaisceadáin | AB48: =IFERROR(VLOOKUP(ROWS($AB$5:AB48),$Y$5:$Z$199,2,0),"") -> Ioncam ó Thaisceadáin
A49: 3375 | B49: Ioncam ó Dhialanna agus Bliainirisí | C49: Ioncam | D49: Ioncam arna Ghiniúint ag an Scoil | E49: Y | F49: ='Tuairiscí Miosúla Ioncam & Cait'!O52 -> 0 | J49: 0 | L49: AZ | Y49: =IF(ISNUMBER(SEARCH($K$2,B49)),MAX($Y$4:Y48)+1,0) -> 45 | Z49: Ioncam ó Dhialanna agus Bliainirisí | AB49: =IFERROR(VLOOKUP(ROWS($AB$5:AB49),$Y$5:$Z$199,2,0),"") -> Ioncam ó Dhialanna agus Bliainirisí
A50: 3380 | B50: Ioncam fótachóipeáil mac léinn | C50: Ioncam | D50: Ioncam arna Ghiniúint ag an Scoil | E50: Y | F50: ='Tuairiscí Miosúla Ioncam & Cait'!O53 -> 0 | J50: =-SUM(F50)-(G50+H50+I50) -> 0 | L50: BA | Y50: =IF(ISNUMBER(SEARCH($K$2,B50)),MAX($Y$4:Y49)+1,0) -> 46 | Z50: Student Photocopying Income | AB50: =IFERROR(VLOOKUP(ROWS($AB$5:AB50),$Y$5:$Z$199,2,0),"") -> Student Photocopying Income
A51: 3390 | B51: Táillí riaracháin scoile | C51: Ioncam | D51: Ioncam arna Ghiniúint ag an Scoil | E51: Y | F51: ='Tuairiscí Miosúla Ioncam & Cait'!O54 -> 0 | J51: 0 | L51: BB | Y51: =IF(ISNUMBER(SEARCH($K$2,B51)),MAX($Y$4:Y50)+1,0) -> 47 | Z51: Táillí riaracháin scoile | AB51: =IFERROR(VLOOKUP(ROWS($AB$5:AB51),$Y$5:$Z$199,2,0),"") -> Táillí riaracháin scoile
A52: 3410 | B52: Ioncam Oideachais Aosaigh | C52: Ioncam | D52: Ioncam arna Ghiniúint ag an Scoil | E52: Y | F52: ='Tuairiscí Miosúla Ioncam & Cait'!O55 -> 0 | J52: 0 | L52: BC | Y52: =IF(ISNUMBER(SEARCH($K$2,B52)),MAX($Y$4:Y51)+1,0) -> 48 | Z52: Ioncam Oideachais Aosaigh | AB52: =IFERROR(VLOOKUP(ROWS($AB$5:AB52),$Y$5:$Z$199,2,0),"") -> Ioncam Oideachais Aosaigh
A53: 3420 | B53: Ioncam ó Cheaintíní | C53: Ioncam | D53: Ioncam arna Ghiniúint ag an Scoil | E53: Y | F53: ='Tuairiscí Miosúla Ioncam & Cait'!O56 -> 0 | J53: 0 | L53: BD | Y53: =IF(ISNUMBER(SEARCH($K$2,B53)),MAX($Y$4:Y52)+1,0) -> 49 | Z53: Ioncam ó Cheaintíní | AB53: =IFERROR(VLOOKUP(ROWS($AB$5:AB53),$Y$5:$Z$199,2,0),"") -> Ioncam ó Cheaintíní
A54: 3430 | B54: Ioncam ó Shiopaí Sólaistí | C54: Ioncam | D54: Ioncam arna Ghiniúint ag an Scoil | E54: Y | F54: ='Tuairiscí Miosúla Ioncam & Cait'!O57 -> 0 | J54: 0 | L54: BE | Y54: =IF(ISNUMBER(SEARCH($K$2,B54)),MAX($Y$4:Y53)+1,0) -> 50 | Z54: Ioncam ó Shiopaí Sólaistí | AB54: =IFERROR(VLOOKUP(ROWS($AB$5:AB54),$Y$5:$Z$199,2,0),"") -> Ioncam ó Shiopaí Sólaistí
A55: 3440 | B55: Ioncam ó Éidí Scoile | C55: Ioncam | D55: Ioncam arna Ghiniúint ag an Scoil | E55: Y | F55: ='Tuairiscí Miosúla Ioncam & Cait'!O58 -> 0 | J55: 0 | L55: BF | Y55: =IF(ISNUMBER(SEARCH($K$2,B55)),MAX($Y$4:Y54)+1,0) -> 51 | Z55: Ioncam ó Éidí Scoile | AB55: =IFERROR(VLOOKUP(ROWS($AB$5:AB55),$Y$5:$Z$199,2,0),"") -> Ioncam ó Éidí Scoile
A56: 3450 | B56: Ioncam Reiligiúin/Éitis | C56: Ioncam | D56: Ioncam arna Ghiniúint ag an Scoil | E56: Y | F56: ='Tuairiscí Miosúla Ioncam & Cait'!O59 -> 0 | J56: 0 | L56: BG | Y56: =IF(ISNUMBER(SEARCH($K$2,B56)),MAX($Y$4:Y55)+1,0) -> 52 | Z56: Ioncam Reiligiúin/Éitis | AB56: =IFERROR(VLOOKUP(ROWS($AB$5:AB56),$Y$5:$Z$199,2,0),"") -> Ioncam Reiligiúin/Éitis
A57: 3490 | B57: Ioncam Club/Staidéir Iarscoile | C57: Ioncam | D57: Ioncam arna Ghiniúint ag an Scoil | E57: Y | F57: ='Tuairiscí Miosúla Ioncam & Cait'!O60 -> 0 | J57: 0 | L57: BH | Y57: =IF(ISNUMBER(SEARCH($K$2,B57)),MAX($Y$4:Y56)+1,0) -> 53 | Z57: Ioncam Club/Staidéir Iarscoile | AB57: =IFERROR(VLOOKUP(ROWS($AB$5:AB57),$Y$5:$Z$199,2,0),"") -> Ioncam Club/Staidéir Iarscoile
A58: 3500 | B58: Ioncam ó Chluichí | C58: Ioncam | D58: Ioncam arna Ghiniúint ag an Scoil | E58: Y | F58: ='Tuairiscí Miosúla Ioncam & Cait'!O61 -> 0 | J58: 0 | L58: BI | Y58: =IF(ISNUMBER(SEARCH($K$2,B58)),MAX($Y$4:Y57)+1,0) -> 54 | Z58: Ioncam ó Chluichí | AB58: =IFERROR(VLOOKUP(ROWS($AB$5:AB58),$Y$5:$Z$199,2,0),"") -> Ioncam ó Chluichí
A59: 3510 | B59: Ioncam ón Bhusanna | C59: Ioncam | D59: Ioncam arna Ghiniúint ag an Scoil | E59: Y | F59: ='Tuairiscí Miosúla Ioncam & Cait'!O62 -> 0 | J59: 0 | L59: BJ | Y59: =IF(ISNUMBER(SEARCH($K$2,B59)),MAX($Y$4:Y58)+1,0) -> 55 | Z59: Ioncam ón Bhusanna | AB59: =IFERROR(VLOOKUP(ROWS($AB$5:AB59),$Y$5:$Z$199,2,0),"") -> Ioncam ón Bhusanna
A60: 3520 | B60: Ioncam ó Cheoldrámaí/Dhrámaí Scoile | C60: Ioncam | D60: Ioncam arna Ghiniúint ag an Scoil | E60: Y | F60: ='Tuairiscí Miosúla Ioncam & Cait'!O63 -> 0 | J60: 0 | L60: BK | Y60: =IF(ISNUMBER(SEARCH($K$2,B60)),MAX($Y$4:Y59)+1,0) -> 56 | Z60: Ioncam ó Cheoldrámaí/Dhrámaí Scoile | AB60: =IFERROR(VLOOKUP(ROWS($AB$5:AB60),$Y$5:$Z$199,2,0),"") -> Ioncam ó Cheoldrámaí/Dhrámaí Scoile
A61: 3530 | B61: Ioncam ó Thurais Scoile | C61: Ioncam | D61: Ioncam arna Ghiniúint ag an Scoil | E61: Y | F61: ='Tuairiscí Miosúla Ioncam & Cait'!O64 -> 0 | J61: 0 | L61: BL | Y61: =IF(ISNUMBER(SEARCH($K$2,B61)),MAX($Y$4:Y60)+1,0) -> 57 | Z61: Ioncam ó Thurais Scoile | AB61: =IFERROR(VLOOKUP(ROWS($AB$5:AB61),$Y$5:$Z$199,2,0),"") -> Ioncam ó Thurais Scoile
A62: 3531 | B62: Ioncam ó Snámh Scoile | C62: Ioncam | D62: Ioncam arna Ghiniúint ag an Scoil | E62: Y | F62: ='Tuairiscí Miosúla Ioncam & Cait'!O65 -> 0 | J62: 0 | L62: BM | Y62: =IF(ISNUMBER(SEARCH($K$2,B62)),MAX($Y$4:Y61)+1,0) -> 58 | Z62: Ioncam ó Snámh Scoile | AB62: =IFERROR(VLOOKUP(ROWS($AB$5:AB62),$Y$5:$Z$199,2,0),"") -> Ioncam ó Snámh Scoile
A63: 3535 | B63: Ioncam ó Árachas Daltaí | C63: Ioncam | D63: Ioncam arna Ghiniúint ag an Scoil | E63: Y | F63: ='Tuairiscí Miosúla Ioncam & Cait'!O66 -> 0 | J63: 0 | L63: BN | Y63: =IF(ISNUMBER(SEARCH($K$2,B63)),MAX($Y$4:Y62)+1,0) -> 59 | Z63: Ioncam ó Árachas Daltaí | AB63: =IFERROR(VLOOKUP(ROWS($AB$5:AB63),$Y$5:$Z$199,2,0),"") -> Ioncam ó Árachas Daltaí
A64: 3540 | B64: Ioncam Réamhscoile | C64: Ioncam | D64: Ioncam arna Ghiniúint ag an Scoil | E64: Y | F64: ='Tuairiscí Miosúla Ioncam & Cait'!O67 -> 0 | J64: 0 | L64: BO | Y64: =IF(ISNUMBER(SEARCH($K$2,B64)),MAX($Y$4:Y63)+1,0) -> 60 | Z64: Ioncam Réamhscoile | AB64: =IFERROR(VLOOKUP(ROWS($AB$5:AB64),$Y$5:$Z$199,2,0),"") -> Ioncam Réamhscoile
A65: 3545 | B65: Ioncam ó Champaí Samhraidh | C65: Ioncam | D65: Ioncam arna Ghiniúint ag an Scoil | E65: Y | F65: ='Tuairiscí Miosúla Ioncam & Cait'!O68 -> 0 | J65: 0 | L65: BP | Y65: =IF(ISNUMBER(SEARCH($K$2,B65)),MAX($Y$4:Y64)+1,0) -> 61 | Z65: Ioncam ó Champaí Samhraidh | AB65: =IFERROR(VLOOKUP(ROWS($AB$5:AB65),$Y$5:$Z$199,2,0),"") -> Ioncam ó Champaí Samhraidh
A66: 3550 | B66: Ioncam In-Aisíoctha | C66: Ioncam | D66: Ioncam arna Ghiniúint ag an Scoil | E66: Y | F66: ='Tuairiscí Miosúla Ioncam & Cait'!O69 -> 0 | J66: 0 | L66: BQ | Y66: =IF(ISNUMBER(SEARCH($K$2,B66)),MAX($Y$4:Y65)+1,0) -> 62 | Z66: Ioncam In-Aisíoctha | AB66: =IFERROR(VLOOKUP(ROWS($AB$5:AB66),$Y$5:$Z$199,2,0),"") -> Ioncam In-Aisíoctha
A67: 3570 | B67: Ioncam Eile arna Ghiniúint ag an Scoil | C67: Ioncam | D67: Ioncam arna Ghiniúint ag an Scoil | E67: Y | F67: ='Tuairiscí Miosúla Ioncam & Cait'!O70 -> 0 | J67: 0 | L67: BR | Y67: =IF(ISNUMBER(SEARCH($K$2,B67)),MAX($Y$4:Y66)+1,0) -> 63 | Z67: Ioncam Eile arna Ghiniúint ag an Scoil | AB67: =IFERROR(VLOOKUP(ROWS($AB$5:AB67),$Y$5:$Z$199,2,0),"") -> Ioncam Eile arna Ghiniúint ag an Scoil
A68: 3572 | B68: Ioncam Ealaíon agus Ceardaíochta Scoile | C68: Ioncam | D68: Ioncam arna Ghiniúint ag an Scoil | E68: Y | F68: ='Tuairiscí Miosúla Ioncam & Cait'!O71 -> 0 | J68: 0 | L68: BS | Y68: =IF(ISNUMBER(SEARCH($K$2,B68)),MAX($Y$4:Y67)+1,0) -> 64 | Z68: Ioncam Ealaíon agus Ceardaíochta Scoile | AB68: =IFERROR(VLOOKUP(ROWS($AB$5:AB68),$Y$5:$Z$199,2,0),"") -> Ioncam Ealaíon agus Ceardaíochta Scoile
A69: 3573 | B69: Ioncam Damhsa Scoile | C69: Ioncam | D69: Ioncam arna Ghiniúint ag an Scoil | E69: Y | F69: ='Tuairiscí Miosúla Ioncam & Cait'!O72 -> 0 | J69: 0 | L69: BT | Y69: =IF(ISNUMBER(SEARCH($K$2,B69)),MAX($Y$4:Y68)+1,0) -> 65 | Z69: Ioncam Damhsa Scoile | AB69: =IFERROR(VLOOKUP(ROWS($AB$5:AB69),$Y$5:$Z$199,2,0),"") -> Ioncam Damhsa Scoile
A70: 3574 | B70: Tiomsú Airgid Srianta Scoile (Neamhchaipitiúil) | C70: Ioncam | D70: Ioncam arna Ghiniúint ag an Scoil | E70: Y | F70: ='Tuairiscí Miosúla Ioncam & Cait'!O73 -> 0 | J70: 0 | L70: BU | Y70: =IF(ISNUMBER(SEARCH($K$2,B70)),MAX($Y$4:Y69)+1,0) -> 66 | Z70: Tiomsú Airgid Srianta Scoile (Neamhchaipitiúil) | AB70: =IFERROR(VLOOKUP(ROWS($AB$5:AB70),$Y$5:$Z$199,2,0),"") -> Tiomsú Airgid Srianta Scoile (Neamhchaipitiúil)
A71: 3575 | B71: Tiomsú Airgid Neamhshrianta Scoile (Neamhchaipitiúil) | C71: Ioncam | D71: Ioncam arna Ghiniúint ag an Scoil | E71: Y | F71: ='Tuairiscí Miosúla Ioncam & Cait'!O74 -> 0 | J71: 0 | L71: BV | Y71: =IF(ISNUMBER(SEARCH($K$2,B71)),MAX($Y$4:Y70)+1,0) -> 67 | Z71: Tiomsú Airgid Neamhshrianta Scoile (Neamhchaipitiúil) | AB71: =IFERROR(VLOOKUP(ROWS($AB$5:AB71),$Y$5:$Z$199,2,0),"") -> Tiomsú Airgid Neamhshrianta Scoile (Neamhchaipitiúil)
A72: 3580 | B72: Lascainí Tugtha | C72: Ioncam | D72: Ioncam arna Ghiniúint ag an Scoil | E72: Y | F72: ='Tuairiscí Miosúla Ioncam & Cait'!O75 -> 0 | J72: 0 | L72: BW | Y72: =IF(ISNUMBER(SEARCH($K$2,B72)),MAX($Y$4:Y71)+1,0) -> 68 | Z72: Lascainí Tugtha | AB72: =IFERROR(VLOOKUP(ROWS($AB$5:AB72),$Y$5:$Z$199,2,0),"") -> Lascainí Tugtha
A73: 3650 | B73: Ranníocaíochtaí Saorálacha | C73: Ioncam | D73: Ioncam Eile | E73: Y | F73: ='Tuairiscí Miosúla Ioncam & Cait'!O76 -> 0 | J73: 0 | L73: BX | Y73: =IF(ISNUMBER(SEARCH($K$2,B73)),MAX($Y$4:Y72)+1,0) -> 69 | Z73: Ranníocaíochtaí Saorálacha | AB73: =IFERROR(VLOOKUP(ROWS($AB$5:AB73),$Y$5:$Z$199,2,0),"") -> Ranníocaíochtaí Saorálacha
A74: 3700 | B74: Ioncam ó Chumann na dTuismitheoirí | C74: Ioncam | D74: Ioncam Eile | E74: Y | F74: ='Tuairiscí Miosúla Ioncam & Cait'!O77 -> 0 | J74: 0 | L74: BY | Y74: =IF(ISNUMBER(SEARCH($K$2,B74)),MAX($Y$4:Y73)+1,0) -> 70 | Z74: Ioncam ó Chumann na dTuismitheoirí | AB74: =IFERROR(VLOOKUP(ROWS($AB$5:AB74),$Y$5:$Z$199,2,0),"") -> Ioncam ó Chumann na dTuismitheoirí
A75: 3770 | B75: Ioncam ó Éilimh Árachais | C75: Ioncam | D75: Ioncam Eile | E75: Y | F75: ='Tuairiscí Miosúla Ioncam & Cait'!O78 -> 0 | J75: =-SUM(F75)-(G75+H75+I75) -> 0 | L75: BZ | Y75: =IF(ISNUMBER(SEARCH($K$2,B75)),MAX($Y$4:Y74)+1,0) -> 71 | Z75: Ioncam ó Éilimh Árachais | AB75: =IFERROR(VLOOKUP(ROWS($AB$5:AB75),$Y$5:$Z$199,2,0),"") -> Ioncam ó Éilimh Árachais
A76: 3800 | B76: Ús Bainc Faighte | C76: Ioncam | D76: Ioncam Eile | E76: Y | F76: ='Tuairiscí Miosúla Ioncam & Cait'!O79 -> 0 | J76: 0 | L76: CA | Y76: =IF(ISNUMBER(SEARCH($K$2,B76)),MAX($Y$4:Y75)+1,0) -> 72 | Z76: Ús Bainc Faighte | AB76: =IFERROR(VLOOKUP(ROWS($AB$5:AB76),$Y$5:$Z$199,2,0),"") -> Ús Bainc Faighte
A77: 3840 | B77: Amúchadh Maoinithe nach bhFuarthas ón RO | C77: Ioncam | D77: Ioncam Eile | E77: Y | F77: ='Tuairiscí Miosúla Ioncam & Cait'!O80 -> 0 | J77: 0 | L77: CB | Y77: =IF(ISNUMBER(SEARCH($K$2,B77)),MAX($Y$4:Y76)+1,0) -> 73 | Z77: Amúchadh Maoinithe nach bhFuarthas ón RO | AB77: =IFERROR(VLOOKUP(ROWS($AB$5:AB77),$Y$5:$Z$199,2,0),"") -> Amúchadh Maoinithe nach bhFuarthas ón RO
A78: 3850 | B78: Ioncam Eile | C78: Ioncam | D78: Ioncam Eile | E78: Y | F78: ='Tuairiscí Miosúla Ioncam & Cait'!O81 -> 0 | J78: 0 | L78: CC | Y78: =IF(ISNUMBER(SEARCH($K$2,B78)),MAX($Y$4:Y77)+1,0) -> 74 | Z78: Ioncam Eile | AB78: =IFERROR(VLOOKUP(ROWS($AB$5:AB78),$Y$5:$Z$199,2,0),"") -> Ioncam Eile
A79: 3851 | B79: Ioncam Ainmnithe (Neamhchaipitiúil) | C79: Ioncam | D79: Ioncam Eile | E79: Y | F79: ='Tuairiscí Miosúla Ioncam & Cait'!O82 -> 0 | J79: 0 | L79: CD | Y79: =IF(ISNUMBER(SEARCH($K$2,B79)),MAX($Y$4:Y78)+1,0) -> 75 | Z79: Ioncam Ainmnithe (Neamhchaipitiúil) | AB79: =IFERROR(VLOOKUP(ROWS($AB$5:AB79),$Y$5:$Z$199,2,0),"") -> Ioncam Ainmnithe (Neamhchaipitiúil)
A80: 3852 | B80: Tiomsú Airgid Srianta Seachtrach (Neamhchaipitiúil) | C80: Ioncam | D80: Ioncam Eile | E80: Y | F80: ='Tuairiscí Miosúla Ioncam & Cait'!O83 -> 0 | J80: 0 | L80: CE | Y80: =IF(ISNUMBER(SEARCH($K$2,B80)),MAX($Y$4:Y79)+1,0) -> 76 | Z80: Tiomsú Airgid Srianta Seachtrach (Neamhchaipitiúil) | AB80: =IFERROR(VLOOKUP(ROWS($AB$5:AB80),$Y$5:$Z$199,2,0),"") -> Tiomsú Airgid Srianta Seachtrach (Neamhchaipitiúil)
A81: 3853 | B81: Tiomsú Airgid Neamhshrianta Seachtrach (Neamhchaipitiúil) | C81: Ioncam | D81: Ioncam Eile | E81: Y | F81: ='Tuairiscí Miosúla Ioncam & Cait'!O84 -> 0 | J81: 0 | L81: CF | Y81: =IF(ISNUMBER(SEARCH($K$2,B81)),MAX($Y$4:Y80)+1,0) -> 77 | Z81: Tiomsú Airgid Neamhshrianta Seachtrach (Neamhchaipitiúil) | AB81: =IFERROR(VLOOKUP(ROWS($AB$5:AB81),$Y$5:$Z$199,2,0),"") -> Tiomsú Airgid Neamhshrianta Seachtrach (Neamhchaipitiúil)
A82: 4110 | B82: Costas Múinteoirí Ionaid | C82: Caiteachas | D82: Tuarastal Oideachais | E82: Y | F82: ='Tuairiscí Miosúla Ioncam & Cait'!O89 -> 0 | J82: =F82+G82+H82+I82 -> 0 | L82: H | Y82: =IF(ISNUMBER(SEARCH($K$2,B82)),MAX($Y$4:Y81)+1,0) -> 78 | Z82: Costas Múinteoirí Ionaid | AB82: =IFERROR(VLOOKUP(ROWS($AB$5:AB82),$Y$5:$Z$199,2,0),"") -> Costas Múinteoirí Ionaid
A83: 4111 | B83: Costas Múinteoirí a Íoctar go Príobháideach | C83: Caiteachas | D83: Tuarastal Oideachais | E83: Y | F83: ='Tuairiscí Miosúla Ioncam & Cait'!O90 -> 0 | J83: =F83+G83+H83+I83 -> 0 | L83: I | Y83: =IF(ISNUMBER(SEARCH($K$2,B83)),MAX($Y$4:Y82)+1,0) -> 79 | Z83: Costas Múinteoirí a Íoctar go Príobháideach | AB83: =IFERROR(VLOOKUP(ROWS($AB$5:AB83),$Y$5:$Z$199,2,0),"") -> Costas Múinteoirí a Íoctar go Príobháideach
A84: 4150 | B84: Costas Tuarastal Maoirseachta agus Ionadaithe | C84: Caiteachas | D84: Tuarastal Oideachais | E84: Y | F84: ='Tuairiscí Miosúla Ioncam & Cait'!O91 -> 0 | J84: 0 | L84: J | Y84: =IF(ISNUMBER(SEARCH($K$2,B84)),MAX($Y$4:Y83)+1,0) -> 80 | Z84: Costas Tuarastal Maoirseachta agus Ionadaithe | AB84: =IFERROR(VLOOKUP(ROWS($AB$5:AB84),$Y$5:$Z$199,2,0),"") -> Costas Tuarastal Maoirseachta agus Ionadaithe
A85: 4170 | B85: Costas Tuarastal Oideachais Aosaigh | C85: Caiteachas | D85: Tuarastal Oideachais | E85: Y | F85: ='Tuairiscí Miosúla Ioncam & Cait'!O92 -> 0 | J85: 0 | L85: K | Y85: =IF(ISNUMBER(SEARCH($K$2,B85)),MAX($Y$4:Y84)+1,0) -> 81 | Z85: Costas Tuarastal Oideachais Aosaigh | AB85: =IFERROR(VLOOKUP(ROWS($AB$5:AB85),$Y$5:$Z$199,2,0),"") -> Costas Tuarastal Oideachais Aosaigh
A86: 4181 | B86: Costais Thuarastail an Cheaintín | C86: Caiteachas | D86: Tuarastal Oideachais | E86: Y | F86: ='Tuairiscí Miosúla Ioncam & Cait'!O93 -> 0 | J86: 0 | L86: L | Y86: =IF(ISNUMBER(SEARCH($K$2,B86)),MAX($Y$4:Y85)+1,0) -> 82 | Z86: Costais Thuarastail an Cheaintín | AB86: =IFERROR(VLOOKUP(ROWS($AB$5:AB86),$Y$5:$Z$199,2,0),"") -> Costais Thuarastail an Cheaintín
A87: 4190 | B87: Costas Tuarastal Staidéir/Club Iarscoile | C87: Caiteachas | D87: Tuarastal Oideachais | E87: Y | F87: ='Tuairiscí Miosúla Ioncam & Cait'!O94 -> 0 | J87: 0 | L87: M | Y87: =IF(ISNUMBER(SEARCH($K$2,B87)),MAX($Y$4:Y86)+1,0) -> 83 | Z87: Costas Tuarastal Staidéir/Club Iarscoile | AB87: =IFERROR(VLOOKUP(ROWS($AB$5:AB87),$Y$5:$Z$199,2,0),"") -> Costas Tuarastal Staidéir/Club Iarscoile
A88: 4191 | B88: Costais Tuarastail Campaí Samhraidh | C88: Caiteachas | D88: Tuarastal Oideachais | E88: Y | F88: ='Tuairiscí Miosúla Ioncam & Cait'!O95 -> 0 | J88: 0 | L88: N | Y88: =IF(ISNUMBER(SEARCH($K$2,B88)),MAX($Y$4:Y87)+1,0) -> 84 | Z88: Costais Tuarastail Campaí Samhraidh | AB88: =IFERROR(VLOOKUP(ROWS($AB$5:AB88),$Y$5:$Z$199,2,0),"") -> Costais Tuarastail Campaí Samhraidh
A89: 4196 | B89: Costas Tuarastail Tionlacaithe Bus | C89: Caiteachas | D89: Tuarastal Oideachais | E89: Y | F89: ='Tuairiscí Miosúla Ioncam & Cait'!O96 -> 0 | J89: 0 | L89: O | Y89: =IF(ISNUMBER(SEARCH($K$2,B89)),MAX($Y$4:Y88)+1,0) -> 85 | Z89: Costas Tuarastail Tionlacaithe Bus | AB89: =IFERROR(VLOOKUP(ROWS($AB$5:AB89),$Y$5:$Z$199,2,0),"") -> Costas Tuarastail Tionlacaithe Bus
A90: 4197 | B90: Maoiniú COVID le haghaidh Costas maidir le hUaireanta Tionlacaí Ionaid Bus | C90: Caiteachas | D90: Tuarastal Oideachais | E90: Y | F90: ='Tuairiscí Miosúla Ioncam & Cait'!O97 -> 0 | J90: 0 | L90: P | Y90: =IF(ISNUMBER(SEARCH($K$2,B90)),MAX($Y$4:Y89)+1,0) -> 86 | Z90: Maoiniú COVID le haghaidh Costas maidir le hUaireanta Tionlacaí Ionaid Bus | AB90: =IFERROR(VLOOKUP(ROWS($AB$5:AB90),$Y$5:$Z$199,2,0),"") -> Maoiniú COVID le haghaidh Costas maidir le hUaireanta Tionlacaí Ionaid Bus
A91: 4198 | B91: Costais Tuarastail Oideachais Eile | C91: Caiteachas | D91: Tuarastal Oideachais | E91: Y | F91: ='Tuairiscí Miosúla Ioncam & Cait'!O98 -> 0 | J91: 0 | L91: Q | Y91: =IF(ISNUMBER(SEARCH($K$2,B91)),MAX($Y$4:Y90)+1,0) -> 87 | Z91: Costais Tuarastail Oideachais Eile | AB91: =IFERROR(VLOOKUP(ROWS($AB$5:AB91),$Y$5:$Z$199,2,0),"") -> Costais Tuarastail Oideachais Eile
A92: 4199 | B92: Costais Tuarastail Maoinithe ag FSS | C92: Caiteachas | D92: Tuarastal Oideachais | E92: Y | F92: ='Tuairiscí Miosúla Ioncam & Cait'!O99 -> 0 | J92: 0 | L92: R | Y92: =IF(ISNUMBER(SEARCH($K$2,B92)),MAX($Y$4:Y91)+1,0) -> 88 | Z92: Costais Tuarastail Maoinithe ag FSS | AB92: =IFERROR(VLOOKUP(ROWS($AB$5:AB92),$Y$5:$Z$199,2,0),"") -> Costais Tuarastail Maoinithe ag FSS
A93: 4310 | B93: Costas Áiseanna Teagaisc | C93: Caiteachas | D93: Caiteachas Oideachais Eile | E93: Y | F93: ='Tuairiscí Miosúla Ioncam & Cait'!O100 -> 0 | J93: 0 | L93: S | Y93: =IF(ISNUMBER(SEARCH($K$2,B93)),MAX($Y$4:Y92)+1,0) -> 89 | Z93: Costas Áiseanna Teagaisc | AB93: =IFERROR(VLOOKUP(ROWS($AB$5:AB93),$Y$5:$Z$199,2,0),"") -> Costas Áiseanna Teagaisc
A94: 4311 | B94: Costaisí Scéim luath-thosaithe le haghaidh Ábh/Tre/For tuis | C94: Caiteachas | D94: Caiteachas Oideachais Eile | E94: Y | F94: ='Tuairiscí Miosúla Ioncam & Cait'!O101 -> 0 | J94: =F94+G94+H94+I94 -> 0 | L94: T | Y94: =IF(ISNUMBER(SEARCH($K$2,B94)),MAX($Y$4:Y93)+1,0) -> 90 | Z94: Costaisí Scéim luath-thosaithe le haghaidh Ábh/Tre/For tuis | AB94: =IFERROR(VLOOKUP(ROWS($AB$5:AB94),$Y$5:$Z$199,2,0),"") -> Costaisí Scéim luath-thosaithe le haghaidh Ábh/Tre/For tuis
A95: 4315 | B95: Costas fótachóipeáil mac léinn | C95: Caiteachas | D95: Caiteachas Oideachais Eile | E95: Y | F95: ='Tuairiscí Miosúla Ioncam & Cait'!O102 -> 0 | J95: 0 | L95: U | Y95: =IF(ISNUMBER(SEARCH($K$2,B95)),MAX($Y$4:Y94)+1,0) -> 91 | Z95: Costas fótachóipeáil mac léinn | AB95: =IFERROR(VLOOKUP(ROWS($AB$5:AB95),$Y$5:$Z$199,2,0),"") -> Costas fótachóipeáil mac léinn
A96: 4330 | B96: Costas maidir le Reiligiún/hÉiteas | C96: Caiteachas | D96: Caiteachas Oideachais Eile | E96: Y | F96: ='Tuairiscí Miosúla Ioncam & Cait'!O103 -> 0 | J96: 0 | L96: V | Y96: =IF(ISNUMBER(SEARCH($K$2,B96)),MAX($Y$4:Y95)+1,0) -> 92 | Z96: Costas maidir le Reiligiún/hÉiteas | AB96: =IFERROR(VLOOKUP(ROWS($AB$5:AB96),$Y$5:$Z$199,2,0),"") -> Costas maidir le Reiligiún/hÉiteas
A97: 4410 | B97: Costais Deontais Neamhchaipitil TFC | C97: Caiteachas | D97: Caiteachas Oideachais Eile | E97: Y | F97: ='Tuairiscí Miosúla Ioncam & Cait'!O104 -> 0 | J97: 0 | L97: W | Y97: =IF(ISNUMBER(SEARCH($K$2,B97)),MAX($Y$4:Y96)+1,0) -> 93 | Z97: Costais Deontais Neamhchaipitil TFC | AB97: =IFERROR(VLOOKUP(ROWS($AB$5:AB97),$Y$5:$Z$199,2,0),"") -> Costais Deontais Neamhchaipitil TFC
A98: 4420 | B98: Costais Cothabhála & Tacaíochta Ríomhaireachta | C98: Caiteachas | D98: Caiteachas Oideachais Eile | E98: Y | F98: ='Tuairiscí Miosúla Ioncam & Cait'!O105 -> 0 | J98: 0 | L98: X | Y98: =IF(ISNUMBER(SEARCH($K$2,B98)),MAX($Y$4:Y97)+1,0) -> 94 | Z98: Costais Cothabhála & Tacaíochta Ríomhaireachta | AB98: =IFERROR(VLOOKUP(ROWS($AB$5:AB98),$Y$5:$Z$199,2,0),"") -> Costais Cothabhála & Tacaíochta Ríomhaireachta
A99: 4490 | B99: Costas d’Ábhair Eile | C99: Caiteachas | D99: Caiteachas Oideachais Eile | E99: Y | F99: ='Tuairiscí Miosúla Ioncam & Cait'!O106 -> 0 | J99: 0 | L99: Y | Y99: =IF(ISNUMBER(SEARCH($K$2,B99)),MAX($Y$4:Y98)+1,0) -> 95 | Z99: Costas d’Ábhair Eile | AB99: =IFERROR(VLOOKUP(ROWS($AB$5:AB99),$Y$5:$Z$199,2,0),"") -> Costas d’Ábhair Eile
A100: 4550 | B100: Costas don Ardteistiméireacht Fheidhmeach | C100: Caiteachas | D100: Caiteachas Oideachais Eile | E100: Y | F100: ='Tuairiscí Miosúla Ioncam & Cait'!O107 -> 0 | J100: 0 | L100: Z | Y100: =IF(ISNUMBER(SEARCH($K$2,B100)),MAX($Y$4:Y99)+1,0) -> 96 | Z100: Costas don Ardteistiméireacht Fheidhmeach | AB100: =IFERROR(VLOOKUP(ROWS($AB$5:AB100),$Y$5:$Z$199,2,0),"") -> Costas don Ardteistiméireacht Fheidhmeach
A101: 4570 | B101: Costas do Ghairmchlár na hArdteistiméireachta | C101: Caiteachas | D101: Caiteachas Oideachais Eile | E101: Y | F101: ='Tuairiscí Miosúla Ioncam & Cait'!O108 -> 0 | J101: 0 | L101: AA | Y101: =IF(ISNUMBER(SEARCH($K$2,B101)),MAX($Y$4:Y100)+1,0) -> 97 | Z101: Costas do Ghairmchlár na hArdteistiméireachta | AB101: =IFERROR(VLOOKUP(ROWS($AB$5:AB101),$Y$5:$Z$199,2,0),"") -> Costas do Ghairmchlár na hArdteistiméireachta
A102: 4590 | B102: Costas na hIdirbhliana | C102: Caiteachas | D102: Caiteachas Oideachais Eile | E102: Y | F102: ='Tuairiscí Miosúla Ioncam & Cait'!O109 -> 0 | J102: 0 | L102: AB | Y102: =IF(ISNUMBER(SEARCH($K$2,B102)),MAX($Y$4:Y101)+1,0) -> 98 | Z102: Costas na hIdirbhliana | AB102: =IFERROR(VLOOKUP(ROWS($AB$5:AB102),$Y$5:$Z$199,2,0),"") -> Costas na hIdirbhliana
A103: 4610 | B103: Costas na Tacaíochta Foghlama | C103: Caiteachas | D103: Caiteachas Oideachais Eile | E103: Y | F103: ='Tuairiscí Miosúla Ioncam & Cait'!O110 -> 0 | J103: 0 | L103: AC | Y103: =IF(ISNUMBER(SEARCH($K$2,B103)),MAX($Y$4:Y102)+1,0) -> 99 | Z103: Costas na Tacaíochta Foghlama | AB103: =IFERROR(VLOOKUP(ROWS($AB$5:AB103),$Y$5:$Z$199,2,0),"") -> Costas na Tacaíochta Foghlama
A104: 4620 | B104: Costas Inseirbhíse agus Oiliúna Múinteoirí | C104: Caiteachas | D104: Caiteachas Oideachais Eile | E104: Y | F104: ='Tuairiscí Miosúla Ioncam & Cait'!O111 -> 0 | J104: 0 | L104: AD | Y104: =IF(ISNUMBER(SEARCH($K$2,B104)),MAX($Y$4:Y103)+1,0) -> 100 | Z104: Costas Inseirbhíse agus Oiliúna Múinteoirí | AB104: =IFERROR(VLOOKUP(ROWS($AB$5:AB104),$Y$5:$Z$199,2,0),"") -> Costas Inseirbhíse agus Oiliúna Múinteoirí
A105: 4635 | B105: Costais i leith Folláine Mac Léinn | C105: Caiteachas | D105: Caiteachas Oideachais Eile | E105: Y | F105: ='Tuairiscí Miosúla Ioncam & Cait'!O112 -> 0 | J105: 0 | L105: AE | Y105: =IF(ISNUMBER(SEARCH($K$2,B105)),MAX($Y$4:Y104)+1,0) -> 101 | Z105: Costais i leith Folláine Mac Léinn | AB105: =IFERROR(VLOOKUP(ROWS($AB$5:AB105),$Y$5:$Z$199,2,0),"") -> Costais i leith Folláine Mac Léinn
A106: 4640 | B106: Caiteachas Leabharlainne nach Maoinítear Deontas | C106: Caiteachas | D106: Caiteachas Oideachais Eile | E106: Y | F106: ='Tuairiscí Miosúla Ioncam & Cait'!O113 -> 0 | J106: 0 | L106: AF | Y106: =IF(ISNUMBER(SEARCH($K$2,B106)),MAX($Y$4:Y105)+1,0) -> 102 | Z106: Caiteachas Leabharlainne nach Maoinítear Deontas | AB106: =IFERROR(VLOOKUP(ROWS($AB$5:AB106),$Y$5:$Z$199,2,0),"") -> Caiteachas Leabharlainne nach Maoinítear Deontas
A107: 4641 | B107: Caiteachas Deontas Caipitil Leabhair Leabharlainne Scoile | C107: Caiteachas | D107: Caiteachas Oideachais Eile | E107: Y | F107: ='Tuairiscí Miosúla Ioncam & Cait'!O114 -> 0 | J107: =F107+G107+H107+I107 -> 0 | L107: AG | Y107: =IF(ISNUMBER(SEARCH($K$2,B107)),MAX($Y$4:Y106)+1,0) -> 103 | Z107: Caiteachas Deontas Caipitil Leabhair Leabharlainne Scoile | AB107: =IFERROR(VLOOKUP(ROWS($AB$5:AB107),$Y$5:$Z$199,2,0),"") -> Caiteachas Deontas Caipitil Leabhair Leabharlainne Scoile
A108: 4650 | B108: Costas Corpoideachais | C108: Caiteachas | D108: Caiteachas Oideachais Eile | E108: Y | F108: ='Tuairiscí Miosúla Ioncam & Cait'!O115 -> 0 | J108: 0 | L108: AH | Y108: =IF(ISNUMBER(SEARCH($K$2,B108)),MAX($Y$4:Y107)+1,0) -> 104 | Z108: Costas Corpoideachais | AB108: =IFERROR(VLOOKUP(ROWS($AB$5:AB108),$Y$5:$Z$199,2,0),"") -> Costas Corpoideachais
A109: 4670 | B109: Costas Cluichí (gan taisteal san áireamh) | C109: Caiteachas | D109: Caiteachas Oideachais Eile | E109: Y | F109: ='Tuairiscí Miosúla Ioncam & Cait'!O116 -> 0 | J109: 0 | L109: AI | Y109: =IF(ISNUMBER(SEARCH($K$2,B109)),MAX($Y$4:Y108)+1,0) -> 105 | Z109: Costas Cluichí (gan taisteal san áireamh) | AB109: =IFERROR(VLOOKUP(ROWS($AB$5:AB109),$Y$5:$Z$199,2,0),"") -> Costas Cluichí (gan taisteal san áireamh)
A110: 4671 | B110: Costas Taistil go Cluichí | C110: Caiteachas | D110: Caiteachas Oideachais Eile | E110: Y | F110: ='Tuairiscí Miosúla Ioncam & Cait'!O117 -> 0 | J110: 0 | L110: AJ | Y110: =IF(ISNUMBER(SEARCH($K$2,B110)),MAX($Y$4:Y109)+1,0) -> 106 | Z110: Costas Taistil go Cluichí | AB110: =IFERROR(VLOOKUP(ROWS($AB$5:AB110),$Y$5:$Z$199,2,0),"") -> Costas Taistil go Cluichí
A111: 4690 | B111: Costas Fruilithe Busanna | C111: Caiteachas | D111: Caiteachas Oideachais Eile | E111: Y | F111: ='Tuairiscí Miosúla Ioncam & Cait'!O118 -> 0 | J111: 0 | L111: AK | Y111: =IF(ISNUMBER(SEARCH($K$2,B111)),MAX($Y$4:Y110)+1,0) -> 107 | Z111: Costas Fruilithe Busanna | AB111: =IFERROR(VLOOKUP(ROWS($AB$5:AB111),$Y$5:$Z$199,2,0),"") -> Costas Fruilithe Busanna
A112: 4710 | B112: Costas Turas Scoile | C112: Caiteachas | D112: Caiteachas Oideachais Eile | E112: Y | F112: ='Tuairiscí Miosúla Ioncam & Cait'!O119 -> 0 | J112: 0 | L112: AL | Y112: =IF(ISNUMBER(SEARCH($K$2,B112)),MAX($Y$4:Y111)+1,0) -> 108 | Z112: Costas Turas Scoile | AB112: =IFERROR(VLOOKUP(ROWS($AB$5:AB112),$Y$5:$Z$199,2,0),"") -> Costas Turas Scoile
A113: 4720 | B113: Costas Ceoldráma/Dráma Scoile | C113: Caiteachas | D113: Caiteachas Oideachais Eile | E113: Y | F113: ='Tuairiscí Miosúla Ioncam & Cait'!O120 -> 0 | J113: 0 | L113: AM | Y113: =IF(ISNUMBER(SEARCH($K$2,B113)),MAX($Y$4:Y112)+1,0) -> 109 | Z113: Costas Ceoldráma/Dráma Scoile | AB113: =IFERROR(VLOOKUP(ROWS($AB$5:AB113),$Y$5:$Z$199,2,0),"") -> Costas Ceoldráma/Dráma Scoile
A114: 4730 | B114: Costas Dheontas na Leabhar | C114: Caiteachas | D114: Caiteachas Oideachais Eile | E114: Y | F114: ='Tuairiscí Miosúla Ioncam & Cait'!O121 -> 0 | J114: 0 | L114: AN | Y114: =IF(ISNUMBER(SEARCH($K$2,B114)),MAX($Y$4:Y113)+1,0) -> 110 | Z114: Costas Dheontas na Leabhar | AB114: =IFERROR(VLOOKUP(ROWS($AB$5:AB114),$Y$5:$Z$199,2,0),"") -> Costas Dheontas na Leabhar
A115: 4740 | B115: Costas Scéim na Leabhar ar Cíos | C115: Caiteachas | D115: Caiteachas Oideachais Eile | E115: Y | F115: ='Tuairiscí Miosúla Ioncam & Cait'!O122 -> 0 | J115: 0 | L115: AO | Y115: =IF(ISNUMBER(SEARCH($K$2,B115)),MAX($Y$4:Y114)+1,0) -> 111 | Z115: Costas Scéim na Leabhar ar Cíos | AB115: =IFERROR(VLOOKUP(ROWS($AB$5:AB115),$Y$5:$Z$199,2,0),"") -> Costas Scéim na Leabhar ar Cíos
A116: 4741 | B116: Costais Leabhar Seomra Ranga | C116: Caiteachas | D116: Caiteachas Oideachais Eile | E116: Y | F116: ='Tuairiscí Miosúla Ioncam & Cait'!O123 -> 0 | J116: 0 | L116: AP | Y116: =IF(ISNUMBER(SEARCH($K$2,B116)),MAX($Y$4:Y115)+1,0) -> 112 | Z116: Costais Leabhar Seomra Ranga | AB116: =IFERROR(VLOOKUP(ROWS($AB$5:AB116),$Y$5:$Z$199,2,0),"") -> Costais Leabhar Seomra Ranga
A117: 4760 | B117: Costas Bliainirisí/Dialanna Scoile | C117: Caiteachas | D117: Caiteachas Oideachais Eile | E117: Y | F117: ='Tuairiscí Miosúla Ioncam & Cait'!O124 -> 0 | J117: 0 | L117: AQ | Y117: =IF(ISNUMBER(SEARCH($K$2,B117)),MAX($Y$4:Y116)+1,0) -> 113 | Z117: Costas Bliainirisí/Dialanna Scoile | AB117: =IFERROR(VLOOKUP(ROWS($AB$5:AB117),$Y$5:$Z$199,2,0),"") -> Costas Bliainirisí/Dialanna Scoile
A118: 4770 | B118: Costas Trófaithe agus Duaiseanna | C118: Caiteachas | D118: Caiteachas Oideachais Eile | E118: Y | F118: ='Tuairiscí Miosúla Ioncam & Cait'!O125 -> 0 | J118: 0 | L118: AR | Y118: =IF(ISNUMBER(SEARCH($K$2,B118)),MAX($Y$4:Y117)+1,0) -> 114 | Z118: Costas Trófaithe agus Duaiseanna | AB118: =IFERROR(VLOOKUP(ROWS($AB$5:AB118),$Y$5:$Z$199,2,0),"") -> Costas Trófaithe agus Duaiseanna
A119: 4780 | B119: Costas Éidí | C119: Caiteachas | D119: Caiteachas Oideachais Eile | E119: Y | F119: ='Tuairiscí Miosúla Ioncam & Cait'!O126 -> 0 | J119: 0 | L119: AS | Y119: =IF(ISNUMBER(SEARCH($K$2,B119)),MAX($Y$4:Y118)+1,0) -> 115 | Z119: Costas Éidí | AB119: =IFERROR(VLOOKUP(ROWS($AB$5:AB119),$Y$5:$Z$199,2,0),"") -> Costas Éidí
A120: 4810 | B120: Costas na Teagmhála idir an Baile agus an Scoil | C120: Caiteachas | D120: Caiteachas Oideachais Eile | E120: Y | F120: ='Tuairiscí Miosúla Ioncam & Cait'!O127 -> 0 | J120: 0 | L120: AT | Y120: =IF(ISNUMBER(SEARCH($K$2,B120)),MAX($Y$4:Y119)+1,0) -> 116 | Z120: Costas na Teagmhála idir an Baile agus an Scoil | AB120: =IFERROR(VLOOKUP(ROWS($AB$5:AB120),$Y$5:$Z$199,2,0),"") -> Costas na Teagmhála idir an Baile agus an Scoil
A121: 4815 | B121: Costas an Chiste Barr Feabhais Scoileanna | C121: Caiteachas | D121: Caiteachas Oideachais Eile | E121: Y | F121: ='Tuairiscí Miosúla Ioncam & Cait'!O128 -> 0 | J121: 0 | L121: AU | Y121: =IF(ISNUMBER(SEARCH($K$2,B121)),MAX($Y$4:Y120)+1,0) -> 117 | Z121: Costas an Chiste Barr Feabhais Scoileanna | AB121: =IFERROR(VLOOKUP(ROWS($AB$5:AB121),$Y$5:$Z$199,2,0),"") -> Costas an Chiste Barr Feabhais Scoileanna
A122: 4908 | B122: Costais Eile Campaí Samhraidh | C122: Caiteachas | D122: Caiteachas Oideachais Eile | E122: Y | F122: ='Tuairiscí Miosúla Ioncam & Cait'!O129 -> 0 | J122: 0 | L122: AV | Y122: =IF(ISNUMBER(SEARCH($K$2,B122)),MAX($Y$4:Y121)+1,0) -> 118 | Z122: Costais Eile Campaí Samhraidh | AB122: =IFERROR(VLOOKUP(ROWS($AB$5:AB122),$Y$5:$Z$199,2,0),"") -> Costais Eile Campaí Samhraidh
A123: 4909 | B123: Costais Sholáthar Eile Samhraidh | C123: Caiteachas | D123: Caiteachas Oideachais Eile | E123: Y | F123: ='Tuairiscí Miosúla Ioncam & Cait'!O130 -> 0 | J123: 0 | L123: AW | Y123: =IF(ISNUMBER(SEARCH($K$2,B123)),MAX($Y$4:Y122)+1,0) -> 119 | Z123: Costais Sholáthar Eile Samhraidh | AB123: =IFERROR(VLOOKUP(ROWS($AB$5:AB123),$Y$5:$Z$199,2,0),"") -> Costais Sholáthar Eile Samhraidh
A124: 4910 | B124: Costas Oideachais Eile | C124: Caiteachas | D124: Caiteachas Oideachais Eile | E124: Y | F124: ='Tuairiscí Miosúla Ioncam & Cait'!O131 -> 0 | J124: 0 | L124: AX | Y124: =IF(ISNUMBER(SEARCH($K$2,B124)),MAX($Y$4:Y123)+1,0) -> 120 | Z124: Costas Oideachais Eile | AB124: =IFERROR(VLOOKUP(ROWS($AB$5:AB124),$Y$5:$Z$199,2,0),"") -> Costas Oideachais Eile
A125: 4911 | B125: Costas Ghníomhaíochtaí na Roinne Leanaí agus Gnóthaí Óige | C125: Caiteachas | D125: Caiteachas Oideachais Eile | E125: Y | F125: ='Tuairiscí Miosúla Ioncam & Cait'!O132 -> 0 | J125: 0 | L125: AY | Y125: =IF(ISNUMBER(SEARCH($K$2,B125)),MAX($Y$4:Y124)+1,0) -> 121 | Z125: Costas Ghníomhaíochtaí na Roinne Leanaí agus Gnóthaí Óige | AB125: =IFERROR(VLOOKUP(ROWS($AB$5:AB125),$Y$5:$Z$199,2,0),"") -> Costas Ghníomhaíochtaí na Roinne Leanaí agus Gnóthaí Óige
A126: 4912 | B126: Costais Bia Béilí Scoileanna na Roinne Coimirce Sóisialaí | C126: Caiteachas | D126: Caiteachas Oideachais Eile | E126: Y | F126: ='Tuairiscí Miosúla Ioncam & Cait'!O133 -> 0 | J126: 0 | L126: AZ | Y126: =IF(ISNUMBER(SEARCH($K$2,B126)),MAX($Y$4:Y125)+1,0) -> 122 | Z126: Costais Bia Béilí Scoileanna na Roinne Coimirce Sóisialaí | AB126: =IFERROR(VLOOKUP(ROWS($AB$5:AB126),$Y$5:$Z$199,2,0),"") -> Costais Bia Béilí Scoileanna na Roinne Coimirce Sóisialaí
A127: 4913 | B127: Costas Erasmus | C127: Caiteachas | D127: Caiteachas Oideachais Eile | E127: Y | F127: ='Tuairiscí Miosúla Ioncam & Cait'!O134 -> 0 | J127: 0 | L127: BA | Y127: =IF(ISNUMBER(SEARCH($K$2,B127)),MAX($Y$4:Y126)+1,0) -> 123 | Z127: Costas Erasmus | AB127: =IFERROR(VLOOKUP(ROWS($AB$5:AB127),$Y$5:$Z$199,2,0),"") -> Costas Erasmus
A128: 4914 | B128: Costais Deontais Neamhchaipitil Eile RO | C128: Caiteachas | D128: Caiteachas Oideachais Eile | E128: Y | F128: ='Tuairiscí Miosúla Ioncam & Cait'!O135 -> 0 | J128: 0 | L128: BB | Y128: =IF(ISNUMBER(SEARCH($K$2,B128)),MAX($Y$4:Y127)+1,0) -> 124 | Z128: Costais Deontais Neamhchaipitil Eile RO | AB128: =IFERROR(VLOOKUP(ROWS($AB$5:AB128),$Y$5:$Z$199,2,0),"") -> Costais Deontais Neamhchaipitil Eile RO
A129: 4915 | B129: Costais Eile Ceaintín | C129: Caiteachas | D129: Caiteachas Oideachais Eile | E129: Y | F129: ='Tuairiscí Miosúla Ioncam & Cait'!O136 -> 0 | J129: 0 | L129: BC | Y129: =IF(ISNUMBER(SEARCH($K$2,B129)),MAX($Y$4:Y128)+1,0) -> 125 | Z129: Costais Eile Ceaintín | AB129: =IFERROR(VLOOKUP(ROWS($AB$5:AB129),$Y$5:$Z$199,2,0),"") -> Costais Eile Ceaintín
A130: 4916 | B130: Costas Árachais Daltaí | C130: Caiteachas | D130: Caiteachas Oideachais Eile | E130: Y | F130: ='Tuairiscí Miosúla Ioncam & Cait'!O137 -> 0 | J130: 0 | L130: BD | Y130: =IF(ISNUMBER(SEARCH($K$2,B130)),MAX($Y$4:Y129)+1,0) -> 126 | Z130: Costas Árachais Daltaí | AB130: =IFERROR(VLOOKUP(ROWS($AB$5:AB130),$Y$5:$Z$199,2,0),"") -> Costas Árachais Daltaí
A131: 4917 | B131: Costas Trialacha Caighdeánaithe | C131: Caiteachas | D131: Caiteachas Oideachais Eile | E131: Y | F131: ='Tuairiscí Miosúla Ioncam & Cait'!O138 -> 0 | J131: 0 | L131: BE | Y131: =IF(ISNUMBER(SEARCH($K$2,B131)),MAX($Y$4:Y130)+1,0) -> 127 | Z131: Costas Trialacha Caighdeánaithe | AB131: =IFERROR(VLOOKUP(ROWS($AB$5:AB131),$Y$5:$Z$199,2,0),"") -> Costas Trialacha Caighdeánaithe
A132: 4918 | B132: Caiteachas Ainmnithe (Neamhchaipitiúil) | C132: Caiteachas | D132: Caiteachas Oideachais Eile | E132: Y | F132: ='Tuairiscí Miosúla Ioncam & Cait'!O139 -> 0 | J132: 0 | L132: BF | Y132: =IF(ISNUMBER(SEARCH($K$2,B132)),MAX($Y$4:Y131)+1,0) -> 128 | Z132: Caiteachas Ainmnithe (Neamhchaipitiúil) | AB132: =IFERROR(VLOOKUP(ROWS($AB$5:AB132),$Y$5:$Z$199,2,0),"") -> Caiteachas Ainmnithe (Neamhchaipitiúil)
A133: 4919 | B133: Costas Trealaimh Oideachais Speisialta (Neamhchaipitiúil) | C133: Caiteachas | D133: Caiteachas Oideachais Eile | E133: Y | F133: ='Tuairiscí Miosúla Ioncam & Cait'!O140 -> 0 | J133: 0 | L133: BG | Y133: =IF(ISNUMBER(SEARCH($K$2,B133)),MAX($Y$4:Y132)+1,0) -> 129 | Z133: Costas Trealaimh Oideachais Speisialta (Neamhchaipitiúil) | AB133: =IFERROR(VLOOKUP(ROWS($AB$5:AB133),$Y$5:$Z$199,2,0),"") -> Costas Trealaimh Oideachais Speisialta (Neamhchaipitiúil)
A134: 4920 | B134: Costas Damhsa na Scoile | C134: Caiteachas | D134: Caiteachas Oideachais Eile | E134: Y | F134: ='Tuairiscí Miosúla Ioncam & Cait'!O141 -> 0 | J134: 0 | L134: BH | Y134: =IF(ISNUMBER(SEARCH($K$2,B134)),MAX($Y$4:Y133)+1,0) -> 130 | Z134: Costas Damhsa na Scoile | AB134: =IFERROR(VLOOKUP(ROWS($AB$5:AB134),$Y$5:$Z$199,2,0),"") -> Costas Damhsa na Scoile
A135: 4921 | B135: Costas Snámha Scoile | C135: Caiteachas | D135: Caiteachas Oideachais Eile | E135: Y | F135: ='Tuairiscí Miosúla Ioncam & Cait'!O142 -> 0 | J135: 0 | L135: BI | Y135: =IF(ISNUMBER(SEARCH($K$2,B135)),MAX($Y$4:Y134)+1,0) -> 131 | Z135: Costas Snámha Scoile | AB135: =IFERROR(VLOOKUP(ROWS($AB$5:AB135),$Y$5:$Z$199,2,0),"") -> Costas Snámha Scoile
A136: 4922 | B136: Costas Snámha ScoileCostais a bhaineann le Tiomsú Airgid Srianta Scoile (Neamhchaipitiúil) | C136: Caiteachas | D136: Caiteachas Oideachais Eile | E136: Y | F136: ='Tuairiscí Miosúla Ioncam & Cait'!O143 -> 0 | J136: 0 | L136: BJ | Y136: =IF(ISNUMBER(SEARCH($K$2,B136)),MAX($Y$4:Y135)+1,0) -> 132 | Z136: Costas Snámha ScoileCostais a bhaineann le Tiomsú Airgid Srianta Scoile (Neamhchaipitiúil) | AB136: =IFERROR(VLOOKUP(ROWS($AB$5:AB136),$Y$5:$Z$199,2,0),"") -> Costas Snámha ScoileCostais a bhaineann le Tiomsú Airgid Srianta Scoile (Neamhchaipitiúil)
A137: 4923 | B137: Costais a bhaineann le Tiomsú Airgid Srianta Seachtrach (Neamhchaipitiúil) | C137: Caiteachas | D137: Caiteachas Oideachais Eile | E137: Y | F137: ='Tuairiscí Miosúla Ioncam & Cait'!O144 -> 0 | J137: 0 | L137: BK | Y137: =IF(ISNUMBER(SEARCH($K$2,B137)),MAX($Y$4:Y136)+1,0) -> 133 | Z137: Costais a bhaineann le Tiomsú Airgid Srianta Seachtrach (Neamhchaipitiúil) | AB137: =IFERROR(VLOOKUP(ROWS($AB$5:AB137),$Y$5:$Z$199,2,0),"") -> Costais a bhaineann le Tiomsú Airgid Srianta Seachtrach (Neamhchaipitiúil)
A138: 4924 | B138: Costais a bhaineann le Tiomsú Airgid Neamhshrianta Seachtrach (Neamhchaipitiúil) | C138: Caiteachas | D138: Caiteachas Oideachais Eile | E138: Y | F138: ='Tuairiscí Miosúla Ioncam & Cait'!O145 -> 0 | J138: 0 | L138: BL | Y138: =IF(ISNUMBER(SEARCH($K$2,B138)),MAX($Y$4:Y137)+1,0) -> 134 | Z138: Costais a bhaineann le Tiomsú Airgid Neamhshrianta Seachtrach (Neamhchaipitiúil) | AB138: =IFERROR(VLOOKUP(ROWS($AB$5:AB138),$Y$5:$Z$199,2,0),"") -> Costais a bhaineann le Tiomsú Airgid Neamhshrianta Seachtrach (Neamhchaipitiúil)
A139: 4925 | B139: Costais Tiomsaithe Airgid Neamhshrianta Scoile (Neamhchaipitiúil) | C139: Caiteachas | D139: Caiteachas Oideachais Eile | E139: Y | F139: ='Tuairiscí Miosúla Ioncam & Cait'!O146 -> 0 | J139: 0 | L139: BM | Y139: =IF(ISNUMBER(SEARCH($K$2,B139)),MAX($Y$4:Y138)+1,0) -> 135 | Z139: Costais Tiomsaithe Airgid Neamhshrianta Scoile (Neamhchaipitiúil) | AB139: =IFERROR(VLOOKUP(ROWS($AB$5:AB139),$Y$5:$Z$199,2,0),"") -> Costais Tiomsaithe Airgid Neamhshrianta Scoile (Neamhchaipitiúil)
A140: 4927 | B140: Costais Ealaíon agus Ceardaíochta Scoile | C140: Caiteachas | D140: Caiteachas Oideachais Eile | E140: Y | F140: ='Tuairiscí Miosúla Ioncam & Cait'!O147 -> 0 | J140: 0 | L140: BN | Y140: =IF(ISNUMBER(SEARCH($K$2,B140)),MAX($Y$4:Y139)+1,0) -> 136 | Z140: Costais Ealaíon agus Ceardaíochta Scoile | AB140: =IFERROR(VLOOKUP(ROWS($AB$5:AB140),$Y$5:$Z$199,2,0),"") -> Costais Ealaíon agus Ceardaíochta Scoile
A141: 4928 | B141: Costais Eile FSS | C141: Caiteachas | D141: Caiteachas Oideachais Eile | E141: Y | F141: ='Tuairiscí Miosúla Ioncam & Cait'!O148 -> 0 | J141: 0 | L141: BO | Y141: =IF(ISNUMBER(SEARCH($K$2,B141)),MAX($Y$4:Y140)+1,0) -> 137 | Z141: Costais Eile FSS | AB141: =IFERROR(VLOOKUP(ROWS($AB$5:AB141),$Y$5:$Z$199,2,0),"") -> Costais Eile FSS
A142: 4930 | B142: Costas Réamhscoile | C142: Caiteachas | D142: Caiteachas Oideachais Eile | E142: Y | F142: ='Tuairiscí Miosúla Ioncam & Cait'!O149 -> 0 | J142: 0 | L142: BP | Y142: =IF(ISNUMBER(SEARCH($K$2,B142)),MAX($Y$4:Y141)+1,0) -> 138 | Z142: Costas Réamhscoile | AB142: =IFERROR(VLOOKUP(ROWS($AB$5:AB142),$Y$5:$Z$199,2,0),"") -> Costas Réamhscoile
A143: 5010 | B143: Costas Pá Feighlí | C143: Caiteachas | D143: Deisiúcháin, Cothabháil agus Bunú | E143: Y | F143: ='Tuairiscí Miosúla Ioncam & Cait'!O150 -> 0 | J143: 0 | L143: BQ | Y143: =IF(ISNUMBER(SEARCH($K$2,B143)),MAX($Y$4:Y142)+1,0) -> 139 | Z143: Costas Pá Feighlí | AB143: =IFERROR(VLOOKUP(ROWS($AB$5:AB143),$Y$5:$Z$199,2,0),"") -> Costas Pá Feighlí
A144: 5011 | B144: Maoiniú COVID le haghaidh Caiteachas maidir le hUaireanta Feighlí Ionaid | C144: Caiteachas | D144: Deisiúcháin, Cothabháil agus Bunú | E144: Y | F144: ='Tuairiscí Miosúla Ioncam & Cait'!O151 -> 0 | J144: 0 | L144: BR | Y144: =IF(ISNUMBER(SEARCH($K$2,B144)),MAX($Y$4:Y143)+1,0) -> 140 | Z144: Maoiniú COVID le haghaidh Caiteachas maidir le hUaireanta Feighlí Ionaid | AB144: =IFERROR(VLOOKUP(ROWS($AB$5:AB144),$Y$5:$Z$199,2,0),"") -> Maoiniú COVID le haghaidh Caiteachas maidir le hUaireanta Feighlí Ionaid
A145: 5030 | B145: Costas Pinsin na bhFeighlithe | C145: Caiteachas | D145: Deisiúcháin, Cothabháil agus Bunú | E145: Y | F145: ='Tuairiscí Miosúla Ioncam & Cait'!O152 -> 0 | J145: 0 | L145: BS | Y145: =IF(ISNUMBER(SEARCH($K$2,B145)),MAX($Y$4:Y144)+1,0) -> 141 | Z145: Costas Pinsin na bhFeighlithe | AB145: =IFERROR(VLOOKUP(ROWS($AB$5:AB145),$Y$5:$Z$199,2,0),"") -> Costas Pinsin na bhFeighlithe
A146: 5110 | B146: Costas Pá Glantóirí | C146: Caiteachas | D146: Deisiúcháin, Cothabháil agus Bunú | E146: Y | F146: ='Tuairiscí Miosúla Ioncam & Cait'!O153 -> 0 | J146: 0 | L146: BT | Y146: =IF(ISNUMBER(SEARCH($K$2,B146)),MAX($Y$4:Y145)+1,0) -> 142 | Z146: Costas Pá Glantóirí | AB146: =IFERROR(VLOOKUP(ROWS($AB$5:AB146),$Y$5:$Z$199,2,0),"") -> Costas Pá Glantóirí
A147: 5111 | B147: Maoiniú COVID le haghaidh Caiteachas maidir le hUaireanta Glantóra Ionaid | C147: Caiteachas | D147: Deisiúcháin, Cothabháil agus Bunú | E147: Y | F147: ='Tuairiscí Miosúla Ioncam & Cait'!O154 -> 0 | J147: 0 | L147: BU | Y147: =IF(ISNUMBER(SEARCH($K$2,B147)),MAX($Y$4:Y146)+1,0) -> 143 | Z147: Maoiniú COVID le haghaidh Caiteachas maidir le hUaireanta Glantóra Ionaid | AB147: =IFERROR(VLOOKUP(ROWS($AB$5:AB147),$Y$5:$Z$199,2,0),"") -> Maoiniú COVID le haghaidh Caiteachas maidir le hUaireanta Glantóra Ionaid
A148: 5112 | B148: Costas Pinsin Glantóirí | C148: Caiteachas | D148: Deisiúcháin, Cothabháil agus Bunú | E148: Y | F148: ='Tuairiscí Miosúla Ioncam & Cait'!O155 -> 0 | J148: 0 | L148: BV | Y148: =IF(ISNUMBER(SEARCH($K$2,B148)),MAX($Y$4:Y147)+1,0) -> 144 | Z148: Costas Pinsin Glantóirí | AB148: =IFERROR(VLOOKUP(ROWS($AB$5:AB148),$Y$5:$Z$199,2,0),"") -> Costas Pinsin Glantóirí
A149: 5150 | B149: Costas Glantóirí ar Conradh | C149: Caiteachas | D149: Deisiúcháin, Cothabháil agus Bunú | E149: Y | F149: ='Tuairiscí Miosúla Ioncam & Cait'!O156 -> 0 | J149: 0 | L149: BW | Y149: =IF(ISNUMBER(SEARCH($K$2,B149)),MAX($Y$4:Y148)+1,0) -> 145 | Z149: Costas Glantóirí ar Conradh | AB149: =IFERROR(VLOOKUP(ROWS($AB$5:AB149),$Y$5:$Z$199,2,0),"") -> Costas Glantóirí ar Conradh
A150: 5170 | B150: Costas Ábhar Glantacháin | C150: Caiteachas | D150: Deisiúcháin, Cothabháil agus Bunú | E150: Y | F150: ='Tuairiscí Miosúla Ioncam & Cait'!O157 -> 0 | J150: =F150+G150+H150+I150 -> 0 | L150: BX | Y150: =IF(ISNUMBER(SEARCH($K$2,B150)),MAX($Y$4:Y149)+1,0) -> 146 | Z150: Costas Ábhar Glantacháin | AB150: =IFERROR(VLOOKUP(ROWS($AB$5:AB150),$Y$5:$Z$199,2,0),"") -> Costas Ábhar Glantacháin
A151: 5175 | B151: Costais Ghlantacháin agus Sláintíochta Eile | C151: Caiteachas | D151: Deisiúcháin, Cothabháil agus Bunú | E151: Y | F151: ='Tuairiscí Miosúla Ioncam & Cait'!O158 -> 0 | J151: 0 | L151: BY | Y151: =IF(ISNUMBER(SEARCH($K$2,B151)),MAX($Y$4:Y150)+1,0) -> 147 | Z151: Costais Ghlantacháin agus Sláintíochta Eile | AB151: =IFERROR(VLOOKUP(ROWS($AB$5:AB151),$Y$5:$Z$199,2,0),"") -> Costais Ghlantacháin agus Sláintíochta Eile
A152: 5310 | B152: Costas Deisiúchán ar Fhoirgnimh agus Thailte | C152: Caiteachas | D152: Deisiúcháin, Cothabháil agus Bunú | E152: Y | F152: ='Tuairiscí Miosúla Ioncam & Cait'!O159 -> 0 | J152: 0 | L152: BZ | Y152: =IF(ISNUMBER(SEARCH($K$2,B152)),MAX($Y$4:Y151)+1,0) -> 148 | Z152: Costas Deisiúchán ar Fhoirgnimh agus Thailte | AB152: =IFERROR(VLOOKUP(ROWS($AB$5:AB152),$Y$5:$Z$199,2,0),"") -> Costas Deisiúchán ar Fhoirgnimh agus Thailte
A153: 5315 | B153: Costas Deontas Mionoibreacha (Neamhchaipitiúil) | C153: Caiteachas | D153: Deisiúcháin, Cothabháil agus Bunú | E153: Y | F153: ='Tuairiscí Miosúla Ioncam & Cait'!O160 -> 0 | J153: 0 | L153: CA | Y153: =IF(ISNUMBER(SEARCH($K$2,B153)),MAX($Y$4:Y152)+1,0) -> 149 | Z153: Costas Deontas Mionoibreacha (Neamhchaipitiúil) | AB153: =IFERROR(VLOOKUP(ROWS($AB$5:AB153),$Y$5:$Z$199,2,0),"") -> Costas Deontas Mionoibreacha (Neamhchaipitiúil)
A154: 5316 | B154: Costas Deontais le haghaidh Mionoibreacha COVID | C154: Caiteachas | D154: Deisiúcháin, Cothabháil agus Bunú | E154: Y | F154: ='Tuairiscí Miosúla Ioncam & Cait'!O161 -> 0 | J154: 0 | L154: CB | Y154: =IF(ISNUMBER(SEARCH($K$2,B154)),MAX($Y$4:Y153)+1,0) -> 150 | Z154: Costas Deontais le haghaidh Mionoibreacha COVID | AB154: =IFERROR(VLOOKUP(ROWS($AB$5:AB154),$Y$5:$Z$199,2,0),"") -> Costas Deontais le haghaidh Mionoibreacha COVID
A155: 5350 | B155: Costas Deisiúchán ar Throscán, Feistis agus Trealamh | C155: Caiteachas | D155: Deisiúcháin, Cothabháil agus Bunú | E155: Y | F155: ='Tuairiscí Miosúla Ioncam & Cait'!O162 -> 0 | J155: 0 | L155: CC | Y155: =IF(ISNUMBER(SEARCH($K$2,B155)),MAX($Y$4:Y154)+1,0) -> 151 | Z155: Costas Deisiúchán ar Throscán, Feistis agus Trealamh | AB155: =IFERROR(VLOOKUP(ROWS($AB$5:AB155),$Y$5:$Z$199,2,0),"") -> Costas Deisiúchán ar Throscán, Feistis agus Trealamh
A156: 5400 | B156: Gnáthchostas Slándála | C156: Caiteachas | D156: Deisiúcháin, Cothabháil agus Bunú | E156: Y | F156: ='Tuairiscí Miosúla Ioncam & Cait'!O163 -> 0 | J156: 0 | L156: CD | Y156: =IF(ISNUMBER(SEARCH($K$2,B156)),MAX($Y$4:Y155)+1,0) -> 152 | Z156: Gnáthchostas Slándála | AB156: =IFERROR(VLOOKUP(ROWS($AB$5:AB156),$Y$5:$Z$199,2,0),"") -> Gnáthchostas Slándála
A157: 5450 | B157: Costas Árachais Ghinearálta | C157: Caiteachas | D157: Deisiúcháin, Cothabháil agus Bunú | E157: Y | F157: ='Tuairiscí Miosúla Ioncam & Cait'!O164 -> 0 | J157: 0 | L157: CE | Y157: =IF(ISNUMBER(SEARCH($K$2,B157)),MAX($Y$4:Y156)+1,0) -> 153 | Z157: Costas Árachais Ghinearálta | AB157: =IFERROR(VLOOKUP(ROWS($AB$5:AB157),$Y$5:$Z$199,2,0),"") -> Costas Árachais Ghinearálta
A158: 5510 | B158: Costas Téimh | C158: Caiteachas | D158: Deisiúcháin, Cothabháil agus Bunú | E158: Y | F158: ='Tuairiscí Miosúla Ioncam & Cait'!O165 -> 0 | J158: 0 | L158: CF | Y158: =IF(ISNUMBER(SEARCH($K$2,B158)),MAX($Y$4:Y157)+1,0) -> 154 | Z158: Costas Téimh | AB158: =IFERROR(VLOOKUP(ROWS($AB$5:AB158),$Y$5:$Z$199,2,0),"") -> Costas Téimh
A159: 5550 | B159: Costas Soilse agus Cumhachta | C159: Caiteachas | D159: Deisiúcháin, Cothabháil agus Bunú | E159: Y | F159: ='Tuairiscí Miosúla Ioncam & Cait'!O166 -> 0 | J159: 0 | L159: CG | Y159: =IF(ISNUMBER(SEARCH($K$2,B159)),MAX($Y$4:Y158)+1,0) -> 155 | Z159: Costas Soilse agus Cumhachta | AB159: =IFERROR(VLOOKUP(ROWS($AB$5:AB159),$Y$5:$Z$199,2,0),"") -> Costas Soilse agus Cumhachta
A160: 5551 | B160: Costas Cíosa Cóiríochta Sealadaí | C160: Caiteachas | D160: Deisiúcháin, Cothabháil agus Bunú | E160: Y | F160: ='Tuairiscí Miosúla Ioncam & Cait'!O167 -> 0 | J160: 0 | L160: CH | Y160: =IF(ISNUMBER(SEARCH($K$2,B160)),MAX($Y$4:Y159)+1,0) -> 156 | Z160: Costas Cíosa Cóiríochta Sealadaí | AB160: =IFERROR(VLOOKUP(ROWS($AB$5:AB160),$Y$5:$Z$199,2,0),"") -> Costas Cíosa Cóiríochta Sealadaí
A161: 5552 | B161: Costais Cíosa Eile | C161: Caiteachas | D161: Deisiúcháin, Cothabháil agus Bunú | E161: Y | F161: ='Tuairiscí Miosúla Ioncam & Cait'!O168 -> 0 | J161: 0 | L161: CI | Y161: =IF(ISNUMBER(SEARCH($K$2,B161)),MAX($Y$4:Y160)+1,0) -> 157 | Z161: Costais Cíosa Eile | AB161: =IFERROR(VLOOKUP(ROWS($AB$5:AB161),$Y$5:$Z$199,2,0),"") -> Costais Cíosa Eile
A162: 5610 | B162: Costas Bruscair | C162: Caiteachas | D162: Deisiúcháin, Cothabháil agus Bunú | E162: Y | F162: ='Tuairiscí Miosúla Ioncam & Cait'!O169 -> 0 | J162: 0 | L162: CJ | Y162: =IF(ISNUMBER(SEARCH($K$2,B162)),MAX($Y$4:Y161)+1,0) -> 158 | Z162: Costas Bruscair | AB162: =IFERROR(VLOOKUP(ROWS($AB$5:AB162),$Y$5:$Z$199,2,0),"") -> Costas Bruscair
A163: 5611 | B163: Costais Rátaí Uisce | C163: Caiteachas | D163: Deisiúcháin, Cothabháil agus Bunú | E163: Y | F163: ='Tuairiscí Miosúla Ioncam & Cait'!O170 -> 0 | J163: 0 | L163: CK | Y163: =IF(ISNUMBER(SEARCH($K$2,B163)),MAX($Y$4:Y162)+1,0) -> 159 | Z163: Costais Rátaí Uisce | AB163: =IFERROR(VLOOKUP(ROWS($AB$5:AB163),$Y$5:$Z$199,2,0),"") -> Costais Rátaí Uisce
A164: 5700 | B164: Costas na Táille Ceadúnais don Phátrún/Iontaobhaí | C164: Caiteachas | D164: Deisiúcháin, Cothabháil agus Bunú | E164: Y | F164: ='Tuairiscí Miosúla Ioncam & Cait'!O171 -> 0 | J164: 0 | L164: CL | Y164: =IF(ISNUMBER(SEARCH($K$2,B164)),MAX($Y$4:Y163)+1,0) -> 160 | Z164: Costas na Táille Ceadúnais don Phátrún/Iontaobhaí | AB164: =IFERROR(VLOOKUP(ROWS($AB$5:AB164),$Y$5:$Z$199,2,0),"") -> Costas na Táille Ceadúnais don Phátrún/Iontaobhaí
A165: 5800 | B165: Costas Deisiúcháin agus Cothabhála Eile | C165: Caiteachas | D165: Deisiúcháin, Cothabháil agus Bunú | E165: Y | F165: ='Tuairiscí Miosúla Ioncam & Cait'!O172 -> 0 | J165: 0 | L165: CM | Y165: =IF(ISNUMBER(SEARCH($K$2,B165)),MAX($Y$4:Y164)+1,0) -> 161 | Z165: Costas Deisiúcháin agus Cothabhála Eile | AB165: =IFERROR(VLOOKUP(ROWS($AB$5:AB165),$Y$5:$Z$199,2,0),"") -> Costas Deisiúcháin agus Cothabhála Eile
A166: 5801 | B166: Costas Pá faoin Deontas do Chúntóir COVID | C166: Caiteachas | D166: Deisiúcháin, Cothabháil agus Bunú | E166: Y | F166: ='Tuairiscí Miosúla Ioncam & Cait'!O173 -> 0 | J166: 0 | L166: CN | Y166: =IF(ISNUMBER(SEARCH($K$2,B166)),MAX($Y$4:Y165)+1,0) -> 162 | Z166: Costas Pá faoin Deontas do Chúntóir COVID | AB166: =IFERROR(VLOOKUP(ROWS($AB$5:AB166),$Y$5:$Z$199,2,0),"") -> Costas Pá faoin Deontas do Chúntóir COVID
A167: 5803 | B167: Costas Pá ón Deontas Mhaoirseacht Fheabhsaithe COVID | C167: Caiteachas | D167: Deisiúcháin, Cothabháil agus Bunú | E167: Y | F167: ='Tuairiscí Miosúla Ioncam & Cait'!O174 -> 0 | J167: 0 | L167: CO | Y167: =IF(ISNUMBER(SEARCH($K$2,B167)),MAX($Y$4:Y166)+1,0) -> 163 | Z167: Costas Pá ón Deontas Mhaoirseacht Fheabhsaithe COVID | AB167: =IFERROR(VLOOKUP(ROWS($AB$5:AB167),$Y$5:$Z$199,2,0),"") -> Costas Pá ón Deontas Mhaoirseacht Fheabhsaithe COVID
A168: 5804 | B168: Deontas Caipitíochta COVID le haghaidh Chostas Pá Glantacháin | C168: Caiteachas | D168: Deisiúcháin, Cothabháil agus Bunú | E168: Y | F168: ='Tuairiscí Miosúla Ioncam & Cait'!O175 -> 0 | J168: 0 | L168: CP | Y168: =IF(ISNUMBER(SEARCH($K$2,B168)),MAX($Y$4:Y167)+1,0) -> 164 | Z168: Deontas Caipitíochta COVID le haghaidh Chostas Pá Glantacháin | AB168: =IFERROR(VLOOKUP(ROWS($AB$5:AB168),$Y$5:$Z$199,2,0),"") -> Deontas Caipitíochta COVID le haghaidh Chostas Pá Glantacháin
A169: 5806 | B169: Deontas Caipitíochta Covid le haghaidh Chostas Glantacháin (Neamhphá) & PPE | C169: Caiteachas | D169: Deisiúcháin, Cothabháil agus Bunú | E169: Y | F169: ='Tuairiscí Miosúla Ioncam & Cait'!O176 -> 0 | J169: 0 | L169: CQ | Y169: =IF(ISNUMBER(SEARCH($K$2,B169)),MAX($Y$4:Y168)+1,0) -> 165 | Z169: Deontas Caipitíochta Covid le haghaidh Chostas Glantacháin (Neamhphá) & PPE | AB169: =IFERROR(VLOOKUP(ROWS($AB$5:AB169),$Y$5:$Z$199,2,0),"") -> Deontas Caipitíochta Covid le haghaidh Chostas Glantacháin (Neamhphá) & PPE
A170: 6010 | B170: Costas Pá Oifigeach Cléireachais/Rúnaíochta | C170: Caiteachas | D170: Riarachán | E170: Y | F170: ='Tuairiscí Miosúla Ioncam & Cait'!O177 -> 0 | J170: 0 | L170: CR | Y170: =IF(ISNUMBER(SEARCH($K$2,B170)),MAX($Y$4:Y169)+1,0) -> 166 | Z170: Costas Pá Oifigeach Cléireachais/Rúnaíochta | AB170: =IFERROR(VLOOKUP(ROWS($AB$5:AB170),$Y$5:$Z$199,2,0),"") -> Costas Pá Oifigeach Cléireachais/Rúnaíochta
A171: 6011 | B171: Maoiniú COVID le haghaidh Caiteachas maidir le hUaireanta Rúnaí Ionaid | C171: Caiteachas | D171: Riarachán | E171: Y | F171: ='Tuairiscí Miosúla Ioncam & Cait'!O178 -> 0 | J171: 0 | L171: CS | Y171: =IF(ISNUMBER(SEARCH($K$2,B171)),MAX($Y$4:Y170)+1,0) -> 167 | Z171: Maoiniú COVID le haghaidh Caiteachas maidir le hUaireanta Rúnaí Ionaid | AB171: =IFERROR(VLOOKUP(ROWS($AB$5:AB171),$Y$5:$Z$199,2,0),"") -> Maoiniú COVID le haghaidh Caiteachas maidir le hUaireanta Rúnaí Ionaid
A172: 6050 | B172: Costas Pinsin Oifigeach Cléireachais/Rúnaíochta | C172: Caiteachas | D172: Riarachán | E172: Y | F172: ='Tuairiscí Miosúla Ioncam & Cait'!O179 -> 0 | J172: 0 | L172: CT | Y172: =IF(ISNUMBER(SEARCH($K$2,B172)),MAX($Y$4:Y171)+1,0) -> 168 | Z172: Costas Pinsin Oifigeach Cléireachais/Rúnaíochta | AB172: =IFERROR(VLOOKUP(ROWS($AB$5:AB172),$Y$5:$Z$199,2,0),"") -> Costas Pinsin Oifigeach Cléireachais/Rúnaíochta
A173: 6100 | B173: Costas Earcaíochta | C173: Caiteachas | D173: Riarachán | E173: Y | F173: ='Tuairiscí Miosúla Ioncam & Cait'!O180 -> 0 | J173: 0 | L173: CU | Y173: =IF(ISNUMBER(SEARCH($K$2,B173)),MAX($Y$4:Y172)+1,0) -> 169 | Z173: Costas Earcaíochta | AB173: =IFERROR(VLOOKUP(ROWS($AB$5:AB173),$Y$5:$Z$199,2,0),"") -> Costas Earcaíochta
A174: 6150 | B174: Costas Fógraíochta / Caidrimh Phoiblí | C174: Caiteachas | D174: Riarachán | E174: Y | F174: ='Tuairiscí Miosúla Ioncam & Cait'!O181 -> 0 | J174: 0 | L174: CV | Y174: =IF(ISNUMBER(SEARCH($K$2,B174)),MAX($Y$4:Y173)+1,0) -> 170 | Z174: Costas Fógraíochta / Caidrimh Phoiblí | AB174: =IFERROR(VLOOKUP(ROWS($AB$5:AB174),$Y$5:$Z$199,2,0),"") -> Costas Fógraíochta / Caidrimh Phoiblí
A175: 6210 | B175: Costas Postais | C175: Caiteachas | D175: Riarachán | E175: Y | F175: ='Tuairiscí Miosúla Ioncam & Cait'!O182 -> 0 | J175: 0 | L175: CW | Y175: =IF(ISNUMBER(SEARCH($K$2,B175)),MAX($Y$4:Y174)+1,0) -> 171 | Z175: Costas Postais | AB175: =IFERROR(VLOOKUP(ROWS($AB$5:AB175),$Y$5:$Z$199,2,0),"") -> Costas Postais
A176: 6250 | B176: Costas Gutháin / SMS | C176: Caiteachas | D176: Riarachán | E176: Y | F176: ='Tuairiscí Miosúla Ioncam & Cait'!O183 -> 0 | J176: 0 | L176: CX | Y176: =IF(ISNUMBER(SEARCH($K$2,B176)),MAX($Y$4:Y175)+1,0) -> 172 | Z176: Costas Gutháin / SMS | AB176: =IFERROR(VLOOKUP(ROWS($AB$5:AB176),$Y$5:$Z$199,2,0),"") -> Costas Gutháin / SMS
A177: 6300 | B177: Costas Clódóireachta agus Páipéarachais | C177: Caiteachas | D177: Riarachán | E177: Y | F177: ='Tuairiscí Miosúla Ioncam & Cait'!O184 -> 0 | J177: 0 | L177: CY | Y177: =IF(ISNUMBER(SEARCH($K$2,B177)),MAX($Y$4:Y176)+1,0) -> 173 | Z177: Costas Clódóireachta agus Páipéarachais | AB177: =IFERROR(VLOOKUP(ROWS($AB$5:AB177),$Y$5:$Z$199,2,0),"") -> Costas Clódóireachta agus Páipéarachais
A178: 6350 | B178: Costas Trealaimh Oifige (Neamhchaipitiúil) | C178: Caiteachas | D178: Riarachán | E178: Y | F178: ='Tuairiscí Miosúla Ioncam & Cait'!O185 -> 0 | J178: 0 | L178: CZ | Y178: =IF(ISNUMBER(SEARCH($K$2,B178)),MAX($Y$4:Y177)+1,0) -> 174 | Z178: Costas Trealaimh Oifige (Neamhchaipitiúil) | AB178: =IFERROR(VLOOKUP(ROWS($AB$5:AB178),$Y$5:$Z$199,2,0),"") -> Costas Trealaimh Oifige (Neamhchaipitiúil)
A179: 6355 | B179: Costas Ríomhairí Oifige nach bhFuarthas Deontas TFC ina leith | C179: Caiteachas | D179: Riarachán | E179: Y | F179: ='Tuairiscí Miosúla Ioncam & Cait'!O186 -> 0 | J179: 0 | L179: DA | Y179: =IF(ISNUMBER(SEARCH($K$2,B179)),MAX($Y$4:Y178)+1,0) -> 175 | Z179: Costas Ríomhairí Oifige nach bhFuarthas Deontas TFC ina leith | AB179: =IFERROR(VLOOKUP(ROWS($AB$5:AB179),$Y$5:$Z$199,2,0),"") -> Costas Ríomhairí Oifige nach bhFuarthas Deontas TFC ina leith
A180: 6400 | B180: Costas Cuntasaíochta / Iniúchóireachta | C180: Caiteachas | D180: Riarachán | E180: Y | F180: ='Tuairiscí Miosúla Ioncam & Cait'!O187 -> 0 | J180: 0 | L180: DB | Y180: =IF(ISNUMBER(SEARCH($K$2,B180)),MAX($Y$4:Y179)+1,0) -> 176 | Z180: Costas Cuntasaíochta / Iniúchóireachta | AB180: =IFERROR(VLOOKUP(ROWS($AB$5:AB180),$Y$5:$Z$199,2,0),"") -> Costas Cuntasaíochta / Iniúchóireachta
A181: 6450 | B181: Costas Táillí Gairmiúla Eile | C181: Caiteachas | D181: Riarachán | E181: Y | F181: ='Tuairiscí Miosúla Ioncam & Cait'!O188 -> 0 | J181: 0 | L181: DC | Y181: =IF(ISNUMBER(SEARCH($K$2,B181)),MAX($Y$4:Y180)+1,0) -> 177 | Z181: Costas Táillí Gairmiúla Eile | AB181: =IFERROR(VLOOKUP(ROWS($AB$5:AB181),$Y$5:$Z$199,2,0),"") -> Costas Táillí Gairmiúla Eile
A182: 6500 | B182: Costas Taistil agus Cothaithe | C182: Caiteachas | D182: Riarachán | E182: Y | F182: ='Tuairiscí Miosúla Ioncam & Cait'!O189 -> 0 | J182: 0 | L182: DD | Y182: =IF(ISNUMBER(SEARCH($K$2,B182)),MAX($Y$4:Y181)+1,0) -> 178 | Z182: Costas Taistil agus Cothaithe | AB182: =IFERROR(VLOOKUP(ROWS($AB$5:AB182),$Y$5:$Z$199,2,0),"") -> Costas Taistil agus Cothaithe
A183: 6600 | B183: Costais an Phríomhoide | C183: Caiteachas | D183: Riarachán | E183: Y | F183: ='Tuairiscí Miosúla Ioncam & Cait'!O190 -> 0 | J183: 0 | L183: DE | Y183: =IF(ISNUMBER(SEARCH($K$2,B183)),MAX($Y$4:Y182)+1,0) -> 179 | Z183: Costais an Phríomhoide | AB183: =IFERROR(VLOOKUP(ROWS($AB$5:AB183),$Y$5:$Z$199,2,0),"") -> Costais an Phríomhoide
A184: 6650 | B184: Costas an Bhoird Bainistíocha | C184: Caiteachas | D184: Riarachán | E184: Y | F184: ='Tuairiscí Miosúla Ioncam & Cait'!O191 -> 0 | J184: 0 | L184: DF | Y184: =IF(ISNUMBER(SEARCH($K$2,B184)),MAX($Y$4:Y183)+1,0) -> 180 | Z184: Costas an Bhoird Bainistíocha | AB184: =IFERROR(VLOOKUP(ROWS($AB$5:AB184),$Y$5:$Z$199,2,0),"") -> Costas an Bhoird Bainistíocha
A185: 6700 | B185: Costas na Síntiús Bliantúil | C185: Caiteachas | D185: Riarachán | E185: Y | F185: ='Tuairiscí Miosúla Ioncam & Cait'!O192 -> 0 | J185: 0 | L185: DG | Y185: =IF(ISNUMBER(SEARCH($K$2,B185)),MAX($Y$4:Y184)+1,0) -> 181 | Z185: Costas na Síntiús Bliantúil | AB185: =IFERROR(VLOOKUP(ROWS($AB$5:AB185),$Y$5:$Z$199,2,0),"") -> Costas na Síntiús Bliantúil
A186: 6730 | B186: Costas an Chórais Riaracháin Inscoile | C186: Caiteachas | D186: Riarachán | E186: Y | F186: ='Tuairiscí Miosúla Ioncam & Cait'!O193 -> 0 | J186: 0 | L186: DH | Y186: =IF(ISNUMBER(SEARCH($K$2,B186)),MAX($Y$4:Y185)+1,0) -> 182 | Z186: Costas an Chórais Riaracháin Inscoile | AB186: =IFERROR(VLOOKUP(ROWS($AB$5:AB186),$Y$5:$Z$199,2,0),"") -> Costas an Chórais Riaracháin Inscoile
A187: 6731 | B187: Costais Bogearraí Cuntasaíochta / Bogearraí Párolla | C187: Caiteachas | D187: Riarachán | E187: Y | F187: ='Tuairiscí Miosúla Ioncam & Cait'!O194 -> 0 | J187: 0 | L187: DI | Y187: =IF(ISNUMBER(SEARCH($K$2,B187)),MAX($Y$4:Y186)+1,0) -> 183 | Z187: Costais Bogearraí Cuntasaíochta / Bogearraí Párolla | AB187: =IFERROR(VLOOKUP(ROWS($AB$5:AB187),$Y$5:$Z$199,2,0),"") -> Costais Bogearraí Cuntasaíochta / Bogearraí Párolla
A188: 6750 | B188: Tabhartais do Charthanais | C188: Caiteachas | D188: Riarachán | E188: Y | F188: ='Tuairiscí Miosúla Ioncam & Cait'!O195 -> 0 | J188: 0 | L188: DJ | Y188: =IF(ISNUMBER(SEARCH($K$2,B188)),MAX($Y$4:Y187)+1,0) -> 184 | Z188: Tabhartais do Charthanais | AB188: =IFERROR(VLOOKUP(ROWS($AB$5:AB188),$Y$5:$Z$199,2,0),"") -> Tabhartais do Charthanais
A189: 6755 | B189: Costas Leighis agus Garchabhrach | C189: Caiteachas | D189: Riarachán | E189: Y | F189: ='Tuairiscí Miosúla Ioncam & Cait'!O196 -> 0 | J189: 0 | L189: DK | Y189: =IF(ISNUMBER(SEARCH($K$2,B189)),MAX($Y$4:Y188)+1,0) -> 185 | Z189: Costas Leighis agus Garchabhrach | AB189: =IFERROR(VLOOKUP(ROWS($AB$5:AB189),$Y$5:$Z$199,2,0),"") -> Costas Leighis agus Garchabhrach
A190: 6780 | B190: Costais an tSeomra Foirne | C190: Caiteachas | D190: Riarachán | E190: Y | F190: ='Tuairiscí Miosúla Ioncam & Cait'!O197 -> 0 | J190: 0 | L190: DL | Y190: =IF(ISNUMBER(SEARCH($K$2,B190)),MAX($Y$4:Y189)+1,0) -> 186 | Z190: Costais an tSeomra Foirne | AB190: =IFERROR(VLOOKUP(ROWS($AB$5:AB190),$Y$5:$Z$199,2,0),"") -> Costais an tSeomra Foirne
A191: 6800 | B191: Costas Fáilteachais | C191: Caiteachas | D191: Riarachán | E191: Y | F191: ='Tuairiscí Miosúla Ioncam & Cait'!O198 -> 0 | J191: 0 | L191: DM | Y191: =IF(ISNUMBER(SEARCH($K$2,B191)),MAX($Y$4:Y190)+1,0) -> 187 | Z191: Costas Fáilteachais | AB191: =IFERROR(VLOOKUP(ROWS($AB$5:AB191),$Y$5:$Z$199,2,0),"") -> Costas Fáilteachais
A192: 6830 | B192: Costas Siopa Milseán | C192: Caiteachas | D192: Riarachán | E192: Y | F192: ='Tuairiscí Miosúla Ioncam & Cait'!O199 -> 0 | J192: 0 | L192: DN | Y192: =IF(ISNUMBER(SEARCH($K$2,B192)),MAX($Y$4:Y191)+1,0) -> 188 | Z192: Costas Siopa Milseán | AB192: =IFERROR(VLOOKUP(ROWS($AB$5:AB192),$Y$5:$Z$199,2,0),"") -> Costas Siopa Milseán
A193: 6900 | B193: Costais Riaracháin Eile | C193: Caiteachas | D193: Riarachán | E193: Y | F193: ='Tuairiscí Miosúla Ioncam & Cait'!O200 -> 0 | J193: 0 | L193: DO | Y193: =IF(ISNUMBER(SEARCH($K$2,B193)),MAX($Y$4:Y192)+1,0) -> 189 | Z193: Costais Riaracháin Eile | AB193: =IFERROR(VLOOKUP(ROWS($AB$5:AB193),$Y$5:$Z$199,2,0),"") -> Costais Riaracháin Eile
A194: 7300 | B194: Costais Léasaithe | C194: Caiteachas | D194: Airgeadais | E194: Y | F194: ='Tuairiscí Miosúla Ioncam & Cait'!O201 -> 0 | J194: 0 | L194: DP | Y194: =IF(ISNUMBER(SEARCH($K$2,B194)),MAX($Y$4:Y193)+1,0) -> 190 | Z194: Costais Léasaithe | AB194: =IFERROR(VLOOKUP(ROWS($AB$5:AB194),$Y$5:$Z$199,2,0),"") -> Costais Léasaithe
A195: 7320 | B195: Costas Táillí Iasachta | C195: Caiteachas | D195: Airgeadais | E195: Y | F195: ='Tuairiscí Miosúla Ioncam & Cait'!O202 -> 0 | J195: 0 | L195: DQ | Y195: =IF(ISNUMBER(SEARCH($K$2,B195)),MAX($Y$4:Y194)+1,0) -> 191 | Z195: Costas Táillí Iasachta | AB195: =IFERROR(VLOOKUP(ROWS($AB$5:AB195),$Y$5:$Z$199,2,0),"") -> Costas Táillí Iasachta
A196: 7400 | B196: Costas Úis Bainc | C196: Caiteachas | D196: Airgeadais | E196: Y | F196: ='Tuairiscí Miosúla Ioncam & Cait'!O203 -> 0 | J196: 0 | L196: DR | Y196: =IF(ISNUMBER(SEARCH($K$2,B196)),MAX($Y$4:Y195)+1,0) -> 192 | Z196: Costas Úis Bainc | AB196: =IFERROR(VLOOKUP(ROWS($AB$5:AB196),$Y$5:$Z$199,2,0),"") -> Costas Úis Bainc
A197: 7450 | B197: Costas Táillí Bainc | C197: Caiteachas | D197: Airgeadais | E197: Y | F197: ='Tuairiscí Miosúla Ioncam & Cait'!O204 -> 0 | J197: 0 | L197: DS | Y197: =IF(ISNUMBER(SEARCH($K$2,B197)),MAX($Y$4:Y196)+1,0) -> 193 | Z197: Costas Táillí Bainc | AB197: =IFERROR(VLOOKUP(ROWS($AB$5:AB197),$Y$5:$Z$199,2,0),"") -> Costas Táillí Bainc
A198: 7800 | B198: Costais In-Aisíoctha | C198: Caiteachas | D198: Airgeadais | E198: Y | F198: ='Tuairiscí Miosúla Ioncam & Cait'!O205 -> 0 | J198: 0 | L198: DT | Y198: =IF(ISNUMBER(SEARCH($K$2,B198)),MAX($Y$4:Y197)+1,0) -> 194 | Z198: Costais In-Aisíoctha | AB198: =IFERROR(VLOOKUP(ROWS($AB$5:AB198),$Y$5:$Z$199,2,0),"") -> Costais In-Aisíoctha
A199: 7850 | B199: Lascainí Faighte | C199: Caiteachas | D199: Airgeadais | E199: Y | F199: ='Tuairiscí Miosúla Ioncam & Cait'!O206 -> 0 | J199: 0 | L199: DU | Y199: =IF(ISNUMBER(SEARCH($K$2,B199)),MAX($Y$4:Y198)+1,0) -> 195 | Z199: Lascainí Faighte | AB199: =IFERROR(VLOOKUP(ROWS($AB$5:AB199),$Y$5:$Z$199,2,0),"") -> Lascainí Faighte
A200: 8000 | B200: Dímheas Bliantúil: Foirgnimh | C200: Caiteachas | D200: Dímheas | J200: =F200+G200+H200+I200 -> 0 | AB200: =IFERROR(VLOOKUP(ROWS($AB$5:AB200),$Y$5:$Z$199,2,0),"") -> 
... 124 more rows

Sheet Tuairiscí Miosúla Ioncam & Cait
B1: An Príomh-Roghchlár | C1: Ioncam agus Caiteachas | E1: Caipiteal agus Cúlchistí
B3: =Treoracha!G4 -> Cuir Isteach Anseo É | K3: Ioncam Míosúil | M3: Caiteachas Míosúíl | O3: Caipiteal & Cúlchistí Míosúla
B4: Eolas Bord Bainistíochta Amháin
B5: TUAIRISC MHÍOSÚIL IONCAIM AGUS CAITEACHAIS NA SCOILE | K5: Meán Fomhair | M5: Meán Fomhair | O5: Meán Fomhair
B7: IONCAM SCOILE | C7: Meán Fomhair | D7: Deireadh Fómhair | E7: Samhain | F7: Nollaig | G7: Eanair | H7: Feabhra | I7: Márta | J7: Aibreán | K7: Bealtaine | L7: Meitheamh | M7: Iúil | N7: Lúnasa | O7: Iomlán | R7: IONCAM MÍOSÚIL NA SCOILE | S7: =K5 -> Meán Fomhair | T7: Iomlán
B8: Buiséad Caipitíochta/Neamhphá | C8: ='Leathnach Achoimre Bainc'!$C$5 -> 0 | D8: ='Leathnach Achoimre Bainc'!$C$6 -> 0 | E8: ='Leathnach Achoimre Bainc'!$C$7 -> 0 | F8: ='Leathnach Achoimre Bainc'!$C$8 -> 0 | G8: ='Leathnach Achoimre Bainc'!$C$9 -> 0 | H8: ='Leathnach Achoimre Bainc'!$C$10 -> 0 | I8: ='Leathnach Achoimre Bainc'!$C$11 -> 0 | J8: ='Leathnach Achoimre Bainc'!$C$12 -> 0 | K8: ='Leathnach Achoimre Bainc'!$C$13 -> 0 | L8: ='Leathnach Achoimre Bainc'!$C$14 -> 0 | M8: ='Leathnach Achoimre Bainc'!$C$15 -> 0 | N8: ='Leathnach Achoimre Bainc'!$C$16 -> 0 | O8: =SUM(C8:N8) -> 0 | Q8: =IF(COA!$E$5="Y","Show","Hide") -> Show | R8: Buiséad Caipitíochta/Neamhphá | S8: =INDEX($C$8:$O$85,MATCH(R8,$B$8:$B$85,0),MATCH($S$7,$C$7:$O$7,0)) -> 0 | T8: =O8 -> 0
B9: Deontas DEIS | C9: ='Leathnach Achoimre Bainc'!$D$5 -> 0 | D9: ='Leathnach Achoimre Bainc'!$D$6 -> 0 | E9: ='Leathnach Achoimre Bainc'!$D$7 -> 0 | F9: ='Leathnach Achoimre Bainc'!$D$8 -> 0 | G9: ='Leathnach Achoimre Bainc'!$D$9 -> 0 | H9: ='Leathnach Achoimre Bainc'!$D$10 -> 0 | I9: ='Leathnach Achoimre Bainc'!$D$11 -> 0 | J9: ='Leathnach Achoimre Bainc'!$D$12 -> 0 | K9: ='Leathnach Achoimre Bainc'!$D$13 -> 0 | L9: ='Leathnach Achoimre Bainc'!$D$14 -> 0 | M9: ='Leathnach Achoimre Bainc'!$D$15 -> 0 | N9: ='Leathnach Achoimre Bainc'!$D$16 -> 0 | O9: =SUM(C9:N9) -> 0 | Q9: =IF(COA!$E$6="Y","Show","Hide") -> Show | R9: Deontas DEIS | S9: =INDEX($C$8:$O$85,MATCH(R9,$B$8:$B$85,0),MATCH($S$7,$C$7:$O$7,0)) -> 0 | T9: =O9 -> 0
B10: Deontas Scéim luath-thosaithe le haghaidh Ábh/Tre/For Tuis | C10: ='Leathnach Achoimre Bainc'!$E$5 -> 0 | D10: ='Leathnach Achoimre Bainc'!$E$6 -> 0 | E10: ='Leathnach Achoimre Bainc'!$E$7 -> 0 | F10: ='Leathnach Achoimre Bainc'!$E$8 -> 0 | G10: ='Leathnach Achoimre Bainc'!$E$9 -> 0 | H10: ='Leathnach Achoimre Bainc'!$E$10 -> 0 | I10: ='Leathnach Achoimre Bainc'!$E$11 -> 0 | J10: ='Leathnach Achoimre Bainc'!$E$12 -> 0 | K10: ='Leathnach Achoimre Bainc'!$E$13 -> 0 | L10: ='Leathnach Achoimre Bainc'!$E$14 -> 0 | M10: ='Leathnach Achoimre Bainc'!$E$15 -> 0 | N10: ='Leathnach Achoimre Bainc'!$E$16 -> 0 | O10: 0 | Q10: =IF(COA!$E$7="Y","Show","Hide") -> Show | R10: Deontas Scéim luath-thosaithe le haghaidh Ábh/Tre/For Tuis | S10: 0 | T10: 0
B11: Scéim luath-thosaithe Caipitíocht | C11: ='Leathnach Achoimre Bainc'!$F$5 -> 0 | D11: ='Leathnach Achoimre Bainc'!$F$6 -> 0 | E11: ='Leathnach Achoimre Bainc'!$F$7 -> 0 | F11: ='Leathnach Achoimre Bainc'!$F$8 -> 0 | G11: ='Leathnach Achoimre Bainc'!$F$9 -> 0 | H11: ='Leathnach Achoimre Bainc'!$F$10 -> 0 | I11: ='Leathnach Achoimre Bainc'!$F$11 -> 0 | J11: ='Leathnach Achoimre Bainc'!$F$12 -> 0 | K11: ='Leathnach Achoimre Bainc'!$F$13 -> 0 | L11: ='Leathnach Achoimre Bainc'!$F$14 -> 0 | M11: ='Leathnach Achoimre Bainc'!$F$15 -> 0 | N11: ='Leathnach Achoimre Bainc'!$F$16 -> 0 | O11: 0 | Q11: =IF(COA!$E$8="Y","Show","Hide") -> Show | R11: Scéim luath-thosaithe Caipitíocht | S11: 0 | T11: 0
B12: Buiséad Pá Neamhtheagaisc | C12: ='Leathnach Achoimre Bainc'!$G$5 -> 0 | D12: ='Leathnach Achoimre Bainc'!$G$6 -> 0 | E12: ='Leathnach Achoimre Bainc'!$G$7 -> 0 | F12: ='Leathnach Achoimre Bainc'!$G$8 -> 0 | G12: ='Leathnach Achoimre Bainc'!$G$9 -> 0 | H12: ='Leathnach Achoimre Bainc'!$G$10 -> 0 | I12: ='Leathnach Achoimre Bainc'!$G$11 -> 0 | J12: ='Leathnach Achoimre Bainc'!$G$12 -> 0 | K12: ='Leathnach Achoimre Bainc'!$G$13 -> 0 | L12: ='Leathnach Achoimre Bainc'!$G$14 -> 0 | M12: ='Leathnach Achoimre Bainc'!$G$15 -> 0 | N12: ='Leathnach Achoimre Bainc'!$G$16 -> 0 | O12: =SUM(C12:N12) -> 0 | Q12: =IF(COA!$E$9="Y","Show","Hide") -> Show | R12: Buiséad Pá Neamhtheagaisc | S12: 0 | T12: 0
B13: Deontas do Threalamh Oideachais Speisialta | C13: ='Leathnach Achoimre Bainc'!$H$5 -> 0 | D13: ='Leathnach Achoimre Bainc'!$H$6 -> 0 | E13: ='Leathnach Achoimre Bainc'!$H$7 -> 0 | F13: ='Leathnach Achoimre Bainc'!$H$8 -> 0 | G13: ='Leathnach Achoimre Bainc'!$H$9 -> 0 | H13: ='Leathnach Achoimre Bainc'!$H$10 -> 0 | I13: ='Leathnach Achoimre Bainc'!$H$11 -> 0 | J13: ='Leathnach Achoimre Bainc'!$H$12 -> 0 | K13: ='Leathnach Achoimre Bainc'!$H$13 -> 0 | L13: ='Leathnach Achoimre Bainc'!$H$14 -> 0 | M13: ='Leathnach Achoimre Bainc'!$H$15 -> 0 | N13: ='Leathnach Achoimre Bainc'!$H$16 -> 0 | O13: 0 | Q13: =IF(COA!$E$10="Y","Show","Hide") -> Show | R13: Deontas do Threalamh Oideachais Speisialta | S13: 0 | T13: 0
B14: Ioncam ó Dheontas na Leabhar | C14: ='Leathnach Achoimre Bainc'!$I$5 -> 0 | D14: ='Leathnach Achoimre Bainc'!$I$6 -> 0 | E14: ='Leathnach Achoimre Bainc'!$I$7 -> 0 | F14: ='Leathnach Achoimre Bainc'!$I$8 -> 0 | G14: ='Leathnach Achoimre Bainc'!$I$9 -> 0 | H14: ='Leathnach Achoimre Bainc'!$I$10 -> 0 | I14: ='Leathnach Achoimre Bainc'!$I$11 -> 0 | J14: ='Leathnach Achoimre Bainc'!$I$12 -> 0 | K14: ='Leathnach Achoimre Bainc'!$I$13 -> 0 | L14: ='Leathnach Achoimre Bainc'!$I$14 -> 0 | M14: ='Leathnach Achoimre Bainc'!$I$15 -> 0 | N14: ='Leathnach Achoimre Bainc'!$I$16 -> 0 | O14: 0 | Q14: =IF(COA!$E$11="Y","Show","Hide") -> Show | R14: Ioncam ó Dheontas na Leabhar | S14: 0 | T14: 0
B15: Deontas Caipitil do Leabhair Leabharlainne Scoile | C15: ='Leathnach Achoimre Bainc'!$J$5 -> 0 | D15: ='Leathnach Achoimre Bainc'!$J$6 -> 0 | E15: ='Leathnach Achoimre Bainc'!$J$7 -> 0 | F15: ='Leathnach Achoimre Bainc'!$J$8 -> 0 | G15: ='Leathnach Achoimre Bainc'!$J$9 -> 0 | H15: ='Leathnach Achoimre Bainc'!$J$10 -> 0 | I15: ='Leathnach Achoimre Bainc'!$J$11 -> 0 | J15: ='Leathnach Achoimre Bainc'!$J$12 -> 0 | K15: ='Leathnach Achoimre Bainc'!$J$13 -> 0 | L15: ='Leathnach Achoimre Bainc'!$J$14 -> 0 | M15: ='Leathnach Achoimre Bainc'!$J$15 -> 0 | N15: ='Leathnach Achoimre Bainc'!$J$16 -> 0 | O15: 0 | Q15: =IF(COA!$E$12="Y","Show","Hide") -> Show | R15: Deontas Caipitil do Leabhair Leabharlainne Scoile | S15: 0 | T15: 0
B16: Deontas na Scéime Leabhar ar Cíos | C16: ='Leathnach Achoimre Bainc'!$K$5 -> 0 | D16: ='Leathnach Achoimre Bainc'!$K$6 -> 0 | E16: ='Leathnach Achoimre Bainc'!$K$7 -> 0 | F16: ='Leathnach Achoimre Bainc'!$K$8 -> 0 | G16: ='Leathnach Achoimre Bainc'!$K$9 -> 0 | H16: ='Leathnach Achoimre Bainc'!$K$10 -> 0 | I16: ='Leathnach Achoimre Bainc'!$K$11 -> 0 | J16: ='Leathnach Achoimre Bainc'!$K$12 -> 0 | K16: ='Leathnach Achoimre Bainc'!$K$13 -> 0 | L16: ='Leathnach Achoimre Bainc'!$K$14 -> 0 | M16: ='Leathnach Achoimre Bainc'!$K$15 -> 0 | N16: ='Leathnach Achoimre Bainc'!$K$16 -> 0 | O16: 0 | Q16: =IF(COA!$E$13="Y","Show","Hide") -> Show | R16: Deontas na Scéime Leabhar ar Cíos | S16: 0 | T16: 0
B17: Deontas na nÁbhar Speisialta | C17: ='Leathnach Achoimre Bainc'!$L$5 -> 0 | D17: ='Leathnach Achoimre Bainc'!$L$6 -> 0 | E17: ='Leathnach Achoimre Bainc'!$L$7 -> 0 | F17: ='Leathnach Achoimre Bainc'!$L$8 -> 0 | G17: ='Leathnach Achoimre Bainc'!$L$9 -> 0 | H17: ='Leathnach Achoimre Bainc'!$L$10 -> 0 | I17: ='Leathnach Achoimre Bainc'!$L$11 -> 0 | J17: ='Leathnach Achoimre Bainc'!$L$12 -> 0 | K17: ='Leathnach Achoimre Bainc'!$L$13 -> 0 | L17: ='Leathnach Achoimre Bainc'!$L$14 -> 0 | M17: ='Leathnach Achoimre Bainc'!$L$15 -> 0 | N17: ='Leathnach Achoimre Bainc'!$L$16 -> 0 | O17: 0 | Q17: =IF(COA!$E$14="Y","Show","Hide") -> Show | R17: Deontas na nÁbhar Speisialta | S17: 0 | T17: 0
B18: Deontas scoile Gaeilge agus Dátheangach | C18: ='Leathnach Achoimre Bainc'!$M$5 -> 0 | D18: ='Leathnach Achoimre Bainc'!$M$6 -> 0 | E18: ='Leathnach Achoimre Bainc'!$M$7 -> 0 | F18: ='Leathnach Achoimre Bainc'!$M$8 -> 0 | G18: ='Leathnach Achoimre Bainc'!$M$9 -> 0 | H18: ='Leathnach Achoimre Bainc'!$M$10 -> 0 | I18: ='Leathnach Achoimre Bainc'!$M$11 -> 0 | J18: ='Leathnach Achoimre Bainc'!$M$12 -> 0 | K18: ='Leathnach Achoimre Bainc'!$M$13 -> 0 | L18: ='Leathnach Achoimre Bainc'!$M$14 -> 0 | M18: ='Leathnach Achoimre Bainc'!$M$15 -> 0 | N18: ='Leathnach Achoimre Bainc'!$M$16 -> 0 | O18: 0 | Q18: =IF(COA!$E$15="Y","Show","Hide") -> Show | R18: Deontas scoile Gaeilge agus Dátheangach | S18: 0 | T18: 0
B19: Deontas Chlár Scoile an Teastais Shóisearaigh | C19: ='Leathnach Achoimre Bainc'!$N$5 -> 0 | D19: ='Leathnach Achoimre Bainc'!$N$6 -> 0 | E19: ='Leathnach Achoimre Bainc'!$N$7 -> 0 | F19: ='Leathnach Achoimre Bainc'!$N$8 -> 0 | G19: ='Leathnach Achoimre Bainc'!$N$9 -> 0 | H19: ='Leathnach Achoimre Bainc'!$N$10 -> 0 | I19: ='Leathnach Achoimre Bainc'!$N$11 -> 0 | J19: ='Leathnach Achoimre Bainc'!$N$12 -> 0 | K19: ='Leathnach Achoimre Bainc'!$N$13 -> 0 | L19: ='Leathnach Achoimre Bainc'!$N$14 -> 0 | M19: ='Leathnach Achoimre Bainc'!$N$15 -> 0 | N19: ='Leathnach Achoimre Bainc'!$N$16 -> 0 | O19: 0 | Q19: =IF(COA!$E$16="Y","Show","Hide") -> Show | R19: Deontas Chlár Scoile an Teastais Shóisearaigh | S19: 0 | T19: 0
B20: Deontas Idirbhliana | C20: ='Leathnach Achoimre Bainc'!$O$5 -> 0 | D20: ='Leathnach Achoimre Bainc'!$O$6 -> 0 | E20: ='Leathnach Achoimre Bainc'!$O$7 -> 0 | F20: ='Leathnach Achoimre Bainc'!$O$8 -> 0 | G20: ='Leathnach Achoimre Bainc'!$O$9 -> 0 | H20: ='Leathnach Achoimre Bainc'!$O$10 -> 0 | I20: ='Leathnach Achoimre Bainc'!$O$11 -> 0 | J20: ='Leathnach Achoimre Bainc'!$O$12 -> 0 | K20: ='Leathnach Achoimre Bainc'!$O$13 -> 0 | L20: ='Leathnach Achoimre Bainc'!$O$14 -> 0 | M20: ='Leathnach Achoimre Bainc'!$O$15 -> 0 | N20: ='Leathnach Achoimre Bainc'!$O$16 -> 0 | O20: 0 | Q20: =IF(COA!$E$17="Y","Show","Hide") -> Show | R20: Deontas Idirbhliana | S20: 0 | T20: 0
B21: Deontas na hArdteistiméireachta Feidhmí | C21: ='Leathnach Achoimre Bainc'!$P$5 -> 0 | D21: ='Leathnach Achoimre Bainc'!$P$6 -> 0 | E21: ='Leathnach Achoimre Bainc'!$P$7 -> 0 | F21: ='Leathnach Achoimre Bainc'!$P$8 -> 0 | G21: ='Leathnach Achoimre Bainc'!$P$9 -> 0 | H21: ='Leathnach Achoimre Bainc'!$P$10 -> 0 | I21: ='Leathnach Achoimre Bainc'!$P$11 -> 0 | J21: ='Leathnach Achoimre Bainc'!$P$12 -> 0 | K21: ='Leathnach Achoimre Bainc'!$P$13 -> 0 | L21: ='Leathnach Achoimre Bainc'!$P$14 -> 0 | M21: ='Leathnach Achoimre Bainc'!$P$15 -> 0 | N21: ='Leathnach Achoimre Bainc'!$P$16 -> 0 | O21: 0 | Q21: =IF(COA!$E$18="Y","Show","Hide") -> Show | R21: Deontas na hArdteistiméireachta Feidhmí | S21: 0 | T21: 0
B22: Amúchadh Deontas Trealamh RO | C22: ='Leathnach Achoimre Bainc'!$Q$5 -> 0 | D22: ='Leathnach Achoimre Bainc'!$Q$6 -> 0 | E22: ='Leathnach Achoimre Bainc'!$Q$7 -> 0 | F22: ='Leathnach Achoimre Bainc'!$Q$8 -> 0 | G22: ='Leathnach Achoimre Bainc'!$Q$9 -> 0 | H22: ='Leathnach Achoimre Bainc'!$Q$10 -> 0 | I22: ='Leathnach Achoimre Bainc'!$Q$11 -> 0 | J22: ='Leathnach Achoimre Bainc'!$Q$12 -> 0 | K22: ='Leathnach Achoimre Bainc'!$Q$13 -> 0 | L22: ='Leathnach Achoimre Bainc'!$Q$14 -> 0 | M22: ='Leathnach Achoimre Bainc'!$Q$15 -> 0 | N22: ='Leathnach Achoimre Bainc'!$Q$16 -> 0 | O22: 0 | Q22: =IF(COA!$E$19="Y","Show","Hide") -> Show | R22: Amúchadh Deontas Trealamh RO | S22: 0 | T22: 0
B23: Amúchadh Deontas TFC RO | C23: ='Leathnach Achoimre Bainc'!$R$5 -> 0 | D23: ='Leathnach Achoimre Bainc'!$R$6 -> 0 | E23: ='Leathnach Achoimre Bainc'!$R$7 -> 0 | F23: ='Leathnach Achoimre Bainc'!$R$8 -> 0 | G23: ='Leathnach Achoimre Bainc'!$R$9 -> 0 | H23: ='Leathnach Achoimre Bainc'!$R$10 -> 0 | I23: ='Leathnach Achoimre Bainc'!$R$11 -> 0 | J23: ='Leathnach Achoimre Bainc'!$R$12 -> 0 | K23: ='Leathnach Achoimre Bainc'!$R$13 -> 0 | L23: ='Leathnach Achoimre Bainc'!$R$14 -> 0 | M23: ='Leathnach Achoimre Bainc'!$R$15 -> 0 | N23: ='Leathnach Achoimre Bainc'!$R$16 -> 0 | O23: 0 | Q23: =IF(COA!$E$20="Y","Show","Hide") -> Show | R23: Amúchadh Deontas TFC RO | S23: 0 | T23: 0
B24: Amúchadh Deontas Eile RO | C24: ='Leathnach Achoimre Bainc'!$S$5 -> 0 | D24: ='Leathnach Achoimre Bainc'!$S$6 -> 0 | E24: ='Leathnach Achoimre Bainc'!$S$7 -> 0 | F24: ='Leathnach Achoimre Bainc'!$S$8 -> 0 | G24: ='Leathnach Achoimre Bainc'!$S$9 -> 0 | H24: ='Leathnach Achoimre Bainc'!$S$10 -> 0 | I24: ='Leathnach Achoimre Bainc'!$S$11 -> 0 | J24: ='Leathnach Achoimre Bainc'!$S$12 -> 0 | K24: ='Leathnach Achoimre Bainc'!$S$13 -> 0 | L24: ='Leathnach Achoimre Bainc'!$S$14 -> 0 | M24: ='Leathnach Achoimre Bainc'!$S$15 -> 0 | N24: ='Leathnach Achoimre Bainc'!$S$16 -> 0 | O24: 0 | Q24: =IF(COA!$E$21="Y","Show","Hide") -> Show | R24: Amúchadh Deontas Eile RO | S24: 0 | T24: 0
B25: Deontas TFC Neamhchaipitiúil | C25: ='Leathnach Achoimre Bainc'!$T$5 -> 0 | D25: ='Leathnach Achoimre Bainc'!$T$6 -> 0 | E25: ='Leathnach Achoimre Bainc'!$T$7 -> 0 | F25: ='Leathnach Achoimre Bainc'!$T$8 -> 0 | G25: ='Leathnach Achoimre Bainc'!$T$9 -> 0 | H25: ='Leathnach Achoimre Bainc'!$T$10 -> 0 | I25: ='Leathnach Achoimre Bainc'!$T$11 -> 0 | J25: ='Leathnach Achoimre Bainc'!$T$12 -> 0 | K25: ='Leathnach Achoimre Bainc'!$T$13 -> 0 | L25: ='Leathnach Achoimre Bainc'!$T$14 -> 0 | M25: ='Leathnach Achoimre Bainc'!$T$15 -> 0 | N25: ='Leathnach Achoimre Bainc'!$T$16 -> 0 | O25: 0 | Q25: =IF(COA!$E$22="Y","Show","Hide") -> Show | R25: Deontas TFC Neamhchaipitiúil | S25: 0 | T25: 0
B26: Ioncam ón gCiste Barr Feabhais Scoileanna | C26: ='Leathnach Achoimre Bainc'!$U$5 -> 0 | D26: ='Leathnach Achoimre Bainc'!$U$6 -> 0 | E26: ='Leathnach Achoimre Bainc'!$U$7 -> 0 | F26: ='Leathnach Achoimre Bainc'!$U$8 -> 0 | G26: ='Leathnach Achoimre Bainc'!$U$9 -> 0 | H26: ='Leathnach Achoimre Bainc'!$U$10 -> 0 | I26: ='Leathnach Achoimre Bainc'!$U$11 -> 0 | J26: ='Leathnach Achoimre Bainc'!$U$12 -> 0 | K26: ='Leathnach Achoimre Bainc'!$U$13 -> 0 | L26: ='Leathnach Achoimre Bainc'!$U$14 -> 0 | M26: ='Leathnach Achoimre Bainc'!$U$15 -> 0 | N26: ='Leathnach Achoimre Bainc'!$U$16 -> 0 | O26: 0 | Q26: =IF(COA!$E$23="Y","Show","Hide") -> Show | R26: Ioncam ón gCiste Barr Feabhais Scoileanna | S26: 0 | T26: 0
B27: Deontas Mionoibreacha Neamhchaipitiúla | C27: ='Leathnach Achoimre Bainc'!$V$5 -> 0 | D27: ='Leathnach Achoimre Bainc'!$V$6 -> 0 | E27: ='Leathnach Achoimre Bainc'!$V$7 -> 0 | F27: ='Leathnach Achoimre Bainc'!$V$8 -> 0 | G27: ='Leathnach Achoimre Bainc'!$V$9 -> 0 | H27: ='Leathnach Achoimre Bainc'!$V$10 -> 0 | I27: ='Leathnach Achoimre Bainc'!$V$11 -> 0 | J27: ='Leathnach Achoimre Bainc'!$V$12 -> 0 | K27: ='Leathnach Achoimre Bainc'!$V$13 -> 0 | L27: ='Leathnach Achoimre Bainc'!$V$14 -> 0 | M27: ='Leathnach Achoimre Bainc'!$V$15 -> 0 | N27: ='Leathnach Achoimre Bainc'!$V$16 -> 0 | O27: 0 | Q27: =IF(COA!$E$24="Y","Show","Hide") -> Show | R27: Deontas Mionoibreacha Neamhchaipitiúla | S27: 0 | T27: 0
B28: Ioncam ón Deontas Cóiríochta Sealadaí | C28: ='Leathnach Achoimre Bainc'!$W$5 -> 0 | D28: ='Leathnach Achoimre Bainc'!$W$6 -> 0 | E28: ='Leathnach Achoimre Bainc'!$W$7 -> 0 | F28: ='Leathnach Achoimre Bainc'!$W$8 -> 0 | G28: ='Leathnach Achoimre Bainc'!$W$9 -> 0 | H28: ='Leathnach Achoimre Bainc'!$W$10 -> 0 | I28: ='Leathnach Achoimre Bainc'!$W$11 -> 0 | J28: ='Leathnach Achoimre Bainc'!$W$12 -> 0 | K28: ='Leathnach Achoimre Bainc'!$W$13 -> 0 | L28: ='Leathnach Achoimre Bainc'!$W$14 -> 0 | M28: ='Leathnach Achoimre Bainc'!$W$15 -> 0 | N28: ='Leathnach Achoimre Bainc'!$W$16 -> 0 | O28: 0 | Q28: =IF(COA!$E$25="Y","Show","Hide") -> Show | R28: Ioncam ón Deontas Cóiríochta Sealadaí | S28: 0 | T28: 0
B29: Deontas i leith Mionoibreacha COVID | C29: ='Leathnach Achoimre Bainc'!$X$5 -> 0 | D29: ='Leathnach Achoimre Bainc'!$X$6 -> 0 | E29: ='Leathnach Achoimre Bainc'!$X$7 -> 0 | F29: ='Leathnach Achoimre Bainc'!$X$8 -> 0 | G29: ='Leathnach Achoimre Bainc'!$X$9 -> 0 | H29: ='Leathnach Achoimre Bainc'!$X$10 -> 0 | I29: ='Leathnach Achoimre Bainc'!$X$11 -> 0 | J29: ='Leathnach Achoimre Bainc'!$X$12 -> 0 | K29: ='Leathnach Achoimre Bainc'!$X$13 -> 0 | L29: ='Leathnach Achoimre Bainc'!$X$14 -> 0 | M29: ='Leathnach Achoimre Bainc'!$X$15 -> 0 | N29: ='Leathnach Achoimre Bainc'!$X$16 -> 0 | O29: 0 | Q29: =IF(COA!$E$26="Y","Show","Hide") -> Show | R29: Deontas i leith Mionoibreacha COVID | S29: 0 | T29: 0
B30: Deontas Chúntóir COVID | C30: ='Leathnach Achoimre Bainc'!$Y$5 -> 0 | D30: ='Leathnach Achoimre Bainc'!$Y$6 -> 0 | E30: ='Leathnach Achoimre Bainc'!$Y$7 -> 0 | F30: ='Leathnach Achoimre Bainc'!$Y$8 -> 0 | G30: ='Leathnach Achoimre Bainc'!$Y$9 -> 0 | H30: ='Leathnach Achoimre Bainc'!$Y$10 -> 0 | I30: ='Leathnach Achoimre Bainc'!$Y$11 -> 0 | J30: ='Leathnach Achoimre Bainc'!$Y$12 -> 0 | K30: ='Leathnach Achoimre Bainc'!$Y$13 -> 0 | L30: ='Leathnach Achoimre Bainc'!$Y$14 -> 0 | M30: ='Leathnach Achoimre Bainc'!$Y$15 -> 0 | N30: ='Leathnach Achoimre Bainc'!$Y$16 -> 0 | O30: 0 | Q30: =IF(COA!$E$27="Y","Show","Hide") -> Show | R30: Deontas Chúntóir COVID | S30: 0 | T30: 0
B31: Deontas feabhsaithe maoirseachta Covid | C31: ='Leathnach Achoimre Bainc'!$Z$5 -> 0 | D31: ='Leathnach Achoimre Bainc'!$Z$6 -> 0 | E31: ='Leathnach Achoimre Bainc'!$Z$7 -> 0 | F31: ='Leathnach Achoimre Bainc'!$Z$8 -> 0 | G31: ='Leathnach Achoimre Bainc'!$Z$9 -> 0 | H31: ='Leathnach Achoimre Bainc'!$Z$10 -> 0 | I31: ='Leathnach Achoimre Bainc'!$Z$11 -> 0 | J31: ='Leathnach Achoimre Bainc'!$Z$12 -> 0 | K31: ='Leathnach Achoimre Bainc'!$Z$13 -> 0 | L31: ='Leathnach Achoimre Bainc'!$Z$14 -> 0 | M31: ='Leathnach Achoimre Bainc'!$Z$15 -> 0 | N31: ='Leathnach Achoimre Bainc'!$Z$16 -> 0 | O31: 0 | Q31: =IF(COA!$E$28="Y","Show","Hide") -> Show | R31: Deontas feabhsaithe maoirseachta Covid | S31: 0 | T31: 0
B32: Maoiniú COVID le haghaidh Uaireanta Feighlí Ionaid | C32: ='Leathnach Achoimre Bainc'!$AA$5 -> 0 | D32: ='Leathnach Achoimre Bainc'!$AA$6 -> 0 | E32: ='Leathnach Achoimre Bainc'!$AA$7 -> 0 | F32: ='Leathnach Achoimre Bainc'!$AA$8 -> 0 | G32: ='Leathnach Achoimre Bainc'!$AA$9 -> 0 | H32: ='Leathnach Achoimre Bainc'!$AA$10 -> 0 | I32: ='Leathnach Achoimre Bainc'!$AA$11 -> 0 | J32: ='Leathnach Achoimre Bainc'!$AA$12 -> 0 | K32: ='Leathnach Achoimre Bainc'!$AA$13 -> 0 | L32: ='Leathnach Achoimre Bainc'!$AA$14 -> 0 | M32: ='Leathnach Achoimre Bainc'!$AA$15 -> 0 | N32: ='Leathnach Achoimre Bainc'!$AA$16 -> 0 | O32: 0 | Q32: =IF(COA!$E$29="Y","Show","Hide") -> Show | R32: Maoiniú COVID le haghaidh Uaireanta Feighlí Ionaid | S32: 0 | T32: 0
B33: Maoiniú COVID le haghaidh Uaireanta Rúnaí Ionaid | C33: ='Leathnach Achoimre Bainc'!$AB$5 -> 0 | D33: ='Leathnach Achoimre Bainc'!$AB$6 -> 0 | E33: ='Leathnach Achoimre Bainc'!$AB$7 -> 0 | F33: ='Leathnach Achoimre Bainc'!$AB$8 -> 0 | G33: ='Leathnach Achoimre Bainc'!$AB$9 -> 0 | H33: ='Leathnach Achoimre Bainc'!$AB$10 -> 0 | I33: ='Leathnach Achoimre Bainc'!$AB$11 -> 0 | J33: ='Leathnach Achoimre Bainc'!$AB$12 -> 0 | K33: ='Leathnach Achoimre Bainc'!$AB$13 -> 0 | L33: ='Leathnach Achoimre Bainc'!$AB$14 -> 0 | M33: ='Leathnach Achoimre Bainc'!$AB$15 -> 0 | N33: ='Leathnach Achoimre Bainc'!$AB$16 -> 0 | O33: 0 | Q33: =IF(COA!$E$30="Y","Show","Hide") -> Show | R33: Maoiniú COVID le haghaidh Uaireanta Rúnaí Ionaid | S33: 0 | T33: 0
B34: Maoiniú COVID le haghaidh Uaireanta Glantóra Ionaid | C34: ='Leathnach Achoimre Bainc'!$AC$5 -> 0 | D34: ='Leathnach Achoimre Bainc'!$AC$6 -> 0 | E34: ='Leathnach Achoimre Bainc'!$AC$7 -> 0 | F34: ='Leathnach Achoimre Bainc'!$AC$8 -> 0 | G34: ='Leathnach Achoimre Bainc'!$AC$9 -> 0 | H34: ='Leathnach Achoimre Bainc'!$AC$10 -> 0 | I34: ='Leathnach Achoimre Bainc'!$AC$11 -> 0 | J34: ='Leathnach Achoimre Bainc'!$AC$12 -> 0 | K34: ='Leathnach Achoimre Bainc'!$AC$13 -> 0 | L34: ='Leathnach Achoimre Bainc'!$AC$14 -> 0 | M34: ='Leathnach Achoimre Bainc'!$AC$15 -> 0 | N34: ='Leathnach Achoimre Bainc'!$AC$16 -> 0 | O34: 0 | Q34: =IF(COA!$E$31="Y","Show","Hide") -> Show | R34: Maoiniú COVID le haghaidh Uaireanta Glantóra Ionaid | S34: 0 | T34: 0
B35: Maoiniú COVID le haghaidh Uaireanta Tionlacaí Ionaid Bus | C35: ='Leathnach Achoimre Bainc'!$AD$5 -> 0 | D35: ='Leathnach Achoimre Bainc'!$AD$6 -> 0 | E35: ='Leathnach Achoimre Bainc'!$AD$7 -> 0 | F35: ='Leathnach Achoimre Bainc'!$AD$8 -> 0 | G35: ='Leathnach Achoimre Bainc'!$AD$9 -> 0 | H35: ='Leathnach Achoimre Bainc'!$AD$10 -> 0 | I35: ='Leathnach Achoimre Bainc'!$AD$11 -> 0 | J35: ='Leathnach Achoimre Bainc'!$AD$12 -> 0 | K35: ='Leathnach Achoimre Bainc'!$AD$13 -> 0 | L35: ='Leathnach Achoimre Bainc'!$AD$14 -> 0 | M35: ='Leathnach Achoimre Bainc'!$AD$15 -> 0 | N35: ='Leathnach Achoimre Bainc'!$AD$16 -> 0 | O35: 0 | Q35: =IF(COA!$E$32="Y","Show","Hide") -> Show | R35: Maoiniú COVID le haghaidh Uaireanta Tionlacaí Ionaid Bus | S35: 0 | T35: 0
B36: Caipitíocht COVID do Ghlantachán agus Deontas TCP | C36: ='Leathnach Achoimre Bainc'!$AE$5 -> 0 | D36: ='Leathnach Achoimre Bainc'!$AE$6 -> 0 | E36: ='Leathnach Achoimre Bainc'!$AE$7 -> 0 | F36: ='Leathnach Achoimre Bainc'!$AE$8 -> 0 | G36: ='Leathnach Achoimre Bainc'!$AE$9 -> 0 | H36: ='Leathnach Achoimre Bainc'!$AE$10 -> 0 | I36: ='Leathnach Achoimre Bainc'!$AE$8 -> 0 | J36: ='Leathnach Achoimre Bainc'!$AE$12 -> 0 | K36: ='Leathnach Achoimre Bainc'!$AE$13 -> 0 | L36: ='Leathnach Achoimre Bainc'!$AE$14 -> 0 | M36: ='Leathnach Achoimre Bainc'!$AE$15 -> 0 | N36: ='Leathnach Achoimre Bainc'!$AE$16 -> 0 | O36: 0 | Q36: =IF(COA!$E$33="Y","Show","Hide") -> Show | R36: Caipitíocht COVID do Ghlantachán agus Deontas TCP | S36: 0 | T36: 0
B37: Ioncam Deontais Neamhchaipitil Eile RO | C37: ='Leathnach Achoimre Bainc'!$AF$5 -> 0 | D37: ='Leathnach Achoimre Bainc'!$AF$6 -> 0 | E37: ='Leathnach Achoimre Bainc'!$AF$7 -> 0 | F37: ='Leathnach Achoimre Bainc'!$AF$8 -> 0 | G37: ='Leathnach Achoimre Bainc'!$AF$9 -> 0 | H37: ='Leathnach Achoimre Bainc'!$AF$10 -> 0 | I37: ='Leathnach Achoimre Bainc'!$AF$11 -> 0 | J37: ='Leathnach Achoimre Bainc'!$AF$12 -> 0 | K37: ='Leathnach Achoimre Bainc'!$AF$13 -> 0 | L37: ='Leathnach Achoimre Bainc'!$AF$14 -> 0 | M37: ='Leathnach Achoimre Bainc'!$AF$15 -> 0 | N37: ='Leathnach Achoimre Bainc'!$AF$16 -> 0 | O37: 0 | Q37: =IF(COA!$E$34="Y","Show","Hide") -> Show | R37: Ioncam Deontais Neamhchaipitil Eile RO | S37: 0 | T37: 0
B38: Deontas Trialacha Caighdeánaithe | C38: ='Leathnach Achoimre Bainc'!$AG$5 -> 0 | D38: ='Leathnach Achoimre Bainc'!$AG$6 -> 0 | E38: ='Leathnach Achoimre Bainc'!$AG$7 -> 0 | F38: ='Leathnach Achoimre Bainc'!$AG$8 -> 0 | G38: ='Leathnach Achoimre Bainc'!$AG$9 -> 0 | H38: ='Leathnach Achoimre Bainc'!$AG$10 -> 0 | I38: ='Leathnach Achoimre Bainc'!$AG$11 -> 0 | J38: ='Leathnach Achoimre Bainc'!$AG$12 -> 0 | K38: ='Leathnach Achoimre Bainc'!$AG$13 -> 0 | L38: ='Leathnach Achoimre Bainc'!$AG$14 -> 0 | M38: ='Leathnach Achoimre Bainc'!$AG$15 -> 0 | N38: ='Leathnach Achoimre Bainc'!$AG$16 -> 0 | O38: 0 | Q38: =IF(COA!$E$35="Y","Show","Hide") -> Show | R38: Deontas Trialacha Caighdeánaithe | S38: 0 | T38: 0
B39: Deontas Soláthair Samhraidh | C39: ='Leathnach Achoimre Bainc'!$AH$5 -> 0 | D39: ='Leathnach Achoimre Bainc'!$AH$6 -> 0 | E39: ='Leathnach Achoimre Bainc'!$AH$7 -> 0 | F39: ='Leathnach Achoimre Bainc'!$AH$8 -> 0 | G39: ='Leathnach Achoimre Bainc'!$AH$9 -> 0 | H39: ='Leathnach Achoimre Bainc'!$AH$10 -> 0 | I39: ='Leathnach Achoimre Bainc'!$AH$11 -> 0 | J39: ='Leathnach Achoimre Bainc'!$AH$12 -> 0 | K39: ='Leathnach Achoimre Bainc'!$AH$13 -> 0 | L39: ='Leathnach Achoimre Bainc'!$AH$14 -> 0 | M39: ='Leathnach Achoimre Bainc'!$AH$15 -> 0 | N39: ='Leathnach Achoimre Bainc'!$AH$16 -> 0 | O39: 0 | Q39: =IF(COA!$E$36="Y","Show","Hide") -> Show | R39: Deontas Soláthair Samhraidh | S39: 0 | T39: 0
B40: Deontas le haghaidh Tionlacaithe Bus | C40: ='Leathnach Achoimre Bainc'!$AI$5 -> 0 | D40: ='Leathnach Achoimre Bainc'!$AI$6 -> 0 | E40: ='Leathnach Achoimre Bainc'!$AI$7 -> 0 | F40: ='Leathnach Achoimre Bainc'!$AI$8 -> 0 | G40: ='Leathnach Achoimre Bainc'!$AI$9 -> 0 | H40: ='Leathnach Achoimre Bainc'!$AI$10 -> 0 | I40: ='Leathnach Achoimre Bainc'!$AI$11 -> 0 | J40: ='Leathnach Achoimre Bainc'!$AI$12 -> 0 | K40: ='Leathnach Achoimre Bainc'!$AI$13 -> 0 | L40: ='Leathnach Achoimre Bainc'!$AI$14 -> 0 | M40: ='Leathnach Achoimre Bainc'!$AI$15 -> 0 | N40: ='Leathnach Achoimre Bainc'!$AI$16 -> 0 | O40: 0 | Q40: =IF(COA!$E$37="Y","Show","Hide") -> Show | R40: Deontas le haghaidh Tionlacaithe Bus | S40: 0 | T40: 0
B41: Ioncam ón Roinn Leanaí agus Gnóthaí Óige | C41: ='Leathnach Achoimre Bainc'!$AJ$5 -> 0 | D41: ='Leathnach Achoimre Bainc'!$AJ$6 -> 0 | E41: ='Leathnach Achoimre Bainc'!$AJ$7 -> 0 | F41: ='Leathnach Achoimre Bainc'!$AJ$8 -> 0 | G41: ='Leathnach Achoimre Bainc'!$AJ$9 -> 0 | H41: ='Leathnach Achoimre Bainc'!$AJ$10 -> 0 | I41: ='Leathnach Achoimre Bainc'!$AJ$11 -> 0 | J41: ='Leathnach Achoimre Bainc'!$AJ$12 -> 0 | K41: ='Leathnach Achoimre Bainc'!$AJ$13 -> 0 | L41: ='Leathnach Achoimre Bainc'!$AJ$14 -> 0 | M41: ='Leathnach Achoimre Bainc'!$AJ$15 -> 0 | N41: ='Leathnach Achoimre Bainc'!$AJ$16 -> 0 | O41: 0 | Q41: =IF(COA!$E$38="Y","Show","Hide") -> Show | R41: Ioncam ón Roinn Leanaí agus Gnóthaí Óige | S41: 0 | T41: 0
B42: Deontas le haghaidh Béilí Scoile ó RGFCS | C42: ='Leathnach Achoimre Bainc'!$AK$5 -> 0 | D42: ='Leathnach Achoimre Bainc'!$AK$6 -> 0 | E42: ='Leathnach Achoimre Bainc'!$AK$7 -> 0 | F42: ='Leathnach Achoimre Bainc'!$AK$8 -> 0 | G42: ='Leathnach Achoimre Bainc'!$AK$9 -> 0 | H42: ='Leathnach Achoimre Bainc'!$AK$10 -> 0 | I42: ='Leathnach Achoimre Bainc'!$AK$11 -> 0 | J42: ='Leathnach Achoimre Bainc'!$AK$12 -> 0 | K42: ='Leathnach Achoimre Bainc'!$AK$13 -> 0 | L42: ='Leathnach Achoimre Bainc'!$AK$14 -> 0 | M42: ='Leathnach Achoimre Bainc'!$AK$15 -> 0 | N42: ='Leathnach Achoimre Bainc'!$AK$16 -> 0 | O42: 0 | Q42: =IF(COA!$E$39="Y","Show","Hide") -> Show | R42: Deontas le haghaidh Béilí Scoile ó RGFCS | S42: 0 | T42: 0
B43: Ioncam Erasmus | C43: ='Leathnach Achoimre Bainc'!$AL$5 -> 0 | D43: ='Leathnach Achoimre Bainc'!$AL$6 -> 0 | E43: ='Leathnach Achoimre Bainc'!$AL$7 -> 0 | F43: ='Leathnach Achoimre Bainc'!$AL$8 -> 0 | G43: ='Leathnach Achoimre Bainc'!$AL$9 -> 0 | H43: ='Leathnach Achoimre Bainc'!$AL$10 -> 0 | I43: ='Leathnach Achoimre Bainc'!$AL$11 -> 0 | J43: ='Leathnach Achoimre Bainc'!$AL$12 -> 0 | K43: ='Leathnach Achoimre Bainc'!$AL$13 -> 0 | L43: ='Leathnach Achoimre Bainc'!$AL$14 -> 0 | M43: ='Leathnach Achoimre Bainc'!$AL$15 -> 0 | N43: ='Leathnach Achoimre Bainc'!$AL$16 -> 0 | O43: 0 | Q43: =IF(COA!$E$40="Y","Show","Hide") -> Show | R43: Ioncam Erasmus | S43: 0 | T43: 0
B44: Maoiniú ó FSS | C44: ='Leathnach Achoimre Bainc'!$AM$5 -> 0 | D44: ='Leathnach Achoimre Bainc'!$AM$6 -> 0 | E44: ='Leathnach Achoimre Bainc'!$AM$7 -> 0 | F44: ='Leathnach Achoimre Bainc'!$AM$8 -> 0 | G44: ='Leathnach Achoimre Bainc'!$AM$9 -> 0 | H44: ='Leathnach Achoimre Bainc'!$AM$10 -> 0 | I44: ='Leathnach Achoimre Bainc'!$AM$11 -> 0 | J44: ='Leathnach Achoimre Bainc'!$AM$12 -> 0 | K44: ='Leathnach Achoimre Bainc'!$AM$13 -> 0 | L44: ='Leathnach Achoimre Bainc'!$AM$14 -> 0 | M44: ='Leathnach Achoimre Bainc'!$AM$15 -> 0 | N44: ='Leathnach Achoimre Bainc'!$AM$16 -> 0 | O44: =SUM(C44:N44) -> 0 | Q44: =IF(COA!$E$41="Y","Show","Hide") -> Show | R44: Maoiniú ó FSS | S44: 0 | T44: 0
B45: Maoiniú Stáit Eile | C45: ='Leathnach Achoimre Bainc'!$AN$5 -> 0 | D45: ='Leathnach Achoimre Bainc'!$AN$6 -> 0 | E45: ='Leathnach Achoimre Bainc'!$AN$7 -> 0 | F45: ='Leathnach Achoimre Bainc'!$AN$8 -> 0 | G45: ='Leathnach Achoimre Bainc'!$AN$9 -> 0 | H45: ='Leathnach Achoimre Bainc'!$AN$10 -> 0 | I45: ='Leathnach Achoimre Bainc'!$AN$11 -> 0 | J45: ='Leathnach Achoimre Bainc'!$AN$12 -> 0 | K45: ='Leathnach Achoimre Bainc'!$AN$13 -> 0 | L45: ='Leathnach Achoimre Bainc'!$AN$14 -> 0 | M45: ='Leathnach Achoimre Bainc'!$AN$15 -> 0 | N45: ='Leathnach Achoimre Bainc'!$AN$16 -> 0 | O45: 0 | Q45: =IF(COA!$E$42="Y","Show","Hide") -> Show | R45: Maoiniú Stáit Eile | S45: 0 | T45: 0
B46: Táillí Oideachais (Scoileanna Táille) | C46: ='Leathnach Achoimre Bainc'!$AO$5 -> 0 | D46: ='Leathnach Achoimre Bainc'!$AO$6 -> 0 | E46: ='Leathnach Achoimre Bainc'!$AO$7 -> 0 | F46: ='Leathnach Achoimre Bainc'!$AO$8 -> 0 | G46: ='Leathnach Achoimre Bainc'!$AO$9 -> 0 | H46: ='Leathnach Achoimre Bainc'!$AO$10 -> 0 | I46: ='Leathnach Achoimre Bainc'!$AO$11 -> 0 | J46: ='Leathnach Achoimre Bainc'!$AO$12 -> 0 | K46: ='Leathnach Achoimre Bainc'!$AO$13 -> 0 | L46: ='Leathnach Achoimre Bainc'!$AO$14 -> 0 | M46: ='Leathnach Achoimre Bainc'!$AO$15 -> 0 | N46: ='Leathnach Achoimre Bainc'!$AO$16 -> 0 | O46: 0 | Q46: =IF(COA!$E$43="Y","Show","Hide") -> Show | R46: Táillí Oideachais (Scoileanna Táille) | S46: 0 | T46: 0
B47: Ioncam Idirbhliana | C47: ='Leathnach Achoimre Bainc'!$AP$5 -> 0 | D47: ='Leathnach Achoimre Bainc'!$AP$6 -> 0 | E47: ='Leathnach Achoimre Bainc'!$AP$7 -> 0 | F47: ='Leathnach Achoimre Bainc'!$AP$8 -> 0 | G47: ='Leathnach Achoimre Bainc'!$AP$9 -> 0 | H47: ='Leathnach Achoimre Bainc'!$AP$10 -> 0 | I47: ='Leathnach Achoimre Bainc'!$AP$11 -> 0 | J47: ='Leathnach Achoimre Bainc'!$AP$12 -> 0 | K47: ='Leathnach Achoimre Bainc'!$AP$13 -> 0 | L47: ='Leathnach Achoimre Bainc'!$AP$14 -> 0 | M47: ='Leathnach Achoimre Bainc'!$AP$15 -> 0 | N47: ='Leathnach Achoimre Bainc'!$AP$16 -> 0 | O47: 0 | Q47: =IF(COA!$E$44="Y","Show","Hide") -> Show | R47: Ioncam Idirbhliana | S47: 0 | T47: 0
B48: Ioncam ó Scéim na Leabhar ar Cíos | C48: ='Leathnach Achoimre Bainc'!$AQ$5 -> 0 | D48: ='Leathnach Achoimre Bainc'!$AQ$6 -> 0 | E48: ='Leathnach Achoimre Bainc'!$AQ$7 -> 0 | F48: ='Leathnach Achoimre Bainc'!$AQ$8 -> 0 | G48: ='Leathnach Achoimre Bainc'!$AQ$9 -> 0 | H48: ='Leathnach Achoimre Bainc'!$AQ$10 -> 0 | I48: ='Leathnach Achoimre Bainc'!$AQ$11 -> 0 | J48: ='Leathnach Achoimre Bainc'!$AQ$12 -> 0 | K48: ='Leathnach Achoimre Bainc'!$AQ$13 -> 0 | L48: ='Leathnach Achoimre Bainc'!$AQ$14 -> 0 | M48: ='Leathnach Achoimre Bainc'!$AQ$15 -> 0 | N48: ='Leathnach Achoimre Bainc'!$AQ$16 -> 0 | O48: 0 | Q48: =IF(COA!$E$45="Y","Show","Hide") -> Show | R48: Ioncam ó Scéim na Leabhar ar Cíos | S48: 0 | T48: 0
B49: Ioncam ó Leabhair Seomra Ranga | C49: ='Leathnach Achoimre Bainc'!$AR$5 -> 0 | D49: ='Leathnach Achoimre Bainc'!$AR$6 -> 0 | E49: ='Leathnach Achoimre Bainc'!$AR$7 -> 0 | F49: ='Leathnach Achoimre Bainc'!$AR$8 -> 0 | G49: ='Leathnach Achoimre Bainc'!$AR$9 -> 0 | H49: ='Leathnach Achoimre Bainc'!$AR$10 -> 0 | I49: ='Leathnach Achoimre Bainc'!$AR$11 -> 0 | J49: ='Leathnach Achoimre Bainc'!$AR$12 -> 0 | K49: ='Leathnach Achoimre Bainc'!$AR$13 -> 0 | L49: ='Leathnach Achoimre Bainc'!$AR$14 -> 0 | M49: ='Leathnach Achoimre Bainc'!$AR$15 -> 0 | N49: ='Leathnach Achoimre Bainc'!$AR$16 -> 0 | O49: 0 | Q49: =IF(COA!$E$46="Y","Show","Hide") -> Show | R49: Ioncam ó Leabhair Seomra Ranga | S49: 0 | T49: 0
B50: Ioncam Cíosa ó Áiseanna a Ligean ar Fhruiliú | C50: ='Leathnach Achoimre Bainc'!$AS$5 -> 0 | D50: ='Leathnach Achoimre Bainc'!$AS$6 -> 0 | E50: ='Leathnach Achoimre Bainc'!$AS$7 -> 0 | F50: ='Leathnach Achoimre Bainc'!$AS$8 -> 0 | G50: ='Leathnach Achoimre Bainc'!$AS$9 -> 0 | H50: ='Leathnach Achoimre Bainc'!$AS$10 -> 0 | I50: ='Leathnach Achoimre Bainc'!$AS$11 -> 0 | J50: ='Leathnach Achoimre Bainc'!$AS$12 -> 0 | K50: ='Leathnach Achoimre Bainc'!$AS$13 -> 0 | L50: ='Leathnach Achoimre Bainc'!$AS$14 -> 0 | M50: ='Leathnach Achoimre Bainc'!$AS$15 -> 0 | N50: ='Leathnach Achoimre Bainc'!$AS$16 -> 0 | O50: 0 | Q50: =IF(COA!$E$47="Y","Show","Hide") -> Show | R50: Ioncam Cíosa ó Áiseanna a Ligean ar Fhruiliú | S50: 0 | T50: 0
B51: Ioncam ó Thaisceadáin | C51: ='Leathnach Achoimre Bainc'!$AT$5 -> 0 | D51: ='Leathnach Achoimre Bainc'!$AT$6 -> 0 | E51: ='Leathnach Achoimre Bainc'!$AT$7 -> 0 | F51: ='Leathnach Achoimre Bainc'!$AT$8 -> 0 | G51: ='Leathnach Achoimre Bainc'!$AT$9 -> 0 | H51: ='Leathnach Achoimre Bainc'!$AT$10 -> 0 | I51: ='Leathnach Achoimre Bainc'!$AT$11 -> 0 | J51: ='Leathnach Achoimre Bainc'!$AT$12 -> 0 | K51: ='Leathnach Achoimre Bainc'!$AT$13 -> 0 | L51: ='Leathnach Achoimre Bainc'!$AT$14 -> 0 | M51: ='Leathnach Achoimre Bainc'!$AT$15 -> 0 | N51: ='Leathnach Achoimre Bainc'!$AT$16 -> 0 | O51: 0 | Q51: =IF(COA!$E$48="Y","Show","Hide") -> Show | R51: Ioncam ó Thaisceadáin | S51: 0 | T51: 0
B52: Ioncam ó Dhialanna agus Bliainirisí | C52: ='Leathnach Achoimre Bainc'!$AU$5 -> 0 | D52: ='Leathnach Achoimre Bainc'!$AU$6 -> 0 | E52: ='Leathnach Achoimre Bainc'!$AU$7 -> 0 | F52: ='Leathnach Achoimre Bainc'!$AU$8 -> 0 | G52: ='Leathnach Achoimre Bainc'!$AU$9 -> 0 | H52: ='Leathnach Achoimre Bainc'!$AU$10 -> 0 | I52: ='Leathnach Achoimre Bainc'!$AU$11 -> 0 | J52: ='Leathnach Achoimre Bainc'!$AU$12 -> 0 | K52: ='Leathnach Achoimre Bainc'!$AU$13 -> 0 | L52: ='Leathnach Achoimre Bainc'!$AU$14 -> 0 | M52: ='Leathnach Achoimre Bainc'!$AU$15 -> 0 | N52: ='Leathnach Achoimre Bainc'!$AU$16 -> 0 | O52: 0 | Q52: =IF(COA!$E$49="Y","Show","Hide") -> Show | R52: Ioncam ó Dhialanna agus Bliainirisí | S52: 0 | T52: 0
B53: Ioncam fótachóipeáil mac léinn | C53: ='Leathnach Achoimre Bainc'!$AV$5 -> 0 | D53: ='Leathnach Achoimre Bainc'!$AV$6 -> 0 | E53: ='Leathnach Achoimre Bainc'!$AV$7 -> 0 | F53: ='Leathnach Achoimre Bainc'!$AV$8 -> 0 | G53: ='Leathnach Achoimre Bainc'!$AV$9 -> 0 | H53: ='Leathnach Achoimre Bainc'!$AV$10 -> 0 | I53: ='Leathnach Achoimre Bainc'!$AV$11 -> 0 | J53: ='Leathnach Achoimre Bainc'!$AV$12 -> 0 | K53: ='Leathnach Achoimre Bainc'!$AV$13 -> 0 | L53: ='Leathnach Achoimre Bainc'!$AV$14 -> 0 | M53: ='Leathnach Achoimre Bainc'!$AV$15 -> 0 | N53: ='Leathnach Achoimre Bainc'!$AV$16 -> 0 | O53: 0 | Q53: =IF(COA!$E$50="Y","Show","Hide") -> Show | R53: Ioncam fótachóipeáil mac léinn | S53: 0 | T53: 0
B54: Táillí riaracháin scoile | C54: ='Leathnach Achoimre Bainc'!$AW$5 -> 0 | D54: ='Leathnach Achoimre Bainc'!$AW$6 -> 0 | E54: ='Leathnach Achoimre Bainc'!$AW$7 -> 0 | F54: ='Leathnach Achoimre Bainc'!$AW$8 -> 0 | G54: ='Leathnach Achoimre Bainc'!$AW$9 -> 0 | H54: ='Leathnach Achoimre Bainc'!$AW$10 -> 0 | I54: ='Leathnach Achoimre Bainc'!$AW$11 -> 0 | J54: ='Leathnach Achoimre Bainc'!$AW$12 -> 0 | K54: ='Leathnach Achoimre Bainc'!$AW$13 -> 0 | L54: ='Leathnach Achoimre Bainc'!$AW$14 -> 0 | M54: ='Leathnach Achoimre Bainc'!$AW$15 -> 0 | N54: ='Leathnach Achoimre Bainc'!$AW$16 -> 0 | O54: 0 | Q54: =IF(COA!$E$51="Y","Show","Hide") -> Show | R54: Táillí riaracháin scoile | S54: 0 | T54: 0
B55: Ioncam Oideachais Aosaigh | C55: ='Leathnach Achoimre Bainc'!$AX$5 -> 0 | D55: ='Leathnach Achoimre Bainc'!$AX$6 -> 0 | E55: ='Leathnach Achoimre Bainc'!$AX$7 -> 0 | F55: ='Leathnach Achoimre Bainc'!$AX$8 -> 0 | G55: ='Leathnach Achoimre Bainc'!$AX$9 -> 0 | H55: ='Leathnach Achoimre Bainc'!$AX$10 -> 0 | I55: ='Leathnach Achoimre Bainc'!$AX$11 -> 0 | J55: ='Leathnach Achoimre Bainc'!$AX$12 -> 0 | K55: ='Leathnach Achoimre Bainc'!$AX$13 -> 0 | L55: ='Leathnach Achoimre Bainc'!$AX$14 -> 0 | M55: ='Leathnach Achoimre Bainc'!$AX$15 -> 0 | N55: ='Leathnach Achoimre Bainc'!$AX$16 -> 0 | O55: 0 | Q55: =IF(COA!$E$52="Y","Show","Hide") -> Show | R55: Ioncam Oideachais Aosaigh | S55: 0 | T55: 0
B56: Ioncam ó Cheaintíní | C56: ='Leathnach Achoimre Bainc'!$AY$5 -> 0 | D56: ='Leathnach Achoimre Bainc'!$AY$6 -> 0 | E56: ='Leathnach Achoimre Bainc'!$AY$7 -> 0 | F56: ='Leathnach Achoimre Bainc'!$AY$8 -> 0 | G56: ='Leathnach Achoimre Bainc'!$AY$9 -> 0 | H56: ='Leathnach Achoimre Bainc'!$AY$10 -> 0 | I56: ='Leathnach Achoimre Bainc'!$AY$11 -> 0 | J56: ='Leathnach Achoimre Bainc'!$AY$12 -> 0 | K56: ='Leathnach Achoimre Bainc'!$AY$13 -> 0 | L56: ='Leathnach Achoimre Bainc'!$AY$14 -> 0 | M56: ='Leathnach Achoimre Bainc'!$AY$15 -> 0 | N56: ='Leathnach Achoimre Bainc'!$AY$16 -> 0 | O56: 0 | Q56: =IF(COA!$E$53="Y","Show","Hide") -> Show | R56: Ioncam ó Cheaintíní | S56: 0 | T56: 0
B57: Ioncam ó Shiopaí Sólaistí | C57: ='Leathnach Achoimre Bainc'!$AZ$5 -> 0 | D57: ='Leathnach Achoimre Bainc'!$AZ$6 -> 0 | E57: ='Leathnach Achoimre Bainc'!$AZ$7 -> 0 | F57: ='Leathnach Achoimre Bainc'!$AZ$8 -> 0 | G57: ='Leathnach Achoimre Bainc'!$AZ$9 -> 0 | H57: ='Leathnach Achoimre Bainc'!$AZ$10 -> 0 | I57: ='Leathnach Achoimre Bainc'!$AZ$11 -> 0 | J57: ='Leathnach Achoimre Bainc'!$AZ$12 -> 0 | K57: ='Leathnach Achoimre Bainc'!$AZ$13 -> 0 | L57: ='Leathnach Achoimre Bainc'!$AZ$14 -> 0 | M57: ='Leathnach Achoimre Bainc'!$AZ$15 -> 0 | N57: ='Leathnach Achoimre Bainc'!$AZ$16 -> 0 | O57: 0 | Q57: =IF(COA!$E$54="Y","Show","Hide") -> Show | R57: Ioncam ó Shiopaí Sólaistí | S57: 0 | T57: 0
B58: Ioncam ó Éidí Scoile | C58: ='Leathnach Achoimre Bainc'!$BA$5 -> 0 | D58: ='Leathnach Achoimre Bainc'!$BA$6 -> 0 | E58: ='Leathnach Achoimre Bainc'!$BA$7 -> 0 | F58: ='Leathnach Achoimre Bainc'!$BA$8 -> 0 | G58: ='Leathnach Achoimre Bainc'!$BA$9 -> 0 | H58: ='Leathnach Achoimre Bainc'!$BA$10 -> 0 | I58: ='Leathnach Achoimre Bainc'!$BA$11 -> 0 | J58: ='Leathnach Achoimre Bainc'!$BA$12 -> 0 | K58: ='Leathnach Achoimre Bainc'!$BA$13 -> 0 | L58: ='Leathnach Achoimre Bainc'!$BA$14 -> 0 | M58: ='Leathnach Achoimre Bainc'!$BA$15 -> 0 | N58: ='Leathnach Achoimre Bainc'!$BA$16 -> 0 | O58: 0 | Q58: =IF(COA!$E$55="Y","Show","Hide") -> Show | R58: Ioncam ó Éidí Scoile | S58: 0 | T58: 0
B59: Ioncam Reiligiúin/Éitis | C59: ='Leathnach Achoimre Bainc'!$BB$5 -> 0 | D59: ='Leathnach Achoimre Bainc'!$BB$6 -> 0 | E59: ='Leathnach Achoimre Bainc'!$BB$7 -> 0 | F59: ='Leathnach Achoimre Bainc'!$BB$8 -> 0 | G59: ='Leathnach Achoimre Bainc'!$BB$9 -> 0 | H59: ='Leathnach Achoimre Bainc'!$BB$10 -> 0 | I59: ='Leathnach Achoimre Bainc'!$BB$11 -> 0 | J59: ='Leathnach Achoimre Bainc'!$BB$12 -> 0 | K59: ='Leathnach Achoimre Bainc'!$BB$13 -> 0 | L59: ='Leathnach Achoimre Bainc'!$BB$14 -> 0 | M59: ='Leathnach Achoimre Bainc'!$BB$15 -> 0 | N59: ='Leathnach Achoimre Bainc'!$BB$16 -> 0 | O59: 0 | Q59: =IF(COA!$E$56="Y","Show","Hide") -> Show | R59: Ioncam Reiligiúin/Éitis | S59: 0 | T59: 0
B60: Ioncam Club/Staidéir Iarscoile | C60: ='Leathnach Achoimre Bainc'!$BC$5 -> 0 | D60: ='Leathnach Achoimre Bainc'!$BC$6 -> 0 | E60: ='Leathnach Achoimre Bainc'!$BC$7 -> 0 | F60: ='Leathnach Achoimre Bainc'!$BC$8 -> 0 | G60: ='Leathnach Achoimre Bainc'!$BC$9 -> 0 | H60: ='Leathnach Achoimre Bainc'!$BC$10 -> 0 | I60: ='Leathnach Achoimre Bainc'!$BC$11 -> 0 | J60: ='Leathnach Achoimre Bainc'!$BC$12 -> 0 | K60: ='Leathnach Achoimre Bainc'!$BC$13 -> 0 | L60: ='Leathnach Achoimre Bainc'!$BC$14 -> 0 | M60: ='Leathnach Achoimre Bainc'!$BC$15 -> 0 | N60: ='Leathnach Achoimre Bainc'!$BC$16 -> 0 | O60: 0 | Q60: =IF(COA!$E$57="Y","Show","Hide") -> Show | R60: Ioncam Club/Staidéir Iarscoile | S60: 0 | T60: 0
B61: Ioncam ó Chluichí | C61: ='Leathnach Achoimre Bainc'!$BD$5 -> 0 | D61: ='Leathnach Achoimre Bainc'!$BD$6 -> 0 | E61: ='Leathnach Achoimre Bainc'!$BD$7 -> 0 | F61: ='Leathnach Achoimre Bainc'!$BD$8 -> 0 | G61: ='Leathnach Achoimre Bainc'!$BD$9 -> 0 | H61: ='Leathnach Achoimre Bainc'!$BD$10 -> 0 | I61: ='Leathnach Achoimre Bainc'!$BD$11 -> 0 | J61: ='Leathnach Achoimre Bainc'!$BD$12 -> 0 | K61: ='Leathnach Achoimre Bainc'!$BD$13 -> 0 | L61: ='Leathnach Achoimre Bainc'!$BD$14 -> 0 | M61: ='Leathnach Achoimre Bainc'!$BD$15 -> 0 | N61: ='Leathnach Achoimre Bainc'!$BD$16 -> 0 | O61: 0 | Q61: =IF(COA!$E$58="Y","Show","Hide") -> Show | R61: Ioncam ó Chluichí | S61: 0 | T61: 0
B62: Ioncam ón Bhusanna | C62: ='Leathnach Achoimre Bainc'!$BE$5 -> 0 | D62: ='Leathnach Achoimre Bainc'!$BE$6 -> 0 | E62: ='Leathnach Achoimre Bainc'!$BE$7 -> 0 | F62: ='Leathnach Achoimre Bainc'!$BE$8 -> 0 | G62: ='Leathnach Achoimre Bainc'!$BE$9 -> 0 | H62: ='Leathnach Achoimre Bainc'!$BE$10 -> 0 | I62: ='Leathnach Achoimre Bainc'!$BE$11 -> 0 | J62: ='Leathnach Achoimre Bainc'!$BE$12 -> 0 | K62: ='Leathnach Achoimre Bainc'!$BE$13 -> 0 | L62: ='Leathnach Achoimre Bainc'!$BE$14 -> 0 | M62: ='Leathnach Achoimre Bainc'!$BE$15 -> 0 | N62: ='Leathnach Achoimre Bainc'!$BE$16 -> 0 | O62: 0 | Q62: =IF(COA!$E$59="Y","Show","Hide") -> Show | R62: Ioncam ón Bhusanna | S62: 0 | T62: 0
B63: Ioncam ó Cheoldrámaí/Dhrámaí Scoile | C63: ='Leathnach Achoimre Bainc'!$BF$5 -> 0 | D63: ='Leathnach Achoimre Bainc'!$BF$6 -> 0 | E63: ='Leathnach Achoimre Bainc'!$BF$7 -> 0 | F63: ='Leathnach Achoimre Bainc'!$BF$8 -> 0 | G63: ='Leathnach Achoimre Bainc'!$BF$9 -> 0 | H63: ='Leathnach Achoimre Bainc'!$BF$10 -> 0 | I63: ='Leathnach Achoimre Bainc'!$BF$11 -> 0 | J63: ='Leathnach Achoimre Bainc'!$BF$12 -> 0 | K63: ='Leathnach Achoimre Bainc'!$BF$13 -> 0 | L63: ='Leathnach Achoimre Bainc'!$BF$14 -> 0 | M63: ='Leathnach Achoimre Bainc'!$BF$15 -> 0 | N63: ='Leathnach Achoimre Bainc'!$BF$16 -> 0 | O63: 0 | Q63: =IF(COA!$E$60="Y","Show","Hide") -> Show | R63: Ioncam ó Cheoldrámaí/Dhrámaí Scoile | S63: 0 | T63: 0
B64: Ioncam ó Thurais Scoile | C64: ='Leathnach Achoimre Bainc'!$BG$5 -> 0 | D64: ='Leathnach Achoimre Bainc'!$BG$6 -> 0 | E64: ='Leathnach Achoimre Bainc'!$BG$7 -> 0 | F64: ='Leathnach Achoimre Bainc'!$BG$8 -> 0 | G64: ='Leathnach Achoimre Bainc'!$BG$9 -> 0 | H64: ='Leathnach Achoimre Bainc'!$BG$10 -> 0 | I64: ='Leathnach Achoimre Bainc'!$BG$11 -> 0 | J64: ='Leathnach Achoimre Bainc'!$BG$12 -> 0 | K64: ='Leathnach Achoimre Bainc'!$BG$13 -> 0 | L64: ='Leathnach Achoimre Bainc'!$BG$14 -> 0 | M64: ='Leathnach Achoimre Bainc'!$BG$15 -> 0 | N64: ='Leathnach Achoimre Bainc'!$BG$16 -> 0 | O64: 0 | Q64: =IF(COA!$E$61="Y","Show","Hide") -> Show | R64: Ioncam ó Thurais Scoile | S64: 0 | T64: 0
B65: Ioncam ó Snámh Scoile | C65: ='Leathnach Achoimre Bainc'!$BH$5 -> 0 | D65: ='Leathnach Achoimre Bainc'!$BH$6 -> 0 | E65: ='Leathnach Achoimre Bainc'!$BH$7 -> 0 | F65: ='Leathnach Achoimre Bainc'!$BH$8 -> 0 | G65: ='Leathnach Achoimre Bainc'!$BH$9 -> 0 | H65: ='Leathnach Achoimre Bainc'!$BH$10 -> 0 | I65: ='Leathnach Achoimre Bainc'!$BH$11 -> 0 | J65: ='Leathnach Achoimre Bainc'!$BH$12 -> 0 | K65: ='Leathnach Achoimre Bainc'!$BH$13 -> 0 | L65: ='Leathnach Achoimre Bainc'!$BH$14 -> 0 | M65: ='Leathnach Achoimre Bainc'!$BH$15 -> 0 | N65: ='Leathnach Achoimre Bainc'!$BH$16 -> 0 | O65: 0 | Q65: =IF(COA!$E$62="Y","Show","Hide") -> Show | R65: Ioncam ó Snámh Scoile | S65: 0 | T65: 0
B66: Ioncam ó Árachas Daltaí | C66: ='Leathnach Achoimre Bainc'!$BI$5 -> 0 | D66: ='Leathnach Achoimre Bainc'!$BI$6 -> 0 | E66: ='Leathnach Achoimre Bainc'!$BI$7 -> 0 | F66: ='Leathnach Achoimre Bainc'!$BI$8 -> 0 | G66: ='Leathnach Achoimre Bainc'!$BI$9 -> 0 | H66: ='Leathnach Achoimre Bainc'!$BI$10 -> 0 | I66: ='Leathnach Achoimre Bainc'!$BI$11 -> 0 | J66: ='Leathnach Achoimre Bainc'!$BI$12 -> 0 | K66: ='Leathnach Achoimre Bainc'!$BI$13 -> 0 | L66: ='Leathnach Achoimre Bainc'!$BI$14 -> 0 | M66: ='Leathnach Achoimre Bainc'!$BI$15 -> 0 | N66: ='Leathnach Achoimre Bainc'!$BI$16 -> 0 | O66: 0 | Q66: =IF(COA!$E$63="Y","Show","Hide") -> Show | R66: Ioncam ó Árachas Daltaí | S66: 0 | T66: 0
B67: Ioncam Réamhscoile | C67: ='Leathnach Achoimre Bainc'!$BJ$5 -> 0 | D67: ='Leathnach Achoimre Bainc'!$BJ$6 -> 0 | E67: ='Leathnach Achoimre Bainc'!$BJ$7 -> 0 | F67: ='Leathnach Achoimre Bainc'!$BJ$8 -> 0 | G67: ='Leathnach Achoimre Bainc'!$BJ$9 -> 0 | H67: ='Leathnach Achoimre Bainc'!$BJ$10 -> 0 | I67: ='Leathnach Achoimre Bainc'!$BJ$11 -> 0 | J67: ='Leathnach Achoimre Bainc'!$BJ$12 -> 0 | K67: ='Leathnach Achoimre Bainc'!$BJ$13 -> 0 | L67: ='Leathnach Achoimre Bainc'!$BJ$14 -> 0 | M67: ='Leathnach Achoimre Bainc'!$BJ$15 -> 0 | N67: ='Leathnach Achoimre Bainc'!$BJ$16 -> 0 | O67: 0 | Q67: =IF(COA!$E$64="Y","Show","Hide") -> Show | R67: Ioncam Réamhscoile | S67: 0 | T67: 0
B68: Ioncam ó Champaí Samhraidh | C68: ='Leathnach Achoimre Bainc'!$BK$5 -> 0 | D68: ='Leathnach Achoimre Bainc'!$BK$6 -> 0 | E68: ='Leathnach Achoimre Bainc'!$BK$7 -> 0 | F68: ='Leathnach Achoimre Bainc'!$BK$8 -> 0 | G68: ='Leathnach Achoimre Bainc'!$BK$9 -> 0 | H68: ='Leathnach Achoimre Bainc'!$BK$10 -> 0 | I68: ='Leathnach Achoimre Bainc'!$BK$11 -> 0 | J68: ='Leathnach Achoimre Bainc'!$BK$12 -> 0 | K68: ='Leathnach Achoimre Bainc'!$BK$13 -> 0 | L68: ='Leathnach Achoimre Bainc'!$BK$14 -> 0 | M68: ='Leathnach Achoimre Bainc'!$BK$15 -> 0 | N68: ='Leathnach Achoimre Bainc'!$BK$16 -> 0 | O68: 0 | Q68: =IF(COA!$E$65="Y","Show","Hide") -> Show | R68: Ioncam ó Champaí Samhraidh | S68: 0 | T68: 0
B69: Ioncam In-Aisíoctha | C69: ='Leathnach Achoimre Bainc'!$BL$5 -> 0 | D69: ='Leathnach Achoimre Bainc'!$BL$6 -> 0 | E69: ='Leathnach Achoimre Bainc'!$BL$7 -> 0 | F69: ='Leathnach Achoimre Bainc'!$BL$8 -> 0 | G69: ='Leathnach Achoimre Bainc'!$BL$9 -> 0 | H69: ='Leathnach Achoimre Bainc'!$BL$10 -> 0 | I69: ='Leathnach Achoimre Bainc'!$BL$11 -> 0 | J69: ='Leathnach Achoimre Bainc'!$BL$12 -> 0 | K69: ='Leathnach Achoimre Bainc'!$BL$13 -> 0 | L69: ='Leathnach Achoimre Bainc'!$BL$14 -> 0 | M69: ='Leathnach Achoimre Bainc'!$BL$15 -> 0 | N69: ='Leathnach Achoimre Bainc'!$BL$16 -> 0 | O69: 0 | Q69: =IF(COA!$E$66="Y","Show","Hide") -> Show | R69: Ioncam In-Aisíoctha | S69: 0 | T69: 0
B70: Ioncam Eile arna Ghiniúint ag an Scoil | C70: ='Leathnach Achoimre Bainc'!$BM$5 -> 0 | D70: ='Leathnach Achoimre Bainc'!$BM$6 -> 0 | E70: ='Leathnach Achoimre Bainc'!$BM$7 -> 0 | F70: ='Leathnach Achoimre Bainc'!$BM$8 -> 0 | G70: ='Leathnach Achoimre Bainc'!$BM$9 -> 0 | H70: ='Leathnach Achoimre Bainc'!$BM$10 -> 0 | I70: ='Leathnach Achoimre Bainc'!$BM$11 -> 0 | J70: ='Leathnach Achoimre Bainc'!$BM$12 -> 0 | K70: ='Leathnach Achoimre Bainc'!$BM$13 -> 0 | L70: ='Leathnach Achoimre Bainc'!$BM$14 -> 0 | M70: ='Leathnach Achoimre Bainc'!$BM$15 -> 0 | N70: ='Leathnach Achoimre Bainc'!$BM$16 -> 0 | O70: 0 | Q70: =IF(COA!$E$67="Y","Show","Hide") -> Show | R70: Ioncam Eile arna Ghiniúint ag an Scoil | S70: 0 | T70: 0
B71: Ioncam Ealaíon agus Ceardaíochta Scoile | C71: ='Leathnach Achoimre Bainc'!$BN$5 -> 0 | D71: ='Leathnach Achoimre Bainc'!$BN$6 -> 0 | E71: ='Leathnach Achoimre Bainc'!$BN$7 -> 0 | F71: ='Leathnach Achoimre Bainc'!$BN$8 -> 0 | G71: ='Leathnach Achoimre Bainc'!$BN$9 -> 0 | H71: ='Leathnach Achoimre Bainc'!$BN$10 -> 0 | I71: ='Leathnach Achoimre Bainc'!$BN$11 -> 0 | J71: ='Leathnach Achoimre Bainc'!$BN$12 -> 0 | K71: ='Leathnach Achoimre Bainc'!$BN$13 -> 0 | L71: ='Leathnach Achoimre Bainc'!$BN$14 -> 0 | M71: ='Leathnach Achoimre Bainc'!$BN$15 -> 0 | N71: ='Leathnach Achoimre Bainc'!$BN$16 -> 0 | O71: 0 | Q71: =IF(COA!$E$68="Y","Show","Hide") -> Show | R71: Ioncam Ealaíon agus Ceardaíochta Scoile | S71: 0 | T71: 0
B72: Ioncam Damhsa Scoile | C72: ='Leathnach Achoimre Bainc'!$BO$5 -> 0 | D72: ='Leathnach Achoimre Bainc'!$BO$6 -> 0 | E72: ='Leathnach Achoimre Bainc'!$BO$7 -> 0 | F72: ='Leathnach Achoimre Bainc'!$BO$8 -> 0 | G72: ='Leathnach Achoimre Bainc'!$BO$9 -> 0 | H72: ='Leathnach Achoimre Bainc'!$BO$10 -> 0 | I72: ='Leathnach Achoimre Bainc'!$BO$11 -> 0 | J72: ='Leathnach Achoimre Bainc'!$BO$12 -> 0 | K72: ='Leathnach Achoimre Bainc'!$BO$13 -> 0 | L72: ='Leathnach Achoimre Bainc'!$BO$14 -> 0 | M72: ='Leathnach Achoimre Bainc'!$BO$15 -> 0 | N72: ='Leathnach Achoimre Bainc'!$BO$16 -> 0 | O72: 0 | Q72: =IF(COA!$E$69="Y","Show","Hide") -> Show | R72: Ioncam Damhsa Scoile | S72: 0 | T72: 0
B73: Tiomsú Airgid Srianta Scoile (Neamhchaipitiúil) | C73: ='Leathnach Achoimre Bainc'!$BP$5 -> 0 | D73: ='Leathnach Achoimre Bainc'!$BP$6 -> 0 | E73: ='Leathnach Achoimre Bainc'!$BP$7 -> 0 | F73: ='Leathnach Achoimre Bainc'!$BP$8 -> 0 | G73: ='Leathnach Achoimre Bainc'!$BP$9 -> 0 | H73: ='Leathnach Achoimre Bainc'!$BP$10 -> 0 | I73: ='Leathnach Achoimre Bainc'!$BP$11 -> 0 | J73: ='Leathnach Achoimre Bainc'!$BP$12 -> 0 | K73: ='Leathnach Achoimre Bainc'!$BP$13 -> 0 | L73: ='Leathnach Achoimre Bainc'!$BP$14 -> 0 | M73: ='Leathnach Achoimre Bainc'!$BP$15 -> 0 | N73: ='Leathnach Achoimre Bainc'!$BP$16 -> 0 | O73: 0 | Q73: =IF(COA!$E$70="Y","Show","Hide") -> Show | R73: Tiomsú Airgid Srianta Scoile (Neamhchaipitiúil) | S73: =INDEX($C$8:$O$85,MATCH(R73,$B$8:$B$85,0),MATCH($S$7,$C$7:$O$7,0)) -> 0 | T73: =O73 -> 0
B74: Tiomsú Airgid Neamhshrianta Scoile (Neamhchaipitiúil) | C74: ='Leathnach Achoimre Bainc'!$BQ$5 -> 0 | D74: ='Leathnach Achoimre Bainc'!$BQ$6 -> 0 | E74: ='Leathnach Achoimre Bainc'!$BQ$7 -> 0 | F74: ='Leathnach Achoimre Bainc'!$BQ$8 -> 0 | G74: ='Leathnach Achoimre Bainc'!$BQ$9 -> 0 | H74: ='Leathnach Achoimre Bainc'!$BQ$10 -> 0 | I74: ='Leathnach Achoimre Bainc'!$BQ$11 -> 0 | J74: ='Leathnach Achoimre Bainc'!$BQ$12 -> 0 | K74: ='Leathnach Achoimre Bainc'!$BQ$13 -> 0 | L74: ='Leathnach Achoimre Bainc'!$BQ$14 -> 0 | M74: ='Leathnach Achoimre Bainc'!$BQ$15 -> 0 | N74: ='Leathnach Achoimre Bainc'!$BQ$16 -> 0 | O74: 0 | Q74: =IF(COA!$E$71="Y","Show","Hide") -> Show | R74: Tiomsú Airgid Neamhshrianta Scoile (Neamhchaipitiúil) | S74: 0 | T74: 0
B75: Lascainí Tugtha | C75: ='Leathnach Achoimre Bainc'!$BR$5 -> 0 | D75: ='Leathnach Achoimre Bainc'!$BR$6 -> 0 | E75: ='Leathnach Achoimre Bainc'!$BR$7 -> 0 | F75: ='Leathnach Achoimre Bainc'!$BR$8 -> 0 | G75: ='Leathnach Achoimre Bainc'!$BR$9 -> 0 | H75: ='Leathnach Achoimre Bainc'!$BR$10 -> 0 | I75: ='Leathnach Achoimre Bainc'!$BR$11 -> 0 | J75: ='Leathnach Achoimre Bainc'!$BR$12 -> 0 | K75: ='Leathnach Achoimre Bainc'!$BR$13 -> 0 | L75: ='Leathnach Achoimre Bainc'!$BR$14 -> 0 | M75: ='Leathnach Achoimre Bainc'!$BR$15 -> 0 | N75: ='Leathnach Achoimre Bainc'!$BR$16 -> 0 | O75: 0 | Q75: =IF(COA!$E$72="Y","Show","Hide") -> Show | R75: Lascainí Tugtha | S75: 0 | T75: 0
B76: Ranníocaíochtaí Saorálacha | C76: ='Leathnach Achoimre Bainc'!$BS$5 -> 0 | D76: ='Leathnach Achoimre Bainc'!$BS$6 -> 0 | E76: ='Leathnach Achoimre Bainc'!$BS$7 -> 0 | F76: ='Leathnach Achoimre Bainc'!$BS$8 -> 0 | G76: ='Leathnach Achoimre Bainc'!$BS$9 -> 0 | H76: ='Leathnach Achoimre Bainc'!$BS$10 -> 0 | I76: ='Leathnach Achoimre Bainc'!$BS$11 -> 0 | J76: ='Leathnach Achoimre Bainc'!$BS$12 -> 0 | K76: ='Leathnach Achoimre Bainc'!$BS$13 -> 0 | L76: ='Leathnach Achoimre Bainc'!$BS$14 -> 0 | M76: ='Leathnach Achoimre Bainc'!$BS$15 -> 0 | N76: ='Leathnach Achoimre Bainc'!$BS$16 -> 0 | O76: =SUM(C76:N76) -> 0 | Q76: =IF(COA!$E$73="Y","Show","Hide") -> Show | R76: Ranníocaíochtaí Saorálacha | S76: 0 | T76: 0
B77: Ioncam ó Chumann na dTuismitheoirí | C77: ='Leathnach Achoimre Bainc'!$BT$5 -> 0 | D77: ='Leathnach Achoimre Bainc'!$BT$6 -> 0 | E77: ='Leathnach Achoimre Bainc'!$BT$7 -> 0 | F77: ='Leathnach Achoimre Bainc'!$BT$8 -> 0 | G77: ='Leathnach Achoimre Bainc'!$BT$9 -> 0 | H77: ='Leathnach Achoimre Bainc'!$BT$10 -> 0 | I77: ='Leathnach Achoimre Bainc'!$BT$11 -> 0 | J77: ='Leathnach Achoimre Bainc'!$BT$12 -> 0 | K77: ='Leathnach Achoimre Bainc'!$BT$13 -> 0 | L77: ='Leathnach Achoimre Bainc'!$BT$14 -> 0 | M77: ='Leathnach Achoimre Bainc'!$BT$15 -> 0 | N77: ='Leathnach Achoimre Bainc'!$BT$16 -> 0 | O77: 0 | Q77: =IF(COA!$E$74="Y","Show","Hide") -> Show | R77: Ioncam ó Chumann na dTuismitheoirí | S77: 0 | T77: 0
B78: Ioncam ó Éilimh Árachais | C78: ='Leathnach Achoimre Bainc'!$BU$5 -> 0 | D78: ='Leathnach Achoimre Bainc'!$BU$6 -> 0 | E78: ='Leathnach Achoimre Bainc'!$BU$7 -> 0 | F78: ='Leathnach Achoimre Bainc'!$BU$8 -> 0 | G78: ='Leathnach Achoimre Bainc'!$BU$9 -> 0 | H78: ='Leathnach Achoimre Bainc'!$BU$10 -> 0 | I78: ='Leathnach Achoimre Bainc'!$BU$11 -> 0 | J78: ='Leathnach Achoimre Bainc'!$BU$12 -> 0 | K78: ='Leathnach Achoimre Bainc'!$BU$13 -> 0 | L78: ='Leathnach Achoimre Bainc'!$BU$14 -> 0 | M78: ='Leathnach Achoimre Bainc'!$BU$15 -> 0 | N78: ='Leathnach Achoimre Bainc'!$BU$16 -> 0 | O78: 0 | Q78: =IF(COA!$E$75="Y","Show","Hide") -> Show | R78: Ioncam ó Éilimh Árachais | S78: 0 | T78: 0
B79: Ús Bainc Faighte | C79: ='Leathnach Achoimre Bainc'!$BV$5 -> 0 | D79: ='Leathnach Achoimre Bainc'!$BV$6 -> 0 | E79: ='Leathnach Achoimre Bainc'!$BV$7 -> 0 | F79: ='Leathnach Achoimre Bainc'!$BV$8 -> 0 | G79: ='Leathnach Achoimre Bainc'!$BV$9 -> 0 | H79: ='Leathnach Achoimre Bainc'!$BV$10 -> 0 | I79: ='Leathnach Achoimre Bainc'!$BV$11 -> 0 | J79: ='Leathnach Achoimre Bainc'!$BV$12 -> 0 | K79: ='Leathnach Achoimre Bainc'!$BV$13 -> 0 | L79: ='Leathnach Achoimre Bainc'!$BV$14 -> 0 | M79: ='Leathnach Achoimre Bainc'!$BV$15 -> 0 | N79: ='Leathnach Achoimre Bainc'!$BV$16 -> 0 | O79: 0 | Q79: =IF(COA!$E$76="Y","Show","Hide") -> Show | R79: Ús Bainc Faighte | S79: 0 | T79: 0
B80: Amúchadh Maoinithe nach bhFuarthas ón RO | C80: ='Leathnach Achoimre Bainc'!$BW$5 -> 0 | D80: ='Leathnach Achoimre Bainc'!$BW$6 -> 0 | E80: ='Leathnach Achoimre Bainc'!$BW$7 -> 0 | F80: ='Leathnach Achoimre Bainc'!$BW$8 -> 0 | G80: ='Leathnach Achoimre Bainc'!$BW$9 -> 0 | H80: ='Leathnach Achoimre Bainc'!$BW$10 -> 0 | I80: ='Leathnach Achoimre Bainc'!$BW$11 -> 0 | J80: ='Leathnach Achoimre Bainc'!$BW$12 -> 0 | K80: ='Leathnach Achoimre Bainc'!$BW$13 -> 0 | L80: ='Leathnach Achoimre Bainc'!$BW$14 -> 0 | M80: ='Leathnach Achoimre Bainc'!$BW$15 -> 0 | N80: ='Leathnach Achoimre Bainc'!$BW$16 -> 0 | O80: 0 | Q80: =IF(COA!$E$77="Y","Show","Hide") -> Show | R80: Amúchadh Maoinithe nach bhFuarthas ón RO | S80: 0 | T80: 0
B81: Ioncam Eile | C81: ='Leathnach Achoimre Bainc'!$BX$5 -> 0 | D81: ='Leathnach Achoimre Bainc'!$BX$6 -> 0 | E81: ='Leathnach Achoimre Bainc'!$BX$7 -> 0 | F81: ='Leathnach Achoimre Bainc'!$BX$8 -> 0 | G81: ='Leathnach Achoimre Bainc'!$BX$9 -> 0 | H81: ='Leathnach Achoimre Bainc'!$BX$10 -> 0 | I81: ='Leathnach Achoimre Bainc'!$BX$11 -> 0 | J81: ='Leathnach Achoimre Bainc'!$BX$12 -> 0 | K81: ='Leathnach Achoimre Bainc'!$BX$13 -> 0 | L81: ='Leathnach Achoimre Bainc'!$BX$14 -> 0 | M81: ='Leathnach Achoimre Bainc'!$BX$15 -> 0 | N81: ='Leathnach Achoimre Bainc'!$BX$16 -> 0 | O81: 0 | Q81: =IF(COA!$E$78="Y","Show","Hide") -> Show | R81: Ioncam Eile | S81: 0 | T81: 0
B82: Ioncam Ainmnithe (Neamhchaipitiúil) | C82: ='Leathnach Achoimre Bainc'!$BY$5 -> 0 | D82: ='Leathnach Achoimre Bainc'!$BY$6 -> 0 | E82: ='Leathnach Achoimre Bainc'!$BY$7 -> 0 | F82: ='Leathnach Achoimre Bainc'!$BY$8 -> 0 | G82: ='Leathnach Achoimre Bainc'!$BY$9 -> 0 | H82: ='Leathnach Achoimre Bainc'!$BY$10 -> 0 | I82: ='Leathnach Achoimre Bainc'!$BY$11 -> 0 | J82: ='Leathnach Achoimre Bainc'!$BY$12 -> 0 | K82: ='Leathnach Achoimre Bainc'!$BY$13 -> 0 | L82: ='Leathnach Achoimre Bainc'!$BY$14 -> 0 | M82: ='Leathnach Achoimre Bainc'!$BY$15 -> 0 | N82: ='Leathnach Achoimre Bainc'!$BY$16 -> 0 | O82: 0 | Q82: =IF(COA!$E$79="Y","Show","Hide") -> Show | R82: Ioncam Ainmnithe (Neamhchaipitiúil) | S82: 0 | T82: 0
B83: Tiomsú Airgid Srianta Seachtrach (Neamhchaipitiúil) | C83: ='Leathnach Achoimre Bainc'!$BZ$5 -> 0 | D83: ='Leathnach Achoimre Bainc'!$BZ$6 -> 0 | E83: ='Leathnach Achoimre Bainc'!$BZ$7 -> 0 | F83: ='Leathnach Achoimre Bainc'!$BZ$8 -> 0 | G83: ='Leathnach Achoimre Bainc'!$BZ$9 -> 0 | H83: ='Leathnach Achoimre Bainc'!$BZ$10 -> 0 | I83: ='Leathnach Achoimre Bainc'!$BZ$11 -> 0 | J83: ='Leathnach Achoimre Bainc'!$BZ$12 -> 0 | K83: ='Leathnach Achoimre Bainc'!$BZ$13 -> 0 | L83: ='Leathnach Achoimre Bainc'!$BZ$14 -> 0 | M83: ='Leathnach Achoimre Bainc'!$BZ$15 -> 0 | N83: ='Leathnach Achoimre Bainc'!$BZ$16 -> 0 | O83: 0 | Q83: =IF(COA!$E$80="Y","Show","Hide") -> Show | R83: Tiomsú Airgid Srianta Seachtrach (Neamhchaipitiúil) | S83: 0 | T83: 0
B84: Tiomsú Airgid Neamhshrianta Seachtrach (Neamhchaipitiúil) | C84: ='Leathnach Achoimre Bainc'!$CA$5 -> 0 | D84: ='Leathnach Achoimre Bainc'!$CA$6 -> 0 | E84: ='Leathnach Achoimre Bainc'!$CA$7 -> 0 | F84: ='Leathnach Achoimre Bainc'!$CA$8 -> 0 | G84: ='Leathnach Achoimre Bainc'!$CA$9 -> 0 | H84: ='Leathnach Achoimre Bainc'!$CA$10 -> 0 | I84: ='Leathnach Achoimre Bainc'!$CA$11 -> 0 | J84: ='Leathnach Achoimre Bainc'!$CA$12 -> 0 | K84: ='Leathnach Achoimre Bainc'!$CA$13 -> 0 | L84: ='Leathnach Achoimre Bainc'!$CA$14 -> 0 | M84: ='Leathnach Achoimre Bainc'!$CA$15 -> 0 | N84: ='Leathnach Achoimre Bainc'!$CA$16 -> 0 | O84: 0 | Q84: =IF(COA!$E$81="Y","Show","Hide") -> Show | R84: Tiomsú Airgid Neamhshrianta Seachtrach (Neamhchaipitiúil) | S84: 0 | T84: 0
B85: Aistriú Isteach | C85: ='Leathnach Achoimre Bainc'!$CK$5 -> 0 | D85: ='Leathnach Achoimre Bainc'!$CK$6 -> 0 | E85: ='Leathnach Achoimre Bainc'!$CK$7 -> 0 | F85: ='Leathnach Achoimre Bainc'!$CK$8 -> 0 | G85: ='Leathnach Achoimre Bainc'!$CK$9 -> 0 | H85: ='Leathnach Achoimre Bainc'!$CK$10 -> 0 | I85: ='Leathnach Achoimre Bainc'!$CK$11 -> 0 | J85: ='Leathnach Achoimre Bainc'!$CK$12 -> 0 | K85: ='Leathnach Achoimre Bainc'!$CK$13 -> 0 | L85: ='Leathnach Achoimre Bainc'!$CK$14 -> 0 | M85: ='Leathnach Achoimre Bainc'!$CK$15 -> 0 | N85: ='Leathnach Achoimre Bainc'!$CK$16 -> 0 | O85: 0 | R85: Aistriú Isteach | S85: 0 | T85: 0
B86: IONCAM IOMLÁN NA SCOILE | C86: =SUM(C8:C85) -> 0 | D86: 0 | E86: 0 | F86: 0 | G86: 0 | H86: 0 | I86: 0 | J86: 0 | K86: 0 | L86: 0 | M86: 0 | N86: 0 | O86: 0 | R86: IONCAM IOMLÁN NA SCOILE | S86: =SUM(S8:S85) -> 0 | T86: =SUM(T8:T85) -> 0
B88: CAITEACHAS NA SCOILE | C88: Meán Fomhair | D88: Deireadh Fómhair | E88: Samhain | F88: Nollaig | G88: Eanair | H88: Feabhra | I88: Márta | J88: Aibreán | K88: Bealtaine | L88: Meitheamh | M88: Iúil | N88: Lúnasa | O88: Iomlán | R88: CAITEACHAS NA SCOILE | S88: =M5 -> Meán Fomhair | T88: Iomlán
B89: Costas Múinteoirí Ionaid | C89: ='Leathnach Achoimre Bainc'!$C$21 -> 0 | D89: ='Leathnach Achoimre Bainc'!$C$22 -> 0 | E89: ='Leathnach Achoimre Bainc'!$C$23 -> 0 | F89: ='Leathnach Achoimre Bainc'!$C$24 -> 0 | G89: ='Leathnach Achoimre Bainc'!$C$25 -> 0 | H89: ='Leathnach Achoimre Bainc'!$C$26 -> 0 | I89: ='Leathnach Achoimre Bainc'!$C$27 -> 0 | J89: ='Leathnach Achoimre Bainc'!$C$28 -> 0 | K89: ='Leathnach Achoimre Bainc'!$C$29 -> 0 | L89: ='Leathnach Achoimre Bainc'!$C$30 -> 0 | M89: ='Leathnach Achoimre Bainc'!$C$31 -> 0 | N89: ='Leathnach Achoimre Bainc'!$C$32 -> 0 | O89: =SUM(C89:N89) -> 0 | Q89: =IF(COA!$E$82="Y","Show","Hide") -> Show | R89: Costas Múinteoirí Ionaid | S89: =INDEX($C$89:$O$207,MATCH(R89,$B$89:$B$207,0),MATCH($S$88,$C$88:$O$88,0)) -> 0 | T89: =O89 -> 0
B90: Costas Múinteoirí a Íoctar go Príobháideach | C90: ='Leathnach Achoimre Bainc'!$D$21 -> 0 | D90: ='Leathnach Achoimre Bainc'!$D$22 -> 0 | E90: ='Leathnach Achoimre Bainc'!$D$23 -> 0 | F90: ='Leathnach Achoimre Bainc'!$D$24 -> 0 | G90: ='Leathnach Achoimre Bainc'!$D$25 -> 0 | H90: ='Leathnach Achoimre Bainc'!$D$26 -> 0 | I90: ='Leathnach Achoimre Bainc'!$D$27 -> 0 | J90: ='Leathnach Achoimre Bainc'!$D$28 -> 0 | K90: ='Leathnach Achoimre Bainc'!$D$29 -> 0 | L90: ='Leathnach Achoimre Bainc'!$D$30 -> 0 | M90: ='Leathnach Achoimre Bainc'!$D$31 -> 0 | N90: ='Leathnach Achoimre Bainc'!$D$32 -> 0 | O90: =SUM(C90:N90) -> 0 | Q90: =IF(COA!$E$83="Y","Show","Hide") -> Show | R90: Costas Múinteoirí a Íoctar go Príobháideach | S90: =INDEX($C$89:$O$207,MATCH(R90,$B$89:$B$207,0),MATCH($S$88,$C$88:$O$88,0)) -> 0 | T90: =O90 -> 0
B91: Costas Tuarastal Maoirseachta agus Ionadaithe | C91: ='Leathnach Achoimre Bainc'!$E$21 -> 0 | D91: ='Leathnach Achoimre Bainc'!$E$22 -> 0 | E91: ='Leathnach Achoimre Bainc'!$E$23 -> 0 | F91: ='Leathnach Achoimre Bainc'!$E$24 -> 0 | G91: ='Leathnach Achoimre Bainc'!$E$25 -> 0 | H91: ='Leathnach Achoimre Bainc'!$E$26 -> 0 | I91: ='Leathnach Achoimre Bainc'!$E$27 -> 0 | J91: ='Leathnach Achoimre Bainc'!$E$28 -> 0 | K91: ='Leathnach Achoimre Bainc'!$E$29 -> 0 | L91: ='Leathnach Achoimre Bainc'!$E$30 -> 0 | M91: ='Leathnach Achoimre Bainc'!$E$31 -> 0 | N91: ='Leathnach Achoimre Bainc'!$E$32 -> 0 | O91: 0 | Q91: =IF(COA!$E$84="Y","Show","Hide") -> Show | R91: Costas Tuarastal Maoirseachta agus Ionadaithe | S91: 0 | T91: 0
B92: Costas Tuarastal Oideachais Aosaigh | C92: ='Leathnach Achoimre Bainc'!$F$21 -> 0 | D92: ='Leathnach Achoimre Bainc'!$F$22 -> 0 | E92: ='Leathnach Achoimre Bainc'!$F$23 -> 0 | F92: ='Leathnach Achoimre Bainc'!$F$24 -> 0 | G92: ='Leathnach Achoimre Bainc'!$F$25 -> 0 | H92: ='Leathnach Achoimre Bainc'!$F$26 -> 0 | I92: ='Leathnach Achoimre Bainc'!$F$27 -> 0 | J92: ='Leathnach Achoimre Bainc'!$F$28 -> 0 | K92: ='Leathnach Achoimre Bainc'!$F$29 -> 0 | L92: ='Leathnach Achoimre Bainc'!$F$30 -> 0 | M92: ='Leathnach Achoimre Bainc'!$F$31 -> 0 | N92: ='Leathnach Achoimre Bainc'!$F$32 -> 0 | O92: 0 | Q92: =IF(COA!$E$85="Y","Show","Hide") -> Show | R92: Costas Tuarastal Oideachais Aosaigh | S92: 0 | T92: 0
B93: Costais Thuarastail an Cheaintín | C93: ='Leathnach Achoimre Bainc'!$G$21 -> 0 | D93: ='Leathnach Achoimre Bainc'!$G$22 -> 0 | E93: ='Leathnach Achoimre Bainc'!$G$23 -> 0 | F93: ='Leathnach Achoimre Bainc'!$G$24 -> 0 | G93: ='Leathnach Achoimre Bainc'!$G$25 -> 0 | H93: ='Leathnach Achoimre Bainc'!$G$26 -> 0 | I93: ='Leathnach Achoimre Bainc'!$G$27 -> 0 | J93: ='Leathnach Achoimre Bainc'!$G$28 -> 0 | K93: ='Leathnach Achoimre Bainc'!$G$29 -> 0 | L93: ='Leathnach Achoimre Bainc'!$G$30 -> 0 | M93: ='Leathnach Achoimre Bainc'!$G$31 -> 0 | N93: ='Leathnach Achoimre Bainc'!$G$32 -> 0 | O93: 0 | Q93: =IF(COA!$E$86="Y","Show","Hide") -> Show | R93: Costais Thuarastail an Cheaintín | S93: 0 | T93: 0
B94: Costas Tuarastal Staidéir/Club Iarscoile | C94: ='Leathnach Achoimre Bainc'!$H$21 -> 0 | D94: ='Leathnach Achoimre Bainc'!$H$22 -> 0 | E94: ='Leathnach Achoimre Bainc'!$H$23 -> 0 | F94: ='Leathnach Achoimre Bainc'!$H$24 -> 0 | G94: ='Leathnach Achoimre Bainc'!$H$25 -> 0 | H94: ='Leathnach Achoimre Bainc'!$H$26 -> 0 | I94: ='Leathnach Achoimre Bainc'!$H$27 -> 0 | J94: ='Leathnach Achoimre Bainc'!$H$28 -> 0 | K94: ='Leathnach Achoimre Bainc'!$H$29 -> 0 | L94: ='Leathnach Achoimre Bainc'!$H$30 -> 0 | M94: ='Leathnach Achoimre Bainc'!$H$31 -> 0 | N94: ='Leathnach Achoimre Bainc'!$H$32 -> 0 | O94: 0 | Q94: =IF(COA!$E$87="Y","Show","Hide") -> Show | R94: Costas Tuarastal Staidéir/Club Iarscoile | S94: 0 | T94: 0
B95: Costais Tuarastail Campaí Samhraidh | C95: ='Leathnach Achoimre Bainc'!$I$21 -> 0 | D95: ='Leathnach Achoimre Bainc'!$I$22 -> 0 | E95: ='Leathnach Achoimre Bainc'!$I$23 -> 0 | F95: ='Leathnach Achoimre Bainc'!$I$24 -> 0 | G95: ='Leathnach Achoimre Bainc'!$I$25 -> 0 | H95: ='Leathnach Achoimre Bainc'!$I$26 -> 0 | I95: ='Leathnach Achoimre Bainc'!$I$27 -> 0 | J95: ='Leathnach Achoimre Bainc'!$I$28 -> 0 | K95: ='Leathnach Achoimre Bainc'!$I$29 -> 0 | L95: ='Leathnach Achoimre Bainc'!$I$30 -> 0 | M95: ='Leathnach Achoimre Bainc'!$I$31 -> 0 | N95: ='Leathnach Achoimre Bainc'!$I$32 -> 0 | O95: 0 | Q95: =IF(COA!$E$88="Y","Show","Hide") -> Show | R95: Costais Tuarastail Campaí Samhraidh | S95: 0 | T95: 0
B96: Costas Tuarastail Tionlacaithe Bus | C96: ='Leathnach Achoimre Bainc'!$J$21 -> 0 | D96: ='Leathnach Achoimre Bainc'!$J$22 -> 0 | E96: ='Leathnach Achoimre Bainc'!$J$23 -> 0 | F96: ='Leathnach Achoimre Bainc'!$J$24 -> 0 | G96: ='Leathnach Achoimre Bainc'!$J$25 -> 0 | H96: ='Leathnach Achoimre Bainc'!$J$26 -> 0 | I96: ='Leathnach Achoimre Bainc'!$J$27 -> 0 | J96: ='Leathnach Achoimre Bainc'!$J$28 -> 0 | K96: ='Leathnach Achoimre Bainc'!$J$29 -> 0 | L96: ='Leathnach Achoimre Bainc'!$J$30 -> 0 | M96: ='Leathnach Achoimre Bainc'!$J$31 -> 0 | N96: ='Leathnach Achoimre Bainc'!$J$32 -> 0 | O96: 0 | Q96: =IF(COA!$E$89="Y","Show","Hide") -> Show | R96: Costas Tuarastail Tionlacaithe Bus | S96: 0 | T96: 0
B97: Maoiniú COVID le haghaidh Costas maidir le hUaireanta Tionlacaí Ionaid Bus | C97: ='Leathnach Achoimre Bainc'!$K$21 -> 0 | D97: ='Leathnach Achoimre Bainc'!$K$22 -> 0 | E97: ='Leathnach Achoimre Bainc'!$K$23 -> 0 | F97: ='Leathnach Achoimre Bainc'!$K$24 -> 0 | G97: ='Leathnach Achoimre Bainc'!$K$25 -> 0 | H97: ='Leathnach Achoimre Bainc'!$K$26 -> 0 | I97: ='Leathnach Achoimre Bainc'!$K$27 -> 0 | J97: ='Leathnach Achoimre Bainc'!$K$28 -> 0 | K97: ='Leathnach Achoimre Bainc'!$K$29 -> 0 | L97: ='Leathnach Achoimre Bainc'!$K$30 -> 0 | M97: ='Leathnach Achoimre Bainc'!$K$31 -> 0 | N97: ='Leathnach Achoimre Bainc'!$K$32 -> 0 | O97: 0 | Q97: =IF(COA!$E$90="Y","Show","Hide") -> Show | R97: Maoiniú COVID le haghaidh Costas maidir le hUaireanta Tionlacaí Ionaid Bus | S97: 0 | T97: 0
B98: Costais Tuarastail Oideachais Eile | C98: ='Leathnach Achoimre Bainc'!$L$21 -> 0 | D98: ='Leathnach Achoimre Bainc'!$L$22 -> 0 | E98: ='Leathnach Achoimre Bainc'!$L$23 -> 0 | F98: ='Leathnach Achoimre Bainc'!$L$24 -> 0 | G98: ='Leathnach Achoimre Bainc'!$L$25 -> 0 | H98: ='Leathnach Achoimre Bainc'!$L$26 -> 0 | I98: ='Leathnach Achoimre Bainc'!$L$27 -> 0 | J98: ='Leathnach Achoimre Bainc'!$L$28 -> 0 | K98: ='Leathnach Achoimre Bainc'!$L$29 -> 0 | L98: ='Leathnach Achoimre Bainc'!$L$30 -> 0 | M98: ='Leathnach Achoimre Bainc'!$L$31 -> 0 | N98: ='Leathnach Achoimre Bainc'!$L$32 -> 0 | O98: 0 | Q98: =IF(COA!$E$91="Y","Show","Hide") -> Show | R98: Costais Tuarastail Oideachais Eile | S98: 0 | T98: 0
B99: Costais Tuarastail Maoinithe ag FSS | C99: ='Leathnach Achoimre Bainc'!$M$21 -> 0 | D99: ='Leathnach Achoimre Bainc'!$M$22 -> 0 | E99: ='Leathnach Achoimre Bainc'!$M$23 -> 0 | F99: ='Leathnach Achoimre Bainc'!$M$24 -> 0 | G99: ='Leathnach Achoimre Bainc'!$M$25 -> 0 | H99: ='Leathnach Achoimre Bainc'!$M$26 -> 0 | I99: ='Leathnach Achoimre Bainc'!$M$27 -> 0 | J99: ='Leathnach Achoimre Bainc'!$M$28 -> 0 | K99: ='Leathnach Achoimre Bainc'!$M$29 -> 0 | L99: ='Leathnach Achoimre Bainc'!$M$30 -> 0 | M99: ='Leathnach Achoimre Bainc'!$M$31 -> 0 | N99: ='Leathnach Achoimre Bainc'!$M$32 -> 0 | O99: 0 | Q99: =IF(COA!$E$92="Y","Show","Hide") -> Show | R99: Costais Tuarastail Maoinithe ag FSS | S99: 0 | T99: 0
B100: Costas Áiseanna Teagaisc | C100: ='Leathnach Achoimre Bainc'!$N$21 -> 0 | D100: ='Leathnach Achoimre Bainc'!$N$22 -> 0 | E100: ='Leathnach Achoimre Bainc'!$N$23 -> 0 | F100: ='Leathnach Achoimre Bainc'!$N$24 -> 0 | G100: ='Leathnach Achoimre Bainc'!$N$25 -> 0 | H100: ='Leathnach Achoimre Bainc'!$N$26 -> 0 | I100: ='Leathnach Achoimre Bainc'!$N$27 -> 0 | J100: ='Leathnach Achoimre Bainc'!$N$28 -> 0 | K100: ='Leathnach Achoimre Bainc'!$N$29 -> 0 | L100: ='Leathnach Achoimre Bainc'!$N$30 -> 0 | M100: ='Leathnach Achoimre Bainc'!$N$31 -> 0 | N100: ='Leathnach Achoimre Bainc'!$N$32 -> 0 | O100: 0 | Q100: =IF(COA!$E$93="Y","Show","Hide") -> Show | R100: Costas Áiseanna Teagaisc | S100: 0 | T100: 0
B101: Costaisí Scéim luath-thosaithe le haghaidh Ábh/Tre/For tuis | C101: ='Leathnach Achoimre Bainc'!$O$21 -> 0 | D101: ='Leathnach Achoimre Bainc'!$O$22 -> 0 | E101: ='Leathnach Achoimre Bainc'!$O$23 -> 0 | F101: ='Leathnach Achoimre Bainc'!$O$24 -> 0 | G101: ='Leathnach Achoimre Bainc'!$O$25 -> 0 | H101: ='Leathnach Achoimre Bainc'!$O$26 -> 0 | I101: ='Leathnach Achoimre Bainc'!$O$27 -> 0 | J101: ='Leathnach Achoimre Bainc'!$O$28 -> 0 | K101: ='Leathnach Achoimre Bainc'!$O$29 -> 0 | L101: ='Leathnach Achoimre Bainc'!$O$30 -> 0 | M101: ='Leathnach Achoimre Bainc'!$O$31 -> 0 | N101: ='Leathnach Achoimre Bainc'!$O$32 -> 0 | O101: =SUM(C101:N101) -> 0 | Q101: =IF(COA!$E$94="Y","Show","Hide") -> Show | R101: Costaisí Scéim luath-thosaithe le haghaidh Ábh/Tre/For tuis | S101: 0 | T101: 0
B102: Costas fótachóipeáil mac léinn | C102: ='Leathnach Achoimre Bainc'!$P$21 -> 0 | D102: ='Leathnach Achoimre Bainc'!$P$22 -> 0 | E102: ='Leathnach Achoimre Bainc'!$P$23 -> 0 | F102: ='Leathnach Achoimre Bainc'!$P$24 -> 0 | G102: ='Leathnach Achoimre Bainc'!$P$25 -> 0 | H102: ='Leathnach Achoimre Bainc'!$P$26 -> 0 | I102: ='Leathnach Achoimre Bainc'!$P$27 -> 0 | J102: ='Leathnach Achoimre Bainc'!$P$28 -> 0 | K102: ='Leathnach Achoimre Bainc'!$P$29 -> 0 | L102: ='Leathnach Achoimre Bainc'!$P$30 -> 0 | M102: ='Leathnach Achoimre Bainc'!$P$31 -> 0 | N102: ='Leathnach Achoimre Bainc'!$P$32 -> 0 | O102: 0 | Q102: =IF(COA!$E$95="Y","Show","Hide") -> Show | R102: Costas fótachóipeáil mac léinn | S102: 0 | T102: 0
B103: Costas maidir le Reiligiún/hÉiteas | C103: ='Leathnach Achoimre Bainc'!$Q$21 -> 0 | D103: ='Leathnach Achoimre Bainc'!$Q$22 -> 0 | E103: ='Leathnach Achoimre Bainc'!$Q$23 -> 0 | F103: ='Leathnach Achoimre Bainc'!$Q$24 -> 0 | G103: ='Leathnach Achoimre Bainc'!$Q$25 -> 0 | H103: ='Leathnach Achoimre Bainc'!$Q$26 -> 0 | I103: ='Leathnach Achoimre Bainc'!$Q$27 -> 0 | J103: ='Leathnach Achoimre Bainc'!$Q$28 -> 0 | K103: ='Leathnach Achoimre Bainc'!$Q$29 -> 0 | L103: ='Leathnach Achoimre Bainc'!$Q$30 -> 0 | M103: ='Leathnach Achoimre Bainc'!$Q$31 -> 0 | N103: ='Leathnach Achoimre Bainc'!$Q$32 -> 0 | O103: =SUM(C103:N103) -> 0 | Q103: =IF(COA!$E$96="Y","Show","Hide") -> Show | R103: Costas maidir le Reiligiún/hÉiteas | S103: 0 | T103: 0
B104: Costais Deontais Neamhchaipitil TFC | C104: ='Leathnach Achoimre Bainc'!$R$21 -> 0 | D104: ='Leathnach Achoimre Bainc'!$R$22 -> 0 | E104: ='Leathnach Achoimre Bainc'!$R$23 -> 0 | F104: ='Leathnach Achoimre Bainc'!$R$24 -> 0 | G104: ='Leathnach Achoimre Bainc'!$R$25 -> 0 | H104: ='Leathnach Achoimre Bainc'!$R$26 -> 0 | I104: ='Leathnach Achoimre Bainc'!$R$27 -> 0 | J104: ='Leathnach Achoimre Bainc'!$R$28 -> 0 | K104: ='Leathnach Achoimre Bainc'!$R$29 -> 0 | L104: ='Leathnach Achoimre Bainc'!$R$30 -> 0 | M104: ='Leathnach Achoimre Bainc'!$R$31 -> 0 | N104: ='Leathnach Achoimre Bainc'!$R$32 -> 0 | O104: 0 | Q104: =IF(COA!$E$97="Y","Show","Hide") -> Show | R104: Costais Deontais Neamhchaipitil TFC | S104: 0 | T104: 0
B105: Costais Cothabhála & Tacaíochta Ríomhaireachta | C105: ='Leathnach Achoimre Bainc'!$S$21 -> 0 | D105: ='Leathnach Achoimre Bainc'!$S$22 -> 0 | E105: ='Leathnach Achoimre Bainc'!$S$23 -> 0 | F105: ='Leathnach Achoimre Bainc'!$S$24 -> 0 | G105: ='Leathnach Achoimre Bainc'!$S$25 -> 0 | H105: ='Leathnach Achoimre Bainc'!$S$26 -> 0 | I105: ='Leathnach Achoimre Bainc'!$S$27 -> 0 | J105: ='Leathnach Achoimre Bainc'!$S$28 -> 0 | K105: ='Leathnach Achoimre Bainc'!$S$29 -> 0 | L105: ='Leathnach Achoimre Bainc'!$S$30 -> 0 | M105: ='Leathnach Achoimre Bainc'!$S$31 -> 0 | N105: ='Leathnach Achoimre Bainc'!$S$32 -> 0 | O105: 0 | Q105: =IF(COA!$E$98="Y","Show","Hide") -> Show | R105: Costais Cothabhála & Tacaíochta Ríomhaireachta | S105: 0 | T105: 0
B106: Costas d’Ábhair Eile | C106: ='Leathnach Achoimre Bainc'!$T$21 -> 0 | D106: ='Leathnach Achoimre Bainc'!$T$22 -> 0 | E106: ='Leathnach Achoimre Bainc'!$T$23 -> 0 | F106: ='Leathnach Achoimre Bainc'!$T$24 -> 0 | G106: ='Leathnach Achoimre Bainc'!$T$25 -> 0 | H106: ='Leathnach Achoimre Bainc'!$T$26 -> 0 | I106: ='Leathnach Achoimre Bainc'!$T$27 -> 0 | J106: ='Leathnach Achoimre Bainc'!$T$28 -> 0 | K106: ='Leathnach Achoimre Bainc'!$T$29 -> 0 | L106: ='Leathnach Achoimre Bainc'!$T$30 -> 0 | M106: ='Leathnach Achoimre Bainc'!$T$31 -> 0 | N106: ='Leathnach Achoimre Bainc'!$T$32 -> 0 | O106: 0 | Q106: =IF(COA!$E$99="Y","Show","Hide") -> Show | R106: Costas d’Ábhair Eile | S106: 0 | T106: 0
B107: Costas don Ardteistiméireacht Fheidhmeach | C107: ='Leathnach Achoimre Bainc'!$U$21 -> 0 | D107: ='Leathnach Achoimre Bainc'!$U$22 -> 0 | E107: ='Leathnach Achoimre Bainc'!$U$23 -> 0 | F107: ='Leathnach Achoimre Bainc'!$U$24 -> 0 | G107: ='Leathnach Achoimre Bainc'!$U$25 -> 0 | H107: ='Leathnach Achoimre Bainc'!$U$26 -> 0 | I107: ='Leathnach Achoimre Bainc'!$U$27 -> 0 | J107: ='Leathnach Achoimre Bainc'!$U$28 -> 0 | K107: ='Leathnach Achoimre Bainc'!$U$29 -> 0 | L107: ='Leathnach Achoimre Bainc'!$U$30 -> 0 | M107: ='Leathnach Achoimre Bainc'!$U$31 -> 0 | N107: ='Leathnach Achoimre Bainc'!$U$32 -> 0 | O107: 0 | Q107: =IF(COA!$E$100="Y","Show","Hide") -> Show | R107: Costas don Ardteistiméireacht Fheidhmeach | S107: 0 | T107: 0
B108: Costas do Ghairmchlár na hArdteistiméireachta | C108: ='Leathnach Achoimre Bainc'!$V$21 -> 0 | D108: ='Leathnach Achoimre Bainc'!$V$22 -> 0 | E108: ='Leathnach Achoimre Bainc'!$V$23 -> 0 | F108: ='Leathnach Achoimre Bainc'!$V$24 -> 0 | G108: ='Leathnach Achoimre Bainc'!$V$25 -> 0 | H108: ='Leathnach Achoimre Bainc'!$V$26 -> 0 | I108: ='Leathnach Achoimre Bainc'!$V$27 -> 0 | J108: ='Leathnach Achoimre Bainc'!$V$28 -> 0 | K108: ='Leathnach Achoimre Bainc'!$V$29 -> 0 | L108: ='Leathnach Achoimre Bainc'!$V$30 -> 0 | M108: ='Leathnach Achoimre Bainc'!$V$31 -> 0 | N108: ='Leathnach Achoimre Bainc'!$V$32 -> 0 | O108: 0 | Q108: =IF(COA!$E$101="Y","Show","Hide") -> Show | R108: Costas do Ghairmchlár na hArdteistiméireachta | S108: 0 | T108: 0
B109: Costas na hIdirbhliana | C109: ='Leathnach Achoimre Bainc'!$W$21 -> 0 | D109: ='Leathnach Achoimre Bainc'!$W$22 -> 0 | E109: ='Leathnach Achoimre Bainc'!$W$23 -> 0 | F109: ='Leathnach Achoimre Bainc'!$W$24 -> 0 | G109: ='Leathnach Achoimre Bainc'!$W$25 -> 0 | H109: ='Leathnach Achoimre Bainc'!$W$26 -> 0 | I109: ='Leathnach Achoimre Bainc'!$W$27 -> 0 | J109: ='Leathnach Achoimre Bainc'!$W$28 -> 0 | K109: ='Leathnach Achoimre Bainc'!$W$29 -> 0 | L109: ='Leathnach Achoimre Bainc'!$W$30 -> 0 | M109: ='Leathnach Achoimre Bainc'!$W$31 -> 0 | N109: ='Leathnach Achoimre Bainc'!$W$32 -> 0 | O109: 0 | Q109: =IF(COA!$E$102="Y","Show","Hide") -> Show | R109: Costas na hIdirbhliana | S109: 0 | T109: 0
B110: Costas na Tacaíochta Foghlama | C110: ='Leathnach Achoimre Bainc'!$X$21 -> 0 | D110: ='Leathnach Achoimre Bainc'!$X$22 -> 0 | E110: ='Leathnach Achoimre Bainc'!$X$23 -> 0 | F110: ='Leathnach Achoimre Bainc'!$X$24 -> 0 | G110: ='Leathnach Achoimre Bainc'!$X$25 -> 0 | H110: ='Leathnach Achoimre Bainc'!$X$26 -> 0 | I110: ='Leathnach Achoimre Bainc'!$X$27 -> 0 | J110: ='Leathnach Achoimre Bainc'!$X$28 -> 0 | K110: ='Leathnach Achoimre Bainc'!$X$29 -> 0 | L110: ='Leathnach Achoimre Bainc'!$X$30 -> 0 | M110: ='Leathnach Achoimre Bainc'!$X$31 -> 0 | N110: ='Leathnach Achoimre Bainc'!$X$32 -> 0 | O110: 0 | Q110: =IF(COA!$E$103="Y","Show","Hide") -> Show | R110: Costas na Tacaíochta Foghlama | S110: 0 | T110: 0
B111: Costas Inseirbhíse agus Oiliúna Múinteoirí | C111: ='Leathnach Achoimre Bainc'!$Y$21 -> 0 | D111: ='Leathnach Achoimre Bainc'!$Y$22 -> 0 | E111: ='Leathnach Achoimre Bainc'!$Y$23 -> 0 | F111: ='Leathnach Achoimre Bainc'!$Y$24 -> 0 | G111: ='Leathnach Achoimre Bainc'!$Y$25 -> 0 | H111: ='Leathnach Achoimre Bainc'!$Y$26 -> 0 | I111: ='Leathnach Achoimre Bainc'!$Y$27 -> 0 | J111: ='Leathnach Achoimre Bainc'!$Y$28 -> 0 | K111: ='Leathnach Achoimre Bainc'!$Y$29 -> 0 | L111: ='Leathnach Achoimre Bainc'!$Y$30 -> 0 | M111: ='Leathnach Achoimre Bainc'!$Y$31 -> 0 | N111: ='Leathnach Achoimre Bainc'!$Y$32 -> 0 | O111: 0 | Q111: =IF(COA!$E$104="Y","Show","Hide") -> Show | R111: Costas Inseirbhíse agus Oiliúna Múinteoirí | S111: 0 | T111: 0
B112: Costais i leith Folláine Mac Léinn | C112: ='Leathnach Achoimre Bainc'!$Z$21 -> 0 | D112: ='Leathnach Achoimre Bainc'!$Z$22 -> 0 | E112: ='Leathnach Achoimre Bainc'!$Z$23 -> 0 | F112: ='Leathnach Achoimre Bainc'!$Z$24 -> 0 | G112: ='Leathnach Achoimre Bainc'!$Z$25 -> 0 | H112: ='Leathnach Achoimre Bainc'!$Z$26 -> 0 | I112: ='Leathnach Achoimre Bainc'!$Z$27 -> 0 | J112: ='Leathnach Achoimre Bainc'!$Z$28 -> 0 | K112: ='Leathnach Achoimre Bainc'!$Z$29 -> 0 | L112: ='Leathnach Achoimre Bainc'!$Z$30 -> 0 | M112: ='Leathnach Achoimre Bainc'!$Z$31 -> 0 | N112: ='Leathnach Achoimre Bainc'!$Z$32 -> 0 | O112: 0 | Q112: =IF(COA!$E$105="Y","Show","Hide") -> Show | R112: Costais i leith Folláine Mac Léinn | S112: 0 | T112: 0
B113: Caiteachas Leabharlainne nach Maoinítear Deontas | C113: ='Leathnach Achoimre Bainc'!$AA$21 -> 0 | D113: ='Leathnach Achoimre Bainc'!$AA$22 -> 0 | E113: ='Leathnach Achoimre Bainc'!$AA$23 -> 0 | F113: ='Leathnach Achoimre Bainc'!$AA$24 -> 0 | G113: ='Leathnach Achoimre Bainc'!$AA$25 -> 0 | H113: ='Leathnach Achoimre Bainc'!$AA$26 -> 0 | I113: ='Leathnach Achoimre Bainc'!$AA$27 -> 0 | J113: ='Leathnach Achoimre Bainc'!$AA$28 -> 0 | K113: ='Leathnach Achoimre Bainc'!$AA$29 -> 0 | L113: ='Leathnach Achoimre Bainc'!$AA$30 -> 0 | M113: ='Leathnach Achoimre Bainc'!$AA$31 -> 0 | N113: ='Leathnach Achoimre Bainc'!$AA$32 -> 0 | O113: 0 | Q113: =IF(COA!$E$106="Y","Show","Hide") -> Show | R113: Caiteachas Leabharlainne nach Maoinítear Deontas | S113: 0 | T113: 0
B114: Caiteachas Deontas Caipitil Leabhair Leabharlainne Scoile | C114: ='Leathnach Achoimre Bainc'!$AB$21 -> 0 | D114: ='Leathnach Achoimre Bainc'!$AB$22 -> 0 | E114: ='Leathnach Achoimre Bainc'!$AB$23 -> 0 | F114: ='Leathnach Achoimre Bainc'!$AB$24 -> 0 | G114: ='Leathnach Achoimre Bainc'!$AB$25 -> 0 | H114: ='Leathnach Achoimre Bainc'!$AB$26 -> 0 | I114: ='Leathnach Achoimre Bainc'!$AB$27 -> 0 | J114: ='Leathnach Achoimre Bainc'!$AB$28 -> 0 | K114: ='Leathnach Achoimre Bainc'!$AB$29 -> 0 | L114: ='Leathnach Achoimre Bainc'!$AB$30 -> 0 | M114: ='Leathnach Achoimre Bainc'!$AB$31 -> 0 | N114: ='Leathnach Achoimre Bainc'!$AB$32 -> 0 | O114: 0 | Q114: =IF(COA!$E$107="Y","Show","Hide") -> Show | R114: Caiteachas Deontas Caipitil Leabhair Leabharlainne Scoile | S114: 0 | T114: 0
B115: Costas Corpoideachais | C115: ='Leathnach Achoimre Bainc'!$AC$21 -> 0 | D115: ='Leathnach Achoimre Bainc'!$AC$22 -> 0 | E115: ='Leathnach Achoimre Bainc'!$AC$23 -> 0 | F115: ='Leathnach Achoimre Bainc'!$AC$24 -> 0 | G115: ='Leathnach Achoimre Bainc'!$AC$25 -> 0 | H115: ='Leathnach Achoimre Bainc'!$AC$26 -> 0 | I115: ='Leathnach Achoimre Bainc'!$AC$27 -> 0 | J115: ='Leathnach Achoimre Bainc'!$AC$28 -> 0 | K115: ='Leathnach Achoimre Bainc'!$AC$29 -> 0 | L115: ='Leathnach Achoimre Bainc'!$AC$30 -> 0 | M115: ='Leathnach Achoimre Bainc'!$AC$31 -> 0 | N115: ='Leathnach Achoimre Bainc'!$AC$32 -> 0 | O115: 0 | Q115: =IF(COA!$E$108="Y","Show","Hide") -> Show | R115: Costas Corpoideachais | S115: 0 | T115: 0
B116: Costas Cluichí (gan taisteal san áireamh) | C116: ='Leathnach Achoimre Bainc'!$AD$21 -> 0 | D116: ='Leathnach Achoimre Bainc'!$AD$22 -> 0 | E116: ='Leathnach Achoimre Bainc'!$AD$23 -> 0 | F116: ='Leathnach Achoimre Bainc'!$AD$24 -> 0 | G116: ='Leathnach Achoimre Bainc'!$AD$25 -> 0 | H116: ='Leathnach Achoimre Bainc'!$AD$26 -> 0 | I116: ='Leathnach Achoimre Bainc'!$AD$27 -> 0 | J116: ='Leathnach Achoimre Bainc'!$AD$28 -> 0 | K116: ='Leathnach Achoimre Bainc'!$AD$29 -> 0 | L116: ='Leathnach Achoimre Bainc'!$AD$30 -> 0 | M116: ='Leathnach Achoimre Bainc'!$AD$31 -> 0 | N116: ='Leathnach Achoimre Bainc'!$AD$32 -> 0 | O116: 0 | Q116: =IF(COA!$E$109="Y","Show","Hide") -> Show | R116: Costas Cluichí (gan taisteal san áireamh) | S116: 0 | T116: 0
B117: Costas Taistil go Cluichí | C117: ='Leathnach Achoimre Bainc'!$AE$21 -> 0 | D117: ='Leathnach Achoimre Bainc'!$AE$22 -> 0 | E117: ='Leathnach Achoimre Bainc'!$AE$23 -> 0 | F117: ='Leathnach Achoimre Bainc'!$AE$24 -> 0 | G117: ='Leathnach Achoimre Bainc'!$AE$25 -> 0 | H117: ='Leathnach Achoimre Bainc'!$AE$26 -> 0 | I117: ='Leathnach Achoimre Bainc'!$AE$27 -> 0 | J117: ='Leathnach Achoimre Bainc'!$AE$28 -> 0 | K117: ='Leathnach Achoimre Bainc'!$AE$29 -> 0 | L117: ='Leathnach Achoimre Bainc'!$AE$30 -> 0 | M117: ='Leathnach Achoimre Bainc'!$AE$31 -> 0 | N117: ='Leathnach Achoimre Bainc'!$AE$32 -> 0 | O117: 0 | Q117: =IF(COA!$E$110="Y","Show","Hide") -> Show | R117: Costas Taistil go Cluichí | S117: 0 | T117: 0
B118: Costas Fruilithe Busanna | C118: ='Leathnach Achoimre Bainc'!$AF$21 -> 0 | D118: ='Leathnach Achoimre Bainc'!$AF$22 -> 0 | E118: ='Leathnach Achoimre Bainc'!$AF$23 -> 0 | F118: ='Leathnach Achoimre Bainc'!$AF$24 -> 0 | G118: ='Leathnach Achoimre Bainc'!$AF$25 -> 0 | H118: ='Leathnach Achoimre Bainc'!$AF$26 -> 0 | I118: ='Leathnach Achoimre Bainc'!$AF$27 -> 0 | J118: ='Leathnach Achoimre Bainc'!$AF$28 -> 0 | K118: ='Leathnach Achoimre Bainc'!$AF$29 -> 0 | L118: ='Leathnach Achoimre Bainc'!$AF$30 -> 0 | M118: ='Leathnach Achoimre Bainc'!$AF$31 -> 0 | N118: ='Leathnach Achoimre Bainc'!$AF$32 -> 0 | O118: 0 | Q118: =IF(COA!$E$111="Y","Show","Hide") -> Show | R118: Costas Fruilithe Busanna | S118: 0 | T118: 0
B119: Costas Turas Scoile | C119: ='Leathnach Achoimre Bainc'!$AG$21 -> 0 | D119: ='Leathnach Achoimre Bainc'!$AG$22 -> 0 | E119: ='Leathnach Achoimre Bainc'!$AG$23 -> 0 | F119: ='Leathnach Achoimre Bainc'!$AG$24 -> 0 | G119: ='Leathnach Achoimre Bainc'!$AG$25 -> 0 | H119: ='Leathnach Achoimre Bainc'!$AG$26 -> 0 | I119: ='Leathnach Achoimre Bainc'!$AG$27 -> 0 | J119: ='Leathnach Achoimre Bainc'!$AG$28 -> 0 | K119: ='Leathnach Achoimre Bainc'!$AG$29 -> 0 | L119: ='Leathnach Achoimre Bainc'!$AG$30 -> 0 | M119: ='Leathnach Achoimre Bainc'!$AG$31 -> 0 | N119: ='Leathnach Achoimre Bainc'!$AG$32 -> 0 | O119: 0 | Q119: =IF(COA!$E$112="Y","Show","Hide") -> Show | R119: Costas Turas Scoile | S119: 0 | T119: 0
B120: Costas Ceoldráma/Dráma Scoile | C120: ='Leathnach Achoimre Bainc'!$AH$21 -> 0 | D120: ='Leathnach Achoimre Bainc'!$AH$22 -> 0 | E120: ='Leathnach Achoimre Bainc'!$AH$23 -> 0 | F120: ='Leathnach Achoimre Bainc'!$AH$24 -> 0 | G120: ='Leathnach Achoimre Bainc'!$AH$25 -> 0 | H120: ='Leathnach Achoimre Bainc'!$AH$26 -> 0 | I120: ='Leathnach Achoimre Bainc'!$AH$27 -> 0 | J120: ='Leathnach Achoimre Bainc'!$AH$28 -> 0 | K120: ='Leathnach Achoimre Bainc'!$AH$29 -> 0 | L120: ='Leathnach Achoimre Bainc'!$AH$30 -> 0 | M120: ='Leathnach Achoimre Bainc'!$AH$31 -> 0 | N120: ='Leathnach Achoimre Bainc'!$AH$32 -> 0 | O120: 0 | Q120: =IF(COA!$E$113="Y","Show","Hide") -> Show | R120: Costas Ceoldráma/Dráma Scoile | S120: 0 | T120: 0
B121: Costas Dheontas na Leabhar | C121: ='Leathnach Achoimre Bainc'!$AI$21 -> 0 | D121: ='Leathnach Achoimre Bainc'!$AI$22 -> 0 | E121: ='Leathnach Achoimre Bainc'!$AI$23 -> 0 | F121: ='Leathnach Achoimre Bainc'!$AI$24 -> 0 | G121: ='Leathnach Achoimre Bainc'!$AI$25 -> 0 | H121: ='Leathnach Achoimre Bainc'!$AI$26 -> 0 | I121: ='Leathnach Achoimre Bainc'!$AI$27 -> 0 | J121: ='Leathnach Achoimre Bainc'!$AI$28 -> 0 | K121: ='Leathnach Achoimre Bainc'!$AI$29 -> 0 | L121: ='Leathnach Achoimre Bainc'!$AI$30 -> 0 | M121: ='Leathnach Achoimre Bainc'!$AI$31 -> 0 | N121: ='Leathnach Achoimre Bainc'!$AI$32 -> 0 | O121: 0 | Q121: =IF(COA!$E$114="Y","Show","Hide") -> Show | R121: Costas Dheontas na Leabhar | S121: 0 | T121: 0
B122: Costas Scéim na Leabhar ar Cíos | C122: ='Leathnach Achoimre Bainc'!$AJ$21 -> 0 | D122: ='Leathnach Achoimre Bainc'!$AJ$22 -> 0 | E122: ='Leathnach Achoimre Bainc'!$AJ$23 -> 0 | F122: ='Leathnach Achoimre Bainc'!$AJ$24 -> 0 | G122: ='Leathnach Achoimre Bainc'!$AJ$25 -> 0 | H122: ='Leathnach Achoimre Bainc'!$AJ$26 -> 0 | I122: ='Leathnach Achoimre Bainc'!$AJ$27 -> 0 | J122: ='Leathnach Achoimre Bainc'!$AJ$28 -> 0 | K122: ='Leathnach Achoimre Bainc'!$AJ$29 -> 0 | L122: ='Leathnach Achoimre Bainc'!$AJ$30 -> 0 | M122: ='Leathnach Achoimre Bainc'!$AJ$31 -> 0 | N122: ='Leathnach Achoimre Bainc'!$AJ$32 -> 0 | O122: 0 | Q122: =IF(COA!$E$115="Y","Show","Hide") -> Show | R122: Costas Scéim na Leabhar ar Cíos | S122: 0 | T122: 0
B123: Costais Leabhar Seomra Ranga | C123: ='Leathnach Achoimre Bainc'!$AK$21 -> 0 | D123: ='Leathnach Achoimre Bainc'!$AK$22 -> 0 | E123: ='Leathnach Achoimre Bainc'!$AK$23 -> 0 | F123: ='Leathnach Achoimre Bainc'!$AK$24 -> 0 | G123: ='Leathnach Achoimre Bainc'!$AK$25 -> 0 | H123: ='Leathnach Achoimre Bainc'!$AK$26 -> 0 | I123: ='Leathnach Achoimre Bainc'!$AK$27 -> 0 | J123: ='Leathnach Achoimre Bainc'!$AK$28 -> 0 | K123: ='Leathnach Achoimre Bainc'!$AK$29 -> 0 | L123: ='Leathnach Achoimre Bainc'!$AK$30 -> 0 | M123: ='Leathnach Achoimre Bainc'!$AK$31 -> 0 | N123: ='Leathnach Achoimre Bainc'!$AK$32 -> 0 | O123: 0 | Q123: =IF(COA!$E$116="Y","Show","Hide") -> Show | R123: Costais Leabhar Seomra Ranga | S123: 0 | T123: 0
B124: Costas Bliainirisí/Dialanna Scoile | C124: ='Leathnach Achoimre Bainc'!$AL$21 -> 0 | D124: ='Leathnach Achoimre Bainc'!$AL$22 -> 0 | E124: ='Leathnach Achoimre Bainc'!$AL$23 -> 0 | F124: ='Leathnach Achoimre Bainc'!$AL$24 -> 0 | G124: ='Leathnach Achoimre Bainc'!$AL$25 -> 0 | H124: ='Leathnach Achoimre Bainc'!$AL$26 -> 0 | I124: ='Leathnach Achoimre Bainc'!$AL$27 -> 0 | J124: ='Leathnach Achoimre Bainc'!$AL$28 -> 0 | K124: ='Leathnach Achoimre Bainc'!$AL$29 -> 0 | L124: ='Leathnach Achoimre Bainc'!$AL$30 -> 0 | M124: ='Leathnach Achoimre Bainc'!$AL$31 -> 0 | N124: ='Leathnach Achoimre Bainc'!$AL$32 -> 0 | O124: 0 | Q124: =IF(COA!$E$117="Y","Show","Hide") -> Show | R124: Costas Bliainirisí/Dialanna Scoile | S124: 0 | T124: 0
B125: Costas Trófaithe agus Duaiseanna | C125: ='Leathnach Achoimre Bainc'!$AM$21 -> 0 | D125: ='Leathnach Achoimre Bainc'!$AM$22 -> 0 | E125: ='Leathnach Achoimre Bainc'!$AM$23 -> 0 | F125: ='Leathnach Achoimre Bainc'!$AM$24 -> 0 | G125: ='Leathnach Achoimre Bainc'!$AM$25 -> 0 | H125: ='Leathnach Achoimre Bainc'!$AM$26 -> 0 | I125: ='Leathnach Achoimre Bainc'!$AM$27 -> 0 | J125: ='Leathnach Achoimre Bainc'!$AM$28 -> 0 | K125: ='Leathnach Achoimre Bainc'!$AM$29 -> 0 | L125: ='Leathnach Achoimre Bainc'!$AM$30 -> 0 | M125: ='Leathnach Achoimre Bainc'!$AM$31 -> 0 | N125: ='Leathnach Achoimre Bainc'!$AM$32 -> 0 | O125: 0 | Q125: =IF(COA!$E$118="Y","Show","Hide") -> Show | R125: Costas Trófaithe agus Duaiseanna | S125: 0 | T125: 0
B126: Costas Éidí | C126: ='Leathnach Achoimre Bainc'!$AN$21 -> 0 | D126: ='Leathnach Achoimre Bainc'!$AN$22 -> 0 | E126: ='Leathnach Achoimre Bainc'!$AN$23 -> 0 | F126: ='Leathnach Achoimre Bainc'!$AN$24 -> 0 | G126: ='Leathnach Achoimre Bainc'!$AN$25 -> 0 | H126: ='Leathnach Achoimre Bainc'!$AN$26 -> 0 | I126: ='Leathnach Achoimre Bainc'!$AN$27 -> 0 | J126: ='Leathnach Achoimre Bainc'!$AN$28 -> 0 | K126: ='Leathnach Achoimre Bainc'!$AN$29 -> 0 | L126: ='Leathnach Achoimre Bainc'!$AN$30 -> 0 | M126: ='Leathnach Achoimre Bainc'!$AN$31 -> 0 | N126: ='Leathnach Achoimre Bainc'!$AN$32 -> 0 | O126: 0 | Q126: =IF(COA!$E$119="Y","Show","Hide") -> Show | R126: Costas Éidí | S126: 0 | T126: 0
B127: Costas na Teagmhála idir an Baile agus an Scoil | C127: ='Leathnach Achoimre Bainc'!$AO$21 -> 0 | D127: ='Leathnach Achoimre Bainc'!$AO$22 -> 0 | E127: ='Leathnach Achoimre Bainc'!$AO$23 -> 0 | F127: ='Leathnach Achoimre Bainc'!$AO$24 -> 0 | G127: ='Leathnach Achoimre Bainc'!$AO$25 -> 0 | H127: ='Leathnach Achoimre Bainc'!$AO$26 -> 0 | I127: ='Leathnach Achoimre Bainc'!$AO$27 -> 0 | J127: ='Leathnach Achoimre Bainc'!$AO$28 -> 0 | K127: ='Leathnach Achoimre Bainc'!$AO$29 -> 0 | L127: ='Leathnach Achoimre Bainc'!$AO$30 -> 0 | M127: ='Leathnach Achoimre Bainc'!$AO$31 -> 0 | N127: ='Leathnach Achoimre Bainc'!$AO$32 -> 0 | O127: 0 | Q127: =IF(COA!$E$120="Y","Show","Hide") -> Show | R127: Costas na Teagmhála idir an Baile agus an Scoil | S127: 0 | T127: 0
B128: Costas an Chiste Barr Feabhais Scoileanna | C128: ='Leathnach Achoimre Bainc'!$AP$21 -> 0 | D128: ='Leathnach Achoimre Bainc'!$AP$22 -> 0 | E128: ='Leathnach Achoimre Bainc'!$AP$23 -> 0 | F128: ='Leathnach Achoimre Bainc'!$AP$24 -> 0 | G128: ='Leathnach Achoimre Bainc'!$AP$25 -> 0 | H128: ='Leathnach Achoimre Bainc'!$AP$26 -> 0 | I128: ='Leathnach Achoimre Bainc'!$AP$27 -> 0 | J128: ='Leathnach Achoimre Bainc'!$AP$28 -> 0 | K128: ='Leathnach Achoimre Bainc'!$AP$29 -> 0 | L128: ='Leathnach Achoimre Bainc'!$AP$30 -> 0 | M128: ='Leathnach Achoimre Bainc'!$AP$31 -> 0 | N128: ='Leathnach Achoimre Bainc'!$AP$32 -> 0 | O128: 0 | Q128: =IF(COA!$E$121="Y","Show","Hide") -> Show | R128: Costas an Chiste Barr Feabhais Scoileanna | S128: 0 | T128: 0
B129: Costais Eile Campaí Samhraidh | C129: ='Leathnach Achoimre Bainc'!$AQ$21 -> 0 | D129: ='Leathnach Achoimre Bainc'!$AQ$22 -> 0 | E129: ='Leathnach Achoimre Bainc'!$AQ$23 -> 0 | F129: ='Leathnach Achoimre Bainc'!$AQ$24 -> 0 | G129: ='Leathnach Achoimre Bainc'!$AQ$25 -> 0 | H129: ='Leathnach Achoimre Bainc'!$AQ$26 -> 0 | I129: ='Leathnach Achoimre Bainc'!$AQ$27 -> 0 | J129: ='Leathnach Achoimre Bainc'!$AQ$28 -> 0 | K129: ='Leathnach Achoimre Bainc'!$AQ$29 -> 0 | L129: ='Leathnach Achoimre Bainc'!$AQ$30 -> 0 | M129: ='Leathnach Achoimre Bainc'!$AQ$31 -> 0 | N129: ='Leathnach Achoimre Bainc'!$AQ$32 -> 0 | O129: 0 | Q129: =IF(COA!$E$122="Y","Show","Hide") -> Show | R129: Costais Eile Campaí Samhraidh | S129: 0 | T129: 0
B130: Costais Sholáthar Eile Samhraidh | C130: ='Leathnach Achoimre Bainc'!$AR$21 -> 0 | D130: ='Leathnach Achoimre Bainc'!$AR$22 -> 0 | E130: ='Leathnach Achoimre Bainc'!$AR$23 -> 0 | F130: ='Leathnach Achoimre Bainc'!$AR$24 -> 0 | G130: ='Leathnach Achoimre Bainc'!$AR$25 -> 0 | H130: ='Leathnach Achoimre Bainc'!$AR$26 -> 0 | I130: ='Leathnach Achoimre Bainc'!$AR$27 -> 0 | J130: ='Leathnach Achoimre Bainc'!$AR$28 -> 0 | K130: ='Leathnach Achoimre Bainc'!$AR$29 -> 0 | L130: ='Leathnach Achoimre Bainc'!$AR$30 -> 0 | M130: ='Leathnach Achoimre Bainc'!$AR$31 -> 0 | N130: ='Leathnach Achoimre Bainc'!$AR$32 -> 0 | O130: 0 | Q130: =IF(COA!$E$123="Y","Show","Hide") -> Show | R130: Costais Sholáthar Eile Samhraidh | S130: 0 | T130: 0
B131: Costas Oideachais Eile | C131: ='Leathnach Achoimre Bainc'!$AS$21 -> 0 | D131: ='Leathnach Achoimre Bainc'!$AS$22 -> 0 | E131: ='Leathnach Achoimre Bainc'!$AS$23 -> 0 | F131: ='Leathnach Achoimre Bainc'!$AS$24 -> 0 | G131: ='Leathnach Achoimre Bainc'!$AS$25 -> 0 | H131: ='Leathnach Achoimre Bainc'!$AS$26 -> 0 | I131: ='Leathnach Achoimre Bainc'!$AS$27 -> 0 | J131: ='Leathnach Achoimre Bainc'!$AS$28 -> 0 | K131: ='Leathnach Achoimre Bainc'!$AS$29 -> 0 | L131: ='Leathnach Achoimre Bainc'!$AS$30 -> 0 | M131: ='Leathnach Achoimre Bainc'!$AS$31 -> 0 | N131: ='Leathnach Achoimre Bainc'!$AS$32 -> 0 | O131: 0 | Q131: =IF(COA!$E$124="Y","Show","Hide") -> Show | R131: Costas Oideachais Eile | S131: 0 | T131: 0
B132: Costas Ghníomhaíochtaí na Roinne Leanaí agus Gnóthaí Óige | C132: ='Leathnach Achoimre Bainc'!$AT$21 -> 0 | D132: ='Leathnach Achoimre Bainc'!$AT$22 -> 0 | E132: ='Leathnach Achoimre Bainc'!$AT$23 -> 0 | F132: ='Leathnach Achoimre Bainc'!$AT$24 -> 0 | G132: ='Leathnach Achoimre Bainc'!$AT$25 -> 0 | H132: ='Leathnach Achoimre Bainc'!$AT$26 -> 0 | I132: ='Leathnach Achoimre Bainc'!$AT$27 -> 0 | J132: ='Leathnach Achoimre Bainc'!$AT$28 -> 0 | K132: ='Leathnach Achoimre Bainc'!$AT$29 -> 0 | L132: ='Leathnach Achoimre Bainc'!$AT$30 -> 0 | M132: ='Leathnach Achoimre Bainc'!$AT$31 -> 0 | N132: ='Leathnach Achoimre Bainc'!$AT$32 -> 0 | O132: 0 | Q132: =IF(COA!$E$125="Y","Show","Hide") -> Show | R132: Costas Ghníomhaíochtaí na Roinne Leanaí agus Gnóthaí Óige | S132: 0 | T132: 0
B133: Costais Bia Béilí Scoileanna na Roinne Coimirce Sóisialaí | C133: ='Leathnach Achoimre Bainc'!$AU$21 -> 0 | D133: ='Leathnach Achoimre Bainc'!$AU$22 -> 0 | E133: ='Leathnach Achoimre Bainc'!$AU$23 -> 0 | F133: ='Leathnach Achoimre Bainc'!$AU$24 -> 0 | G133: ='Leathnach Achoimre Bainc'!$AU$25 -> 0 | H133: ='Leathnach Achoimre Bainc'!$AU$26 -> 0 | I133: ='Leathnach Achoimre Bainc'!$AU$27 -> 0 | J133: ='Leathnach Achoimre Bainc'!$AU$28 -> 0 | K133: ='Leathnach Achoimre Bainc'!$AU$29 -> 0 | L133: ='Leathnach Achoimre Bainc'!$AU$30 -> 0 | M133: ='Leathnach Achoimre Bainc'!$AU$31 -> 0 | N133: ='Leathnach Achoimre Bainc'!$AU$32 -> 0 | O133: 0 | Q133: =IF(COA!$E$126="Y","Show","Hide") -> Show | R133: Costais Bia Béilí Scoileanna na Roinne Coimirce Sóisialaí | S133: 0 | T133: 0
B134: Costas Erasmus | C134: ='Leathnach Achoimre Bainc'!$AV$21 -> 0 | D134: ='Leathnach Achoimre Bainc'!$AV$22 -> 0 | E134: ='Leathnach Achoimre Bainc'!$AV$23 -> 0 | F134: ='Leathnach Achoimre Bainc'!$AV$24 -> 0 | G134: ='Leathnach Achoimre Bainc'!$AV$25 -> 0 | H134: ='Leathnach Achoimre Bainc'!$AV$26 -> 0 | I134: ='Leathnach Achoimre Bainc'!$AV$27 -> 0 | J134: ='Leathnach Achoimre Bainc'!$AV$28 -> 0 | K134: ='Leathnach Achoimre Bainc'!$AV$29 -> 0 | L134: ='Leathnach Achoimre Bainc'!$AV$30 -> 0 | M134: ='Leathnach Achoimre Bainc'!$AV$31 -> 0 | N134: ='Leathnach Achoimre Bainc'!$AV$32 -> 0 | O134: 0 | Q134: =IF(COA!$E$127="Y","Show","Hide") -> Show | R134: Costas Erasmus | S134: 0 | T134: 0
B135: Costais Deontais Neamhchaipitil Eile RO | C135: ='Leathnach Achoimre Bainc'!$AW$21 -> 0 | D135: ='Leathnach Achoimre Bainc'!$AW$22 -> 0 | E135: ='Leathnach Achoimre Bainc'!$AW$23 -> 0 | F135: ='Leathnach Achoimre Bainc'!$AW$24 -> 0 | G135: ='Leathnach Achoimre Bainc'!$AW$25 -> 0 | H135: ='Leathnach Achoimre Bainc'!$AW$26 -> 0 | I135: ='Leathnach Achoimre Bainc'!$AW$27 -> 0 | J135: ='Leathnach Achoimre Bainc'!$AW$28 -> 0 | K135: ='Leathnach Achoimre Bainc'!$AW$29 -> 0 | L135: ='Leathnach Achoimre Bainc'!$AW$30 -> 0 | M135: ='Leathnach Achoimre Bainc'!$AW$31 -> 0 | N135: ='Leathnach Achoimre Bainc'!$AW$32 -> 0 | O135: =SUM(C135:N135) -> 0 | Q135: =IF(COA!$E$128="Y","Show","Hide") -> Show | R135: Costais Deontais Neamhchaipitil Eile RO | S135: 0 | T135: 0
B136: Costais Eile Ceaintín | C136: ='Leathnach Achoimre Bainc'!$AX$21 -> 0 | D136: ='Leathnach Achoimre Bainc'!$AX$22 -> 0 | E136: ='Leathnach Achoimre Bainc'!$AX$23 -> 0 | F136: ='Leathnach Achoimre Bainc'!$AX$24 -> 0 | G136: ='Leathnach Achoimre Bainc'!$AX$25 -> 0 | H136: ='Leathnach Achoimre Bainc'!$AX$26 -> 0 | I136: ='Leathnach Achoimre Bainc'!$AX$27 -> 0 | J136: ='Leathnach Achoimre Bainc'!$AX$28 -> 0 | K136: ='Leathnach Achoimre Bainc'!$AX$29 -> 0 | L136: ='Leathnach Achoimre Bainc'!$AX$30 -> 0 | M136: ='Leathnach Achoimre Bainc'!$AX$31 -> 0 | N136: ='Leathnach Achoimre Bainc'!$AX$32 -> 0 | O136: 0 | Q136: =IF(COA!$E$129="Y","Show","Hide") -> Show | R136: Costais Eile Ceaintín | S136: 0 | T136: 0
B137: Costas Árachais Daltaí | C137: ='Leathnach Achoimre Bainc'!$AY$21 -> 0 | D137: ='Leathnach Achoimre Bainc'!$AY$22 -> 0 | E137: ='Leathnach Achoimre Bainc'!$AY$23 -> 0 | F137: ='Leathnach Achoimre Bainc'!$AY$24 -> 0 | G137: ='Leathnach Achoimre Bainc'!$AY$25 -> 0 | H137: ='Leathnach Achoimre Bainc'!$AY$26 -> 0 | I137: ='Leathnach Achoimre Bainc'!$AY$27 -> 0 | J137: ='Leathnach Achoimre Bainc'!$AY$28 -> 0 | K137: ='Leathnach Achoimre Bainc'!$AY$29 -> 0 | L137: ='Leathnach Achoimre Bainc'!$AY$30 -> 0 | M137: ='Leathnach Achoimre Bainc'!$AY$31 -> 0 | N137: ='Leathnach Achoimre Bainc'!$AY$32 -> 0 | O137: 0 | Q137: =IF(COA!$E$130="Y","Show","Hide") -> Show | R137: Costas Árachais Daltaí | S137: 0 | T137: 0
B138: Costas Trialacha Caighdeánaithe | C138: ='Leathnach Achoimre Bainc'!$AZ$21 -> 0 | D138: ='Leathnach Achoimre Bainc'!$AZ$22 -> 0 | E138: ='Leathnach Achoimre Bainc'!$AZ$23 -> 0 | F138: ='Leathnach Achoimre Bainc'!$AZ$24 -> 0 | G138: ='Leathnach Achoimre Bainc'!$AZ$25 -> 0 | H138: ='Leathnach Achoimre Bainc'!$AZ$26 -> 0 | I138: ='Leathnach Achoimre Bainc'!$AZ$27 -> 0 | J138: ='Leathnach Achoimre Bainc'!$AZ$28 -> 0 | K138: ='Leathnach Achoimre Bainc'!$AZ$29 -> 0 | L138: ='Leathnach Achoimre Bainc'!$AZ$30 -> 0 | M138: ='Leathnach Achoimre Bainc'!$AZ$31 -> 0 | N138: ='Leathnach Achoimre Bainc'!$AZ$32 -> 0 | O138: 0 | Q138: =IF(COA!$E$131="Y","Show","Hide") -> Show | R138: Costas Trialacha Caighdeánaithe | S138: 0 | T138: 0
B139: Caiteachas Ainmnithe (Neamhchaipitiúil) | C139: ='Leathnach Achoimre Bainc'!$BA$21 -> 0 | D139: ='Leathnach Achoimre Bainc'!$BA$22 -> 0 | E139: ='Leathnach Achoimre Bainc'!$BA$23 -> 0 | F139: ='Leathnach Achoimre Bainc'!$BA$24 -> 0 | G139: ='Leathnach Achoimre Bainc'!$BA$25 -> 0 | H139: ='Leathnach Achoimre Bainc'!$BA$26 -> 0 | I139: ='Leathnach Achoimre Bainc'!$BA$27 -> 0 | J139: ='Leathnach Achoimre Bainc'!$BA$28 -> 0 | K139: ='Leathnach Achoimre Bainc'!$BA$29 -> 0 | L139: ='Leathnach Achoimre Bainc'!$BA$30 -> 0 | M139: ='Leathnach Achoimre Bainc'!$BA$31 -> 0 | N139: ='Leathnach Achoimre Bainc'!$BA$32 -> 0 | O139: 0 | Q139: =IF(COA!$E$132="Y","Show","Hide") -> Show | R139: Caiteachas Ainmnithe (Neamhchaipitiúil) | S139: 0 | T139: 0
B140: Costas Trealaimh Oideachais Speisialta (Neamhchaipitiúil) | C140: ='Leathnach Achoimre Bainc'!$BB$21 -> 0 | D140: ='Leathnach Achoimre Bainc'!$BB$22 -> 0 | E140: ='Leathnach Achoimre Bainc'!$BB$23 -> 0 | F140: ='Leathnach Achoimre Bainc'!$BB$24 -> 0 | G140: ='Leathnach Achoimre Bainc'!$BB$25 -> 0 | H140: ='Leathnach Achoimre Bainc'!$BB$26 -> 0 | I140: ='Leathnach Achoimre Bainc'!$BB$27 -> 0 | J140: ='Leathnach Achoimre Bainc'!$BB$28 -> 0 | K140: ='Leathnach Achoimre Bainc'!$BB$29 -> 0 | L140: ='Leathnach Achoimre Bainc'!$BB$30 -> 0 | M140: ='Leathnach Achoimre Bainc'!$BB$31 -> 0 | N140: ='Leathnach Achoimre Bainc'!$BB$32 -> 0 | O140: 0 | Q140: =IF(COA!$E$133="Y","Show","Hide") -> Show | R140: Costas Trealaimh Oideachais Speisialta (Neamhchaipitiúil) | S140: 0 | T140: 0
B141: Costas Damhsa na Scoile | C141: ='Leathnach Achoimre Bainc'!$BC$21 -> 0 | D141: ='Leathnach Achoimre Bainc'!$BC$22 -> 0 | E141: ='Leathnach Achoimre Bainc'!$BC$23 -> 0 | F141: ='Leathnach Achoimre Bainc'!$BC$24 -> 0 | G141: ='Leathnach Achoimre Bainc'!$BC$25 -> 0 | H141: ='Leathnach Achoimre Bainc'!$BC$26 -> 0 | I141: ='Leathnach Achoimre Bainc'!$BC$27 -> 0 | J141: ='Leathnach Achoimre Bainc'!$BC$28 -> 0 | K141: ='Leathnach Achoimre Bainc'!$BC$29 -> 0 | L141: ='Leathnach Achoimre Bainc'!$BC$30 -> 0 | M141: ='Leathnach Achoimre Bainc'!$BC$31 -> 0 | N141: ='Leathnach Achoimre Bainc'!$BC$32 -> 0 | O141: 0 | Q141: =IF(COA!$E$134="Y","Show","Hide") -> Show | R141: Costas Damhsa na Scoile | S141: 0 | T141: 0
B142: Costas Snámha Scoile | C142: ='Leathnach Achoimre Bainc'!$BD$21 -> 0 | D142: ='Leathnach Achoimre Bainc'!$BD$22 -> 0 | E142: ='Leathnach Achoimre Bainc'!$BD$23 -> 0 | F142: ='Leathnach Achoimre Bainc'!$BD$24 -> 0 | G142: ='Leathnach Achoimre Bainc'!$BD$25 -> 0 | H142: ='Leathnach Achoimre Bainc'!$BD$26 -> 0 | I142: ='Leathnach Achoimre Bainc'!$BD$27 -> 0 | J142: ='Leathnach Achoimre Bainc'!$BD$28 -> 0 | K142: ='Leathnach Achoimre Bainc'!$BD$29 -> 0 | L142: ='Leathnach Achoimre Bainc'!$BD$30 -> 0 | M142: ='Leathnach Achoimre Bainc'!$BD$31 -> 0 | N142: ='Leathnach Achoimre Bainc'!$BD$32 -> 0 | O142: 0 | Q142: =IF(COA!$E$135="Y","Show","Hide") -> Show | R142: Costas Snámha Scoile | S142: 0 | T142: 0
B143: Costas Snámha ScoileCostais a bhaineann le Tiomsú Airgid Srianta Scoile (Neamhchaipitiúil) | C143: ='Leathnach Achoimre Bainc'!$BE$21 -> 0 | D143: ='Leathnach Achoimre Bainc'!$BE$22 -> 0 | E143: ='Leathnach Achoimre Bainc'!$BE$23 -> 0 | F143: ='Leathnach Achoimre Bainc'!$BE$24 -> 0 | G143: ='Leathnach Achoimre Bainc'!$BE$25 -> 0 | H143: ='Leathnach Achoimre Bainc'!$BE$26 -> 0 | I143: ='Leathnach Achoimre Bainc'!$BE$27 -> 0 | J143: ='Leathnach Achoimre Bainc'!$BE$28 -> 0 | K143: ='Leathnach Achoimre Bainc'!$BE$29 -> 0 | L143: ='Leathnach Achoimre Bainc'!$BE$30 -> 0 | M143: ='Leathnach Achoimre Bainc'!$BE$31 -> 0 | N143: ='Leathnach Achoimre Bainc'!$BE$32 -> 0 | O143: 0 | Q143: =IF(COA!$E$136="Y","Show","Hide") -> Show | R143: Costas Snámha ScoileCostais a bhaineann le Tiomsú Airgid Srianta Scoile (Neamhchaipitiúil) | S143: 0 | T143: 0
B144: Costais a bhaineann le Tiomsú Airgid Srianta Seachtrach (Neamhchaipitiúil) | C144: ='Leathnach Achoimre Bainc'!$BF$21 -> 0 | D144: ='Leathnach Achoimre Bainc'!$BF$22 -> 0 | E144: ='Leathnach Achoimre Bainc'!$BF$23 -> 0 | F144: ='Leathnach Achoimre Bainc'!$BF$24 -> 0 | G144: ='Leathnach Achoimre Bainc'!$BF$25 -> 0 | H144: ='Leathnach Achoimre Bainc'!$BF$26 -> 0 | I144: ='Leathnach Achoimre Bainc'!$BF$27 -> 0 | J144: ='Leathnach Achoimre Bainc'!$BF$28 -> 0 | K144: ='Leathnach Achoimre Bainc'!$BF$29 -> 0 | L144: ='Leathnach Achoimre Bainc'!$BF$30 -> 0 | M144: ='Leathnach Achoimre Bainc'!$BF$31 -> 0 | N144: ='Leathnach Achoimre Bainc'!$BF$32 -> 0 | O144: 0 | Q144: =IF(COA!$E$137="Y","Show","Hide") -> Show | R144: Costais a bhaineann le Tiomsú Airgid Srianta Seachtrach (Neamhchaipitiúil) | S144: 0 | T144: 0
B145: Costais a bhaineann le Tiomsú Airgid Neamhshrianta Seachtrach (Neamhchaipitiúil) | C145: ='Leathnach Achoimre Bainc'!$BG$21 -> 0 | D145: ='Leathnach Achoimre Bainc'!$BG$22 -> 0 | E145: ='Leathnach Achoimre Bainc'!$BG$23 -> 0 | F145: ='Leathnach Achoimre Bainc'!$BG$24 -> 0 | G145: ='Leathnach Achoimre Bainc'!$BG$25 -> 0 | H145: ='Leathnach Achoimre Bainc'!$BG$26 -> 0 | I145: ='Leathnach Achoimre Bainc'!$BG$27 -> 0 | J145: ='Leathnach Achoimre Bainc'!$BG$28 -> 0 | K145: ='Leathnach Achoimre Bainc'!$BG$29 -> 0 | L145: ='Leathnach Achoimre Bainc'!$BG$30 -> 0 | M145: ='Leathnach Achoimre Bainc'!$BG$31 -> 0 | N145: ='Leathnach Achoimre Bainc'!$BG$32 -> 0 | O145: 0 | Q145: =IF(COA!$E$138="Y","Show","Hide") -> Show | R145: Costais a bhaineann le Tiomsú Airgid Neamhshrianta Seachtrach (Neamhchaipitiúil) | S145: 0 | T145: 0
B146: Costais Tiomsaithe Airgid Neamhshrianta Scoile (Neamhchaipitiúil) | C146: ='Leathnach Achoimre Bainc'!$BH$21 -> 0 | D146: ='Leathnach Achoimre Bainc'!$BH$22 -> 0 | E146: ='Leathnach Achoimre Bainc'!$BH$23 -> 0 | F146: ='Leathnach Achoimre Bainc'!$BH$24 -> 0 | G146: ='Leathnach Achoimre Bainc'!$BH$25 -> 0 | H146: ='Leathnach Achoimre Bainc'!$BH$26 -> 0 | I146: ='Leathnach Achoimre Bainc'!$BH$27 -> 0 | J146: ='Leathnach Achoimre Bainc'!$BH$28 -> 0 | K146: ='Leathnach Achoimre Bainc'!$BH$29 -> 0 | L146: ='Leathnach Achoimre Bainc'!$BH$30 -> 0 | M146: ='Leathnach Achoimre Bainc'!$BH$31 -> 0 | N146: ='Leathnach Achoimre Bainc'!$BH$32 -> 0 | O146: 0 | Q146: =IF(COA!$E$139="Y","Show","Hide") -> Show | R146: Costais Tiomsaithe Airgid Neamhshrianta Scoile (Neamhchaipitiúil) | S146: 0 | T146: 0
B147: Costais Ealaíon agus Ceardaíochta Scoile | C147: ='Leathnach Achoimre Bainc'!$BI$21 -> 0 | D147: ='Leathnach Achoimre Bainc'!$BI$22 -> 0 | E147: ='Leathnach Achoimre Bainc'!$BI$23 -> 0 | F147: ='Leathnach Achoimre Bainc'!$BI$24 -> 0 | G147: ='Leathnach Achoimre Bainc'!$BI$25 -> 0 | H147: ='Leathnach Achoimre Bainc'!$BI$26 -> 0 | I147: ='Leathnach Achoimre Bainc'!$BI$27 -> 0 | J147: ='Leathnach Achoimre Bainc'!$BI$28 -> 0 | K147: ='Leathnach Achoimre Bainc'!$BI$29 -> 0 | L147: ='Leathnach Achoimre Bainc'!$BI$30 -> 0 | M147: ='Leathnach Achoimre Bainc'!$BI$31 -> 0 | N147: ='Leathnach Achoimre Bainc'!$BI$32 -> 0 | O147: 0 | Q147: =IF(COA!$E$140="Y","Show","Hide") -> Show | R147: Costais Ealaíon agus Ceardaíochta Scoile | S147: 0 | T147: 0
B148: Costais Eile FSS | C148: ='Leathnach Achoimre Bainc'!$BJ$21 -> 0 | D148: ='Leathnach Achoimre Bainc'!$BJ$22 -> 0 | E148: ='Leathnach Achoimre Bainc'!$BJ$23 -> 0 | F148: ='Leathnach Achoimre Bainc'!$BJ$24 -> 0 | G148: ='Leathnach Achoimre Bainc'!$BJ$25 -> 0 | H148: ='Leathnach Achoimre Bainc'!$BJ$26 -> 0 | I148: ='Leathnach Achoimre Bainc'!$BJ$27 -> 0 | J148: ='Leathnach Achoimre Bainc'!$BJ$28 -> 0 | K148: ='Leathnach Achoimre Bainc'!$BJ$29 -> 0 | L148: ='Leathnach Achoimre Bainc'!$BJ$30 -> 0 | M148: ='Leathnach Achoimre Bainc'!$BJ$31 -> 0 | N148: ='Leathnach Achoimre Bainc'!$BJ$32 -> 0 | O148: 0 | Q148: =IF(COA!$E$141="Y","Show","Hide") -> Show | R148: Costais Eile FSS | S148: 0 | T148: 0
B149: Costas Réamhscoile | C149: ='Leathnach Achoimre Bainc'!$BK$21 -> 0 | D149: ='Leathnach Achoimre Bainc'!$BK$22 -> 0 | E149: ='Leathnach Achoimre Bainc'!$BK$23 -> 0 | F149: ='Leathnach Achoimre Bainc'!$BK$24 -> 0 | G149: ='Leathnach Achoimre Bainc'!$BK$25 -> 0 | H149: ='Leathnach Achoimre Bainc'!$BK$26 -> 0 | I149: ='Leathnach Achoimre Bainc'!$BK$27 -> 0 | J149: ='Leathnach Achoimre Bainc'!$BK$28 -> 0 | K149: ='Leathnach Achoimre Bainc'!$BK$29 -> 0 | L149: ='Leathnach Achoimre Bainc'!$BK$30 -> 0 | M149: ='Leathnach Achoimre Bainc'!$BK$31 -> 0 | N149: ='Leathnach Achoimre Bainc'!$BK$32 -> 0 | O149: 0 | Q149: =IF(COA!$E$142="Y","Show","Hide") -> Show | R149: Costas Réamhscoile | S149: 0 | T149: 0
B150: Costas Pá Feighlí | C150: ='Leathnach Achoimre Bainc'!$BL$21 -> 0 | D150: ='Leathnach Achoimre Bainc'!$BL$22 -> 0 | E150: ='Leathnach Achoimre Bainc'!$BL$23 -> 0 | F150: ='Leathnach Achoimre Bainc'!$BL$24 -> 0 | G150: ='Leathnach Achoimre Bainc'!$BL$25 -> 0 | H150: ='Leathnach Achoimre Bainc'!$BL$26 -> 0 | I150: ='Leathnach Achoimre Bainc'!$BL$27 -> 0 | J150: ='Leathnach Achoimre Bainc'!$BL$28 -> 0 | K150: ='Leathnach Achoimre Bainc'!$BL$29 -> 0 | L150: ='Leathnach Achoimre Bainc'!$BL$30 -> 0 | M150: ='Leathnach Achoimre Bainc'!$BL$31 -> 0 | N150: ='Leathnach Achoimre Bainc'!$BL$32 -> 0 | O150: 0 | Q150: =IF(COA!$E$143="Y","Show","Hide") -> Show | R150: Costas Pá Feighlí | S150: 0 | T150: 0
B151: Maoiniú COVID le haghaidh Caiteachas maidir le hUaireanta Feighlí Ionaid | C151: ='Leathnach Achoimre Bainc'!$BM$21 -> 0 | D151: ='Leathnach Achoimre Bainc'!$BM$22 -> 0 | E151: ='Leathnach Achoimre Bainc'!$BM$23 -> 0 | F151: ='Leathnach Achoimre Bainc'!$BM$24 -> 0 | G151: ='Leathnach Achoimre Bainc'!$BM$25 -> 0 | H151: ='Leathnach Achoimre Bainc'!$BM$26 -> 0 | I151: ='Leathnach Achoimre Bainc'!$BM$27 -> 0 | J151: ='Leathnach Achoimre Bainc'!$BM$28 -> 0 | K151: ='Leathnach Achoimre Bainc'!$BM$29 -> 0 | L151: ='Leathnach Achoimre Bainc'!$BM$30 -> 0 | M151: ='Leathnach Achoimre Bainc'!$BM$31 -> 0 | N151: ='Leathnach Achoimre Bainc'!$BM$32 -> 0 | O151: 0 | Q151: =IF(COA!$E$144="Y","Show","Hide") -> Show | R151: Maoiniú COVID le haghaidh Caiteachas maidir le hUaireanta Feighlí Ionaid | S151: 0 | T151: 0
B152: Costas Pinsin na bhFeighlithe | C152: ='Leathnach Achoimre Bainc'!$BN$21 -> 0 | D152: ='Leathnach Achoimre Bainc'!$BN$22 -> 0 | E152: ='Leathnach Achoimre Bainc'!$BN$23 -> 0 | F152: ='Leathnach Achoimre Bainc'!$BN$24 -> 0 | G152: ='Leathnach Achoimre Bainc'!$BN$25 -> 0 | H152: ='Leathnach Achoimre Bainc'!$BN$26 -> 0 | I152: ='Leathnach Achoimre Bainc'!$BN$27 -> 0 | J152: ='Leathnach Achoimre Bainc'!$BN$28 -> 0 | K152: ='Leathnach Achoimre Bainc'!$BN$29 -> 0 | L152: ='Leathnach Achoimre Bainc'!$BN$30 -> 0 | M152: ='Leathnach Achoimre Bainc'!$BN$31 -> 0 | N152: ='Leathnach Achoimre Bainc'!$BN$32 -> 0 | O152: 0 | Q152: =IF(COA!$E$145="Y","Show","Hide") -> Show | R152: Costas Pinsin na bhFeighlithe | S152: 0 | T152: 0
B153: Costas Pá Glantóirí | C153: ='Leathnach Achoimre Bainc'!$BO$21 -> 0 | D153: ='Leathnach Achoimre Bainc'!$BO$22 -> 0 | E153: ='Leathnach Achoimre Bainc'!$BO$23 -> 0 | F153: ='Leathnach Achoimre Bainc'!$BO$24 -> 0 | G153: ='Leathnach Achoimre Bainc'!$BO$25 -> 0 | H153: ='Leathnach Achoimre Bainc'!$BO$26 -> 0 | I153: ='Leathnach Achoimre Bainc'!$BO$27 -> 0 | J153: ='Leathnach Achoimre Bainc'!$BO$28 -> 0 | K153: ='Leathnach Achoimre Bainc'!$BO$29 -> 0 | L153: ='Leathnach Achoimre Bainc'!$BO$30 -> 0 | M153: ='Leathnach Achoimre Bainc'!$BO$31 -> 0 | N153: ='Leathnach Achoimre Bainc'!$BO$32 -> 0 | O153: 0 | Q153: =IF(COA!$E$146="Y","Show","Hide") -> Show | R153: Costas Pá Glantóirí | S153: 0 | T153: 0
B154: Maoiniú COVID le haghaidh Caiteachas maidir le hUaireanta Glantóra Ionaid | C154: ='Leathnach Achoimre Bainc'!$BP$21 -> 0 | D154: ='Leathnach Achoimre Bainc'!$BP$22 -> 0 | E154: ='Leathnach Achoimre Bainc'!$BP$23 -> 0 | F154: ='Leathnach Achoimre Bainc'!$BP$24 -> 0 | G154: ='Leathnach Achoimre Bainc'!$BP$25 -> 0 | H154: ='Leathnach Achoimre Bainc'!$BP$26 -> 0 | I154: ='Leathnach Achoimre Bainc'!$BP$27 -> 0 | J154: ='Leathnach Achoimre Bainc'!$BP$28 -> 0 | K154: ='Leathnach Achoimre Bainc'!$BP$29 -> 0 | L154: ='Leathnach Achoimre Bainc'!$BP$30 -> 0 | M154: ='Leathnach Achoimre Bainc'!$BP$31 -> 0 | N154: ='Leathnach Achoimre Bainc'!$BP$32 -> 0 | O154: 0 | Q154: =IF(COA!$E$147="Y","Show","Hide") -> Show | R154: Maoiniú COVID le haghaidh Caiteachas maidir le hUaireanta Glantóra Ionaid | S154: =INDEX($C$89:$O$207,MATCH(R154,$B$89:$B$207,0),MATCH($S$88,$C$88:$O$88,0)) -> 0 | T154: =O154 -> 0
B155: Costas Pinsin Glantóirí | C155: ='Leathnach Achoimre Bainc'!$BQ$21 -> 0 | D155: ='Leathnach Achoimre Bainc'!$BQ$22 -> 0 | E155: ='Leathnach Achoimre Bainc'!$BQ$23 -> 0 | F155: ='Leathnach Achoimre Bainc'!$BQ$24 -> 0 | G155: ='Leathnach Achoimre Bainc'!$BQ$25 -> 0 | H155: ='Leathnach Achoimre Bainc'!$BQ$26 -> 0 | I155: ='Leathnach Achoimre Bainc'!$BQ$27 -> 0 | J155: ='Leathnach Achoimre Bainc'!$BQ$28 -> 0 | K155: ='Leathnach Achoimre Bainc'!$BQ$29 -> 0 | L155: ='Leathnach Achoimre Bainc'!$BQ$30 -> 0 | M155: ='Leathnach Achoimre Bainc'!$BQ$31 -> 0 | N155: ='Leathnach Achoimre Bainc'!$BQ$32 -> 0 | O155: 0 | Q155: =IF(COA!$E$148="Y","Show","Hide") -> Show | R155: Costas Pinsin Glantóirí | S155: 0 | T155: 0
B156: Costas Glantóirí ar Conradh | C156: ='Leathnach Achoimre Bainc'!$BR$21 -> 0 | D156: ='Leathnach Achoimre Bainc'!$BR$22 -> 0 | E156: ='Leathnach Achoimre Bainc'!$BR$23 -> 0 | F156: ='Leathnach Achoimre Bainc'!$BR$24 -> 0 | G156: ='Leathnach Achoimre Bainc'!$BR$25 -> 0 | H156: ='Leathnach Achoimre Bainc'!$BR$26 -> 0 | I156: ='Leathnach Achoimre Bainc'!$BR$27 -> 0 | J156: ='Leathnach Achoimre Bainc'!$BR$28 -> 0 | K156: ='Leathnach Achoimre Bainc'!$BR$29 -> 0 | L156: ='Leathnach Achoimre Bainc'!$BR$30 -> 0 | M156: ='Leathnach Achoimre Bainc'!$BR$31 -> 0 | N156: ='Leathnach Achoimre Bainc'!$BR$32 -> 0 | O156: 0 | Q156: =IF(COA!$E$149="Y","Show","Hide") -> Show | R156: Costas Glantóirí ar Conradh | S156: 0 | T156: 0
B157: Costas Ábhar Glantacháin | C157: ='Leathnach Achoimre Bainc'!$BS$21 -> 0 | D157: ='Leathnach Achoimre Bainc'!$BS$22 -> 0 | E157: ='Leathnach Achoimre Bainc'!$BS$23 -> 0 | F157: ='Leathnach Achoimre Bainc'!$BS$24 -> 0 | G157: ='Leathnach Achoimre Bainc'!$BS$25 -> 0 | H157: ='Leathnach Achoimre Bainc'!$BS$26 -> 0 | I157: ='Leathnach Achoimre Bainc'!$BS$27 -> 0 | J157: ='Leathnach Achoimre Bainc'!$BS$28 -> 0 | K157: ='Leathnach Achoimre Bainc'!$BS$29 -> 0 | L157: ='Leathnach Achoimre Bainc'!$BS$30 -> 0 | M157: ='Leathnach Achoimre Bainc'!$BS$31 -> 0 | N157: ='Leathnach Achoimre Bainc'!$BS$32 -> 0 | O157: 0 | Q157: =IF(COA!$E$150="Y","Show","Hide") -> Show | R157: Costas Ábhar Glantacháin | S157: 0 | T157: 0
B158: Costais Ghlantacháin agus Sláintíochta Eile | C158: ='Leathnach Achoimre Bainc'!$BT$21 -> 0 | D158: ='Leathnach Achoimre Bainc'!$BT$22 -> 0 | E158: ='Leathnach Achoimre Bainc'!$BT$23 -> 0 | F158: ='Leathnach Achoimre Bainc'!$BT$24 -> 0 | G158: ='Leathnach Achoimre Bainc'!$BT$25 -> 0 | H158: ='Leathnach Achoimre Bainc'!$BT$26 -> 0 | I158: ='Leathnach Achoimre Bainc'!$BT$27 -> 0 | J158: ='Leathnach Achoimre Bainc'!$BT$28 -> 0 | K158: ='Leathnach Achoimre Bainc'!$BT$29 -> 0 | L158: ='Leathnach Achoimre Bainc'!$BT$30 -> 0 | M158: ='Leathnach Achoimre Bainc'!$BT$31 -> 0 | N158: ='Leathnach Achoimre Bainc'!$BT$32 -> 0 | O158: 0 | Q158: =IF(COA!$E$151="Y","Show","Hide") -> Show | R158: Costais Ghlantacháin agus Sláintíochta Eile | S158: 0 | T158: 0
B159: Costas Deisiúchán ar Fhoirgnimh agus Thailte | C159: ='Leathnach Achoimre Bainc'!$BU$21 -> 0 | D159: ='Leathnach Achoimre Bainc'!$BU$22 -> 0 | E159: ='Leathnach Achoimre Bainc'!$BU$23 -> 0 | F159: ='Leathnach Achoimre Bainc'!$BU$24 -> 0 | G159: ='Leathnach Achoimre Bainc'!$BU$25 -> 0 | H159: ='Leathnach Achoimre Bainc'!$BU$26 -> 0 | I159: ='Leathnach Achoimre Bainc'!$BU$27 -> 0 | J159: ='Leathnach Achoimre Bainc'!$BU$28 -> 0 | K159: ='Leathnach Achoimre Bainc'!$BU$29 -> 0 | L159: ='Leathnach Achoimre Bainc'!$BU$30 -> 0 | M159: ='Leathnach Achoimre Bainc'!$BU$31 -> 0 | N159: ='Leathnach Achoimre Bainc'!$BU$32 -> 0 | O159: 0 | Q159: =IF(COA!$E$152="Y","Show","Hide") -> Show | R159: Costas Deisiúchán ar Fhoirgnimh agus Thailte | S159: 0 | T159: 0
B160: Costas Deontas Mionoibreacha (Neamhchaipitiúil) | C160: ='Leathnach Achoimre Bainc'!$BV$21 -> 0 | D160: ='Leathnach Achoimre Bainc'!$BV$22 -> 0 | E160: ='Leathnach Achoimre Bainc'!$BV$23 -> 0 | F160: ='Leathnach Achoimre Bainc'!$BV$24 -> 0 | G160: ='Leathnach Achoimre Bainc'!$BV$25 -> 0 | H160: ='Leathnach Achoimre Bainc'!$BV$26 -> 0 | I160: ='Leathnach Achoimre Bainc'!$BV$27 -> 0 | J160: ='Leathnach Achoimre Bainc'!$BV$28 -> 0 | K160: ='Leathnach Achoimre Bainc'!$BV$29 -> 0 | L160: ='Leathnach Achoimre Bainc'!$BV$30 -> 0 | M160: ='Leathnach Achoimre Bainc'!$BV$31 -> 0 | N160: ='Leathnach Achoimre Bainc'!$BV$32 -> 0 | O160: 0 | Q160: =IF(COA!$E$153="Y","Show","Hide") -> Show | R160: Costas Deontas Mionoibreacha (Neamhchaipitiúil) | S160: 0 | T160: 0
B161: Costas Deontais le haghaidh Mionoibreacha COVID | C161: ='Leathnach Achoimre Bainc'!$BW$21 -> 0 | D161: ='Leathnach Achoimre Bainc'!$BW$22 -> 0 | E161: ='Leathnach Achoimre Bainc'!$BW$23 -> 0 | F161: ='Leathnach Achoimre Bainc'!$BW$24 -> 0 | G161: ='Leathnach Achoimre Bainc'!$BW$25 -> 0 | H161: ='Leathnach Achoimre Bainc'!$BW$26 -> 0 | I161: ='Leathnach Achoimre Bainc'!$BW$27 -> 0 | J161: ='Leathnach Achoimre Bainc'!$BW$28 -> 0 | K161: ='Leathnach Achoimre Bainc'!$BW$29 -> 0 | L161: ='Leathnach Achoimre Bainc'!$BW$30 -> 0 | M161: ='Leathnach Achoimre Bainc'!$BW$31 -> 0 | N161: ='Leathnach Achoimre Bainc'!$BW$32 -> 0 | O161: 0 | Q161: =IF(COA!$E$154="Y","Show","Hide") -> Show | R161: Costas Deontais le haghaidh Mionoibreacha COVID | S161: 0 | T161: 0
B162: Costas Deisiúchán ar Throscán, Feistis agus Trealamh | C162: ='Leathnach Achoimre Bainc'!$BX$21 -> 0 | D162: ='Leathnach Achoimre Bainc'!$BX$22 -> 0 | E162: ='Leathnach Achoimre Bainc'!$BX$23 -> 0 | F162: ='Leathnach Achoimre Bainc'!$BX$24 -> 0 | G162: ='Leathnach Achoimre Bainc'!$BX$25 -> 0 | H162: ='Leathnach Achoimre Bainc'!$BX$26 -> 0 | I162: ='Leathnach Achoimre Bainc'!$BX$27 -> 0 | J162: ='Leathnach Achoimre Bainc'!$BX$28 -> 0 | K162: ='Leathnach Achoimre Bainc'!$BX$29 -> 0 | L162: ='Leathnach Achoimre Bainc'!$BX$30 -> 0 | M162: ='Leathnach Achoimre Bainc'!$BX$31 -> 0 | N162: ='Leathnach Achoimre Bainc'!$BX$32 -> 0 | O162: 0 | Q162: =IF(COA!$E$155="Y","Show","Hide") -> Show | R162: Costas Deisiúchán ar Throscán, Feistis agus Trealamh | S162: 0 | T162: 0
B163: Gnáthchostas Slándála | C163: ='Leathnach Achoimre Bainc'!$BY$21 -> 0 | D163: ='Leathnach Achoimre Bainc'!$BY$22 -> 0 | E163: ='Leathnach Achoimre Bainc'!$BY$23 -> 0 | F163: ='Leathnach Achoimre Bainc'!$BY$24 -> 0 | G163: ='Leathnach Achoimre Bainc'!$BY$25 -> 0 | H163: ='Leathnach Achoimre Bainc'!$BY$26 -> 0 | I163: ='Leathnach Achoimre Bainc'!$BY$27 -> 0 | J163: ='Leathnach Achoimre Bainc'!$BY$28 -> 0 | K163: ='Leathnach Achoimre Bainc'!$BY$29 -> 0 | L163: ='Leathnach Achoimre Bainc'!$BY$30 -> 0 | M163: ='Leathnach Achoimre Bainc'!$BY$31 -> 0 | N163: ='Leathnach Achoimre Bainc'!$BY$32 -> 0 | O163: 0 | Q163: =IF(COA!$E$156="Y","Show","Hide") -> Show | R163: Gnáthchostas Slándála | S163: 0 | T163: 0
B164: Costas Árachais Ghinearálta | C164: ='Leathnach Achoimre Bainc'!$BZ$21 -> 0 | D164: ='Leathnach Achoimre Bainc'!$BZ$22 -> 0 | E164: ='Leathnach Achoimre Bainc'!$BZ$23 -> 0 | F164: ='Leathnach Achoimre Bainc'!$BZ$24 -> 0 | G164: ='Leathnach Achoimre Bainc'!$BZ$25 -> 0 | H164: ='Leathnach Achoimre Bainc'!$BZ$26 -> 0 | I164: ='Leathnach Achoimre Bainc'!$BZ$27 -> 0 | J164: ='Leathnach Achoimre Bainc'!$BZ$28 -> 0 | K164: ='Leathnach Achoimre Bainc'!$BZ$29 -> 0 | L164: ='Leathnach Achoimre Bainc'!$BZ$30 -> 0 | M164: ='Leathnach Achoimre Bainc'!$BZ$31 -> 0 | N164: ='Leathnach Achoimre Bainc'!$BZ$32 -> 0 | O164: 0 | Q164: =IF(COA!$E$157="Y","Show","Hide") -> Show | R164: Costas Árachais Ghinearálta | S164: 0 | T164: 0
B165: Costas Téimh | C165: ='Leathnach Achoimre Bainc'!$CA$21 -> 0 | D165: ='Leathnach Achoimre Bainc'!$CA$22 -> 0 | E165: ='Leathnach Achoimre Bainc'!$CA$23 -> 0 | F165: ='Leathnach Achoimre Bainc'!$CA$24 -> 0 | G165: ='Leathnach Achoimre Bainc'!$CA$25 -> 0 | H165: ='Leathnach Achoimre Bainc'!$CA$26 -> 0 | I165: ='Leathnach Achoimre Bainc'!$CA$27 -> 0 | J165: ='Leathnach Achoimre Bainc'!$CA$28 -> 0 | K165: ='Leathnach Achoimre Bainc'!$CA$29 -> 0 | L165: ='Leathnach Achoimre Bainc'!$CA$30 -> 0 | M165: ='Leathnach Achoimre Bainc'!$CA$31 -> 0 | N165: ='Leathnach Achoimre Bainc'!$CA$32 -> 0 | O165: 0 | Q165: =IF(COA!$E$158="Y","Show","Hide") -> Show | R165: Costas Téimh | S165: 0 | T165: 0
B166: Costas Soilse agus Cumhachta | C166: ='Leathnach Achoimre Bainc'!$CB$21 -> 0 | D166: ='Leathnach Achoimre Bainc'!$CB$22 -> 0 | E166: ='Leathnach Achoimre Bainc'!$CB$23 -> 0 | F166: ='Leathnach Achoimre Bainc'!$CB$24 -> 0 | G166: ='Leathnach Achoimre Bainc'!$CB$25 -> 0 | H166: ='Leathnach Achoimre Bainc'!$CB$26 -> 0 | I166: ='Leathnach Achoimre Bainc'!$CB$27 -> 0 | J166: ='Leathnach Achoimre Bainc'!$CB$28 -> 0 | K166: ='Leathnach Achoimre Bainc'!$CB$29 -> 0 | L166: ='Leathnach Achoimre Bainc'!$CB$30 -> 0 | M166: ='Leathnach Achoimre Bainc'!$CB$31 -> 0 | N166: ='Leathnach Achoimre Bainc'!$CB$32 -> 0 | O166: 0 | Q166: =IF(COA!$E$159="Y","Show","Hide") -> Show | R166: Costas Soilse agus Cumhachta | S166: 0 | T166: 0
B167: Costas Cíosa Cóiríochta Sealadaí | C167: ='Leathnach Achoimre Bainc'!$CC$21 -> 0 | D167: ='Leathnach Achoimre Bainc'!$CC$22 -> 0 | E167: ='Leathnach Achoimre Bainc'!$CC$23 -> 0 | F167: ='Leathnach Achoimre Bainc'!$CC$24 -> 0 | G167: ='Leathnach Achoimre Bainc'!$CC$25 -> 0 | H167: ='Leathnach Achoimre Bainc'!$CC$26 -> 0 | I167: ='Leathnach Achoimre Bainc'!$CC$27 -> 0 | J167: ='Leathnach Achoimre Bainc'!$CC$28 -> 0 | K167: ='Leathnach Achoimre Bainc'!$CC$29 -> 0 | L167: ='Leathnach Achoimre Bainc'!$CC$30 -> 0 | M167: ='Leathnach Achoimre Bainc'!$CC$31 -> 0 | N167: ='Leathnach Achoimre Bainc'!$CC$32 -> 0 | O167: =SUM(C167:N167) -> 0 | Q167: =IF(COA!$E$160="Y","Show","Hide") -> Show | R167: Costas Cíosa Cóiríochta Sealadaí | S167: 0 | T167: 0
B168: Costais Cíosa Eile | C168: ='Leathnach Achoimre Bainc'!$CD$21 -> 0 | D168: ='Leathnach Achoimre Bainc'!$CD$22 -> 0 | E168: ='Leathnach Achoimre Bainc'!$CD$23 -> 0 | F168: ='Leathnach Achoimre Bainc'!$CD$24 -> 0 | G168: ='Leathnach Achoimre Bainc'!$CD$25 -> 0 | H168: ='Leathnach Achoimre Bainc'!$CD$26 -> 0 | I168: ='Leathnach Achoimre Bainc'!$CD$27 -> 0 | J168: ='Leathnach Achoimre Bainc'!$CD$28 -> 0 | K168: ='Leathnach Achoimre Bainc'!$CD$29 -> 0 | L168: ='Leathnach Achoimre Bainc'!$CD$30 -> 0 | M168: ='Leathnach Achoimre Bainc'!$CD$31 -> 0 | N168: ='Leathnach Achoimre Bainc'!$CD$32 -> 0 | O168: 0 | Q168: =IF(COA!$E$161="Y","Show","Hide") -> Show | R168: Costais Cíosa Eile | S168: 0 | T168: 0
B169: Costas Bruscair | C169: ='Leathnach Achoimre Bainc'!$CE$21 -> 0 | D169: ='Leathnach Achoimre Bainc'!$CE$22 -> 0 | E169: ='Leathnach Achoimre Bainc'!$CE$23 -> 0 | F169: ='Leathnach Achoimre Bainc'!$CE$24 -> 0 | G169: ='Leathnach Achoimre Bainc'!$CE$25 -> 0 | H169: ='Leathnach Achoimre Bainc'!$CE$26 -> 0 | I169: ='Leathnach Achoimre Bainc'!$CE$27 -> 0 | J169: ='Leathnach Achoimre Bainc'!$CE$28 -> 0 | K169: ='Leathnach Achoimre Bainc'!$CE$29 -> 0 | L169: ='Leathnach Achoimre Bainc'!$CE$30 -> 0 | M169: ='Leathnach Achoimre Bainc'!$CE$31 -> 0 | N169: ='Leathnach Achoimre Bainc'!$CE$32 -> 0 | O169: 0 | Q169: =IF(COA!$E$162="Y","Show","Hide") -> Show | R169: Costas Bruscair | S169: 0 | T169: 0
B170: Costais Rátaí Uisce | C170: ='Leathnach Achoimre Bainc'!$CF$21 -> 0 | D170: ='Leathnach Achoimre Bainc'!$CF$22 -> 0 | E170: ='Leathnach Achoimre Bainc'!$CF$23 -> 0 | F170: ='Leathnach Achoimre Bainc'!$CF$24 -> 0 | G170: ='Leathnach Achoimre Bainc'!$CF$25 -> 0 | H170: ='Leathnach Achoimre Bainc'!$CF$26 -> 0 | I170: ='Leathnach Achoimre Bainc'!$CF$27 -> 0 | J170: ='Leathnach Achoimre Bainc'!$CF$28 -> 0 | K170: ='Leathnach Achoimre Bainc'!$CF$29 -> 0 | L170: ='Leathnach Achoimre Bainc'!$CF$30 -> 0 | M170: ='Leathnach Achoimre Bainc'!$CF$31 -> 0 | N170: ='Leathnach Achoimre Bainc'!$CF$32 -> 0 | O170: 0 | Q170: =IF(COA!$E$163="Y","Show","Hide") -> Show | R170: Costais Rátaí Uisce | S170: 0 | T170: 0
B171: Costas na Táille Ceadúnais don Phátrún/Iontaobhaí | C171: ='Leathnach Achoimre Bainc'!$CG$21 -> 0 | D171: ='Leathnach Achoimre Bainc'!$CG$22 -> 0 | E171: ='Leathnach Achoimre Bainc'!$CG$23 -> 0 | F171: ='Leathnach Achoimre Bainc'!$CG$24 -> 0 | G171: ='Leathnach Achoimre Bainc'!$CG$25 -> 0 | H171: ='Leathnach Achoimre Bainc'!$CG$26 -> 0 | I171: ='Leathnach Achoimre Bainc'!$CG$27 -> 0 | J171: ='Leathnach Achoimre Bainc'!$CG$28 -> 0 | K171: ='Leathnach Achoimre Bainc'!$CG$29 -> 0 | L171: ='Leathnach Achoimre Bainc'!$CG$30 -> 0 | M171: ='Leathnach Achoimre Bainc'!$CG$31 -> 0 | N171: ='Leathnach Achoimre Bainc'!$CG$32 -> 0 | O171: 0 | Q171: =IF(COA!$E$164="Y","Show","Hide") -> Show | R171: Costas na Táille Ceadúnais don Phátrún/Iontaobhaí | S171: 0 | T171: 0
B172: Costas Deisiúcháin agus Cothabhála Eile | C172: ='Leathnach Achoimre Bainc'!$CH$21 -> 0 | D172: ='Leathnach Achoimre Bainc'!$CH$22 -> 0 | E172: ='Leathnach Achoimre Bainc'!$CH$23 -> 0 | F172: ='Leathnach Achoimre Bainc'!$CH$24 -> 0 | G172: ='Leathnach Achoimre Bainc'!$CH$25 -> 0 | H172: ='Leathnach Achoimre Bainc'!$CH$26 -> 0 | I172: ='Leathnach Achoimre Bainc'!$CH$27 -> 0 | J172: ='Leathnach Achoimre Bainc'!$CH$28 -> 0 | K172: ='Leathnach Achoimre Bainc'!$CH$29 -> 0 | L172: ='Leathnach Achoimre Bainc'!$CH$30 -> 0 | M172: ='Leathnach Achoimre Bainc'!$CH$31 -> 0 | N172: ='Leathnach Achoimre Bainc'!$CH$32 -> 0 | O172: 0 | Q172: =IF(COA!$E$165="Y","Show","Hide") -> Show | R172: Costas Deisiúcháin agus Cothabhála Eile | S172: 0 | T172: 0
B173: Costas Pá faoin Deontas do Chúntóir COVID | C173: ='Leathnach Achoimre Bainc'!$CI$21 -> 0 | D173: ='Leathnach Achoimre Bainc'!$CI$22 -> 0 | E173: ='Leathnach Achoimre Bainc'!$CI$23 -> 0 | F173: ='Leathnach Achoimre Bainc'!$CI$24 -> 0 | G173: ='Leathnach Achoimre Bainc'!$CI$25 -> 0 | H173: ='Leathnach Achoimre Bainc'!$CI$26 -> 0 | I173: ='Leathnach Achoimre Bainc'!$CI$27 -> 0 | J173: ='Leathnach Achoimre Bainc'!$CI$28 -> 0 | K173: ='Leathnach Achoimre Bainc'!$CI$29 -> 0 | L173: ='Leathnach Achoimre Bainc'!$CI$30 -> 0 | M173: ='Leathnach Achoimre Bainc'!$CI$31 -> 0 | N173: ='Leathnach Achoimre Bainc'!$CI$32 -> 0 | O173: 0 | Q173: =IF(COA!$E$166="Y","Show","Hide") -> Show | R173: Costas Pá faoin Deontas do Chúntóir COVID | S173: 0 | T173: 0
B174: Costas Pá ón Deontas Mhaoirseacht Fheabhsaithe COVID | C174: ='Leathnach Achoimre Bainc'!$CJ$21 -> 0 | D174: ='Leathnach Achoimre Bainc'!$CJ$22 -> 0 | E174: ='Leathnach Achoimre Bainc'!$CJ$23 -> 0 | F174: ='Leathnach Achoimre Bainc'!$CJ$24 -> 0 | G174: ='Leathnach Achoimre Bainc'!$CJ$25 -> 0 | H174: ='Leathnach Achoimre Bainc'!$CJ$26 -> 0 | I174: ='Leathnach Achoimre Bainc'!$CJ$27 -> 0 | J174: ='Leathnach Achoimre Bainc'!$CJ$28 -> 0 | K174: ='Leathnach Achoimre Bainc'!$CJ$29 -> 0 | L174: ='Leathnach Achoimre Bainc'!$CJ$30 -> 0 | M174: ='Leathnach Achoimre Bainc'!$CJ$31 -> 0 | N174: ='Leathnach Achoimre Bainc'!$CJ$32 -> 0 | O174: 0 | Q174: =IF(COA!$E$167="Y","Show","Hide") -> Show | R174: Costas Pá ón Deontas Mhaoirseacht Fheabhsaithe COVID | S174: 0 | T174: 0
B175: Deontas Caipitíochta COVID le haghaidh Chostas Pá Glantacháin | C175: ='Leathnach Achoimre Bainc'!$CK$21 -> 0 | D175: ='Leathnach Achoimre Bainc'!$CK$22 -> 0 | E175: ='Leathnach Achoimre Bainc'!$CK$23 -> 0 | F175: ='Leathnach Achoimre Bainc'!$CK$24 -> 0 | G175: ='Leathnach Achoimre Bainc'!$CK$25 -> 0 | H175: ='Leathnach Achoimre Bainc'!$CK$26 -> 0 | I175: ='Leathnach Achoimre Bainc'!$CK$27 -> 0 | J175: ='Leathnach Achoimre Bainc'!$CK$28 -> 0 | K175: ='Leathnach Achoimre Bainc'!$CK$29 -> 0 | L175: ='Leathnach Achoimre Bainc'!$CK$30 -> 0 | M175: ='Leathnach Achoimre Bainc'!$CK$31 -> 0 | N175: ='Leathnach Achoimre Bainc'!$CK$32 -> 0 | O175: 0 | Q175: =IF(COA!$E$168="Y","Show","Hide") -> Show | R175: Deontas Caipitíochta COVID le haghaidh Chostas Pá Glantacháin | S175: 0 | T175: 0
B176: Deontas Caipitíochta Covid le haghaidh Chostas Glantacháin (Neamhphá) & PPE | C176: ='Leathnach Achoimre Bainc'!$CL$21 -> 0 | D176: ='Leathnach Achoimre Bainc'!$CL$22 -> 0 | E176: ='Leathnach Achoimre Bainc'!$CL$23 -> 0 | F176: ='Leathnach Achoimre Bainc'!$CL$24 -> 0 | G176: ='Leathnach Achoimre Bainc'!$CL$25 -> 0 | H176: ='Leathnach Achoimre Bainc'!$CL$26 -> 0 | I176: ='Leathnach Achoimre Bainc'!$CL$27 -> 0 | J176: ='Leathnach Achoimre Bainc'!$CL$28 -> 0 | K176: ='Leathnach Achoimre Bainc'!$CL$29 -> 0 | L176: ='Leathnach Achoimre Bainc'!$CL$30 -> 0 | M176: ='Leathnach Achoimre Bainc'!$CL$31 -> 0 | N176: ='Leathnach Achoimre Bainc'!$CL$32 -> 0 | O176: 0 | Q176: =IF(COA!$E$169="Y","Show","Hide") -> Show | R176: Deontas Caipitíochta Covid le haghaidh Chostas Glantacháin (Neamhphá) & PPE | S176: 0 | T176: 0
B177: Costas Pá Oifigeach Cléireachais/Rúnaíochta | C177: ='Leathnach Achoimre Bainc'!$CM$21 -> 0 | D177: ='Leathnach Achoimre Bainc'!$CM$22 -> 0 | E177: ='Leathnach Achoimre Bainc'!$CM$23 -> 0 | F177: ='Leathnach Achoimre Bainc'!$CM$24 -> 0 | G177: ='Leathnach Achoimre Bainc'!$CM$25 -> 0 | H177: ='Leathnach Achoimre Bainc'!$CM$26 -> 0 | I177: ='Leathnach Achoimre Bainc'!$CM$27 -> 0 | J177: ='Leathnach Achoimre Bainc'!$CM$28 -> 0 | K177: ='Leathnach Achoimre Bainc'!$CM$29 -> 0 | L177: ='Leathnach Achoimre Bainc'!$CM$30 -> 0 | M177: ='Leathnach Achoimre Bainc'!$CM$31 -> 0 | N177: ='Leathnach Achoimre Bainc'!$CM$32 -> 0 | O177: 0 | Q177: =IF(COA!$E$170="Y","Show","Hide") -> Show | R177: Costas Pá Oifigeach Cléireachais/Rúnaíochta | S177: 0 | T177: 0
B178: Maoiniú COVID le haghaidh Caiteachas maidir le hUaireanta Rúnaí Ionaid | C178: ='Leathnach Achoimre Bainc'!$CN$21 -> 0 | D178: ='Leathnach Achoimre Bainc'!$CN$22 -> 0 | E178: ='Leathnach Achoimre Bainc'!$CN$23 -> 0 | F178: ='Leathnach Achoimre Bainc'!$CN$24 -> 0 | G178: ='Leathnach Achoimre Bainc'!$CN$25 -> 0 | H178: ='Leathnach Achoimre Bainc'!$CN$26 -> 0 | I178: ='Leathnach Achoimre Bainc'!$CN$27 -> 0 | J178: ='Leathnach Achoimre Bainc'!$CN$28 -> 0 | K178: ='Leathnach Achoimre Bainc'!$CN$29 -> 0 | L178: ='Leathnach Achoimre Bainc'!$CN$30 -> 0 | M178: ='Leathnach Achoimre Bainc'!$CN$31 -> 0 | N178: ='Leathnach Achoimre Bainc'!$CN$32 -> 0 | O178: 0 | Q178: =IF(COA!$E$171="Y","Show","Hide") -> Show | R178: Maoiniú COVID le haghaidh Caiteachas maidir le hUaireanta Rúnaí Ionaid | S178: 0 | T178: 0
B179: Costas Pinsin Oifigeach Cléireachais/Rúnaíochta | C179: ='Leathnach Achoimre Bainc'!$CO$21 -> 0 | D179: ='Leathnach Achoimre Bainc'!$CO$22 -> 0 | E179: ='Leathnach Achoimre Bainc'!$CO$23 -> 0 | F179: ='Leathnach Achoimre Bainc'!$CO$24 -> 0 | G179: ='Leathnach Achoimre Bainc'!$CO$25 -> 0 | H179: ='Leathnach Achoimre Bainc'!$CO$26 -> 0 | I179: ='Leathnach Achoimre Bainc'!$CO$27 -> 0 | J179: ='Leathnach Achoimre Bainc'!$CO$28 -> 0 | K179: ='Leathnach Achoimre Bainc'!$CO$29 -> 0 | L179: ='Leathnach Achoimre Bainc'!$CO$30 -> 0 | M179: ='Leathnach Achoimre Bainc'!$CO$31 -> 0 | N179: ='Leathnach Achoimre Bainc'!$CO$32 -> 0 | O179: 0 | Q179: =IF(COA!$E$172="Y","Show","Hide") -> Show | R179: Costas Pinsin Oifigeach Cléireachais/Rúnaíochta | S179: 0 | T179: 0
B180: Costas Earcaíochta | C180: ='Leathnach Achoimre Bainc'!$CP$21 -> 0 | D180: ='Leathnach Achoimre Bainc'!$CP$22 -> 0 | E180: ='Leathnach Achoimre Bainc'!$CP$23 -> 0 | F180: ='Leathnach Achoimre Bainc'!$CP$24 -> 0 | G180: ='Leathnach Achoimre Bainc'!$CP$25 -> 0 | H180: ='Leathnach Achoimre Bainc'!$CP$26 -> 0 | I180: ='Leathnach Achoimre Bainc'!$CP$27 -> 0 | J180: ='Leathnach Achoimre Bainc'!$CP$28 -> 0 | K180: ='Leathnach Achoimre Bainc'!$CP$29 -> 0 | L180: ='Leathnach Achoimre Bainc'!$CP$30 -> 0 | M180: ='Leathnach Achoimre Bainc'!$CP$31 -> 0 | N180: ='Leathnach Achoimre Bainc'!$CP$32 -> 0 | O180: 0 | Q180: =IF(COA!$E$173="Y","Show","Hide") -> Show | R180: Costas Earcaíochta | S180: 0 | T180: 0
B181: Costas Fógraíochta / Caidrimh Phoiblí | C181: ='Leathnach Achoimre Bainc'!$CQ$21 -> 0 | D181: ='Leathnach Achoimre Bainc'!$CQ$22 -> 0 | E181: ='Leathnach Achoimre Bainc'!$CQ$23 -> 0 | F181: ='Leathnach Achoimre Bainc'!$CQ$24 -> 0 | G181: ='Leathnach Achoimre Bainc'!$CQ$25 -> 0 | H181: ='Leathnach Achoimre Bainc'!$CQ$26 -> 0 | I181: ='Leathnach Achoimre Bainc'!$CQ$27 -> 0 | J181: ='Leathnach Achoimre Bainc'!$CQ$28 -> 0 | K181: ='Leathnach Achoimre Bainc'!$CQ$29 -> 0 | L181: ='Leathnach Achoimre Bainc'!$CQ$30 -> 0 | M181: ='Leathnach Achoimre Bainc'!$CQ$31 -> 0 | N181: ='Leathnach Achoimre Bainc'!$CQ$32 -> 0 | O181: 0 | Q181: =IF(COA!$E$174="Y","Show","Hide") -> Show | R181: Costas Fógraíochta / Caidrimh Phoiblí | S181: 0 | T181: 0
B182: Costas Postais | C182: ='Leathnach Achoimre Bainc'!$CR$21 -> 0 | D182: ='Leathnach Achoimre Bainc'!$CR$22 -> 0 | E182: ='Leathnach Achoimre Bainc'!$CR$23 -> 0 | F182: ='Leathnach Achoimre Bainc'!$CR$24 -> 0 | G182: ='Leathnach Achoimre Bainc'!$CR$25 -> 0 | H182: ='Leathnach Achoimre Bainc'!$CR$26 -> 0 | I182: ='Leathnach Achoimre Bainc'!$CR$27 -> 0 | J182: ='Leathnach Achoimre Bainc'!$CR$28 -> 0 | K182: ='Leathnach Achoimre Bainc'!$CR$29 -> 0 | L182: ='Leathnach Achoimre Bainc'!$CR$30 -> 0 | M182: ='Leathnach Achoimre Bainc'!$CR$31 -> 0 | N182: ='Leathnach Achoimre Bainc'!$CR$32 -> 0 | O182: 0 | Q182: =IF(COA!$E$175="Y","Show","Hide") -> Show | R182: Costas Postais | S182: 0 | T182: 0
B183: Costas Gutháin / SMS | C183: ='Leathnach Achoimre Bainc'!$CS$21 -> 0 | D183: ='Leathnach Achoimre Bainc'!$CS$22 -> 0 | E183: ='Leathnach Achoimre Bainc'!$CS$23 -> 0 | F183: ='Leathnach Achoimre Bainc'!$CS$24 -> 0 | G183: ='Leathnach Achoimre Bainc'!$CS$25 -> 0 | H183: ='Leathnach Achoimre Bainc'!$CS$26 -> 0 | I183: ='Leathnach Achoimre Bainc'!$CS$27 -> 0 | J183: ='Leathnach Achoimre Bainc'!$CS$28 -> 0 | K183: ='Leathnach Achoimre Bainc'!$CS$29 -> 0 | L183: ='Leathnach Achoimre Bainc'!$CS$30 -> 0 | M183: ='Leathnach Achoimre Bainc'!$CS$31 -> 0 | N183: ='Leathnach Achoimre Bainc'!$CS$32 -> 0 | O183: 0 | Q183: =IF(COA!$E$176="Y","Show","Hide") -> Show | R183: Costas Gutháin / SMS | S183: 0 | T183: 0
B184: Costas Clódóireachta agus Páipéarachais | C184: ='Leathnach Achoimre Bainc'!$CT$21 -> 0 | D184: ='Leathnach Achoimre Bainc'!$CT$22 -> 0 | E184: ='Leathnach Achoimre Bainc'!$CT$23 -> 0 | F184: ='Leathnach Achoimre Bainc'!$CT$24 -> 0 | G184: ='Leathnach Achoimre Bainc'!$CT$25 -> 0 | H184: ='Leathnach Achoimre Bainc'!$CT$26 -> 0 | I184: ='Leathnach Achoimre Bainc'!$CT$27 -> 0 | J184: ='Leathnach Achoimre Bainc'!$CT$28 -> 0 | K184: ='Leathnach Achoimre Bainc'!$CT$29 -> 0 | L184: ='Leathnach Achoimre Bainc'!$CT$30 -> 0 | M184: ='Leathnach Achoimre Bainc'!$CT$31 -> 0 | N184: ='Leathnach Achoimre Bainc'!$CT$32 -> 0 | O184: 0 | Q184: =IF(COA!$E$177="Y","Show","Hide") -> Show | R184: Costas Clódóireachta agus Páipéarachais | S184: 0 | T184: 0
B185: Costas Trealaimh Oifige (Neamhchaipitiúil) | C185: ='Leathnach Achoimre Bainc'!$CU$21 -> 0 | D185: ='Leathnach Achoimre Bainc'!$CU$22 -> 0 | E185: ='Leathnach Achoimre Bainc'!$CU$23 -> 0 | F185: ='Leathnach Achoimre Bainc'!$CU$24 -> 0 | G185: ='Leathnach Achoimre Bainc'!$CU$25 -> 0 | H185: ='Leathnach Achoimre Bainc'!$CU$26 -> 0 | I185: ='Leathnach Achoimre Bainc'!$CU$27 -> 0 | J185: ='Leathnach Achoimre Bainc'!$CU$28 -> 0 | K185: ='Leathnach Achoimre Bainc'!$CU$29 -> 0 | L185: ='Leathnach Achoimre Bainc'!$CU$30 -> 0 | M185: ='Leathnach Achoimre Bainc'!$CU$31 -> 0 | N185: ='Leathnach Achoimre Bainc'!$CU$32 -> 0 | O185: 0 | Q185: =IF(COA!$E$178="Y","Show","Hide") -> Show | R185: Costas Trealaimh Oifige (Neamhchaipitiúil) | S185: 0 | T185: 0
B186: Costas Ríomhairí Oifige nach bhFuarthas Deontas TFC ina leith | C186: ='Leathnach Achoimre Bainc'!$CV$21 -> 0 | D186: ='Leathnach Achoimre Bainc'!$CV$22 -> 0 | E186: ='Leathnach Achoimre Bainc'!$CV$23 -> 0 | F186: ='Leathnach Achoimre Bainc'!$CV$24 -> 0 | G186: ='Leathnach Achoimre Bainc'!$CV$25 -> 0 | H186: ='Leathnach Achoimre Bainc'!$CV$26 -> 0 | I186: ='Leathnach Achoimre Bainc'!$CV$27 -> 0 | J186: ='Leathnach Achoimre Bainc'!$CV$28 -> 0 | K186: ='Leathnach Achoimre Bainc'!$CV$29 -> 0 | L186: ='Leathnach Achoimre Bainc'!$CV$30 -> 0 | M186: ='Leathnach Achoimre Bainc'!$CV$31 -> 0 | N186: ='Leathnach Achoimre Bainc'!$CV$32 -> 0 | O186: 0 | Q186: =IF(COA!$E$179="Y","Show","Hide") -> Show | R186: Costas Ríomhairí Oifige nach bhFuarthas Deontas TFC ina leith | S186: 0 | T186: 0
B187: Costas Cuntasaíochta / Iniúchóireachta | C187: ='Leathnach Achoimre Bainc'!$CW$21 -> 0 | D187: ='Leathnach Achoimre Bainc'!$CW$22 -> 0 | E187: ='Leathnach Achoimre Bainc'!$CW$23 -> 0 | F187: ='Leathnach Achoimre Bainc'!$CW$24 -> 0 | G187: ='Leathnach Achoimre Bainc'!$CW$25 -> 0 | H187: ='Leathnach Achoimre Bainc'!$CW$26 -> 0 | I187: ='Leathnach Achoimre Bainc'!$CW$27 -> 0 | J187: ='Leathnach Achoimre Bainc'!$CW$28 -> 0 | K187: ='Leathnach Achoimre Bainc'!$CW$29 -> 0 | L187: ='Leathnach Achoimre Bainc'!$CW$30 -> 0 | M187: ='Leathnach Achoimre Bainc'!$CW$31 -> 0 | N187: ='Leathnach Achoimre Bainc'!$CW$32 -> 0 | O187: 0 | Q187: =IF(COA!$E$180="Y","Show","Hide") -> Show | R187: Costas Cuntasaíochta / Iniúchóireachta | S187: 0 | T187: 0
B188: Costas Táillí Gairmiúla Eile | C188: ='Leathnach Achoimre Bainc'!$CX$21 -> 0 | D188: ='Leathnach Achoimre Bainc'!$CX$22 -> 0 | E188: ='Leathnach Achoimre Bainc'!$CX$23 -> 0 | F188: ='Leathnach Achoimre Bainc'!$CX$24 -> 0 | G188: ='Leathnach Achoimre Bainc'!$CX$25 -> 0 | H188: ='Leathnach Achoimre Bainc'!$CX$26 -> 0 | I188: ='Leathnach Achoimre Bainc'!$CX$27 -> 0 | J188: ='Leathnach Achoimre Bainc'!$CX$28 -> 0 | K188: ='Leathnach Achoimre Bainc'!$CX$29 -> 0 | L188: ='Leathnach Achoimre Bainc'!$CX$30 -> 0 | M188: ='Leathnach Achoimre Bainc'!$CX$31 -> 0 | N188: ='Leathnach Achoimre Bainc'!$CX$32 -> 0 | O188: 0 | Q188: =IF(COA!$E$181="Y","Show","Hide") -> Show | R188: Costas Táillí Gairmiúla Eile | S188: 0 | T188: 0
B189: Costas Taistil agus Cothaithe | C189: ='Leathnach Achoimre Bainc'!$CY$21 -> 0 | D189: ='Leathnach Achoimre Bainc'!$CY$22 -> 0 | E189: ='Leathnach Achoimre Bainc'!$CY$23 -> 0 | F189: ='Leathnach Achoimre Bainc'!$CY$24 -> 0 | G189: ='Leathnach Achoimre Bainc'!$CY$25 -> 0 | H189: ='Leathnach Achoimre Bainc'!$CY$26 -> 0 | I189: ='Leathnach Achoimre Bainc'!$CY$27 -> 0 | J189: ='Leathnach Achoimre Bainc'!$CY$28 -> 0 | K189: ='Leathnach Achoimre Bainc'!$CY$29 -> 0 | L189: ='Leathnach Achoimre Bainc'!$CY$30 -> 0 | M189: ='Leathnach Achoimre Bainc'!$CY$31 -> 0 | N189: ='Leathnach Achoimre Bainc'!$CY$32 -> 0 | O189: 0 | Q189: =IF(COA!$E$182="Y","Show","Hide") -> Show | R189: Costas Taistil agus Cothaithe | S189: 0 | T189: 0
B190: Costais an Phríomhoide | C190: ='Leathnach Achoimre Bainc'!$CZ$21 -> 0 | D190: ='Leathnach Achoimre Bainc'!$CZ$22 -> 0 | E190: ='Leathnach Achoimre Bainc'!$CZ$23 -> 0 | F190: ='Leathnach Achoimre Bainc'!$CZ$24 -> 0 | G190: ='Leathnach Achoimre Bainc'!$CZ$25 -> 0 | H190: ='Leathnach Achoimre Bainc'!$CZ$26 -> 0 | I190: ='Leathnach Achoimre Bainc'!$CZ$27 -> 0 | J190: ='Leathnach Achoimre Bainc'!$CZ$28 -> 0 | K190: ='Leathnach Achoimre Bainc'!$CZ$29 -> 0 | L190: ='Leathnach Achoimre Bainc'!$CZ$30 -> 0 | M190: ='Leathnach Achoimre Bainc'!$CZ$31 -> 0 | N190: ='Leathnach Achoimre Bainc'!$CZ$32 -> 0 | O190: 0 | Q190: =IF(COA!$E$183="Y","Show","Hide") -> Show | R190: Costais an Phríomhoide | S190: 0 | T190: 0
B191: Costas an Bhoird Bainistíocha | C191: ='Leathnach Achoimre Bainc'!$DA$21 -> 0 | D191: ='Leathnach Achoimre Bainc'!$DA$22 -> 0 | E191: ='Leathnach Achoimre Bainc'!$DA$23 -> 0 | F191: ='Leathnach Achoimre Bainc'!$DA$24 -> 0 | G191: ='Leathnach Achoimre Bainc'!$DA$25 -> 0 | H191: ='Leathnach Achoimre Bainc'!$DA$26 -> 0 | I191: ='Leathnach Achoimre Bainc'!$DA$27 -> 0 | J191: ='Leathnach Achoimre Bainc'!$DA$28 -> 0 | K191: ='Leathnach Achoimre Bainc'!$DA$29 -> 0 | L191: ='Leathnach Achoimre Bainc'!$DA$30 -> 0 | M191: ='Leathnach Achoimre Bainc'!$DA$31 -> 0 | N191: ='Leathnach Achoimre Bainc'!$DA$32 -> 0 | O191: 0 | Q191: =IF(COA!$E$184="Y","Show","Hide") -> Show | R191: Costas an Bhoird Bainistíocha | S191: 0 | T191: 0
B192: Costas na Síntiús Bliantúil | C192: ='Leathnach Achoimre Bainc'!$DB$21 -> 0 | D192: ='Leathnach Achoimre Bainc'!$DB$22 -> 0 | E192: ='Leathnach Achoimre Bainc'!$DB$23 -> 0 | F192: ='Leathnach Achoimre Bainc'!$DB$24 -> 0 | G192: ='Leathnach Achoimre Bainc'!$DB$25 -> 0 | H192: ='Leathnach Achoimre Bainc'!$DB$26 -> 0 | I192: ='Leathnach Achoimre Bainc'!$DB$27 -> 0 | J192: ='Leathnach Achoimre Bainc'!$DB$28 -> 0 | K192: ='Leathnach Achoimre Bainc'!$DB$29 -> 0 | L192: ='Leathnach Achoimre Bainc'!$DB$30 -> 0 | M192: ='Leathnach Achoimre Bainc'!$DB$31 -> 0 | N192: ='Leathnach Achoimre Bainc'!$DB$32 -> 0 | O192: 0 | Q192: =IF(COA!$E$185="Y","Show","Hide") -> Show | R192: Costas na Síntiús Bliantúil | S192: 0 | T192: 0
B193: Costas an Chórais Riaracháin Inscoile | C193: ='Leathnach Achoimre Bainc'!$DC$21 -> 0 | D193: ='Leathnach Achoimre Bainc'!$DC$22 -> 0 | E193: ='Leathnach Achoimre Bainc'!$DC$23 -> 0 | F193: ='Leathnach Achoimre Bainc'!$DC$24 -> 0 | G193: ='Leathnach Achoimre Bainc'!$DC$25 -> 0 | H193: ='Leathnach Achoimre Bainc'!$DC$26 -> 0 | I193: ='Leathnach Achoimre Bainc'!$DC$27 -> 0 | J193: ='Leathnach Achoimre Bainc'!$DC$28 -> 0 | K193: ='Leathnach Achoimre Bainc'!$DC$29 -> 0 | L193: ='Leathnach Achoimre Bainc'!$DC$30 -> 0 | M193: ='Leathnach Achoimre Bainc'!$DC$31 -> 0 | N193: ='Leathnach Achoimre Bainc'!$DC$32 -> 0 | O193: 0 | Q193: =IF(COA!$E$186="Y","Show","Hide") -> Show | R193: Costas an Chórais Riaracháin Inscoile | S193: 0 | T193: 0
B194: Costais Bogearraí Cuntasaíochta / Bogearraí Párolla | C194: ='Leathnach Achoimre Bainc'!$DD$21 -> 0 | D194: ='Leathnach Achoimre Bainc'!$DD$22 -> 0 | E194: ='Leathnach Achoimre Bainc'!$DD$23 -> 0 | F194: ='Leathnach Achoimre Bainc'!$DD$24 -> 0 | G194: ='Leathnach Achoimre Bainc'!$DD$25 -> 0 | H194: ='Leathnach Achoimre Bainc'!$DD$26 -> 0 | I194: ='Leathnach Achoimre Bainc'!$DD$27 -> 0 | J194: ='Leathnach Achoimre Bainc'!$DD$28 -> 0 | K194: ='Leathnach Achoimre Bainc'!$DD$29 -> 0 | L194: ='Leathnach Achoimre Bainc'!$DD$30 -> 0 | M194: ='Leathnach Achoimre Bainc'!$DD$31 -> 0 | N194: ='Leathnach Achoimre Bainc'!$DD$32 -> 0 | O194: 0 | Q194: =IF(COA!$E$187="Y","Show","Hide") -> Show | R194: Costais Bogearraí Cuntasaíochta / Bogearraí Párolla | S194: 0 | T194: 0
B195: Tabhartais do Charthanais | C195: ='Leathnach Achoimre Bainc'!$DE$21 -> 0 | D195: ='Leathnach Achoimre Bainc'!$DE$22 -> 0 | E195: ='Leathnach Achoimre Bainc'!$DE$23 -> 0 | F195: ='Leathnach Achoimre Bainc'!$DE$24 -> 0 | G195: ='Leathnach Achoimre Bainc'!$DE$25 -> 0 | H195: ='Leathnach Achoimre Bainc'!$DE$26 -> 0 | I195: ='Leathnach Achoimre Bainc'!$DE$27 -> 0 | J195: ='Leathnach Achoimre Bainc'!$DE$28 -> 0 | K195: ='Leathnach Achoimre Bainc'!$DE$29 -> 0 | L195: ='Leathnach Achoimre Bainc'!$DE$30 -> 0 | M195: ='Leathnach Achoimre Bainc'!$DE$31 -> 0 | N195: ='Leathnach Achoimre Bainc'!$DE$32 -> 0 | O195: 0 | Q195: =IF(COA!$E$188="Y","Show","Hide") -> Show | R195: Tabhartais do Charthanais | S195: 0 | T195: 0
B196: Costas Leighis agus Garchabhrach | C196: ='Leathnach Achoimre Bainc'!$DF$21 -> 0 | D196: ='Leathnach Achoimre Bainc'!$DF$22 -> 0 | E196: ='Leathnach Achoimre Bainc'!$DF$23 -> 0 | F196: ='Leathnach Achoimre Bainc'!$DF$24 -> 0 | G196: ='Leathnach Achoimre Bainc'!$DF$25 -> 0 | H196: ='Leathnach Achoimre Bainc'!$DF$26 -> 0 | I196: ='Leathnach Achoimre Bainc'!$DF$27 -> 0 | J196: ='Leathnach Achoimre Bainc'!$DF$28 -> 0 | K196: ='Leathnach Achoimre Bainc'!$DF$29 -> 0 | L196: ='Leathnach Achoimre Bainc'!$DF$30 -> 0 | M196: ='Leathnach Achoimre Bainc'!$DF$31 -> 0 | N196: ='Leathnach Achoimre Bainc'!$DF$32 -> 0 | O196: 0 | Q196: =IF(COA!$E$189="Y","Show","Hide") -> Show | R196: Costas Leighis agus Garchabhrach | S196: 0 | T196: 0
B197: Costais an tSeomra Foirne | C197: ='Leathnach Achoimre Bainc'!$DG$21 -> 0 | D197: ='Leathnach Achoimre Bainc'!$DG$22 -> 0 | E197: ='Leathnach Achoimre Bainc'!$DG$23 -> 0 | F197: ='Leathnach Achoimre Bainc'!$DG$24 -> 0 | G197: ='Leathnach Achoimre Bainc'!$DG$25 -> 0 | H197: ='Leathnach Achoimre Bainc'!$DG$26 -> 0 | I197: ='Leathnach Achoimre Bainc'!$DG$27 -> 0 | J197: ='Leathnach Achoimre Bainc'!$DG$28 -> 0 | K197: ='Leathnach Achoimre Bainc'!$DG$29 -> 0 | L197: ='Leathnach Achoimre Bainc'!$DG$30 -> 0 | M197: ='Leathnach Achoimre Bainc'!$DG$31 -> 0 | N197: ='Leathnach Achoimre Bainc'!$DG$32 -> 0 | O197: 0 | Q197: =IF(COA!$E$190="Y","Show","Hide") -> Show | R197: Costais an tSeomra Foirne | S197: 0 | T197: 0
B198: Costas Fáilteachais | C198: ='Leathnach Achoimre Bainc'!$DH$21 -> 0 | D198: ='Leathnach Achoimre Bainc'!$DH$22 -> 0 | E198: ='Leathnach Achoimre Bainc'!$DH$23 -> 0 | F198: ='Leathnach Achoimre Bainc'!$DH$24 -> 0 | G198: ='Leathnach Achoimre Bainc'!$DH$25 -> 0 | H198: ='Leathnach Achoimre Bainc'!$DH$26 -> 0 | I198: ='Leathnach Achoimre Bainc'!$DH$27 -> 0 | J198: ='Leathnach Achoimre Bainc'!$DH$28 -> 0 | K198: ='Leathnach Achoimre Bainc'!$DH$29 -> 0 | L198: ='Leathnach Achoimre Bainc'!$DH$30 -> 0 | M198: ='Leathnach Achoimre Bainc'!$DH$31 -> 0 | N198: ='Leathnach Achoimre Bainc'!$DH$32 -> 0 | O198: 0 | Q198: =IF(COA!$E$191="Y","Show","Hide") -> Show | R198: Costas Fáilteachais | S198: 0 | T198: 0
B199: Costas Siopa Milseán | C199: ='Leathnach Achoimre Bainc'!$DI$21 -> 0 | D199: ='Leathnach Achoimre Bainc'!$DI$22 -> 0 | E199: ='Leathnach Achoimre Bainc'!$DI$23 -> 0 | F199: ='Leathnach Achoimre Bainc'!$DI$24 -> 0 | G199: ='Leathnach Achoimre Bainc'!$DI$25 -> 0 | H199: ='Leathnach Achoimre Bainc'!$DI$26 -> 0 | I199: ='Leathnach Achoimre Bainc'!$DI$27 -> 0 | J199: ='Leathnach Achoimre Bainc'!$DI$28 -> 0 | K199: ='Leathnach Achoimre Bainc'!$DI$29 -> 0 | L199: ='Leathnach Achoimre Bainc'!$DI$30 -> 0 | M199: ='Leathnach Achoimre Bainc'!$DI$31 -> 0 | N199: ='Leathnach Achoimre Bainc'!$DI$32 -> 0 | O199: =SUM(C199:N199) -> 0 | Q199: =IF(COA!$E$192="Y","Show","Hide") -> Show | R199: Costas Siopa Milseán | S199: 0 | T199: 0
B200: Costais Riaracháin Eile | C200: ='Leathnach Achoimre Bainc'!$DJ$21 -> 0 | D200: ='Leathnach Achoimre Bainc'!$DJ$22 -> 0 | E200: ='Leathnach Achoimre Bainc'!$DJ$23 -> 0 | F200: ='Leathnach Achoimre Bainc'!$DJ$24 -> 0 | G200: ='Leathnach Achoimre Bainc'!$DJ$25 -> 0 | H200: ='Leathnach Achoimre Bainc'!$DJ$26 -> 0 | I200: ='Leathnach Achoimre Bainc'!$DJ$27 -> 0 | J200: ='Leathnach Achoimre Bainc'!$DJ$28 -> 0 | K200: ='Leathnach Achoimre Bainc'!$DJ$29 -> 0 | L200: ='Leathnach Achoimre Bainc'!$DJ$30 -> 0 | M200: ='Leathnach Achoimre Bainc'!$DJ$31 -> 0 | N200: ='Leathnach Achoimre Bainc'!$DJ$32 -> 0 | O200: 0 | Q200: =IF(COA!$E$193="Y","Show","Hide") -> Show | R200: Costais Riaracháin Eile | S200: 0 | T200: 0
B201: Costais Léasaithe | C201: ='Leathnach Achoimre Bainc'!$DK$21 -> 0 | D201: ='Leathnach Achoimre Bainc'!$DK$22 -> 0 | E201: ='Leathnach Achoimre Bainc'!$DK$23 -> 0 | F201: ='Leathnach Achoimre Bainc'!$DK$24 -> 0 | G201: ='Leathnach Achoimre Bainc'!$DK$25 -> 0 | H201: ='Leathnach Achoimre Bainc'!$DK$26 -> 0 | I201: ='Leathnach Achoimre Bainc'!$DK$27 -> 0 | J201: ='Leathnach Achoimre Bainc'!$DK$28 -> 0 | K201: ='Leathnach Achoimre Bainc'!$DK$29 -> 0 | L201: ='Leathnach Achoimre Bainc'!$DK$30 -> 0 | M201: ='Leathnach Achoimre Bainc'!$DK$31 -> 0 | N201: ='Leathnach Achoimre Bainc'!$DK$32 -> 0 | O201: 0 | Q201: =IF(COA!$E$194="Y","Show","Hide") -> Show | R201: Costais Léasaithe | S201: 0 | T201: 0
B202: Costas Táillí Iasachta | C202: ='Leathnach Achoimre Bainc'!$DL$21 -> 0 | D202: ='Leathnach Achoimre Bainc'!$DL$22 -> 0 | E202: ='Leathnach Achoimre Bainc'!$DL$23 -> 0 | F202: ='Leathnach Achoimre Bainc'!$DL$24 -> 0 | G202: ='Leathnach Achoimre Bainc'!$DL$25 -> 0 | H202: ='Leathnach Achoimre Bainc'!$DL$26 -> 0 | I202: ='Leathnach Achoimre Bainc'!$DL$27 -> 0 | J202: ='Leathnach Achoimre Bainc'!$DL$28 -> 0 | K202: ='Leathnach Achoimre Bainc'!$DL$29 -> 0 | L202: ='Leathnach Achoimre Bainc'!$DL$30 -> 0 | M202: ='Leathnach Achoimre Bainc'!$DL$31 -> 0 | N202: ='Leathnach Achoimre Bainc'!$DL$32 -> 0 | O202: 0 | Q202: =IF(COA!$E$195="Y","Show","Hide") -> Show | R202: Costas Táillí Iasachta | S202: 0 | T202: 0
B203: Costas Úis Bainc | C203: ='Leathnach Achoimre Bainc'!$DM$21 -> 0 | D203: ='Leathnach Achoimre Bainc'!$DM$22 -> 0 | E203: ='Leathnach Achoimre Bainc'!$DM$23 -> 0 | F203: ='Leathnach Achoimre Bainc'!$DM$24 -> 0 | G203: ='Leathnach Achoimre Bainc'!$DM$25 -> 0 | H203: ='Leathnach Achoimre Bainc'!$DM$26 -> 0 | I203: ='Leathnach Achoimre Bainc'!$DM$27 -> 0 | J203: ='Leathnach Achoimre Bainc'!$DM$28 -> 0 | K203: ='Leathnach Achoimre Bainc'!$DM$29 -> 0 | L203: ='Leathnach Achoimre Bainc'!$DM$30 -> 0 | M203: ='Leathnach Achoimre Bainc'!$DM$31 -> 0 | N203: ='Leathnach Achoimre Bainc'!$DM$32 -> 0 | O203: 0 | Q203: =IF(COA!$E$196="Y","Show","Hide") -> Show | R203: Costas Úis Bainc | S203: 0 | T203: 0
... 31 more rows

Sheet Iarmhír v Buiséad
A1: An Príomh-Roghchlár | B1: =Treoracha!G4 -> Cuir Isteach Anseo É | D1: Difríocht | E1: % Difríocht | H1: Tuarascáil Bhuiséid 1 | I1: Tuarascáil Bhuiséid 2
B2: Achoimre: Bliain Iarbhír go Dáta v Buiséad | D2: Bliain go Dáta v Buiséad 2022/2023 | E2: Bliain go Dáta v Buiséad 2022/2023
C3: Iarmbhír | H3: Buiséad
A4: Ioncam | B4: An Roinn Oideachais | C4: =SUM(INDEX(BudvAct_Dep_of_Edu_Inc,,3)) -> 0 | D4: =C4-H4 -> 0 | E4: =IF(H4,(C4-H4)/H4,0) -> 0 | F4: Ioncam | G4: An Roinn Oideachais | H4: =SUM(INDEX(BudvAct_Dep_of_Edu_Inc,,4)) -> 0
A5: Iarbhír | B5: Ioncam Eile ón Stát | C5: =SUM(INDEX(BudvAct_Other_State_Income,,3)) -> 0 | D5: =C5-H5 -> 0 | E5: =IF(H5,(C5-H5)/H5,0) -> 0 | F5: Buiséad | G5: Ioncam Eile ón Stát | H5: =SUM(INDEX(BudvAct_Other_State_Income,,4)) -> 0
B6: Ioncam arna Ghiniúint ag an Scoil | C6: =SUM(INDEX(BudvAct_School_Generated_Income,,3)) -> 0 | D6: 0 | E6: 0 | G6: Ioncam arna Ghiniúint ag an Scoil | H6: =SUM(INDEX(BudvAct_School_Generated_Income,,4)) -> 0
B7: Ioncam Eile | C7: =SUM(INDEX(BudvAct_Other_Inc,,3)) -> 0 | D7: 0 | E7: 0 | G7: Ioncam Eile | H7: =SUM(INDEX(BudvAct_Other_Inc,,4)) -> 0
B8: Total Actual Income | C8: =SUM(C4:C7) -> 0 | D8: 0 | E8: 0 | G8: Total Budget Income | H8: =SUM(H4:H7) -> 0
A9: Costais | B9: Tuarastal Oideachais | C9: =SUM(INDEX(BudvAct_Edu_Sal,,3)) -> 0 | D9: =-(C9-H9) -> 0 | E9: =IF(H9,(C9-H9)/H9,0)*-1 -> 0 | F9: Caiteachas | G9: Tuarastal Oideachais | H9: =SUM(INDEX(BudvAct_Edu_Sal,,4)) -> 0
A10: Iarbhír | B10: Caiteachas Oideachais Eile | C10: =SUM(INDEX(BudvAct_Edu_Other_Exp,,3)) -> 0 | D10: =-(C10-H10) -> 0 | E10: =IF(H10,(C10-H10)/H10,0)*-1 -> 0 | F10: Buiséad | G10: Caiteachas Oideachais Eile | H10: =SUM(INDEX(BudvAct_Edu_Other_Exp,,4)) -> 0
B11: Deisiúcháin, Cothabháil agus Bunú | C11: =SUM(INDEX(BudvAct_Rep_Main_Estab,,3)) -> 0 | D11: 0 | E11: 0 | G11: Deisiúcháin, Cothabháil agus Bunú | H11: =SUM(INDEX(BudvAct_Rep_Main_Estab,,4)) -> 0
B12: Riarachán | C12: =SUM(INDEX(BudvAct_Administration,,3)) -> 0 | D12: 0 | E12: 0 | G12: Riarachán | H12: =SUM(INDEX(BudvAct_Administration,,4)) -> 0
B13: Airgeadais | C13: =SUM(INDEX(BudvAct_Financial,,3)) -> 0 | D13: 0 | E13: 0 | G13: Airgeadais | H13: =SUM(INDEX(BudvAct_Financial,,4)) -> 0
B14: Total Actual Expense | C14: =SUM(C9:C13) -> 0 | D14: =-(C14-H14) -> 0 | E14: 0 | G14: Total Budget Expenditure | H14: =SUM(H9:H13) -> 0
A15: Cothromaíocht | B15: Ioncam réamh-mheasta lúide costais | C15: =C8-C14 -> 0 | D15: =C15-H15 -> 0 | E15: 0 | F15: Cothromaíocht | G15: Ioncam réamh-mheasta lúide costais | H15: =H8-H14 -> 0
A16: Iarbhír | F16: Buiséad | G16: Caiteachas Teagmhais 5% | H16: =H14*5% -> 0
A17: Difríocht Iarmhéid | B17: (Iarmhír lúide réamh mheasta) | C17: =C15-H15 -> 0 | G17: Barrachas/ (Easnamh) | H17: =H15-H16 -> 0
B18: Tuairisc 1: Bliain Iarbhír go Dáta v Buiséad | D18: Ionchur / Allmhairiú
A19: Cód Ainmniúil | C19: Bliain go Dáta | D19: Buiséad | E19: Bliain go Dáta v Buiséad 2022/2023 | F19: Bliain go Dáta v Buiséad 2022/2023
B20: IONCAM SCOILE | C20: Iarmhír | D20: 2022/2023 | E20: Difríocht | F20: % Difríocht
A21: 3010 | B21: Buiséad Caipitíochta/Neamhphá | C21: ='Tuairiscí Miosúla Ioncam & Cait'!O8 -> 0 | E21: =C21-D21 -> 0 | F21: =IF(D21,(C21-D21)/D21,0) -> 0 | Y21: =IF(COA!$E$5="Y","Show","Hide") -> Show
A22: 3020 | B22: Deontas DEIS | C22: ='Tuairiscí Miosúla Ioncam & Cait'!O9 -> 0 | E22: =C22-D22 -> 0 | F22: =IF(D22,(C22-D22)/D22,0) -> 0 | Y22: =IF(COA!$E$6="Y","Show","Hide") -> Show
A23: 3021 | B23: Deontas Scéim luath-thosaithe le haghaidh Ábh/Tre/For Tuis | C23: ='Tuairiscí Miosúla Ioncam & Cait'!O10 -> 0 | E23: 0 | F23: 0 | Y23: =IF(COA!$E$7="Y","Show","Hide") -> Show
A24: 3022 | B24: Scéim luath-thosaithe Caipitíocht | C24: ='Tuairiscí Miosúla Ioncam & Cait'!O11 -> 0 | E24: 0 | F24: 0 | Y24: =IF(COA!$E$8="Y","Show","Hide") -> Show
A25: 3050 | B25: Buiséad Pá Neamhtheagaisc | C25: ='Tuairiscí Miosúla Ioncam & Cait'!O12 -> 0 | E25: 0 | F25: 0 | Y25: =IF(COA!$E$9="Y","Show","Hide") -> Show
A26: 3140 | B26: Deontas do Threalamh Oideachais Speisialta | C26: ='Tuairiscí Miosúla Ioncam & Cait'!O13 -> 0 | E26: 0 | F26: =IF(D26,(C26-D26)/D26,0) -> 0 | Y26: =IF(COA!$E$10="Y","Show","Hide") -> Show
A27: 3150 | B27: Ioncam ó Dheontas na Leabhar | C27: ='Tuairiscí Miosúla Ioncam & Cait'!O14 -> 0 | E27: 0 | F27: 0 | Y27: =IF(COA!$E$11="Y","Show","Hide") -> Show
A28: 3155 | B28: Deontas Caipitil do Leabhair Leabharlainne Scoile | C28: ='Tuairiscí Miosúla Ioncam & Cait'!O15 -> 0 | E28: 0 | F28: 0 | Y28: =IF(COA!$E$12="Y","Show","Hide") -> Show
A29: 3160 | B29: Deontas na Scéime Leabhar ar Cíos | C29: ='Tuairiscí Miosúla Ioncam & Cait'!O16 -> 0 | E29: 0 | F29: 0 | Y29: =IF(COA!$E$13="Y","Show","Hide") -> Show
A30: 3170 | B30: Deontas na nÁbhar Speisialta | C30: ='Tuairiscí Miosúla Ioncam & Cait'!O17 -> 0 | E30: 0 | F30: 0 | Y30: =IF(COA!$E$14="Y","Show","Hide") -> Show
A31: 3171 | B31: Deontas scoile Gaeilge agus Dátheangach | C31: ='Tuairiscí Miosúla Ioncam & Cait'!O18 -> 0 | E31: 0 | F31: 0 | Y31: =IF(COA!$E$15="Y","Show","Hide") -> Show
A32: 3190 | B32: Deontas Chlár Scoile an Teastais Shóisearaigh | C32: ='Tuairiscí Miosúla Ioncam & Cait'!O19 -> 0 | E32: 0 | F32: 0 | Y32: =IF(COA!$E$16="Y","Show","Hide") -> Show
A33: 3200 | B33: Deontas Idirbhliana | C33: ='Tuairiscí Miosúla Ioncam & Cait'!O20 -> 0 | E33: 0 | F33: 0 | Y33: =IF(COA!$E$17="Y","Show","Hide") -> Show
A34: 3210 | B34: Deontas na hArdteistiméireachta Feidhmí | C34: ='Tuairiscí Miosúla Ioncam & Cait'!O21 -> 0 | E34: 0 | F34: 0 | Y34: =IF(COA!$E$18="Y","Show","Hide") -> Show
A35: 3225 | B35: Amúchadh Deontas Trealamh RO | C35: ='Tuairiscí Miosúla Ioncam & Cait'!O22 -> 0 | E35: 0 | F35: 0 | Y35: =IF(COA!$E$19="Y","Show","Hide") -> Show
A36: 3226 | B36: Amúchadh Deontas TFC RO | C36: ='Tuairiscí Miosúla Ioncam & Cait'!O23 -> 0 | E36: 0 | F36: 0 | Y36: =IF(COA!$E$20="Y","Show","Hide") -> Show
A37: 3227 | B37: Amúchadh Deontas Eile RO | C37: ='Tuairiscí Miosúla Ioncam & Cait'!O24 -> 0 | E37: 0 | F37: 0 | Y37: =IF(COA!$E$21="Y","Show","Hide") -> Show
A38: 3230 | B38: Deontas TFC Neamhchaipitiúil | C38: ='Tuairiscí Miosúla Ioncam & Cait'!O25 -> 0 | E38: 0 | F38: 0 | Y38: =IF(COA!$E$22="Y","Show","Hide") -> Show
A39: 3260 | B39: Ioncam ón gCiste Barr Feabhais Scoileanna | C39: ='Tuairiscí Miosúla Ioncam & Cait'!O26 -> 0 | E39: 0 | F39: 0 | Y39: =IF(COA!$E$23="Y","Show","Hide") -> Show
A40: 3275 | B40: Deontas Mionoibreacha Neamhchaipitiúla | C40: ='Tuairiscí Miosúla Ioncam & Cait'!O27 -> 0 | E40: 0 | F40: 0 | Y40: =IF(COA!$E$24="Y","Show","Hide") -> Show
A41: 3276 | B41: Ioncam ón Deontas Cóiríochta Sealadaí | C41: ='Tuairiscí Miosúla Ioncam & Cait'!O28 -> 0 | E41: 0 | F41: 0 | Y41: =IF(COA!$E$25="Y","Show","Hide") -> Show
A42: 3277 | B42: Deontas i leith Mionoibreacha COVID | C42: ='Tuairiscí Miosúla Ioncam & Cait'!O29 -> 0 | E42: 0 | F42: 0 | Y42: =IF(COA!$E$26="Y","Show","Hide") -> Show
A43: 3280 | B43: Deontas Chúntóir COVID | C43: ='Tuairiscí Miosúla Ioncam & Cait'!O30 -> 0 | E43: 0 | F43: 0 | Y43: =IF(COA!$E$27="Y","Show","Hide") -> Show
A44: 3282 | B44: Deontas feabhsaithe maoirseachta Covid | C44: ='Tuairiscí Miosúla Ioncam & Cait'!O31 -> 0 | E44: 0 | F44: 0 | Y44: =IF(COA!$E$28="Y","Show","Hide") -> Show
A45: 3284 | B45: Maoiniú COVID le haghaidh Uaireanta Feighlí Ionaid | C45: ='Tuairiscí Miosúla Ioncam & Cait'!O32 -> 0 | E45: 0 | F45: 0 | Y45: =IF(COA!$E$29="Y","Show","Hide") -> Show
A46: 3285 | B46: Maoiniú COVID le haghaidh Uaireanta Rúnaí Ionaid | C46: ='Tuairiscí Miosúla Ioncam & Cait'!O33 -> 0 | E46: 0 | F46: 0 | Y46: =IF(COA!$E$30="Y","Show","Hide") -> Show
A47: 3286 | B47: Maoiniú COVID le haghaidh Uaireanta Glantóra Ionaid | C47: ='Tuairiscí Miosúla Ioncam & Cait'!O34 -> 0 | E47: 0 | F47: 0 | Y47: =IF(COA!$E$31="Y","Show","Hide") -> Show
A48: 3287 | B48: Maoiniú COVID le haghaidh Uaireanta Tionlacaí Ionaid Bus | C48: ='Tuairiscí Miosúla Ioncam & Cait'!O35 -> 0 | E48: 0 | F48: 0 | Y48: =IF(COA!$E$32="Y","Show","Hide") -> Show
A49: 3288 | B49: Caipitíocht COVID do Ghlantachán agus Deontas TCP | C49: ='Tuairiscí Miosúla Ioncam & Cait'!O36 -> 0 | E49: 0 | F49: 0 | Y49: =IF(COA!$E$33="Y","Show","Hide") -> Show
A50: 3290 | B50: Ioncam Deontais Neamhchaipitil Eile RO | C50: ='Tuairiscí Miosúla Ioncam & Cait'!O37 -> 0 | E50: 0 | F50: 0 | Y50: =IF(COA!$E$34="Y","Show","Hide") -> Show
A51: 3292 | B51: Deontas Trialacha Caighdeánaithe | C51: ='Tuairiscí Miosúla Ioncam & Cait'!O38 -> 0 | E51: 0 | F51: 0 | Y51: =IF(COA!$E$35="Y","Show","Hide") -> Show
A52: 3293 | B52: Deontas Soláthair Samhraidh | C52: ='Tuairiscí Miosúla Ioncam & Cait'!O39 -> 0 | E52: 0 | F52: 0 | Y52: =IF(COA!$E$36="Y","Show","Hide") -> Show
A53: 3294 | B53: Deontas le haghaidh Tionlacaithe Bus | C53: ='Tuairiscí Miosúla Ioncam & Cait'!O40 -> 0 | E53: 0 | F53: 0 | Y53: =IF(COA!$E$37="Y","Show","Hide") -> Show
A54: 3295 | B54: Ioncam ón Roinn Leanaí agus Gnóthaí Óige | C54: ='Tuairiscí Miosúla Ioncam & Cait'!O41 -> 0 | E54: 0 | F54: 0 | Y54: =IF(COA!$E$38="Y","Show","Hide") -> Show
A55: 3296 | B55: Deontas le haghaidh Béilí Scoile ó RGFCS | C55: ='Tuairiscí Miosúla Ioncam & Cait'!O42 -> 0 | E55: 0 | F55: 0 | Y55: =IF(COA!$E$39="Y","Show","Hide") -> Show
A56: 3297 | B56: Ioncam Erasmus | C56: ='Tuairiscí Miosúla Ioncam & Cait'!O43 -> 0 | E56: 0 | F56: 0 | Y56: =IF(COA!$E$40="Y","Show","Hide") -> Show
A57: 3298 | B57: Maoiniú ó FSS | C57: ='Tuairiscí Miosúla Ioncam & Cait'!O44 -> 0 | E57: 0 | F57: 0 | Y57: =IF(COA!$E$41="Y","Show","Hide") -> Show
A58: 3299 | B58: Maoiniú Stáit Eile | C58: ='Tuairiscí Miosúla Ioncam & Cait'!O45 -> 0 | E58: 0 | F58: 0 | Y58: =IF(COA!$E$42="Y","Show","Hide") -> Show
A59: 3300 | B59: Táillí Oideachais (Scoileanna Táille) | C59: ='Tuairiscí Miosúla Ioncam & Cait'!O46 -> 0 | E59: 0 | F59: 0 | Y59: =IF(COA!$E$43="Y","Show","Hide") -> Show
A60: 3310 | B60: Ioncam Idirbhliana | C60: ='Tuairiscí Miosúla Ioncam & Cait'!O47 -> 0 | E60: 0 | F60: 0 | Y60: =IF(COA!$E$44="Y","Show","Hide") -> Show
A61: 3330 | B61: Ioncam ó Scéim na Leabhar ar Cíos | C61: ='Tuairiscí Miosúla Ioncam & Cait'!O48 -> 0 | E61: 0 | F61: 0 | Y61: =IF(COA!$E$45="Y","Show","Hide") -> Show
A62: 3335 | B62: Ioncam ó Leabhair Seomra Ranga | C62: ='Tuairiscí Miosúla Ioncam & Cait'!O49 -> 0 | E62: 0 | F62: 0 | Y62: =IF(COA!$E$46="Y","Show","Hide") -> Show
A63: 3350 | B63: Ioncam Cíosa ó Áiseanna a Ligean ar Fhruiliú | C63: ='Tuairiscí Miosúla Ioncam & Cait'!O50 -> 0 | E63: 0 | F63: 0 | Y63: =IF(COA!$E$47="Y","Show","Hide") -> Show
A64: 3370 | B64: Ioncam ó Thaisceadáin | C64: ='Tuairiscí Miosúla Ioncam & Cait'!O51 -> 0 | E64: 0 | F64: 0 | Y64: =IF(COA!$E$48="Y","Show","Hide") -> Show
A65: 3375 | B65: Ioncam ó Dhialanna agus Bliainirisí | C65: ='Tuairiscí Miosúla Ioncam & Cait'!O52 -> 0 | E65: 0 | F65: 0 | Y65: =IF(COA!$E$49="Y","Show","Hide") -> Show
A66: 3380 | B66: Ioncam fótachóipeáil mac léinn | C66: ='Tuairiscí Miosúla Ioncam & Cait'!O53 -> 0 | E66: 0 | F66: 0 | Y66: =IF(COA!$E$50="Y","Show","Hide") -> Show
A67: 3390 | B67: Táillí riaracháin scoile | C67: ='Tuairiscí Miosúla Ioncam & Cait'!O54 -> 0 | E67: 0 | F67: 0 | Y67: =IF(COA!$E$51="Y","Show","Hide") -> Show
A68: 3410 | B68: Ioncam Oideachais Aosaigh | C68: ='Tuairiscí Miosúla Ioncam & Cait'!O55 -> 0 | E68: 0 | F68: 0 | Y68: =IF(COA!$E$52="Y","Show","Hide") -> Show
A69: 3420 | B69: Ioncam ó Cheaintíní | C69: ='Tuairiscí Miosúla Ioncam & Cait'!O56 -> 0 | E69: 0 | F69: 0 | Y69: =IF(COA!$E$53="Y","Show","Hide") -> Show
A70: 3430 | B70: Ioncam ó Shiopaí Sólaistí | C70: ='Tuairiscí Miosúla Ioncam & Cait'!O57 -> 0 | E70: 0 | F70: 0 | Y70: =IF(COA!$E$54="Y","Show","Hide") -> Show
A71: 3440 | B71: Ioncam ó Éidí Scoile | C71: ='Tuairiscí Miosúla Ioncam & Cait'!O58 -> 0 | E71: 0 | F71: 0 | Y71: =IF(COA!$E$55="Y","Show","Hide") -> Show
A72: 3450 | B72: Ioncam Reiligiúin/Éitis | C72: ='Tuairiscí Miosúla Ioncam & Cait'!O59 -> 0 | E72: 0 | F72: 0 | Y72: =IF(COA!$E$56="Y","Show","Hide") -> Show
A73: 3490 | B73: Ioncam Club/Staidéir Iarscoile | C73: ='Tuairiscí Miosúla Ioncam & Cait'!O60 -> 0 | E73: 0 | F73: 0 | Y73: =IF(COA!$E$57="Y","Show","Hide") -> Show
A74: 3500 | B74: Ioncam ó Chluichí | C74: ='Tuairiscí Miosúla Ioncam & Cait'!O61 -> 0 | E74: 0 | F74: 0 | Y74: =IF(COA!$E$58="Y","Show","Hide") -> Show
A75: 3510 | B75: Ioncam ón Bhusanna | C75: ='Tuairiscí Miosúla Ioncam & Cait'!O62 -> 0 | E75: 0 | F75: 0 | Y75: =IF(COA!$E$59="Y","Show","Hide") -> Show
A76: 3520 | B76: Ioncam ó Cheoldrámaí/Dhrámaí Scoile | C76: ='Tuairiscí Miosúla Ioncam & Cait'!O63 -> 0 | E76: 0 | F76: 0 | Y76: =IF(COA!$E$60="Y","Show","Hide") -> Show
A77: 3530 | B77: Ioncam ó Thurais Scoile | C77: ='Tuairiscí Miosúla Ioncam & Cait'!O64 -> 0 | E77: 0 | F77: 0 | Y77: =IF(COA!$E$61="Y","Show","Hide") -> Show
A78: 3531 | B78: Ioncam ó Snámh Scoile | C78: ='Tuairiscí Miosúla Ioncam & Cait'!O65 -> 0 | E78: 0 | F78: 0 | Y78: =IF(COA!$E$62="Y","Show","Hide") -> Show
A79: 3535 | B79: Ioncam ó Árachas Daltaí | C79: ='Tuairiscí Miosúla Ioncam & Cait'!O66 -> 0 | E79: 0 | F79: 0 | Y79: =IF(COA!$E$63="Y","Show","Hide") -> Show
A80: 3540 | B80: Ioncam Réamhscoile | C80: ='Tuairiscí Miosúla Ioncam & Cait'!O67 -> 0 | E80: 0 | F80: 0 | Y80: =IF(COA!$E$64="Y","Show","Hide") -> Show
A81: 3545 | B81: Ioncam ó Champaí Samhraidh | C81: ='Tuairiscí Miosúla Ioncam & Cait'!O68 -> 0 | E81: 0 | F81: 0 | Y81: =IF(COA!$E$65="Y","Show","Hide") -> Show
A82: 3550 | B82: Ioncam In-Aisíoctha | C82: ='Tuairiscí Miosúla Ioncam & Cait'!O69 -> 0 | E82: 0 | F82: 0 | Y82: =IF(COA!$E$66="Y","Show","Hide") -> Show
A83: 3570 | B83: Ioncam Eile arna Ghiniúint ag an Scoil | C83: ='Tuairiscí Miosúla Ioncam & Cait'!O70 -> 0 | E83: 0 | F83: 0 | Y83: =IF(COA!$E$67="Y","Show","Hide") -> Show
A84: 3572 | B84: Ioncam Ealaíon agus Ceardaíochta Scoile | C84: ='Tuairiscí Miosúla Ioncam & Cait'!O71 -> 0 | E84: 0 | F84: 0 | Y84: =IF(COA!$E$68="Y","Show","Hide") -> Show
A85: 3573 | B85: Ioncam Damhsa Scoile | C85: ='Tuairiscí Miosúla Ioncam & Cait'!O72 -> 0 | E85: 0 | F85: 0 | Y85: =IF(COA!$E$69="Y","Show","Hide") -> Show
A86: 3574 | B86: Tiomsú Airgid Srianta Scoile (Neamhchaipitiúil) | C86: ='Tuairiscí Miosúla Ioncam & Cait'!O73 -> 0 | E86: =C86-D86 -> 0 | F86: =IF(D86,(C86-D86)/D86,0) -> 0 | Y86: =IF(COA!$E$70="Y","Show","Hide") -> Show
A87: 3575 | B87: Tiomsú Airgid Neamhshrianta Scoile (Neamhchaipitiúil) | C87: ='Tuairiscí Miosúla Ioncam & Cait'!O74 -> 0 | E87: 0 | F87: 0 | Y87: =IF(COA!$E$71="Y","Show","Hide") -> Show
A88: 3580 | B88: Lascainí Tugtha | C88: ='Tuairiscí Miosúla Ioncam & Cait'!O75 -> 0 | E88: 0 | F88: 0 | Y88: =IF(COA!$E$72="Y","Show","Hide") -> Show
A89: 3650 | B89: Ranníocaíochtaí Saorálacha | C89: ='Tuairiscí Miosúla Ioncam & Cait'!O76 -> 0 | E89: 0 | F89: 0 | Y89: =IF(COA!$E$73="Y","Show","Hide") -> Show
A90: 3700 | B90: Ioncam ó Chumann na dTuismitheoirí | C90: ='Tuairiscí Miosúla Ioncam & Cait'!O77 -> 0 | E90: 0 | F90: 0 | Y90: =IF(COA!$E$74="Y","Show","Hide") -> Show
A91: 3770 | B91: Ioncam ó Éilimh Árachais | C91: ='Tuairiscí Miosúla Ioncam & Cait'!O78 -> 0 | E91: 0 | F91: 0 | Y91: =IF(COA!$E$75="Y","Show","Hide") -> Show
A92: 3800 | B92: Ús Bainc Faighte | C92: ='Tuairiscí Miosúla Ioncam & Cait'!O79 -> 0 | E92: 0 | F92: 0 | Y92: =IF(COA!$E$76="Y","Show","Hide") -> Show
A93: 3840 | B93: Amúchadh Maoinithe nach bhFuarthas ón RO | C93: ='Tuairiscí Miosúla Ioncam & Cait'!O80 -> 0 | E93: 0 | F93: 0 | Y93: =IF(COA!$E$77="Y","Show","Hide") -> Show
A94: 3850 | B94: Ioncam Eile | C94: ='Tuairiscí Miosúla Ioncam & Cait'!O81 -> 0 | E94: 0 | F94: 0 | Y94: =IF(COA!$E$78="Y","Show","Hide") -> Show
A95: 3851 | B95: Ioncam Ainmnithe (Neamhchaipitiúil) | C95: ='Tuairiscí Miosúla Ioncam & Cait'!O82 -> 0 | E95: 0 | F95: 0 | Y95: =IF(COA!$E$79="Y","Show","Hide") -> Show
A96: 3852 | B96: Tiomsú Airgid Srianta Seachtrach (Neamhchaipitiúil) | C96: ='Tuairiscí Miosúla Ioncam & Cait'!O83 -> 0 | E96: 0 | F96: 0 | Y96: =IF(COA!$E$80="Y","Show","Hide") -> Show
A97: 3853 | B97: Tiomsú Airgid Neamhshrianta Seachtrach (Neamhchaipitiúil) | C97: ='Tuairiscí Miosúla Ioncam & Cait'!O84 -> 0 | E97: 0 | F97: 0 | Y97: =IF(COA!$E$81="Y","Show","Hide") -> Show
B99: IONCAM IOMLÁN NA SCOILE | C99: =SUM(C21:C98) -> 0 | D99: =SUM(D21:D98) -> 0 | E99: =SUM(E21:E98) -> 0 | F99: =IF(D99,(C99-D99)/D99,0) -> 0
C100: Bliain go Dáta | D100: Buiséad | E100: Bliain go Dáta v Buiséad 2021/2022 | F100: Bliain go Dáta v Buiséad 2021/2022
B101: CAITEACHAS NA SCOILE | C101: Iarmhír | D101: 2022/2023 | E101: Difríocht % | F101: Difríocht %
A102: 4110 | B102: Costas Múinteoirí Ionaid | C102: ='Tuairiscí Miosúla Ioncam & Cait'!O89 -> 0 | D102: 0 | E102: =-(C102-D102) -> 0 | F102: =IF(D102,(C102-D102)/D102,0)*-1 -> 0 | Y102: =IF(COA!$E$82="Y","Show","Hide") -> Show
A103: 4111 | B103: Costas Múinteoirí a Íoctar go Príobháideach | C103: ='Tuairiscí Miosúla Ioncam & Cait'!O90 -> 0 | D103: 0 | E103: =-(C103-D103) -> 0 | F103: =IF(D103,(C103-D103)/D103,0)*-1 -> 0 | Y103: =IF(COA!$E$83="Y","Show","Hide") -> Show
A104: 4150 | B104: Costas Tuarastal Maoirseachta agus Ionadaithe | C104: ='Tuairiscí Miosúla Ioncam & Cait'!O91 -> 0 | D104: 0 | E104: 0 | F104: 0 | Y104: =IF(COA!$E$84="Y","Show","Hide") -> Show
A105: 4170 | B105: Costas Tuarastal Oideachais Aosaigh | C105: ='Tuairiscí Miosúla Ioncam & Cait'!O92 -> 0 | D105: 0 | E105: 0 | F105: 0 | Y105: =IF(COA!$E$85="Y","Show","Hide") -> Show
A106: 4181 | B106: Costais Thuarastail an Cheaintín | C106: ='Tuairiscí Miosúla Ioncam & Cait'!O93 -> 0 | D106: 0 | E106: 0 | F106: 0 | Y106: =IF(COA!$E$86="Y","Show","Hide") -> Show
A107: 4190 | B107: Costas Tuarastal Staidéir/Club Iarscoile | C107: ='Tuairiscí Miosúla Ioncam & Cait'!O94 -> 0 | D107: 0 | E107: 0 | F107: 0 | Y107: =IF(COA!$E$87="Y","Show","Hide") -> Show
A108: 4191 | B108: Costais Tuarastail Campaí Samhraidh | C108: ='Tuairiscí Miosúla Ioncam & Cait'!O95 -> 0 | D108: 0 | E108: 0 | F108: 0 | Y108: =IF(COA!$E$88="Y","Show","Hide") -> Show
A109: 4196 | B109: Costas Tuarastail Tionlacaithe Bus | C109: ='Tuairiscí Miosúla Ioncam & Cait'!O96 -> 0 | D109: 0 | E109: 0 | F109: 0 | Y109: =IF(COA!$E$89="Y","Show","Hide") -> Show
A110: 4197 | B110: Maoiniú COVID le haghaidh Costas maidir le hUaireanta Tionlacaí Ionaid Bus | C110: ='Tuairiscí Miosúla Ioncam & Cait'!O97 -> 0 | D110: 0 | E110: 0 | F110: 0 | Y110: =IF(COA!$E$90="Y","Show","Hide") -> Show
A111: 4198 | B111: Costais Tuarastail Oideachais Eile | C111: ='Tuairiscí Miosúla Ioncam & Cait'!O98 -> 0 | D111: 0 | E111: 0 | F111: 0 | Y111: =IF(COA!$E$91="Y","Show","Hide") -> Show
A112: 4199 | B112: Costais Tuarastail Maoinithe ag FSS | C112: ='Tuairiscí Miosúla Ioncam & Cait'!O99 -> 0 | D112: 0 | E112: 0 | F112: 0 | Y112: =IF(COA!$E$92="Y","Show","Hide") -> Show
A113: 4310 | B113: Costas Áiseanna Teagaisc | C113: ='Tuairiscí Miosúla Ioncam & Cait'!O100 -> 0 | D113: 0 | E113: 0 | F113: 0 | Y113: =IF(COA!$E$93="Y","Show","Hide") -> Show
A114: 4311 | B114: Costaisí Scéim luath-thosaithe le haghaidh Ábh/Tre/For tuis | C114: ='Tuairiscí Miosúla Ioncam & Cait'!O101 -> 0 | D114: 0 | E114: 0 | F114: 0 | Y114: =IF(COA!$E$94="Y","Show","Hide") -> Show
A115: 4315 | B115: Costas fótachóipeáil mac léinn | C115: ='Tuairiscí Miosúla Ioncam & Cait'!O102 -> 0 | D115: 0 | E115: 0 | F115: 0 | Y115: =IF(COA!$E$95="Y","Show","Hide") -> Show
A116: 4330 | B116: Costas maidir le Reiligiún/hÉiteas | C116: ='Tuairiscí Miosúla Ioncam & Cait'!O103 -> 0 | D116: 0 | E116: 0 | F116: 0 | Y116: =IF(COA!$E$96="Y","Show","Hide") -> Show
A117: 4410 | B117: Costais Deontais Neamhchaipitil TFC | C117: ='Tuairiscí Miosúla Ioncam & Cait'!O104 -> 0 | D117: 0 | E117: 0 | F117: 0 | Y117: =IF(COA!$E$97="Y","Show","Hide") -> Show
A118: 4420 | B118: Costais Cothabhála & Tacaíochta Ríomhaireachta | C118: ='Tuairiscí Miosúla Ioncam & Cait'!O105 -> 0 | D118: 0 | E118: 0 | F118: 0 | Y118: =IF(COA!$E$98="Y","Show","Hide") -> Show
A119: 4490 | B119: Costas d’Ábhair Eile | C119: ='Tuairiscí Miosúla Ioncam & Cait'!O106 -> 0 | D119: 0 | E119: 0 | F119: 0 | Y119: =IF(COA!$E$99="Y","Show","Hide") -> Show
A120: 4550 | B120: Costas don Ardteistiméireacht Fheidhmeach | C120: ='Tuairiscí Miosúla Ioncam & Cait'!O107 -> 0 | D120: 0 | E120: 0 | F120: 0 | Y120: =IF(COA!$E$100="Y","Show","Hide") -> Show
A121: 4570 | B121: Costas do Ghairmchlár na hArdteistiméireachta | C121: ='Tuairiscí Miosúla Ioncam & Cait'!O108 -> 0 | D121: 0 | E121: 0 | F121: 0 | Y121: =IF(COA!$E$101="Y","Show","Hide") -> Show
A122: 4590 | B122: Costas na hIdirbhliana | C122: ='Tuairiscí Miosúla Ioncam & Cait'!O109 -> 0 | D122: 0 | E122: 0 | F122: 0 | Y122: =IF(COA!$E$102="Y","Show","Hide") -> Show
A123: 4610 | B123: Costas na Tacaíochta Foghlama | C123: ='Tuairiscí Miosúla Ioncam & Cait'!O110 -> 0 | D123: 0 | E123: 0 | F123: 0 | Y123: =IF(COA!$E$103="Y","Show","Hide") -> Show
A124: 4620 | B124: Costas Inseirbhíse agus Oiliúna Múinteoirí | C124: ='Tuairiscí Miosúla Ioncam & Cait'!O111 -> 0 | D124: 0 | E124: 0 | F124: 0 | Y124: =IF(COA!$E$104="Y","Show","Hide") -> Show
A125: 4635 | B125: Costais i leith Folláine Mac Léinn | C125: ='Tuairiscí Miosúla Ioncam & Cait'!O112 -> 0 | D125: 0 | E125: 0 | F125: 0 | Y125: =IF(COA!$E$105="Y","Show","Hide") -> Show
A126: 4640 | B126: Caiteachas Leabharlainne nach Maoinítear Deontas | C126: ='Tuairiscí Miosúla Ioncam & Cait'!O113 -> 0 | D126: 0 | E126: 0 | F126: 0 | Y126: =IF(COA!$E$106="Y","Show","Hide") -> Show
A127: 4641 | B127: Caiteachas Deontas Caipitil Leabhair Leabharlainne Scoile | C127: ='Tuairiscí Miosúla Ioncam & Cait'!O114 -> 0 | D127: 0 | E127: 0 | F127: 0 | Y127: =IF(COA!$E$107="Y","Show","Hide") -> Show
A128: 4650 | B128: Costas Corpoideachais | C128: ='Tuairiscí Miosúla Ioncam & Cait'!O115 -> 0 | D128: 0 | E128: 0 | F128: 0 | Y128: =IF(COA!$E$108="Y","Show","Hide") -> Show
A129: 4670 | B129: Costas Cluichí (gan taisteal san áireamh) | C129: ='Tuairiscí Miosúla Ioncam & Cait'!O116 -> 0 | D129: 0 | E129: 0 | F129: 0 | Y129: =IF(COA!$E$109="Y","Show","Hide") -> Show
A130: 4671 | B130: Costas Taistil go Cluichí | C130: ='Tuairiscí Miosúla Ioncam & Cait'!O117 -> 0 | D130: 0 | E130: 0 | F130: 0 | Y130: =IF(COA!$E$110="Y","Show","Hide") -> Show
A131: 4690 | B131: Costas Fruilithe Busanna | C131: ='Tuairiscí Miosúla Ioncam & Cait'!O118 -> 0 | D131: 0 | E131: 0 | F131: 0 | Y131: =IF(COA!$E$111="Y","Show","Hide") -> Show
A132: 4710 | B132: Costas Turas Scoile | C132: ='Tuairiscí Miosúla Ioncam & Cait'!O119 -> 0 | D132: 0 | E132: 0 | F132: 0 | Y132: =IF(COA!$E$112="Y","Show","Hide") -> Show
A133: 4720 | B133: Costas Ceoldráma/Dráma Scoile | C133: ='Tuairiscí Miosúla Ioncam & Cait'!O120 -> 0 | D133: 0 | E133: 0 | F133: 0 | Y133: =IF(COA!$E$113="Y","Show","Hide") -> Show
A134: 4730 | B134: Costas Dheontas na Leabhar | C134: ='Tuairiscí Miosúla Ioncam & Cait'!O121 -> 0 | D134: 0 | E134: 0 | F134: 0 | Y134: =IF(COA!$E$114="Y","Show","Hide") -> Show
A135: 4740 | B135: Costas Scéim na Leabhar ar Cíos | C135: ='Tuairiscí Miosúla Ioncam & Cait'!O122 -> 0 | D135: 0 | E135: 0 | F135: 0 | Y135: =IF(COA!$E$115="Y","Show","Hide") -> Show
A136: 4741 | B136: Costais Leabhar Seomra Ranga | C136: ='Tuairiscí Miosúla Ioncam & Cait'!O123 -> 0 | D136: 0 | E136: 0 | F136: 0 | Y136: =IF(COA!$E$116="Y","Show","Hide") -> Show
A137: 4760 | B137: Costas Bliainirisí/Dialanna Scoile | C137: ='Tuairiscí Miosúla Ioncam & Cait'!O124 -> 0 | D137: 0 | E137: 0 | F137: 0 | Y137: =IF(COA!$E$117="Y","Show","Hide") -> Show
A138: 4770 | B138: Costas Trófaithe agus Duaiseanna | C138: ='Tuairiscí Miosúla Ioncam & Cait'!O125 -> 0 | D138: 0 | E138: 0 | F138: 0 | Y138: =IF(COA!$E$118="Y","Show","Hide") -> Show
A139: 4780 | B139: Costas Éidí | C139: ='Tuairiscí Miosúla Ioncam & Cait'!O126 -> 0 | D139: 0 | E139: 0 | F139: 0 | Y139: =IF(COA!$E$119="Y","Show","Hide") -> Show
A140: 4810 | B140: Costas na Teagmhála idir an Baile agus an Scoil | C140: ='Tuairiscí Miosúla Ioncam & Cait'!O127 -> 0 | D140: 0 | E140: 0 | F140: 0 | Y140: =IF(COA!$E$120="Y","Show","Hide") -> Show
A141: 4815 | B141: Costas an Chiste Barr Feabhais Scoileanna | C141: ='Tuairiscí Miosúla Ioncam & Cait'!O128 -> 0 | D141: 0 | E141: 0 | F141: 0 | Y141: =IF(COA!$E$121="Y","Show","Hide") -> Show
A142: 4908 | B142: Costais Eile Campaí Samhraidh | C142: ='Tuairiscí Miosúla Ioncam & Cait'!O129 -> 0 | D142: 0 | E142: 0 | F142: 0 | Y142: =IF(COA!$E$122="Y","Show","Hide") -> Show
A143: 4909 | B143: Costais Sholáthar Eile Samhraidh | C143: ='Tuairiscí Miosúla Ioncam & Cait'!O130 -> 0 | D143: 0 | E143: 0 | F143: 0 | Y143: =IF(COA!$E$123="Y","Show","Hide") -> Show
A144: 4910 | B144: Costas Oideachais Eile | C144: ='Tuairiscí Miosúla Ioncam & Cait'!O131 -> 0 | D144: 0 | E144: 0 | F144: 0 | Y144: =IF(COA!$E$124="Y","Show","Hide") -> Show
A145: 4911 | B145: Costas Ghníomhaíochtaí na Roinne Leanaí agus Gnóthaí Óige | C145: ='Tuairiscí Miosúla Ioncam & Cait'!O132 -> 0 | D145: 0 | E145: 0 | F145: 0 | Y145: =IF(COA!$E$125="Y","Show","Hide") -> Show
A146: 4912 | B146: Costais Bia Béilí Scoileanna na Roinne Coimirce Sóisialaí | C146: ='Tuairiscí Miosúla Ioncam & Cait'!O133 -> 0 | D146: 0 | E146: 0 | F146: 0 | Y146: =IF(COA!$E$126="Y","Show","Hide") -> Show
A147: 4913 | B147: Costas Erasmus | C147: ='Tuairiscí Miosúla Ioncam & Cait'!O134 -> 0 | D147: 0 | E147: 0 | F147: 0 | Y147: =IF(COA!$E$127="Y","Show","Hide") -> Show
A148: 4914 | B148: Costais Deontais Neamhchaipitil Eile RO | C148: ='Tuairiscí Miosúla Ioncam & Cait'!O135 -> 0 | D148: 0 | E148: 0 | F148: 0 | Y148: =IF(COA!$E$128="Y","Show","Hide") -> Show
A149: 4915 | B149: Costais Eile Ceaintín | C149: ='Tuairiscí Miosúla Ioncam & Cait'!O136 -> 0 | D149: 0 | E149: 0 | F149: 0 | Y149: =IF(COA!$E$129="Y","Show","Hide") -> Show
A150: 4916 | B150: Costas Árachais Daltaí | C150: ='Tuairiscí Miosúla Ioncam & Cait'!O137 -> 0 | D150: 0 | E150: 0 | F150: 0 | Y150: =IF(COA!$E$130="Y","Show","Hide") -> Show
A151: 4917 | B151: Costas Trialacha Caighdeánaithe | C151: ='Tuairiscí Miosúla Ioncam & Cait'!O138 -> 0 | D151: 0 | E151: 0 | F151: 0 | Y151: =IF(COA!$E$131="Y","Show","Hide") -> Show
A152: 4918 | B152: Caiteachas Ainmnithe (Neamhchaipitiúil) | C152: ='Tuairiscí Miosúla Ioncam & Cait'!O139 -> 0 | D152: 0 | E152: 0 | F152: 0 | Y152: =IF(COA!$E$132="Y","Show","Hide") -> Show
A153: 4919 | B153: Costas Trealaimh Oideachais Speisialta (Neamhchaipitiúil) | C153: ='Tuairiscí Miosúla Ioncam & Cait'!O140 -> 0 | D153: 0 | E153: 0 | F153: 0 | Y153: =IF(COA!$E$133="Y","Show","Hide") -> Show
A154: 4920 | B154: Costas Damhsa na Scoile | C154: ='Tuairiscí Miosúla Ioncam & Cait'!O141 -> 0 | D154: 0 | E154: 0 | F154: 0 | Y154: =IF(COA!$E$134="Y","Show","Hide") -> Show
A155: 4921 | B155: Costas Snámha Scoile | C155: ='Tuairiscí Miosúla Ioncam & Cait'!O142 -> 0 | D155: 0 | E155: 0 | F155: 0 | Y155: =IF(COA!$E$135="Y","Show","Hide") -> Show
A156: 4922 | B156: Costas Snámha ScoileCostais a bhaineann le Tiomsú Airgid Srianta Scoile (Neamhchaipitiúil) | C156: ='Tuairiscí Miosúla Ioncam & Cait'!O143 -> 0 | D156: 0 | E156: 0 | F156: 0 | Y156: =IF(COA!$E$136="Y","Show","Hide") -> Show
A157: 4923 | B157: Costais a bhaineann le Tiomsú Airgid Srianta Seachtrach (Neamhchaipitiúil) | C157: ='Tuairiscí Miosúla Ioncam & Cait'!O144 -> 0 | D157: 0 | E157: 0 | F157: 0 | Y157: =IF(COA!$E$137="Y","Show","Hide") -> Show
A158: 4924 | B158: Costais a bhaineann le Tiomsú Airgid Neamhshrianta Seachtrach (Neamhchaipitiúil) | C158: ='Tuairiscí Miosúla Ioncam & Cait'!O145 -> 0 | D158: 0 | E158: 0 | F158: 0 | Y158: =IF(COA!$E$138="Y","Show","Hide") -> Show
A159: 4925 | B159: Costais Tiomsaithe Airgid Neamhshrianta Scoile (Neamhchaipitiúil) | C159: ='Tuairiscí Miosúla Ioncam & Cait'!O146 -> 0 | D159: 0 | E159: 0 | F159: 0 | Y159: =IF(COA!$E$139="Y","Show","Hide") -> Show
A160: 4927 | B160: Costais Ealaíon agus Ceardaíochta Scoile | C160: ='Tuairiscí Miosúla Ioncam & Cait'!O147 -> 0 | D160: 0 | E160: 0 | F160: 0 | Y160: =IF(COA!$E$140="Y","Show","Hide") -> Show
A161: 4928 | B161: Costais Eile FSS | C161: ='Tuairiscí Miosúla Ioncam & Cait'!O148 -> 0 | D161: 0 | E161: 0 | F161: 0 | Y161: =IF(COA!$E$141="Y","Show","Hide") -> Show
A162: 4930 | B162: Costas Réamhscoile | C162: ='Tuairiscí Miosúla Ioncam & Cait'!O149 -> 0 | D162: 0 | E162: 0 | F162: 0 | Y162: =IF(COA!$E$142="Y","Show","Hide") -> Show
A163: 5010 | B163: Costas Pá Feighlí | C163: ='Tuairiscí Miosúla Ioncam & Cait'!O150 -> 0 | D163: 0 | E163: 0 | F163: 0 | Y163: =IF(COA!$E$143="Y","Show","Hide") -> Show
A164: 5011 | B164: Maoiniú COVID le haghaidh Caiteachas maidir le hUaireanta Feighlí Ionaid | C164: ='Tuairiscí Miosúla Ioncam & Cait'!O151 -> 0 | D164: 0 | E164: 0 | F164: 0 | Y164: =IF(COA!$E$144="Y","Show","Hide") -> Show
A165: 5030 | B165: Costas Pinsin na bhFeighlithe | C165: ='Tuairiscí Miosúla Ioncam & Cait'!O152 -> 0 | D165: 0 | E165: 0 | F165: 0 | Y165: =IF(COA!$E$145="Y","Show","Hide") -> Show
A166: 5110 | B166: Costas Pá Glantóirí | C166: ='Tuairiscí Miosúla Ioncam & Cait'!O153 -> 0 | D166: 0 | E166: 0 | F166: 0 | Y166: =IF(COA!$E$146="Y","Show","Hide") -> Show
A167: 5111 | B167: Maoiniú COVID le haghaidh Caiteachas maidir le hUaireanta Glantóra Ionaid | C167: ='Tuairiscí Miosúla Ioncam & Cait'!O154 -> 0 | D167: 0 | E167: =-(C167-D167) -> 0 | F167: =IF(D167,(C167-D167)/D167,0)*-1 -> 0 | Y167: =IF(COA!$E$147="Y","Show","Hide") -> Show
A168: 5112 | B168: Costas Pinsin Glantóirí | C168: ='Tuairiscí Miosúla Ioncam & Cait'!O155 -> 0 | D168: 0 | E168: 0 | F168: 0 | Y168: =IF(COA!$E$148="Y","Show","Hide") -> Show
A169: 5150 | B169: Costas Glantóirí ar Conradh | C169: ='Tuairiscí Miosúla Ioncam & Cait'!O156 -> 0 | D169: 0 | E169: 0 | F169: 0 | Y169: =IF(COA!$E$149="Y","Show","Hide") -> Show
A170: 5170 | B170: Costas Ábhar Glantacháin | C170: ='Tuairiscí Miosúla Ioncam & Cait'!O157 -> 0 | D170: 0 | E170: 0 | F170: 0 | Y170: =IF(COA!$E$150="Y","Show","Hide") -> Show
A171: 5175 | B171: Costais Ghlantacháin agus Sláintíochta Eile | C171: ='Tuairiscí Miosúla Ioncam & Cait'!O158 -> 0 | D171: 0 | E171: 0 | F171: 0 | Y171: =IF(COA!$E$151="Y","Show","Hide") -> Show
A172: 5310 | B172: Costas Deisiúchán ar Fhoirgnimh agus Thailte | C172: ='Tuairiscí Miosúla Ioncam & Cait'!O159 -> 0 | D172: 0 | E172: 0 | F172: 0 | Y172: =IF(COA!$E$152="Y","Show","Hide") -> Show
A173: 5315 | B173: Costas Deontas Mionoibreacha (Neamhchaipitiúil) | C173: ='Tuairiscí Miosúla Ioncam & Cait'!O160 -> 0 | D173: 0 | E173: 0 | F173: 0 | Y173: =IF(COA!$E$153="Y","Show","Hide") -> Show
A174: 5316 | B174: Costas Deontais le haghaidh Mionoibreacha COVID | C174: ='Tuairiscí Miosúla Ioncam & Cait'!O161 -> 0 | D174: 0 | E174: 0 | F174: 0 | Y174: =IF(COA!$E$154="Y","Show","Hide") -> Show
A175: 5350 | B175: Costas Deisiúchán ar Throscán, Feistis agus Trealamh | C175: ='Tuairiscí Miosúla Ioncam & Cait'!O162 -> 0 | D175: 0 | E175: 0 | F175: 0 | Y175: =IF(COA!$E$155="Y","Show","Hide") -> Show
A176: 5400 | B176: Gnáthchostas Slándála | C176: ='Tuairiscí Miosúla Ioncam & Cait'!O163 -> 0 | D176: 0 | E176: 0 | F176: 0 | Y176: =IF(COA!$E$156="Y","Show","Hide") -> Show
A177: 5450 | B177: Costas Árachais Ghinearálta | C177: ='Tuairiscí Miosúla Ioncam & Cait'!O164 -> 0 | D177: 0 | E177: 0 | F177: 0 | Y177: =IF(COA!$E$157="Y","Show","Hide") -> Show
A178: 5510 | B178: Costas Téimh | C178: ='Tuairiscí Miosúla Ioncam & Cait'!O165 -> 0 | D178: 0 | E178: 0 | F178: 0 | Y178: =IF(COA!$E$158="Y","Show","Hide") -> Show
A179: 5550 | B179: Costas Soilse agus Cumhachta | C179: ='Tuairiscí Miosúla Ioncam & Cait'!O166 -> 0 | D179: 0 | E179: 0 | F179: 0 | Y179: =IF(COA!$E$159="Y","Show","Hide") -> Show
A180: 5551 | B180: Costas Cíosa Cóiríochta Sealadaí | C180: ='Tuairiscí Miosúla Ioncam & Cait'!O167 -> 0 | D180: 0 | E180: 0 | F180: 0 | Y180: =IF(COA!$E$160="Y","Show","Hide") -> Show
A181: 5552 | B181: Costais Cíosa Eile | C181: ='Tuairiscí Miosúla Ioncam & Cait'!O168 -> 0 | D181: 0 | E181: 0 | F181: 0 | Y181: =IF(COA!$E$161="Y","Show","Hide") -> Show
A182: 5610 | B182: Costas Bruscair | C182: ='Tuairiscí Miosúla Ioncam & Cait'!O169 -> 0 | D182: 0 | E182: 0 | F182: 0 | Y182: =IF(COA!$E$162="Y","Show","Hide") -> Show
A183: 5611 | B183: Costais Rátaí Uisce | C183: ='Tuairiscí Miosúla Ioncam & Cait'!O170 -> 0 | D183: 0 | E183: 0 | F183: 0 | Y183: =IF(COA!$E$163="Y","Show","Hide") -> Show
A184: 5700 | B184: Costas na Táille Ceadúnais don Phátrún/Iontaobhaí | C184: ='Tuairiscí Miosúla Ioncam & Cait'!O171 -> 0 | D184: 0 | E184: 0 | F184: 0 | Y184: =IF(COA!$E$164="Y","Show","Hide") -> Show
A185: 5800 | B185: Costas Deisiúcháin agus Cothabhála Eile | C185: ='Tuairiscí Miosúla Ioncam & Cait'!O172 -> 0 | D185: 0 | E185: 0 | F185: 0 | Y185: =IF(COA!$E$165="Y","Show","Hide") -> Show
A186: 5801 | B186: Costas Pá faoin Deontas do Chúntóir COVID | C186: ='Tuairiscí Miosúla Ioncam & Cait'!O173 -> 0 | D186: 0 | E186: 0 | F186: 0 | Y186: =IF(COA!$E$166="Y","Show","Hide") -> Show
A187: 5803 | B187: Costas Pá ón Deontas Mhaoirseacht Fheabhsaithe COVID | C187: ='Tuairiscí Miosúla Ioncam & Cait'!O174 -> 0 | D187: 0 | E187: 0 | F187: 0 | Y187: =IF(COA!$E$167="Y","Show","Hide") -> Show
A188: 5804 | B188: Deontas Caipitíochta COVID le haghaidh Chostas Pá Glantacháin | C188: ='Tuairiscí Miosúla Ioncam & Cait'!O175 -> 0 | D188: 0 | E188: 0 | F188: 0 | Y188: =IF(COA!$E$168="Y","Show","Hide") -> Show
A189: 5806 | B189: Deontas Caipitíochta Covid le haghaidh Chostas Glantacháin (Neamhphá) & PPE | C189: ='Tuairiscí Miosúla Ioncam & Cait'!O176 -> 0 | D189: 0 | E189: 0 | F189: 0 | Y189: =IF(COA!$E$169="Y","Show","Hide") -> Show
A190: 6010 | B190: Costas Pá Oifigeach Cléireachais/Rúnaíochta | C190: ='Tuairiscí Miosúla Ioncam & Cait'!O177 -> 0 | D190: 0 | E190: 0 | F190: 0 | Y190: =IF(COA!$E$170="Y","Show","Hide") -> Show
A191: 6011 | B191: Maoiniú COVID le haghaidh Caiteachas maidir le hUaireanta Rúnaí Ionaid | C191: ='Tuairiscí Miosúla Ioncam & Cait'!O178 -> 0 | D191: 0 | E191: 0 | F191: 0 | Y191: =IF(COA!$E$171="Y","Show","Hide") -> Show
A192: 6050 | B192: Costas Pinsin Oifigeach Cléireachais/Rúnaíochta | C192: ='Tuairiscí Miosúla Ioncam & Cait'!O179 -> 0 | D192: 0 | E192: 0 | F192: 0 | Y192: =IF(COA!$E$172="Y","Show","Hide") -> Show
A193: 6100 | B193: Costas Earcaíochta | C193: ='Tuairiscí Miosúla Ioncam & Cait'!O180 -> 0 | D193: 0 | E193: 0 | F193: 0 | Y193: =IF(COA!$E$173="Y","Show","Hide") -> Show
A194: 6150 | B194: Costas Fógraíochta / Caidrimh Phoiblí | C194: ='Tuairiscí Miosúla Ioncam & Cait'!O181 -> 0 | D194: 0 | E194: 0 | F194: 0 | Y194: =IF(COA!$E$174="Y","Show","Hide") -> Show
A195: 6210 | B195: Costas Postais | C195: ='Tuairiscí Miosúla Ioncam & Cait'!O182 -> 0 | D195: 0 | E195: 0 | F195: 0 | Y195: =IF(COA!$E$175="Y","Show","Hide") -> Show
A196: 6250 | B196: Costas Gutháin / SMS | C196: ='Tuairiscí Miosúla Ioncam & Cait'!O183 -> 0 | D196: 0 | E196: 0 | F196: 0 | Y196: =IF(COA!$E$176="Y","Show","Hide") -> Show
A197: 6300 | B197: Costas Clódóireachta agus Páipéarachais | C197: ='Tuairiscí Miosúla Ioncam & Cait'!O184 -> 0 | D197: 0 | E197: 0 | F197: 0 | Y197: =IF(COA!$E$177="Y","Show","Hide") -> Show
A198: 6350 | B198: Costas Trealaimh Oifige (Neamhchaipitiúil) | C198: ='Tuairiscí Miosúla Ioncam & Cait'!O185 -> 0 | D198: 0 | E198: 0 | F198: 0 | Y198: =IF(COA!$E$178="Y","Show","Hide") -> Show
A199: 6355 | B199: Costas Ríomhairí Oifige nach bhFuarthas Deontas TFC ina leith | C199: ='Tuairiscí Miosúla Ioncam & Cait'!O186 -> 0 | D199: 0 | E199: 0 | F199: 0 | Y199: =IF(COA!$E$179="Y","Show","Hide") -> Show
A200: 6400 | B200: Costas Cuntasaíochta / Iniúchóireachta | C200: ='Tuairiscí Miosúla Ioncam & Cait'!O187 -> 0 | D200: 0 | E200: 0 | F200: 0 | Y200: =IF(COA!$E$180="Y","Show","Hide") -> Show
A201: 6450 | B201: Costas Táillí Gairmiúla Eile | C201: ='Tuairiscí Miosúla Ioncam & Cait'!O188 -> 0 | D201: 0 | E201: 0 | F201: 0 | Y201: =IF(COA!$E$181="Y","Show","Hide") -> Show
... 224 more rows

Sheet Leathnach Achoimre Bainc
A1: ='Tuairiscí Miosúla Ioncam & Cait'!B3 -> Cuir Isteach Anseo É | B1: An Príomh-Roghchlár | BW1: =IF(OR(CR3="Show",CQ19="Show")=TRUE,"Show","Hide") -> Hide | BX1: =IF(OR(CS3="Show",CR19="Show")=TRUE,"Show","Hide") -> Hide
A2: Bank Summary Page | C2: Anailís ar Dheontais | D2: Anailís ar Ioncam | E2: Anailís ar Caiteachas
A3: Bank Lodgements Summary
B4: Iomlán | C4: Buiséad Caipitíochta/Neamhphá | D4: Deontas DEIS | E4: Deontas Scéim luath-thosaithe le haghaidh Ábh/Tre/For Tuis | F4: Scéim luath-thosaithe Caipitíocht | G4: Buiséad Pá Neamhtheagaisc | H4: Deontas do Threalamh Oideachais Speisialta | I4: Ioncam ó Dheontas na Leabhar | J4: Deontas Caipitil do Leabhair Leabharlainne Scoile | K4: Deontas na Scéime Leabhar ar Cíos | L4: Deontas na nÁbhar Speisialta | M4: Deontas scoile Gaeilge agus Dátheangach | N4: Deontas Chlár Scoile an Teastais Shóisearaigh | O4: Deontas Idirbhliana | P4: Deontas na hArdteistiméireachta Feidhmí | Q4: Amúchadh Deontas Trealamh RO | R4: Amúchadh Deontas TFC RO | S4: Amúchadh Deontas Eile RO | T4: Deontas TFC Neamhchaipitiúil | U4: Ioncam ón gCiste Barr Feabhais Scoileanna | V4: Deontas Mionoibreacha Neamhchaipitiúla | W4: Ioncam ón Deontas Cóiríochta Sealadaí | X4: Deontas i leith Mionoibreacha COVID | Y4: Deontas Chúntóir COVID | Z4: Deontas feabhsaithe maoirseachta Covid | AA4: Maoiniú COVID le haghaidh Uaireanta Feighlí Ionaid | AB4: Maoiniú COVID le haghaidh Uaireanta Rúnaí Ionaid | AC4: Maoiniú COVID le haghaidh Uaireanta Glantóra Ionaid | AD4: Maoiniú COVID le haghaidh Uaireanta Tionlacaí Ionaid Bus | AE4: Caipitíocht COVID do Ghlantachán agus Deontas TCP | AF4: Ioncam Deontais Neamhchaipitil Eile RO | AG4: Deontas Trialacha Caighdeánaithe | AH4: Deontas Soláthair Samhraidh | AI4: Deontas le haghaidh Tionlacaithe Bus | AJ4: Ioncam ón Roinn Leanaí agus Gnóthaí Óige | AK4: Deontas le haghaidh Béilí Scoile ó RGFCS | AL4: Ioncam Erasmus | AM4: Maoiniú ó FSS | AN4: Maoiniú Stáit Eile | AO4: Táillí Oideachais (Scoileanna Táille) | AP4: Ioncam Idirbhliana | AQ4: Ioncam ó Scéim na Leabhar ar Cíos | AR4: Ioncam ó Leabhair Seomra Ranga | AS4: Ioncam Cíosa ó Áiseanna a Ligean ar Fhruiliú | AT4: Ioncam ó Thaisceadáin | AU4: Ioncam ó Dhialanna agus Bliainirisí | AV4: Ioncam fótachóipeáil mac léinn | AW4: Táillí riaracháin scoile | AX4: Ioncam Oideachais Aosaigh | AY4: Ioncam ó Cheaintíní | AZ4: Ioncam ó Shiopaí Sólaistí | BA4: Ioncam ó Éidí Scoile | BB4: Ioncam Reiligiúin/Éitis | BC4: Ioncam Club/Staidéir Iarscoile | BD4: Ioncam ó Chluichí | BE4: Ioncam ón Bhusanna | BF4: Ioncam ó Cheoldrámaí/Dhrámaí Scoile | BG4: Ioncam ó Thurais Scoile | BH4: Ioncam ó Snámh Scoile | BI4: Ioncam ó Árachas Daltaí | BJ4: Ioncam Réamhscoile | BK4: Ioncam ó Champaí Samhraidh | BL4: Ioncam In-Aisíoctha | BM4: Ioncam Eile arna Ghiniúint ag an Scoil | BN4: Ioncam Ealaíon agus Ceardaíochta Scoile | BO4: Ioncam Damhsa Scoile | BP4: Tiomsú Airgid Srianta Scoile (Neamhchaipitiúil) | BQ4: Tiomsú Airgid Neamhshrianta Scoile (Neamhchaipitiúil) | BR4: Lascainí Tugtha | BS4: Ranníocaíochtaí Saorálacha | BT4: Ioncam ó Chumann na dTuismitheoirí | BU4: Ioncam ó Éilimh Árachais | BV4: Ús Bainc Faighte | BW4: Amúchadh Maoinithe nach bhFuarthas ón RO | BX4: Ioncam Eile | BY4: Ioncam Ainmnithe (Neamhchaipitiúil) | BZ4: Tiomsú Airgid Srianta Seachtrach (Neamhchaipitiúil) | CA4: Tiomsú Airgid Neamhshrianta Seachtrach (Neamhchaipitiúil) | CB4: Ioncam Deontais Foirgníochta Caipitil RO | CC4: Ioncam ó Thiomsú Airgid do Thionscadail Chaipitiúla | CD4: Ioncam ó Ranníocaíochtaí Tuismitheoirí le Tionscadail Chaipitiúla | CE4: Ioncam ó Ranníocaíochtaí Pátrún/Iontaobhaí le Tionscadal Caipitil | CF4: Ioncam ó Tionscadail Chaipitil Eile Stáit | CG4: Ioncam ó Dheontas Caipitil le haghaidh Mion-Oibreacha Covid | CH4: Ioncam ó Shíntiúis Caipitiúla | CI4: Ioncam Deontais Daingneáin, Feistis & Trealamh RO | CJ4: Ioncam Caipitil ó Deontais TFC RO | CK4: Aistriú Isteach
A5: 2022-09-01 | B5: =SUM(C5:CK5) -> 0 | C5: ='Ioncam i Meán Fomhair'!H37 -> 0 | D5: ='Ioncam i Meán Fomhair'!I37 -> 0 | E5: ='Ioncam i Meán Fomhair'!J37 -> 0 | F5: ='Ioncam i Meán Fomhair'!K37 -> 0 | G5: ='Ioncam i Meán Fomhair'!L37 -> 0 | H5: ='Ioncam i Meán Fomhair'!M37 -> 0 | I5: ='Ioncam i Meán Fomhair'!N37 -> 0 | J5: ='Ioncam i Meán Fomhair'!O37 -> 0 | K5: ='Ioncam i Meán Fomhair'!P37 -> 0 | L5: ='Ioncam i Meán Fomhair'!Q37 -> 0 | M5: ='Ioncam i Meán Fomhair'!R37 -> 0 | N5: ='Ioncam i Meán Fomhair'!S37 -> 0 | O5: ='Ioncam i Meán Fomhair'!T37 -> 0 | P5: ='Ioncam i Meán Fomhair'!U37 -> 0 | Q5: ='Ioncam i Meán Fomhair'!V37 -> 0 | R5: ='Ioncam i Meán Fomhair'!W37 -> 0 | S5: ='Ioncam i Meán Fomhair'!X37 -> 0 | T5: ='Ioncam i Meán Fomhair'!Y37 -> 0 | U5: ='Ioncam i Meán Fomhair'!Z37 -> 0 | V5: ='Ioncam i Meán Fomhair'!AA37 -> 0 | W5: ='Ioncam i Meán Fomhair'!AB37 -> 0 | X5: ='Ioncam i Meán Fomhair'!AC37 -> 0 | Y5: ='Ioncam i Meán Fomhair'!AD37 -> 0 | Z5: ='Ioncam i Meán Fomhair'!AE37 -> 0 | AA5: ='Ioncam i Meán Fomhair'!AF37 -> 0 | AB5: ='Ioncam i Meán Fomhair'!AG37 -> 0 | AC5: ='Ioncam i Meán Fomhair'!AH37 -> 0 | AD5: ='Ioncam i Meán Fomhair'!AI37 -> 0 | AE5: ='Ioncam i Meán Fomhair'!AJ37 -> 0 | AF5: ='Ioncam i Meán Fomhair'!AK37 -> 0 | AG5: ='Ioncam i Meán Fomhair'!AL37 -> 0 | AH5: ='Ioncam i Meán Fomhair'!AM37 -> 0 | AI5: ='Ioncam i Meán Fomhair'!AN37 -> 0 | AJ5: ='Ioncam i Meán Fomhair'!AO37 -> 0 | AK5: ='Ioncam i Meán Fomhair'!AP37 -> 0 | AL5: ='Ioncam i Meán Fomhair'!AQ37 -> 0 | AM5: ='Ioncam i Meán Fomhair'!AR37 -> 0 | AN5: ='Ioncam i Meán Fomhair'!AS37 -> 0 | AO5: ='Ioncam i Meán Fomhair'!AT37 -> 0 | AP5: ='Ioncam i Meán Fomhair'!AU37 -> 0 | AQ5: ='Ioncam i Meán Fomhair'!AV37 -> 0 | AR5: ='Ioncam i Meán Fomhair'!AW37 -> 0 | AS5: ='Ioncam i Meán Fomhair'!AX37 -> 0 | AT5: ='Ioncam i Meán Fomhair'!AY37 -> 0 | AU5: ='Ioncam i Meán Fomhair'!AZ37 -> 0 | AV5: ='Ioncam i Meán Fomhair'!BA37 -> 0 | AW5: ='Ioncam i Meán Fomhair'!BB37 -> 0 | AX5: ='Ioncam i Meán Fomhair'!BC37 -> 0 | AY5: ='Ioncam i Meán Fomhair'!BD37 -> 0 | AZ5: ='Ioncam i Meán Fomhair'!BE37 -> 0 | BA5: ='Ioncam i Meán Fomhair'!BF37 -> 0 | BB5: ='Ioncam i Meán Fomhair'!BG37 -> 0 | BC5: ='Ioncam i Meán Fomhair'!BH37 -> 0 | BD5: ='Ioncam i Meán Fomhair'!BI37 -> 0 | BE5: ='Ioncam i Meán Fomhair'!BJ37 -> 0 | BF5: ='Ioncam i Meán Fomhair'!BK37 -> 0 | BG5: ='Ioncam i Meán Fomhair'!BL37 -> 0 | BH5: ='Ioncam i Meán Fomhair'!BM37 -> 0 | BI5: ='Ioncam i Meán Fomhair'!BN37 -> 0 | BJ5: ='Ioncam i Meán Fomhair'!BO37 -> 0 | BK5: ='Ioncam i Meán Fomhair'!BP37 -> 0 | BL5: ='Ioncam i Meán Fomhair'!BQ37 -> 0 | BM5: ='Ioncam i Meán Fomhair'!BR37 -> 0 | BN5: ='Ioncam i Meán Fomhair'!BS37 -> 0 | BO5: ='Ioncam i Meán Fomhair'!BT37 -> 0 | BP5: ='Ioncam i Meán Fomhair'!BU37 -> 0 | BQ5: ='Ioncam i Meán Fomhair'!BV37 -> 0 | BR5: ='Ioncam i Meán Fomhair'!BW37 -> 0 | BS5: ='Ioncam i Meán Fomhair'!BX37 -> 0 | BT5: ='Ioncam i Meán Fomhair'!BY37 -> 0 | BU5: ='Ioncam i Meán Fomhair'!BZ37 -> 0 | BV5: ='Ioncam i Meán Fomhair'!CA37 -> 0 | BW5: ='Ioncam i Meán Fomhair'!CB37 -> 0 | BX5: ='Ioncam i Meán Fomhair'!CC37 -> 0 | BY5: ='Ioncam i Meán Fomhair'!CD37 -> 0 | BZ5: ='Ioncam i Meán Fomhair'!CE37 -> 0 | CA5: ='Ioncam i Meán Fomhair'!CF37 -> 0 | CB5: ='Ioncam i Meán Fomhair'!CG37 -> 0 | CC5: ='Ioncam i Meán Fomhair'!CH37 -> 0 | CD5: ='Ioncam i Meán Fomhair'!CI37 -> 0 | CE5: ='Ioncam i Meán Fomhair'!CJ37 -> 0 | CF5: ='Ioncam i Meán Fomhair'!CK37 -> 0 | CG5: ='Ioncam i Meán Fomhair'!CL37 -> 0 | CH5: ='Ioncam i Meán Fomhair'!CM37 -> 0 | CI5: ='Ioncam i Meán Fomhair'!CN37 -> 0 | CJ5: ='Ioncam i Meán Fomhair'!CO37 -> 0 | CK5: ='Ioncam i Meán Fomhair'!CP37 -> 0
A6: 2022-10-01 | B6: 0 | C6: ='Ioncam i nDeireadh Fómhair'!H37 -> 0 | D6: ='Ioncam i nDeireadh Fómhair'!I37 -> 0 | E6: ='Ioncam i nDeireadh Fómhair'!J37 -> 0 | F6: ='Ioncam i nDeireadh Fómhair'!K37 -> 0 | G6: ='Ioncam i nDeireadh Fómhair'!L37 -> 0 | H6: ='Ioncam i nDeireadh Fómhair'!M37 -> 0 | I6: ='Ioncam i nDeireadh Fómhair'!N37 -> 0 | J6: ='Ioncam i nDeireadh Fómhair'!O37 -> 0 | K6: ='Ioncam i nDeireadh Fómhair'!P37 -> 0 | L6: ='Ioncam i nDeireadh Fómhair'!Q37 -> 0 | M6: ='Ioncam i nDeireadh Fómhair'!R37 -> 0 | N6: ='Ioncam i nDeireadh Fómhair'!S37 -> 0 | O6: ='Ioncam i nDeireadh Fómhair'!T37 -> 0 | P6: ='Ioncam i nDeireadh Fómhair'!U37 -> 0 | Q6: ='Ioncam i nDeireadh Fómhair'!V37 -> 0 | R6: ='Ioncam i nDeireadh Fómhair'!W37 -> 0 | S6: ='Ioncam i nDeireadh Fómhair'!X37 -> 0 | T6: ='Ioncam i nDeireadh Fómhair'!Y37 -> 0 | U6: ='Ioncam i nDeireadh Fómhair'!Z37 -> 0 | V6: ='Ioncam i nDeireadh Fómhair'!AA37 -> 0 | W6: ='Ioncam i nDeireadh Fómhair'!AB37 -> 0 | X6: ='Ioncam i nDeireadh Fómhair'!AC37 -> 0 | Y6: ='Ioncam i nDeireadh Fómhair'!AD37 -> 0 | Z6: ='Ioncam i nDeireadh Fómhair'!AE37 -> 0 | AA6: ='Ioncam i nDeireadh Fómhair'!AF37 -> 0 | AB6: ='Ioncam i nDeireadh Fómhair'!AG37 -> 0 | AC6: ='Ioncam i nDeireadh Fómhair'!AH37 -> 0 | AD6: ='Ioncam i nDeireadh Fómhair'!AI37 -> 0 | AE6: ='Ioncam i nDeireadh Fómhair'!AJ37 -> 0 | AF6: ='Ioncam i nDeireadh Fómhair'!AK37 -> 0 | AG6: ='Ioncam i nDeireadh Fómhair'!AL37 -> 0 | AH6: ='Ioncam i nDeireadh Fómhair'!AM37 -> 0 | AI6: ='Ioncam i nDeireadh Fómhair'!AN37 -> 0 | AJ6: ='Ioncam i nDeireadh Fómhair'!AO37 -> 0 | AK6: ='Ioncam i nDeireadh Fómhair'!AP37 -> 0 | AL6: ='Ioncam i nDeireadh Fómhair'!AQ37 -> 0 | AM6: ='Ioncam i nDeireadh Fómhair'!AR37 -> 0 | AN6: ='Ioncam i nDeireadh Fómhair'!AS37 -> 0 | AO6: ='Ioncam i nDeireadh Fómhair'!AT37 -> 0 | AP6: ='Ioncam i nDeireadh Fómhair'!AU37 -> 0 | AQ6: ='Ioncam i nDeireadh Fómhair'!AV37 -> 0 | AR6: ='Ioncam i nDeireadh Fómhair'!AW37 -> 0 | AS6: ='Ioncam i nDeireadh Fómhair'!AX37 -> 0 | AT6: ='Ioncam i nDeireadh Fómhair'!AY37 -> 0 | AU6: ='Ioncam i nDeireadh Fómhair'!AZ37 -> 0 | AV6: ='Ioncam i nDeireadh Fómhair'!BA37 -> 0 | AW6: ='Ioncam i nDeireadh Fómhair'!BB37 -> 0 | AX6: ='Ioncam i nDeireadh Fómhair'!BC37 -> 0 | AY6: ='Ioncam i nDeireadh Fómhair'!BD37 -> 0 | AZ6: ='Ioncam i nDeireadh Fómhair'!BE37 -> 0 | BA6: ='Ioncam i nDeireadh Fómhair'!BF37 -> 0 | BB6: ='Ioncam i nDeireadh Fómhair'!BG37 -> 0 | BC6: ='Ioncam i nDeireadh Fómhair'!BH37 -> 0 | BD6: ='Ioncam i nDeireadh Fómhair'!BI37 -> 0 | BE6: ='Ioncam i nDeireadh Fómhair'!BJ37 -> 0 | BF6: ='Ioncam i nDeireadh Fómhair'!BK37 -> 0 | BG6: ='Ioncam i nDeireadh Fómhair'!BL37 -> 0 | BH6: ='Ioncam i nDeireadh Fómhair'!BM37 -> 0 | BI6: ='Ioncam i nDeireadh Fómhair'!BN37 -> 0 | BJ6: ='Ioncam i nDeireadh Fómhair'!BO37 -> 0 | BK6: ='Ioncam i nDeireadh Fómhair'!BP37 -> 0 | BL6: ='Ioncam i nDeireadh Fómhair'!BQ37 -> 0 | BM6: ='Ioncam i nDeireadh Fómhair'!BR37 -> 0 | BN6: ='Ioncam i nDeireadh Fómhair'!BS37 -> 0 | BO6: ='Ioncam i nDeireadh Fómhair'!BT37 -> 0 | BP6: ='Ioncam i nDeireadh Fómhair'!BU37 -> 0 | BQ6: ='Ioncam i nDeireadh Fómhair'!BV37 -> 0 | BR6: ='Ioncam i nDeireadh Fómhair'!BW37 -> 0 | BS6: ='Ioncam i nDeireadh Fómhair'!BX37 -> 0 | BT6: ='Ioncam i nDeireadh Fómhair'!BY37 -> 0 | BU6: ='Ioncam i nDeireadh Fómhair'!BZ37 -> 0 | BV6: ='Ioncam i nDeireadh Fómhair'!CA37 -> 0 | BW6: ='Ioncam i nDeireadh Fómhair'!CB37 -> 0 | BX6: ='Ioncam i nDeireadh Fómhair'!CC37 -> 0 | BY6: ='Ioncam i nDeireadh Fómhair'!CD37 -> 0 | BZ6: ='Ioncam i nDeireadh Fómhair'!CE37 -> 0 | CA6: ='Ioncam i nDeireadh Fómhair'!CF37 -> 0 | CB6: ='Ioncam i nDeireadh Fómhair'!CG37 -> 0 | CC6: ='Ioncam i nDeireadh Fómhair'!CH37 -> 0 | CD6: ='Ioncam i nDeireadh Fómhair'!CI37 -> 0 | CE6: ='Ioncam i nDeireadh Fómhair'!CJ37 -> 0 | CF6: ='Ioncam i nDeireadh Fómhair'!CK37 -> 0 | CG6: ='Ioncam i nDeireadh Fómhair'!CL37 -> 0 | CH6: ='Ioncam i nDeireadh Fómhair'!CM37 -> 0 | CI6: ='Ioncam i nDeireadh Fómhair'!CN37 -> 0 | CJ6: ='Ioncam i nDeireadh Fómhair'!CO37 -> 0 | CK6: ='Ioncam i nDeireadh Fómhair'!CP37 -> 0
A7: 2022-11-01 | B7: 0 | C7: ='Ioncam i Samhain'!H37 -> 0 | D7: ='Ioncam i Samhain'!I37 -> 0 | E7: ='Ioncam i Samhain'!J37 -> 0 | F7: ='Ioncam i Samhain'!K37 -> 0 | G7: ='Ioncam i Samhain'!L37 -> 0 | H7: ='Ioncam i Samhain'!M37 -> 0 | I7: ='Ioncam i Samhain'!N37 -> 0 | J7: ='Ioncam i Samhain'!O37 -> 0 | K7: ='Ioncam i Samhain'!P37 -> 0 | L7: ='Ioncam i Samhain'!Q37 -> 0 | M7: ='Ioncam i Samhain'!R37 -> 0 | N7: ='Ioncam i Samhain'!S37 -> 0 | O7: ='Ioncam i Samhain'!T37 -> 0 | P7: ='Ioncam i Samhain'!U37 -> 0 | Q7: ='Ioncam i Samhain'!V37 -> 0 | R7: ='Ioncam i Samhain'!W37 -> 0 | S7: ='Ioncam i Samhain'!X37 -> 0 | T7: ='Ioncam i Samhain'!Y37 -> 0 | U7: ='Ioncam i Samhain'!Z37 -> 0 | V7: ='Ioncam i Samhain'!AA37 -> 0 | W7: ='Ioncam i Samhain'!AB37 -> 0 | X7: ='Ioncam i Samhain'!AC37 -> 0 | Y7: ='Ioncam i Samhain'!AD37 -> 0 | Z7: ='Ioncam i Samhain'!AE37 -> 0 | AA7: ='Ioncam i Samhain'!AF37 -> 0 | AB7: ='Ioncam i Samhain'!AG37 -> 0 | AC7: ='Ioncam i Samhain'!AH37 -> 0 | AD7: ='Ioncam i Samhain'!AI37 -> 0 | AE7: ='Ioncam i Samhain'!AJ37 -> 0 | AF7: ='Ioncam i Samhain'!AK37 -> 0 | AG7: ='Ioncam i Samhain'!AL37 -> 0 | AH7: ='Ioncam i Samhain'!AM37 -> 0 | AI7: ='Ioncam i Samhain'!AN37 -> 0 | AJ7: ='Ioncam i Samhain'!AO37 -> 0 | AK7: ='Ioncam i Samhain'!AP37 -> 0 | AL7: ='Ioncam i Samhain'!AQ37 -> 0 | AM7: ='Ioncam i Samhain'!AR37 -> 0 | AN7: ='Ioncam i Samhain'!AS37 -> 0 | AO7: ='Ioncam i Samhain'!AT37 -> 0 | AP7: ='Ioncam i Samhain'!AU37 -> 0 | AQ7: ='Ioncam i Samhain'!AV37 -> 0 | AR7: ='Ioncam i Samhain'!AW37 -> 0 | AS7: ='Ioncam i Samhain'!AX37 -> 0 | AT7: ='Ioncam i Samhain'!AY37 -> 0 | AU7: ='Ioncam i Samhain'!AZ37 -> 0 | AV7: ='Ioncam i Samhain'!BA37 -> 0 | AW7: ='Ioncam i Samhain'!BB37 -> 0 | AX7: ='Ioncam i Samhain'!BC37 -> 0 | AY7: ='Ioncam i Samhain'!BD37 -> 0 | AZ7: ='Ioncam i Samhain'!BE37 -> 0 | BA7: ='Ioncam i Samhain'!BF37 -> 0 | BB7: ='Ioncam i Samhain'!BG37 -> 0 | BC7: ='Ioncam i Samhain'!BH37 -> 0 | BD7: ='Ioncam i Samhain'!BI37 -> 0 | BE7: ='Ioncam i Samhain'!BJ37 -> 0 | BF7: ='Ioncam i Samhain'!BK37 -> 0 | BG7: ='Ioncam i Samhain'!BL37 -> 0 | BH7: ='Ioncam i Samhain'!BM37 -> 0 | BI7: ='Ioncam i Samhain'!BN37 -> 0 | BJ7: ='Ioncam i Samhain'!BO37 -> 0 | BK7: ='Ioncam i Samhain'!BP37 -> 0 | BL7: ='Ioncam i Samhain'!BQ37 -> 0 | BM7: ='Ioncam i Samhain'!BR37 -> 0 | BN7: ='Ioncam i Samhain'!BS37 -> 0 | BO7: ='Ioncam i Samhain'!BT37 -> 0 | BP7: ='Ioncam i Samhain'!BU37 -> 0 | BQ7: ='Ioncam i Samhain'!BV37 -> 0 | BR7: ='Ioncam i Samhain'!BW37 -> 0 | BS7: ='Ioncam i Samhain'!BX37 -> 0 | BT7: ='Ioncam i Samhain'!BY37 -> 0 | BU7: ='Ioncam i Samhain'!BZ37 -> 0 | BV7: ='Ioncam i Samhain'!CA37 -> 0 | BW7: ='Ioncam i Samhain'!CB37 -> 0 | BX7: ='Ioncam i Samhain'!CC37 -> 0 | BY7: ='Ioncam i Samhain'!CD37 -> 0 | BZ7: ='Ioncam i Samhain'!CE37 -> 0 | CA7: ='Ioncam i Samhain'!CF37 -> 0 | CB7: ='Ioncam i Samhain'!CG37 -> 0 | CC7: ='Ioncam i Samhain'!CH37 -> 0 | CD7: ='Ioncam i Samhain'!CI37 -> 0 | CE7: ='Ioncam i Samhain'!CJ37 -> 0 | CF7: ='Ioncam i Samhain'!CK37 -> 0 | CG7: ='Ioncam i Samhain'!CL37 -> 0 | CH7: ='Ioncam i Samhain'!CM37 -> 0 | CI7: ='Ioncam i Samhain'!CN37 -> 0 | CJ7: ='Ioncam i Samhain'!CO37 -> 0 | CK7: ='Ioncam i Samhain'!CP37 -> 0
A8: 2022-12-01 | B8: 0 | C8: ='Ioncam i Nollaig'!H37 -> 0 | D8: ='Ioncam i Nollaig'!I37 -> 0 | E8: ='Ioncam i Nollaig'!J37 -> 0 | F8: ='Ioncam i Nollaig'!K37 -> 0 | G8: ='Ioncam i Nollaig'!L37 -> 0 | H8: ='Ioncam i Nollaig'!M37 -> 0 | I8: ='Ioncam i Nollaig'!N37 -> 0 | J8: ='Ioncam i Nollaig'!O37 -> 0 | K8: ='Ioncam i Nollaig'!P37 -> 0 | L8: ='Ioncam i Nollaig'!Q37 -> 0 | M8: ='Ioncam i Nollaig'!R37 -> 0 | N8: ='Ioncam i Nollaig'!S37 -> 0 | O8: ='Ioncam i Nollaig'!T37 -> 0 | P8: ='Ioncam i Nollaig'!U37 -> 0 | Q8: ='Ioncam i Nollaig'!V37 -> 0 | R8: ='Ioncam i Nollaig'!W37 -> 0 | S8: ='Ioncam i Nollaig'!X37 -> 0 | T8: ='Ioncam i Nollaig'!Y37 -> 0 | U8: ='Ioncam i Nollaig'!Z37 -> 0 | V8: ='Ioncam i Nollaig'!AA37 -> 0 | W8: ='Ioncam i Nollaig'!AB37 -> 0 | X8: ='Ioncam i Nollaig'!AC37 -> 0 | Y8: ='Ioncam i Nollaig'!AD37 -> 0 | Z8: ='Ioncam i Nollaig'!AE37 -> 0 | AA8: ='Ioncam i Nollaig'!AF37 -> 0 | AB8: ='Ioncam i Nollaig'!AG37 -> 0 | AC8: ='Ioncam i Nollaig'!AH37 -> 0 | AD8: ='Ioncam i Nollaig'!AI37 -> 0 | AE8: ='Ioncam i Nollaig'!AJ37 -> 0 | AF8: ='Ioncam i Nollaig'!AK37 -> 0 | AG8: ='Ioncam i Nollaig'!AL37 -> 0 | AH8: ='Ioncam i Nollaig'!AM37 -> 0 | AI8: ='Ioncam i Nollaig'!AN37 -> 0 | AJ8: ='Ioncam i Nollaig'!AO37 -> 0 | AK8: ='Ioncam i Nollaig'!AP37 -> 0 | AL8: ='Ioncam i Nollaig'!AQ37 -> 0 | AM8: ='Ioncam i Nollaig'!AR37 -> 0 | AN8: ='Ioncam i Nollaig'!AS37 -> 0 | AO8: ='Ioncam i Nollaig'!AT37 -> 0 | AP8: ='Ioncam i Nollaig'!AU37 -> 0 | AQ8: ='Ioncam i Nollaig'!AV37 -> 0 | AR8: ='Ioncam i Nollaig'!AW37 -> 0 | AS8: ='Ioncam i Nollaig'!AX37 -> 0 | AT8: ='Ioncam i Nollaig'!AY37 -> 0 | AU8: ='Ioncam i Nollaig'!AZ37 -> 0 | AV8: ='Ioncam i Nollaig'!BA37 -> 0 | AW8: ='Ioncam i Nollaig'!BB37 -> 0 | AX8: ='Ioncam i Nollaig'!BC37 -> 0 | AY8: ='Ioncam i Nollaig'!BD37 -> 0 | AZ8: ='Ioncam i Nollaig'!BE37 -> 0 | BA8: ='Ioncam i Nollaig'!BF37 -> 0 | BB8: ='Ioncam i Nollaig'!BG37 -> 0 | BC8: ='Ioncam i Nollaig'!BH37 -> 0 | BD8: ='Ioncam i Nollaig'!BI37 -> 0 | BE8: ='Ioncam i Nollaig'!BJ37 -> 0 | BF8: ='Ioncam i Nollaig'!BK37 -> 0 | BG8: ='Ioncam i Nollaig'!BL37 -> 0 | BH8: ='Ioncam i Nollaig'!BM37 -> 0 | BI8: ='Ioncam i Nollaig'!BN37 -> 0 | BJ8: ='Ioncam i Nollaig'!BO37 -> 0 | BK8: ='Ioncam i Nollaig'!BP37 -> 0 | BL8: ='Ioncam i Nollaig'!BQ37 -> 0 | BM8: ='Ioncam i Nollaig'!BR37 -> 0 | BN8: ='Ioncam i Nollaig'!BS37 -> 0 | BO8: ='Ioncam i Nollaig'!BT37 -> 0 | BP8: ='Ioncam i Nollaig'!BU37 -> 0 | BQ8: ='Ioncam i Nollaig'!BV37 -> 0 | BR8: ='Ioncam i Nollaig'!BW37 -> 0 | BS8: ='Ioncam i Nollaig'!BX37 -> 0 | BT8: ='Ioncam i Nollaig'!BY37 -> 0 | BU8: ='Ioncam i Nollaig'!BZ37 -> 0 | BV8: ='Ioncam i Nollaig'!CA37 -> 0 | BW8: ='Ioncam i Nollaig'!CB37 -> 0 | BX8: ='Ioncam i Nollaig'!CC37 -> 0 | BY8: ='Ioncam i Nollaig'!CD37 -> 0 | BZ8: ='Ioncam i Nollaig'!CE37 -> 0 | CA8: ='Ioncam i Nollaig'!CF37 -> 0 | CB8: ='Ioncam i Nollaig'!CG37 -> 0 | CC8: ='Ioncam i Nollaig'!CH37 -> 0 | CD8: ='Ioncam i Nollaig'!CI37 -> 0 | CE8: ='Ioncam i Nollaig'!CJ37 -> 0 | CF8: ='Ioncam i Nollaig'!CK37 -> 0 | CG8: ='Ioncam i Nollaig'!CL37 -> 0 | CH8: ='Ioncam i Nollaig'!CM37 -> 0 | CI8: ='Ioncam i Nollaig'!CN37 -> 0 | CJ8: ='Ioncam i Nollaig'!CO37 -> 0 | CK8: ='Ioncam i Nollaig'!CP37 -> 0
A9: 2023-01-01 | B9: 0 | C9: ='Ioncam in Eanair'!H37 -> 0 | D9: ='Ioncam in Eanair'!I37 -> 0 | E9: ='Ioncam in Eanair'!J37 -> 0 | F9: ='Ioncam in Eanair'!K37 -> 0 | G9: ='Ioncam in Eanair'!L37 -> 0 | H9: ='Ioncam in Eanair'!M37 -> 0 | I9: ='Ioncam in Eanair'!N37 -> 0 | J9: ='Ioncam in Eanair'!O37 -> 0 | K9: ='Ioncam in Eanair'!P37 -> 0 | L9: ='Ioncam in Eanair'!Q37 -> 0 | M9: ='Ioncam in Eanair'!R37 -> 0 | N9: ='Ioncam in Eanair'!S37 -> 0 | O9: ='Ioncam in Eanair'!T37 -> 0 | P9: ='Ioncam in Eanair'!U37 -> 0 | Q9: ='Ioncam in Eanair'!V37 -> 0 | R9: ='Ioncam in Eanair'!W37 -> 0 | S9: ='Ioncam in Eanair'!X37 -> 0 | T9: ='Ioncam in Eanair'!Y37 -> 0 | U9: ='Ioncam in Eanair'!Z37 -> 0 | V9: ='Ioncam in Eanair'!AA37 -> 0 | W9: ='Ioncam in Eanair'!AB37 -> 0 | X9: ='Ioncam in Eanair'!AC37 -> 0 | Y9: ='Ioncam in Eanair'!AD37 -> 0 | Z9: ='Ioncam in Eanair'!AE37 -> 0 | AA9: ='Ioncam in Eanair'!AF37 -> 0 | AB9: ='Ioncam in Eanair'!AG37 -> 0 | AC9: ='Ioncam in Eanair'!AH37 -> 0 | AD9: ='Ioncam in Eanair'!AI37 -> 0 | AE9: ='Ioncam in Eanair'!AJ37 -> 0 | AF9: ='Ioncam in Eanair'!AK37 -> 0 | AG9: ='Ioncam in Eanair'!AL37 -> 0 | AH9: ='Ioncam in Eanair'!AM37 -> 0 | AI9: ='Ioncam in Eanair'!AN37 -> 0 | AJ9: ='Ioncam in Eanair'!AO37 -> 0 | AK9: ='Ioncam in Eanair'!AP37 -> 0 | AL9: ='Ioncam in Eanair'!AQ37 -> 0 | AM9: ='Ioncam in Eanair'!AR37 -> 0 | AN9: ='Ioncam in Eanair'!AS37 -> 0 | AO9: ='Ioncam in Eanair'!AT37 -> 0 | AP9: ='Ioncam in Eanair'!AU37 -> 0 | AQ9: ='Ioncam in Eanair'!AV37 -> 0 | AR9: ='Ioncam in Eanair'!AW37 -> 0 | AS9: ='Ioncam in Eanair'!AX37 -> 0 | AT9: ='Ioncam in Eanair'!AY37 -> 0 | AU9: ='Ioncam in Eanair'!AZ37 -> 0 | AV9: ='Ioncam in Eanair'!BA37 -> 0 | AW9: ='Ioncam in Eanair'!BB37 -> 0 | AX9: ='Ioncam in Eanair'!BC37 -> 0 | AY9: ='Ioncam in Eanair'!BD37 -> 0 | AZ9: ='Ioncam in Eanair'!BE37 -> 0 | BA9: ='Ioncam in Eanair'!BF37 -> 0 | BB9: ='Ioncam in Eanair'!BG37 -> 0 | BC9: ='Ioncam in Eanair'!BH37 -> 0 | BD9: ='Ioncam in Eanair'!BI37 -> 0 | BE9: ='Ioncam in Eanair'!BJ37 -> 0 | BF9: ='Ioncam in Eanair'!BK37 -> 0 | BG9: ='Ioncam in Eanair'!BL37 -> 0 | BH9: ='Ioncam in Eanair'!BM37 -> 0 | BI9: ='Ioncam in Eanair'!BN37 -> 0 | BJ9: ='Ioncam in Eanair'!BO37 -> 0 | BK9: ='Ioncam in Eanair'!BP37 -> 0 | BL9: ='Ioncam in Eanair'!BQ37 -> 0 | BM9: ='Ioncam in Eanair'!BR37 -> 0 | BN9: ='Ioncam in Eanair'!BS37 -> 0 | BO9: ='Ioncam in Eanair'!BT37 -> 0 | BP9: ='Ioncam in Eanair'!BU37 -> 0 | BQ9: ='Ioncam in Eanair'!BV37 -> 0 | BR9: ='Ioncam in Eanair'!BW37 -> 0 | BS9: ='Ioncam in Eanair'!BX37 -> 0 | BT9: ='Ioncam in Eanair'!BY37 -> 0 | BU9: ='Ioncam in Eanair'!BZ37 -> 0 | BV9: ='Ioncam in Eanair'!CA37 -> 0 | BW9: ='Ioncam in Eanair'!CB37 -> 0 | BX9: ='Ioncam in Eanair'!CC37 -> 0 | BY9: ='Ioncam in Eanair'!CD37 -> 0 | BZ9: ='Ioncam in Eanair'!CE37 -> 0 | CA9: ='Ioncam in Eanair'!CF37 -> 0 | CB9: ='Ioncam in Eanair'!CG37 -> 0 | CC9: ='Ioncam in Eanair'!CH37 -> 0 | CD9: ='Ioncam in Eanair'!CI37 -> 0 | CE9: ='Ioncam in Eanair'!CJ37 -> 0 | CF9: ='Ioncam in Eanair'!CK37 -> 0 | CG9: ='Ioncam in Eanair'!CL37 -> 0 | CH9: ='Ioncam in Eanair'!CM37 -> 0 | CI9: ='Ioncam in Eanair'!CN37 -> 0 | CJ9: ='Ioncam in Eanair'!CO37 -> 0 | CK9: ='Ioncam in Eanair'!CP37 -> 0
A10: 2023-02-01 | B10: 0 | C10: ='Ioncam i Feabhra'!H37 -> 0 | D10: ='Ioncam i Feabhra'!I37 -> 0 | E10: ='Ioncam i Feabhra'!J37 -> 0 | F10: ='Ioncam i Feabhra'!K37 -> 0 | G10: ='Ioncam i Feabhra'!L37 -> 0 | H10: ='Ioncam i Feabhra'!M37 -> 0 | I10: ='Ioncam i Feabhra'!N37 -> 0 | J10: ='Ioncam i Feabhra'!O37 -> 0 | K10: ='Ioncam i Feabhra'!P37 -> 0 | L10: ='Ioncam i Feabhra'!Q37 -> 0 | M10: ='Ioncam i Feabhra'!R37 -> 0 | N10: ='Ioncam i Feabhra'!S37 -> 0 | O10: ='Ioncam i Feabhra'!T37 -> 0 | P10: ='Ioncam i Feabhra'!U37 -> 0 | Q10: ='Ioncam i Feabhra'!V37 -> 0 | R10: ='Ioncam i Feabhra'!W37 -> 0 | S10: ='Ioncam i Feabhra'!X37 -> 0 | T10: ='Ioncam i Feabhra'!Y37 -> 0 | U10: ='Ioncam i Feabhra'!Z37 -> 0 | V10: ='Ioncam i Feabhra'!AA37 -> 0 | W10: ='Ioncam i Feabhra'!AB37 -> 0 | X10: ='Ioncam i Feabhra'!AC37 -> 0 | Y10: ='Ioncam i Feabhra'!AD37 -> 0 | Z10: ='Ioncam i Feabhra'!AE37 -> 0 | AA10: ='Ioncam i Feabhra'!AF37 -> 0 | AB10: ='Ioncam i Feabhra'!AG37 -> 0 | AC10: ='Ioncam i Feabhra'!AH37 -> 0 | AD10: ='Ioncam i Feabhra'!AI37 -> 0 | AE10: ='Ioncam i Feabhra'!AJ37 -> 0 | AF10: ='Ioncam i Feabhra'!AK37 -> 0 | AG10: ='Ioncam i Feabhra'!AL37 -> 0 | AH10: ='Ioncam i Feabhra'!AM37 -> 0 | AI10: ='Ioncam i Feabhra'!AN37 -> 0 | AJ10: ='Ioncam i Feabhra'!AO37 -> 0 | AK10: ='Ioncam i Feabhra'!AP37 -> 0 | AL10: ='Ioncam i Feabhra'!AQ37 -> 0 | AM10: ='Ioncam i Feabhra'!AR37 -> 0 | AN10: ='Ioncam i Feabhra'!AS37 -> 0 | AO10: ='Ioncam i Feabhra'!AT37 -> 0 | AP10: ='Ioncam i Feabhra'!AU37 -> 0 | AQ10: ='Ioncam i Feabhra'!AV37 -> 0 | AR10: ='Ioncam i Feabhra'!AW37 -> 0 | AS10: ='Ioncam i Feabhra'!AX37 -> 0 | AT10: ='Ioncam i Feabhra'!AY37 -> 0 | AU10: ='Ioncam i Feabhra'!AZ37 -> 0 | AV10: ='Ioncam i Feabhra'!BA37 -> 0 | AW10: ='Ioncam i Feabhra'!BB37 -> 0 | AX10: ='Ioncam i Feabhra'!BC37 -> 0 | AY10: ='Ioncam i Feabhra'!BD37 -> 0 | AZ10: ='Ioncam i Feabhra'!BE37 -> 0 | BA10: ='Ioncam i Feabhra'!BF37 -> 0 | BB10: ='Ioncam i Feabhra'!BG37 -> 0 | BC10: ='Ioncam i Feabhra'!BH37 -> 0 | BD10: ='Ioncam i Feabhra'!BI37 -> 0 | BE10: ='Ioncam i Feabhra'!BJ37 -> 0 | BF10: ='Ioncam i Feabhra'!BK37 -> 0 | BG10: ='Ioncam i Feabhra'!BL37 -> 0 | BH10: ='Ioncam i Feabhra'!BM37 -> 0 | BI10: ='Ioncam i Feabhra'!BN37 -> 0 | BJ10: ='Ioncam i Feabhra'!BO37 -> 0 | BK10: ='Ioncam i Feabhra'!BP37 -> 0 | BL10: ='Ioncam i Feabhra'!BQ37 -> 0 | BM10: ='Ioncam i Feabhra'!BR37 -> 0 | BN10: ='Ioncam i Feabhra'!BS37 -> 0 | BO10: ='Ioncam i Feabhra'!BT37 -> 0 | BP10: ='Ioncam i Feabhra'!BU37 -> 0 | BQ10: ='Ioncam i Feabhra'!BV37 -> 0 | BR10: ='Ioncam i Feabhra'!BW37 -> 0 | BS10: ='Ioncam i Feabhra'!BX37 -> 0 | BT10: ='Ioncam i Feabhra'!BY37 -> 0 | BU10: ='Ioncam i Feabhra'!BZ37 -> 0 | BV10: ='Ioncam i Feabhra'!CA37 -> 0 | BW10: ='Ioncam i Feabhra'!CB37 -> 0 | BX10: ='Ioncam i Feabhra'!CC37 -> 0 | BY10: ='Ioncam i Feabhra'!CD37 -> 0 | BZ10: ='Ioncam i Feabhra'!CE37 -> 0 | CA10: ='Ioncam i Feabhra'!CF37 -> 0 | CB10: ='Ioncam i Feabhra'!CG37 -> 0 | CC10: ='Ioncam i Feabhra'!CH37 -> 0 | CD10: ='Ioncam i Feabhra'!CI37 -> 0 | CE10: ='Ioncam i Feabhra'!CJ37 -> 0 | CF10: ='Ioncam i Feabhra'!CK37 -> 0 | CG10: ='Ioncam i Feabhra'!CL37 -> 0 | CH10: ='Ioncam i Feabhra'!CM37 -> 0 | CI10: ='Ioncam i Feabhra'!CN37 -> 0 | CJ10: ='Ioncam i Feabhra'!CO37 -> 0 | CK10: ='Ioncam i Feabhra'!CP37 -> 0
A11: 2023-03-01 | B11: 0 | C11: ='Ioncam i Márta'!H37 -> 0 | D11: ='Ioncam i Márta'!I37 -> 0 | E11: ='Ioncam i Márta'!J37 -> 0 | F11: ='Ioncam i Márta'!K37 -> 0 | G11: ='Ioncam i Márta'!L37 -> 0 | H11: ='Ioncam i Márta'!M37 -> 0 | I11: ='Ioncam i Márta'!N37 -> 0 | J11: ='Ioncam i Márta'!O37 -> 0 | K11: ='Ioncam i Márta'!P37 -> 0 | L11: ='Ioncam i Márta'!Q37 -> 0 | M11: ='Ioncam i Márta'!R37 -> 0 | N11: ='Ioncam i Márta'!S37 -> 0 | O11: ='Ioncam i Márta'!T37 -> 0 | P11: ='Ioncam i Márta'!U37 -> 0 | Q11: ='Ioncam i Márta'!V37 -> 0 | R11: ='Ioncam i Márta'!W37 -> 0 | S11: ='Ioncam i Márta'!X37 -> 0 | T11: ='Ioncam i Márta'!Y37 -> 0 | U11: ='Ioncam i Márta'!Z37 -> 0 | V11: ='Ioncam i Márta'!AA37 -> 0 | W11: ='Ioncam i Márta'!AB37 -> 0 | X11: ='Ioncam i Márta'!AC37 -> 0 | Y11: ='Ioncam i Márta'!AD37 -> 0 | Z11: ='Ioncam i Márta'!AE37 -> 0 | AA11: ='Ioncam i Márta'!AF37 -> 0 | AB11: ='Ioncam i Márta'!AG37 -> 0 | AC11: ='Ioncam i Márta'!AH37 -> 0 | AD11: ='Ioncam i Márta'!AI37 -> 0 | AE11: ='Ioncam i Márta'!AJ37 -> 0 | AF11: ='Ioncam i Márta'!AK37 -> 0 | AG11: ='Ioncam i Márta'!AL37 -> 0 | AH11: ='Ioncam i Márta'!AM37 -> 0 | AI11: ='Ioncam i Márta'!AN37 -> 0 | AJ11: ='Ioncam i Márta'!AO37 -> 0 | AK11: ='Ioncam i Márta'!AP37 -> 0 | AL11: ='Ioncam i Márta'!AQ37 -> 0 | AM11: ='Ioncam i Márta'!AR37 -> 0 | AN11: ='Ioncam i Márta'!AS37 -> 0 | AO11: ='Ioncam i Márta'!AT37 -> 0 | AP11: ='Ioncam i Márta'!AU37 -> 0 | AQ11: ='Ioncam i Márta'!AV37 -> 0 | AR11: ='Ioncam i Márta'!AW37 -> 0 | AS11: ='Ioncam i Márta'!AX37 -> 0 | AT11: ='Ioncam i Márta'!AY37 -> 0 | AU11: ='Ioncam i Márta'!AZ37 -> 0 | AV11: ='Ioncam i Márta'!BA37 -> 0 | AW11: ='Ioncam i Márta'!BB37 -> 0 | AX11: ='Ioncam i Márta'!BC37 -> 0 | AY11: ='Ioncam i Márta'!BD37 -> 0 | AZ11: ='Ioncam i Márta'!BE37 -> 0 | BA11: ='Ioncam i Márta'!BF37 -> 0 | BB11: ='Ioncam i Márta'!BG37 -> 0 | BC11: ='Ioncam i Márta'!BH37 -> 0 | BD11: ='Ioncam i Márta'!BI37 -> 0 | BE11: ='Ioncam i Márta'!BJ37 -> 0 | BF11: ='Ioncam i Márta'!BK37 -> 0 | BG11: ='Ioncam i Márta'!BL37 -> 0 | BH11: ='Ioncam i Márta'!BM37 -> 0 | BI11: ='Ioncam i Márta'!BN37 -> 0 | BJ11: ='Ioncam i Márta'!BO37 -> 0 | BK11: ='Ioncam i Márta'!BP37 -> 0 | BL11: ='Ioncam i Márta'!BQ37 -> 0 | BM11: ='Ioncam i Márta'!BR37 -> 0 | BN11: ='Ioncam i Márta'!BS37 -> 0 | BO11: ='Ioncam i Márta'!BT37 -> 0 | BP11: ='Ioncam i Márta'!BU37 -> 0 | BQ11: ='Ioncam i Márta'!BV37 -> 0 | BR11: ='Ioncam i Márta'!BW37 -> 0 | BS11: ='Ioncam i Márta'!BX37 -> 0 | BT11: ='Ioncam i Márta'!BY37 -> 0 | BU11: ='Ioncam i Márta'!BZ37 -> 0 | BV11: ='Ioncam i Márta'!CA37 -> 0 | BW11: ='Ioncam i Márta'!CB37 -> 0 | BX11: ='Ioncam i Márta'!CC37 -> 0 | BY11: ='Ioncam i Márta'!CD37 -> 0 | BZ11: ='Ioncam i Márta'!CE37 -> 0 | CA11: ='Ioncam i Márta'!CF37 -> 0 | CB11: ='Ioncam i Márta'!CG37 -> 0 | CC11: ='Ioncam i Márta'!CH37 -> 0 | CD11: ='Ioncam i Márta'!CI37 -> 0 | CE11: ='Ioncam i Márta'!CJ37 -> 0 | CF11: ='Ioncam i Márta'!CK37 -> 0 | CG11: ='Ioncam i Márta'!CL37 -> 0 | CH11: ='Ioncam i Márta'!CM37 -> 0 | CI11: ='Ioncam i Márta'!CN37 -> 0 | CJ11: ='Ioncam i Márta'!CO37 -> 0 | CK11: ='Ioncam i Márta'!CP37 -> 0
A12: 2023-04-01 | B12: 0 | C12: ='Ioncam in Aibreán'!H37 -> 0 | D12: ='Ioncam in Aibreán'!I37 -> 0 | E12: ='Ioncam in Aibreán'!J37 -> 0 | F12: ='Ioncam in Aibreán'!K37 -> 0 | G12: ='Ioncam in Aibreán'!L37 -> 0 | H12: ='Ioncam in Aibreán'!M37 -> 0 | I12: ='Ioncam in Aibreán'!N37 -> 0 | J12: ='Ioncam in Aibreán'!O37 -> 0 | K12: ='Ioncam in Aibreán'!P37 -> 0 | L12: ='Ioncam in Aibreán'!Q37 -> 0 | M12: ='Ioncam in Aibreán'!R37 -> 0 | N12: ='Ioncam in Aibreán'!S37 -> 0 | O12: ='Ioncam in Aibreán'!T37 -> 0 | P12: ='Ioncam in Aibreán'!U37 -> 0 | Q12: ='Ioncam in Aibreán'!V37 -> 0 | R12: ='Ioncam in Aibreán'!W37 -> 0 | S12: ='Ioncam in Aibreán'!X37 -> 0 | T12: ='Ioncam in Aibreán'!Y37 -> 0 | U12: ='Ioncam in Aibreán'!Z37 -> 0 | V12: ='Ioncam in Aibreán'!AA37 -> 0 | W12: ='Ioncam in Aibreán'!AB37 -> 0 | X12: ='Ioncam in Aibreán'!AC37 -> 0 | Y12: ='Ioncam in Aibreán'!AD37 -> 0 | Z12: ='Ioncam in Aibreán'!AE37 -> 0 | AA12: ='Ioncam in Aibreán'!AF37 -> 0 | AB12: ='Ioncam in Aibreán'!AG37 -> 0 | AC12: ='Ioncam in Aibreán'!AH37 -> 0 | AD12: ='Ioncam in Aibreán'!AI37 -> 0 | AE12: ='Ioncam in Aibreán'!AJ37 -> 0 | AF12: ='Ioncam in Aibreán'!AK37 -> 0 | AG12: ='Ioncam in Aibreán'!AL37 -> 0 | AH12: ='Ioncam in Aibreán'!AM37 -> 0 | AI12: ='Ioncam in Aibreán'!AN37 -> 0 | AJ12: ='Ioncam in Aibreán'!AO37 -> 0 | AK12: ='Ioncam in Aibreán'!AP37 -> 0 | AL12: ='Ioncam in Aibreán'!AQ37 -> 0 | AM12: ='Ioncam in Aibreán'!AR37 -> 0 | AN12: ='Ioncam in Aibreán'!AS37 -> 0 | AO12: ='Ioncam in Aibreán'!AT37 -> 0 | AP12: ='Ioncam in Aibreán'!AU37 -> 0 | AQ12: ='Ioncam in Aibreán'!AV37 -> 0 | AR12: ='Ioncam in Aibreán'!AW37 -> 0 | AS12: ='Ioncam in Aibreán'!AX37 -> 0 | AT12: ='Ioncam in Aibreán'!AY37 -> 0 | AU12: ='Ioncam in Aibreán'!AZ37 -> 0 | AV12: ='Ioncam in Aibreán'!BA37 -> 0 | AW12: ='Ioncam in Aibreán'!BB37 -> 0 | AX12: ='Ioncam in Aibreán'!BC37 -> 0 | AY12: ='Ioncam in Aibreán'!BD37 -> 0 | AZ12: ='Ioncam in Aibreán'!BE37 -> 0 | BA12: ='Ioncam in Aibreán'!BF37 -> 0 | BB12: ='Ioncam in Aibreán'!BG37 -> 0 | BC12: ='Ioncam in Aibreán'!BH37 -> 0 | BD12: ='Ioncam in Aibreán'!BI37 -> 0 | BE12: ='Ioncam in Aibreán'!BJ37 -> 0 | BF12: ='Ioncam in Aibreán'!BK37 -> 0 | BG12: ='Ioncam in Aibreán'!BL37 -> 0 | BH12: ='Ioncam in Aibreán'!BM37 -> 0 | BI12: ='Ioncam in Aibreán'!BN37 -> 0 | BJ12: ='Ioncam in Aibreán'!BO37 -> 0 | BK12: ='Ioncam in Aibreán'!BP37 -> 0 | BL12: ='Ioncam in Aibreán'!BQ37 -> 0 | BM12: ='Ioncam in Aibreán'!BR37 -> 0 | BN12: ='Ioncam in Aibreán'!BS37 -> 0 | BO12: ='Ioncam in Aibreán'!BT37 -> 0 | BP12: ='Ioncam in Aibreán'!BU37 -> 0 | BQ12: ='Ioncam in Aibreán'!BV37 -> 0 | BR12: ='Ioncam in Aibreán'!BW37 -> 0 | BS12: ='Ioncam in Aibreán'!BX37 -> 0 | BT12: ='Ioncam in Aibreán'!BY37 -> 0 | BU12: ='Ioncam in Aibreán'!BZ37 -> 0 | BV12: ='Ioncam in Aibreán'!CA37 -> 0 | BW12: ='Ioncam in Aibreán'!CB37 -> 0 | BX12: ='Ioncam in Aibreán'!CC37 -> 0 | BY12: ='Ioncam in Aibreán'!CD37 -> 0 | BZ12: ='Ioncam in Aibreán'!CE37 -> 0 | CA12: ='Ioncam in Aibreán'!CF37 -> 0 | CB12: ='Ioncam in Aibreán'!CG37 -> 0 | CC12: ='Ioncam in Aibreán'!CH37 -> 0 | CD12: ='Ioncam in Aibreán'!CI37 -> 0 | CE12: ='Ioncam in Aibreán'!CJ37 -> 0 | CF12: ='Ioncam in Aibreán'!CK37 -> 0 | CG12: ='Ioncam in Aibreán'!CL37 -> 0 | CH12: ='Ioncam in Aibreán'!CM37 -> 0 | CI12: ='Ioncam in Aibreán'!CN37 -> 0 | CJ12: ='Ioncam in Aibreán'!CO37 -> 0 | CK12: ='Ioncam in Aibreán'!CP37 -> 0
A13: 2023-05-01 | B13: 0 | C13: ='Ioncam i mBealtaine'!H37 -> 0 | D13: ='Ioncam i mBealtaine'!I37 -> 0 | E13: ='Ioncam i mBealtaine'!J37 -> 0 | F13: ='Ioncam i mBealtaine'!K37 -> 0 | G13: ='Ioncam i mBealtaine'!L37 -> 0 | H13: ='Ioncam i mBealtaine'!M37 -> 0 | I13: ='Ioncam i mBealtaine'!N37 -> 0 | J13: ='Ioncam i mBealtaine'!O37 -> 0 | K13: ='Ioncam i mBealtaine'!P37 -> 0 | L13: ='Ioncam i mBealtaine'!Q37 -> 0 | M13: ='Ioncam i mBealtaine'!R37 -> 0 | N13: ='Ioncam i mBealtaine'!S37 -> 0 | O13: ='Ioncam i mBealtaine'!T37 -> 0 | P13: ='Ioncam i mBealtaine'!U37 -> 0 | Q13: ='Ioncam i mBealtaine'!V37 -> 0 | R13: ='Ioncam i mBealtaine'!W37 -> 0 | S13: ='Ioncam i mBealtaine'!X37 -> 0 | T13: ='Ioncam i mBealtaine'!Y37 -> 0 | U13: ='Ioncam i mBealtaine'!Z37 -> 0 | V13: ='Ioncam i mBealtaine'!AA37 -> 0 | W13: ='Ioncam i mBealtaine'!AB37 -> 0 | X13: ='Ioncam i mBealtaine'!AC37 -> 0 | Y13: ='Ioncam i mBealtaine'!AD37 -> 0 | Z13: ='Ioncam i mBealtaine'!AE37 -> 0 | AA13: ='Ioncam i mBealtaine'!AF37 -> 0 | AB13: ='Ioncam i mBealtaine'!AG37 -> 0 | AC13: ='Ioncam i mBealtaine'!AH37 -> 0 | AD13: ='Ioncam i mBealtaine'!AI37 -> 0 | AE13: ='Ioncam i mBealtaine'!AJ37 -> 0 | AF13: ='Ioncam i mBealtaine'!AK37 -> 0 | AG13: ='Ioncam i mBealtaine'!AL37 -> 0 | AH13: ='Ioncam i mBealtaine'!AM37 -> 0 | AI13: ='Ioncam i mBealtaine'!AN37 -> 0 | AJ13: ='Ioncam i mBealtaine'!AO37 -> 0 | AK13: ='Ioncam i mBealtaine'!AP37 -> 0 | AL13: ='Ioncam i mBealtaine'!AQ37 -> 0 | AM13: ='Ioncam i mBealtaine'!AR37 -> 0 | AN13: ='Ioncam i mBealtaine'!AS37 -> 0 | AO13: ='Ioncam i mBealtaine'!AT37 -> 0 | AP13: ='Ioncam i mBealtaine'!AU37 -> 0 | AQ13: ='Ioncam i mBealtaine'!AV37 -> 0 | AR13: ='Ioncam i mBealtaine'!AW37 -> 0 | AS13: ='Ioncam i mBealtaine'!AX37 -> 0 | AT13: ='Ioncam i mBealtaine'!AY37 -> 0 | AU13: ='Ioncam i mBealtaine'!AZ37 -> 0 | AV13: ='Ioncam i mBealtaine'!BA37 -> 0 | AW13: ='Ioncam i mBealtaine'!BB37 -> 0 | AX13: ='Ioncam i mBealtaine'!BC37 -> 0 | AY13: ='Ioncam i mBealtaine'!BD37 -> 0 | AZ13: ='Ioncam i mBealtaine'!BE37 -> 0 | BA13: ='Ioncam i mBealtaine'!BF37 -> 0 | BB13: ='Ioncam i mBealtaine'!BG37 -> 0 | BC13: ='Ioncam i mBealtaine'!BH37 -> 0 | BD13: ='Ioncam i mBealtaine'!BI37 -> 0 | BE13: ='Ioncam i mBealtaine'!BJ37 -> 0 | BF13: ='Ioncam i mBealtaine'!BK37 -> 0 | BG13: ='Ioncam i mBealtaine'!BL37 -> 0 | BH13: ='Ioncam i mBealtaine'!BM37 -> 0 | BI13: ='Ioncam i mBealtaine'!BN37 -> 0 | BJ13: ='Ioncam i mBealtaine'!BO37 -> 0 | BK13: ='Ioncam i mBealtaine'!BP37 -> 0 | BL13: ='Ioncam i mBealtaine'!BQ37 -> 0 | BM13: ='Ioncam i mBealtaine'!BR37 -> 0 | BN13: ='Ioncam i mBealtaine'!BS37 -> 0 | BO13: ='Ioncam i mBealtaine'!BT37 -> 0 | BP13: ='Ioncam i mBealtaine'!BU37 -> 0 | BQ13: ='Ioncam i mBealtaine'!BV37 -> 0 | BR13: ='Ioncam i mBealtaine'!BW37 -> 0 | BS13: ='Ioncam i mBealtaine'!BX37 -> 0 | BT13: ='Ioncam i mBealtaine'!BY37 -> 0 | BU13: ='Ioncam i mBealtaine'!BZ37 -> 0 | BV13: ='Ioncam i mBealtaine'!CA37 -> 0 | BW13: ='Ioncam i mBealtaine'!CB37 -> 0 | BX13: ='Ioncam i mBealtaine'!CC37 -> 0 | BY13: ='Ioncam i mBealtaine'!CD37 -> 0 | BZ13: ='Ioncam i mBealtaine'!CE37 -> 0 | CA13: ='Ioncam i mBealtaine'!CF37 -> 0 | CB13: ='Ioncam i mBealtaine'!CG37 -> 0 | CC13: ='Ioncam i mBealtaine'!CH37 -> 0 | CD13: ='Ioncam i mBealtaine'!CI37 -> 0 | CE13: ='Ioncam i mBealtaine'!CJ37 -> 0 | CF13: ='Ioncam i mBealtaine'!CK37 -> 0 | CG13: ='Ioncam i mBealtaine'!CL37 -> 0 | CH13: ='Ioncam i mBealtaine'!CM37 -> 0 | CI13: ='Ioncam i mBealtaine'!CN37 -> 0 | CJ13: ='Ioncam i mBealtaine'!CO37 -> 0 | CK13: ='Ioncam i mBealtaine'!CP37 -> 0
A14: 2023-06-01 | B14: 0 | C14: ='Ioncam i Meitheamh'!H37 -> 0 | D14: ='Ioncam i Meitheamh'!I37 -> 0 | E14: ='Ioncam i Meitheamh'!J37 -> 0 | F14: ='Ioncam i Meitheamh'!K37 -> 0 | G14: ='Ioncam i Meitheamh'!L37 -> 0 | H14: ='Ioncam i Meitheamh'!M37 -> 0 | I14: ='Ioncam i Meitheamh'!N37 -> 0 | J14: ='Ioncam i Meitheamh'!O37 -> 0 | K14: ='Ioncam i Meitheamh'!P37 -> 0 | L14: ='Ioncam i Meitheamh'!Q37 -> 0 | M14: ='Ioncam i Meitheamh'!R37 -> 0 | N14: ='Ioncam i Meitheamh'!S37 -> 0 | O14: ='Ioncam i Meitheamh'!T37 -> 0 | P14: ='Ioncam i Meitheamh'!U37 -> 0 | Q14: ='Ioncam i Meitheamh'!V37 -> 0 | R14: ='Ioncam i Meitheamh'!W37 -> 0 | S14: ='Ioncam i Meitheamh'!X37 -> 0 | T14: ='Ioncam i Meitheamh'!Y37 -> 0 | U14: ='Ioncam i Meitheamh'!Z37 -> 0 | V14: ='Ioncam i Meitheamh'!AA37 -> 0 | W14: ='Ioncam i Meitheamh'!AB37 -> 0 | X14: ='Ioncam i Meitheamh'!AC37 -> 0 | Y14: ='Ioncam i Meitheamh'!AD37 -> 0 | Z14: ='Ioncam i Meitheamh'!AE37 -> 0 | AA14: ='Ioncam i Meitheamh'!AF37 -> 0 | AB14: ='Ioncam i Meitheamh'!AG37 -> 0 | AC14: ='Ioncam i Meitheamh'!AH37 -> 0 | AD14: ='Ioncam i Meitheamh'!AI37 -> 0 | AE14: ='Ioncam i Meitheamh'!AJ37 -> 0 | AF14: ='Ioncam i Meitheamh'!AK37 -> 0 | AG14: ='Ioncam i Meitheamh'!AL37 -> 0 | AH14: ='Ioncam i Meitheamh'!AM37 -> 0 | AI14: ='Ioncam i Meitheamh'!AN37 -> 0 | AJ14: ='Ioncam i Meitheamh'!AO37 -> 0 | AK14: ='Ioncam i Meitheamh'!AP37 -> 0 | AL14: ='Ioncam i Meitheamh'!AQ37 -> 0 | AM14: ='Ioncam i Meitheamh'!AR37 -> 0 | AN14: ='Ioncam i Meitheamh'!AS37 -> 0 | AO14: ='Ioncam i Meitheamh'!AT37 -> 0 | AP14: ='Ioncam i Meitheamh'!AU37 -> 0 | AQ14: ='Ioncam i Meitheamh'!AV37 -> 0 | AR14: ='Ioncam i Meitheamh'!AW37 -> 0 | AS14: ='Ioncam i Meitheamh'!AX37 -> 0 | AT14: ='Ioncam i Meitheamh'!AY37 -> 0 | AU14: ='Ioncam i Meitheamh'!AZ37 -> 0 | AV14: ='Ioncam i Meitheamh'!BA37 -> 0 | AW14: ='Ioncam i Meitheamh'!BB37 -> 0 | AX14: ='Ioncam i Meitheamh'!BC37 -> 0 | AY14: ='Ioncam i Meitheamh'!BD37 -> 0 | AZ14: ='Ioncam i Meitheamh'!BE37 -> 0 | BA14: ='Ioncam i Meitheamh'!BF37 -> 0 | BB14: ='Ioncam i Meitheamh'!BG37 -> 0 | BC14: ='Ioncam i Meitheamh'!BH37 -> 0 | BD14: ='Ioncam i Meitheamh'!BI37 -> 0 | BE14: ='Ioncam i Meitheamh'!BJ37 -> 0 | BF14: ='Ioncam i Meitheamh'!BK37 -> 0 | BG14: ='Ioncam i Meitheamh'!BL37 -> 0 | BH14: ='Ioncam i Meitheamh'!BM37 -> 0 | BI14: ='Ioncam i Meitheamh'!BN37 -> 0 | BJ14: ='Ioncam i Meitheamh'!BO37 -> 0 | BK14: ='Ioncam i Meitheamh'!BP37 -> 0 | BL14: ='Ioncam i Meitheamh'!BQ37 -> 0 | BM14: ='Ioncam i Meitheamh'!BR37 -> 0 | BN14: ='Ioncam i Meitheamh'!BS37 -> 0 | BO14: ='Ioncam i Meitheamh'!BT37 -> 0 | BP14: ='Ioncam i Meitheamh'!BU37 -> 0 | BQ14: ='Ioncam i Meitheamh'!BV37 -> 0 | BR14: ='Ioncam i Meitheamh'!BW37 -> 0 | BS14: ='Ioncam i Meitheamh'!BX37 -> 0 | BT14: ='Ioncam i Meitheamh'!BY37 -> 0 | BU14: ='Ioncam i Meitheamh'!BZ37 -> 0 | BV14: ='Ioncam i Meitheamh'!CA37 -> 0 | BW14: ='Ioncam i Meitheamh'!CB37 -> 0 | BX14: ='Ioncam i Meitheamh'!CC37 -> 0 | BY14: ='Ioncam i Meitheamh'!CD37 -> 0 | BZ14: ='Ioncam i Meitheamh'!CE37 -> 0 | CA14: ='Ioncam i Meitheamh'!CF37 -> 0 | CB14: ='Ioncam i Meitheamh'!CG37 -> 0 | CC14: ='Ioncam i Meitheamh'!CH37 -> 0 | CD14: ='Ioncam i Meitheamh'!CI37 -> 0 | CE14: ='Ioncam i Meitheamh'!CJ37 -> 0 | CF14: ='Ioncam i Meitheamh'!CK37 -> 0 | CG14: ='Ioncam i Meitheamh'!CL37 -> 0 | CH14: ='Ioncam i Meitheamh'!CM37 -> 0 | CI14: ='Ioncam i Meitheamh'!CN37 -> 0 | CJ14: ='Ioncam i Meitheamh'!CO37 -> 0 | CK14: ='Ioncam i Meitheamh'!CP37 -> 0
